Workbook

Sheet index
A2: 平成29年度下水道事業比較経営診断表
B4: 都道府県名 | K4: 処理区域内人口別区分 | L4: 政令市等 | O4: 処理区域内人口 （人） | Q4: 1936035
B5: 団体名 | K5: 有収水量密度別区分 | L5: 政令市等 | O5: 有収水量密度 （千㎥/ｈa) | Q5: 8.4
B6: 事業名 | K6: 供用開始後年数別区分 | L6: 政令市等 | O6: 供用開始後年数 (年） | Q6: 57
A8: 項 目 | E8: 団 体 | G8: 類型平均 | H8: 全国平均 | I8: 類型内 順 位 | J8: 項 目 | M8: 団 体 | O8: 類型平均 | P8: 全国平均 | Q8: 類型内 順 位
E9: 28年度 | F9: 29年度 | H9: (公共) | M9: 28年度 | N9: 29年度 | P9: (公共)
A10: 事業の概要 | J10: 財政状態の健全性
A11: 事業別普及率 | D11: ％ | E11: 99.3 | F11: 99.3 | G11: － | H11: 78.2 | I11: － | J11: 総収支比率 | L11: ％ | M11: 109.5 | N11: 107.9 | O11: 117.6 | P11: 122.6 | Q11: 10/21
A12: 進捗率 | D12: ％ | E12: 104.1 | F12: 104.3 | G12: 101.5 | H12: 93.2 | I12: － | J12: 経常収支比率 | L12: ％ | M12: 109.5 | N12: 107.9 | O12: 109.4 | P12: 100.6 | Q12: 11/21
A13: 一般家庭用使用料 （1ヶ月20㎥あたり） | D13: 円／月 | E13: 1371 | F13: 1371 | G13: 2174 | H13: 2770 | I13: － | J13: 事業別資金不足比率 | L13: ％ | M13: 0 | N13: 0 | O13: 0 | P13: 9.7 | Q13: 1/21
A14: 処理区域内人口密度 | D14: 人／ha | E14: 79 | F14: 79 | G14: 99 | H14: 61 | I14: － | J14: 利子負担率 | L14: ％ | M14: 1.9 | N14: 1.7 | O14: 1.7 | P14: 1.9 | Q14: 5/21
A15: 施設の効率性 | J15: 自己資本構成比率 | L15: ％ | M15: 57.4 | N15: 57.4 | O15: 60.7 | P15: 59 | Q15: 8/21
A16: 施設利用率 | D16: ％ | E16: 67.7 | F16: 68 | G16: 63.3 | H16: 85 | I16: 11/21 | J16: 固定資産対長期資本比率 | L16: ％ | M16: 101.7 | N16: 101.8 | O16: 101.9 | P16: 101.7 | Q16: 10/21
A17: 有収率 | D17: ％ | E17: 71.7 | F17: 71.1 | G17: 79.6 | H17: 80.8 | I17: 16/21 | J17: 処理区域内人口１人あたり の地方債現在高 | L17: 千円／人 | M17: 128 | N17: 125 | O17: 193 | P17: 210 | Q17: 3/21
A18: 水洗化率 | D18: ％ | E18: 99.9 | F18: 99.9 | G18: 98.9 | H18: 95.1 | I18: 3/21
A19: 経営の効率性
A20: 使用料単価 | D20: 円／㎥ | E20: 93.6 | F20: 93.82 | G20: 133.03 | H20: 138.12 | I20: 21/21
A21: 汚水処理原価 | D21: 円／㎥ | E21: 90.8 | F21: 93.81 | G21: 116.87 | H21: 136.38 | I21: 3/21
A22: 汚水処理原価(分流式下水道 等に要する経費控除前） | D22: 円／㎥ | E22: 90.8 | F22: 93.81 | G22: 120.01 | H22: 164.33 | I22: 2/21
A23: 汚水処理原価 （維持管理費） | D23: 円／㎥ | E23: 51.63 | F23: 53.73 | G23: 56.42 | H23: 69.67 | I23: 9/21
A24: 汚水処理原価 （資本費） | D24: 円／㎥ | E24: 39.17 | F24: 40.08 | G24: 60.45 | H24: 66.71 | I24: 3/21
A25: 経費回収率 | D25: ％ | E25: 103.1 | F25: 100 | G25: 113.8 | H25: 101.3 | I25: 16/21
A26: 経費回収率(分流式下水道 等に要する経費控除前） | D26: ％ | E26: 103.1 | F26: 100 | G26: 110.8 | H26: 84 | I26: 13/21
A27: 経費回収率 （維持管理費） | D27: ％ | E27: 181.3 | F27: 174.6 | G27: 235.8 | H27: 198.3 | I27: 20/21
A28: 処理区域内人口1人あたり の管理運営費(汚水分） | D28: 円／人 | E28: 9721 | F28: 9979 | G28: 13589 | H28: 14762 | I28: 2/21
A29: 処理区域内人口1人あたり の維持管理費（汚水分） | D29: 円／人 | E29: 5527 | F29: 5715 | G29: 6561 | H29: 7541 | I29: 9/21
A30: 処理区域内人口1人あたり の資本費（汚水分） | D30: 円／人 | E30: 4193 | F30: 4264 | G30: 7029 | H30: 7221 | I30: 2/21
A31: 職員１人あたりの 処理区域内人口 | D31: 人／人 | E31: 3968 | F31: 3903 | G31: 4155 | H31: 4246 | I31: 13/21
A32: 職員給与費対営業収益比率 | D32: ％ | E32: 8.4 | F32: 8.6 | G32: 5.8 | H32: 6 | I32: 17/21
A34: 経 営 状 況
A35: 収 益 的 収 支 | J35: 資 本 的 収 支
A36: 項 目 | E36: 28年度 | F36: 29年度 | G36: 増減額 | H36: 増減率（％） | J36: 項 目 | M36: 28年度 | N36: 29年度 | O36: 増減額 | P36: 増減率（％）
A37: 収 入 | D37: 百万円 | E37: 50587 | F37: 49766 | G37: -821 | H37: -1.649720693 | J37: 収 入 | L37: 百万円 | M37: 16020 | N37: 16780 | O37: 760 | P37: 4.52920143
B38: 料金収入 | D38: 百万円 | E38: 19364 | F38: 19322 | G38: -42 | H38: -0.2173688024 | K38: 地方債 | L38: 百万円 | M38: 10053 | N38: 10978 | O38: 925 | P38: 8.425942795
B39: 繰入金 | D39: 百万円 | E39: 19718 | F39: 19090 | G39: -628 | H39: -3.289680461 | K39: 繰入金 | L39: 百万円 | M39: 750 | N39: 681 | O39: -69 | P39: -10.13215859
A40: 支 出 | D40: 百万円 | E40: 46219 | F40: 46132 | G40: -87 | H40: -0.1885892656 | J40: 支 出 | L40: 百万円 | M40: 32892 | N40: 33533 | O40: 641 | P40: 1.911549817
B41: 支払利息 | D41: 百万円 | E41: 4680 | F41: 4146 | G41: -534 | H41: -12.87988423 | K41: 建設改良費 | L41: 百万円 | M41: 15461 | N41: 16668 | O41: 1207 | P41: 7.241420686
B42: 減価償却費 | D42: 百万円 | E42: 24334 | F42: 24308 | G42: -26 | H42: -0.1069606714 | K42: 元金償還金 | L42: 百万円 | M42: 17380 | N42: 16833 | O42: -547 | P42: -3.249569298
B43: 職員給与費 | D43: 百万円 | E43: 3241 | F43: 3288 | G43: 47 | H43: 1.429440389 | J43: 収 支 差 引 | L43: 百万円 | M43: -16873 | N43: -16753 | O43: 120 | P43: -0.7162896198
A44: 収 支 差 引 | D44: 百万円 | E44: 4368 | F44: 3634 | G44: -734 | H44: -20.19812878 | J44: 収 支 再 差 引 （法適：純損益） | L44: 百万円 | M44: 4368 | N44: 3634 | O44: -734 | P44: -20.19812878
A46: ※「類型内順位」については
A47: の場合であれば指標の数値の高い方から、
A48: の場合であれば指標の数値が低い方から数えた順位となる
F49: 団体 | G49: 類型平均 | H49: 全国平均
F50: =+IF(IF(G17<>0,F17/G17,0)>0.6,IF(IF(G17<>0,F17/G17)<1.5,IF(G17<>0,F17/G17),1.5),0.6) -> 0.8932160804 | G50: =+IF(IF(G17<>0,G17/G17,0)>0.6,IF(IF(G17<>0,G17/G17,0)<1.5,IF(G17<>0,G17/G17,0),1.5),0.6) -> 1 | H50: =+IF(IF(G17<>0,H17/G17,0)>0.6,IF(IF(G17<>0,H17/G17,0)<1.5,IF(G17<>0,H17/G17,0),1.5),0.6) -> 1.015075377
F51: =+IF(IF(G25<>0,F25/G25,0)>0.6,IF(IF(G25<>0,F25/G25,0)<1.5,IF(G25<>0,F25/G25,0),1.5),0.6) -> 0.8787346221 | G51: =+IF(IF(G25<>0,G25/G25,0)>0.6,IF(IF(G25<>0,G25/G25,0)<1.5,IF(G25<>0,G25/G25,0),1.5),0.6) -> 1 | H51: =+IF(IF(G25<>0,H25/G25,0)>0.6,IF(IF(G25<>0,H25/G25,0)<1.5,IF(G25<>0,H25/G25,0),1.5),0.6) -> 0.8901581722
F52: =+IF(IF(G26<>0,F26/G26,0)>0.6,IF(IF(G26<>0,F26/G26,0)<1.5,IF(G26<>0,F26/G26,0),1.5),0.6) -> 0.9025270758 | G52: =+IF(IF(G26<>0,G26/G26,0)>0.6,IF(IF(G26<>0,G26/G26,0)<1.5,IF(G26<>0,G26/G26,0),1.5),0.6) -> 1 | H52: =+IF(IF(G26<>0,H26/G26,0)>0.6,IF(IF(G26<>0,H26/G26,0)<1.5,IF(G26<>0,H26/G26,0),1.5),0.6) -> 0.7581227437
F53: =+IF(IF(G22<>0,G22/F22,0)>0.6,IF(IF(G22<>0,G22/F22,0)<1.5,IF(G22<>0,G22/F22,0),1.5),0.6) -> 1.279287922 | G53: =+IF(IF(G22<>0,G22/G22,0)>0.6,IF(IF(G22<>0,G22/G22,0)<1.5,IF(G22<>0,G22/G22,0),1.5),0.6) -> 1 | H53: =+IF(IF(G22<>0,G22/H22,0)>0.6,IF(IF(G22<>0,G22/H22,0)<1.5,IF(G22<>0,G22/H22,0),1.5),0.6) -> 0.730298789
F54: =+IF(IF(G18<>0,F18/G18,0)>0.6,IF(IF(G18<>0,F18/G18,0)<1.5,IF(G18<>0,F18/G18,0),1.5),0.6) -> 1.010111223 | G54: =+IF(IF(G18<>0,G18/G18,0)>0.6,IF(IF(G18<>0,G18/G18,0)<1.5,IF(G18<>0,G18/G18,0),1.5),0.6) -> 1 | H54: =+IF(IF(G18<>0,H18/G18,0)>0.6,IF(IF(G18<>0,H18/G18,0)<1.5,IF(G18<>0,H18/G18,0),1.5),0.6) -> 0.9615773509

Sheet 29収支
A1: 決算年度 | B1: 業務コード | C1: 業種コード | D1: 事業コード | E1: 並び順 | F1: 事業区分 | G1: 団体コード | H1: 都道府県 | I1: 団体名 | J1: 収入 | K1: 料金収入 | L1: 繰入金 | M1: 支出 | N1: 支払利息 | O1: 減価償却費 | P1: 職員給与費 | Q1: 収支差引 | R1: 収入 | S1: 地方債 | T1: 繰入金 | U1: 支出 | V1: 建設改良費 | W1: 元金償還金 | X1: 収支差引 | Y1: 収支再差引
A2: 2017 | B2: 46 | C2: 17 | D2: 1 | E2: 1 | F2: 公共 | G2: 011002 | H2: 北海道 | I2: 札幌市 | J2: =IF(千円単!J2="","",ROUND(千円単!J2/1000,0)) -> 49766 | K2: =IF(千円単!K2="","",ROUND(千円単!K2/1000,0)) -> 19322 | L2: =IF(千円単!L2="","",ROUND(千円単!L2/1000,0)) -> 19090 | M2: =IF(千円単!M2="","",ROUND(千円単!M2/1000,0)) -> 46132 | N2: =IF(千円単!N2="","",ROUND(千円単!N2/1000,0)) -> 4146 | O2: =IF(千円単!O2="","",ROUND(千円単!O2/1000,0)) -> 24308 | P2: =IF(千円単!P2="","",ROUND(千円単!P2/1000,0)) -> 3288 | Q2: =IF(千円単!Q2="","",ROUND(千円単!Q2/1000,0)) -> 3634 | R2: =IF(千円単!R2="","",ROUND(千円単!R2/1000,0)) -> 16780 | S2: =IF(千円単!S2="","",ROUND(千円単!S2/1000,0)) -> 10978 | T2: =IF(千円単!T2="","",ROUND(千円単!T2/1000,0)) -> 681 | U2: =IF(千円単!U2="","",ROUND(千円単!U2/1000,0)) -> 33533 | V2: =IF(千円単!V2="","",ROUND(千円単!V2/1000,0)) -> 16668 | W2: =IF(千円単!W2="","",ROUND(千円単!W2/1000,0)) -> 16833 | X2: =IF(千円単!X2="","",ROUND(千円単!X2/1000,0)) -> -16753 | Y2: =IF(千円単!Y2="","",ROUND(千円単!Y2/1000,0)) -> 3634
A3: 2017 | B3: 46 | C3: 17 | D3: 1 | E3: 2 | F3: 公共 | G3: 012025 | H3: 北海道 | I3: 函館市 | J3: =IF(千円単!J3="","",ROUND(千円単!J3/1000,0)) -> 7485 | K3: =IF(千円単!K3="","",ROUND(千円単!K3/1000,0)) -> 4229 | L3: =IF(千円単!L3="","",ROUND(千円単!L3/1000,0)) -> 1117 | M3: =IF(千円単!M3="","",ROUND(千円単!M3/1000,0)) -> 6518 | N3: =IF(千円単!N3="","",ROUND(千円単!N3/1000,0)) -> 971 | O3: =IF(千円単!O3="","",ROUND(千円単!O3/1000,0)) -> 3463 | P3: =IF(千円単!P3="","",ROUND(千円単!P3/1000,0)) -> 347 | Q3: =IF(千円単!Q3="","",ROUND(千円単!Q3/1000,0)) -> 966 | R3: =IF(千円単!R3="","",ROUND(千円単!R3/1000,0)) -> 3346 | S3: =IF(千円単!S3="","",ROUND(千円単!S3/1000,0)) -> 2354 | T3: =IF(千円単!T3="","",ROUND(千円単!T3/1000,0)) -> 558 | U3: =IF(千円単!U3="","",ROUND(千円単!U3/1000,0)) -> 5870 | V3: =IF(千円単!V3="","",ROUND(千円単!V3/1000,0)) -> 1744 | W3: =IF(千円単!W3="","",ROUND(千円単!W3/1000,0)) -> 4116 | X3: =IF(千円単!X3="","",ROUND(千円単!X3/1000,0)) -> -2524 | Y3: =IF(千円単!Y3="","",ROUND(千円単!Y3/1000,0)) -> 966
A4: 2017 | B4: 46 | C4: 17 | D4: 1 | E4: 3 | F4: 公共 | G4: 012033 | H4: 北海道 | I4: 小樽市 | J4: =IF(千円単!J4="","",ROUND(千円単!J4/1000,0)) -> 3814 | K4: =IF(千円単!K4="","",ROUND(千円単!K4/1000,0)) -> 1913 | L4: =IF(千円単!L4="","",ROUND(千円単!L4/1000,0)) -> 909 | M4: =IF(千円単!M4="","",ROUND(千円単!M4/1000,0)) -> 3318 | N4: =IF(千円単!N4="","",ROUND(千円単!N4/1000,0)) -> 249 | O4: =IF(千円単!O4="","",ROUND(千円単!O4/1000,0)) -> 1773 | P4: =IF(千円単!P4="","",ROUND(千円単!P4/1000,0)) -> 88 | Q4: =IF(千円単!Q4="","",ROUND(千円単!Q4/1000,0)) -> 496 | R4: =IF(千円単!R4="","",ROUND(千円単!R4/1000,0)) -> 1449 | S4: =IF(千円単!S4="","",ROUND(千円単!S4/1000,0)) -> 517 | T4: =IF(千円単!T4="","",ROUND(千円単!T4/1000,0)) -> 381 | U4: =IF(千円単!U4="","",ROUND(千円単!U4/1000,0)) -> 3215 | V4: =IF(千円単!V4="","",ROUND(千円単!V4/1000,0)) -> 836 | W4: =IF(千円単!W4="","",ROUND(千円単!W4/1000,0)) -> 2378 | X4: =IF(千円単!X4="","",ROUND(千円単!X4/1000,0)) -> -1766 | Y4: =IF(千円単!Y4="","",ROUND(千円単!Y4/1000,0)) -> 496
A5: 2017 | B5: 46 | C5: 17 | D5: 1 | E5: 4 | F5: 公共 | G5: 012041 | H5: 北海道 | I5: 旭川市 | J5: =IF(千円単!J5="","",ROUND(千円単!J5/1000,0)) -> 8913 | K5: =IF(千円単!K5="","",ROUND(千円単!K5/1000,0)) -> 5358 | L5: =IF(千円単!L5="","",ROUND(千円単!L5/1000,0)) -> 1051 | M5: =IF(千円単!M5="","",ROUND(千円単!M5/1000,0)) -> 8066 | N5: =IF(千円単!N5="","",ROUND(千円単!N5/1000,0)) -> 685 | O5: =IF(千円単!O5="","",ROUND(千円単!O5/1000,0)) -> 4724 | P5: =IF(千円単!P5="","",ROUND(千円単!P5/1000,0)) -> 346 | Q5: =IF(千円単!Q5="","",ROUND(千円単!Q5/1000,0)) -> 847 | R5: =IF(千円単!R5="","",ROUND(千円単!R5/1000,0)) -> 1940 | S5: =IF(千円単!S5="","",ROUND(千円単!S5/1000,0)) -> 1099 | T5: =IF(千円単!T5="","",ROUND(千円単!T5/1000,0)) -> 229 | U5: =IF(千円単!U5="","",ROUND(千円単!U5/1000,0)) -> 5398 | V5: =IF(千円単!V5="","",ROUND(千円単!V5/1000,0)) -> 1270 | W5: =IF(千円単!W5="","",ROUND(千円単!W5/1000,0)) -> 4128 | X5: =IF(千円単!X5="","",ROUND(千円単!X5/1000,0)) -> -3458 | Y5: =IF(千円単!Y5="","",ROUND(千円単!Y5/1000,0)) -> 847
A6: 2017 | B6: 46 | C6: 17 | D6: 1 | E6: 5 | F6: 公共 | G6: 012050 | H6: 北海道 | I6: 室蘭市 | J6: =IF(千円単!J6="","",ROUND(千円単!J6/1000,0)) -> 3032 | K6: =IF(千円単!K6="","",ROUND(千円単!K6/1000,0)) -> 1459 | L6: =IF(千円単!L6="","",ROUND(千円単!L6/1000,0)) -> 834 | M6: =IF(千円単!M6="","",ROUND(千円単!M6/1000,0)) -> 2635 | N6: =IF(千円単!N6="","",ROUND(千円単!N6/1000,0)) -> 257 | O6: =IF(千円単!O6="","",ROUND(千円単!O6/1000,0)) -> 1397 | P6: =IF(千円単!P6="","",ROUND(千円単!P6/1000,0)) -> 96 | Q6: =IF(千円単!Q6="","",ROUND(千円単!Q6/1000,0)) -> 398 | R6: =IF(千円単!R6="","",ROUND(千円単!R6/1000,0)) -> 703 | S6: =IF(千円単!S6="","",ROUND(千円単!S6/1000,0)) -> 323 | T6: =IF(千円単!T6="","",ROUND(千円単!T6/1000,0)) -> 82 | U6: =IF(千円単!U6="","",ROUND(千円単!U6/1000,0)) -> 1553 | V6: =IF(千円単!V6="","",ROUND(千円単!V6/1000,0)) -> 731 | W6: =IF(千円単!W6="","",ROUND(千円単!W6/1000,0)) -> 818 | X6: =IF(千円単!X6="","",ROUND(千円単!X6/1000,0)) -> -850 | Y6: =IF(千円単!Y6="","",ROUND(千円単!Y6/1000,0)) -> 398
A7: 2017 | B7: 46 | C7: 17 | D7: 1 | E7: 6 | F7: 公共 | G7: 012068 | H7: 北海道 | I7: 釧路市 | J7: =IF(千円単!J7="","",ROUND(千円単!J7/1000,0)) -> 6529 | K7: =IF(千円単!K7="","",ROUND(千円単!K7/1000,0)) -> 3574 | L7: =IF(千円単!L7="","",ROUND(千円単!L7/1000,0)) -> 953 | M7: =IF(千円単!M7="","",ROUND(千円単!M7/1000,0)) -> 5119 | N7: =IF(千円単!N7="","",ROUND(千円単!N7/1000,0)) -> 494 | O7: =IF(千円単!O7="","",ROUND(千円単!O7/1000,0)) -> 2897 | P7: =IF(千円単!P7="","",ROUND(千円単!P7/1000,0)) -> 212 | Q7: =IF(千円単!Q7="","",ROUND(千円単!Q7/1000,0)) -> 1411 | R7: =IF(千円単!R7="","",ROUND(千円単!R7/1000,0)) -> 2412 | S7: =IF(千円単!S7="","",ROUND(千円単!S7/1000,0)) -> 1448 | T7: =IF(千円単!T7="","",ROUND(千円単!T7/1000,0)) -> 491 | U7: =IF(千円単!U7="","",ROUND(千円単!U7/1000,0)) -> 3893 | V7: =IF(千円単!V7="","",ROUND(千円単!V7/1000,0)) -> 1618 | W7: =IF(千円単!W7="","",ROUND(千円単!W7/1000,0)) -> 2274 | X7: =IF(千円単!X7="","",ROUND(千円単!X7/1000,0)) -> -1481 | Y7: =IF(千円単!Y7="","",ROUND(千円単!Y7/1000,0)) -> 1411
A8: 2017 | B8: 46 | C8: 17 | D8: 1 | E8: 7 | F8: 公共 | G8: 012076 | H8: 北海道 | I8: 帯広市 | J8: =IF(千円単!J8="","",ROUND(千円単!J8/1000,0)) -> 4668 | K8: =IF(千円単!K8="","",ROUND(千円単!K8/1000,0)) -> 2681 | L8: =IF(千円単!L8="","",ROUND(千円単!L8/1000,0)) -> 886 | M8: =IF(千円単!M8="","",ROUND(千円単!M8/1000,0)) -> 4121 | N8: =IF(千円単!N8="","",ROUND(千円単!N8/1000,0)) -> 505 | O8: =IF(千円単!O8="","",ROUND(千円単!O8/1000,0)) -> 2263 | P8: =IF(千円単!P8="","",ROUND(千円単!P8/1000,0)) -> 105 | Q8: =IF(千円単!Q8="","",ROUND(千円単!Q8/1000,0)) -> 547 | R8: =IF(千円単!R8="","",ROUND(千円単!R8/1000,0)) -> 1104 | S8: =IF(千円単!S8="","",ROUND(千円単!S8/1000,0)) -> 718 | T8: =IF(千円単!T8="","",ROUND(千円単!T8/1000,0)) -> 3 | U8: =IF(千円単!U8="","",ROUND(千円単!U8/1000,0)) -> 2729 | V8: =IF(千円単!V8="","",ROUND(千円単!V8/1000,0)) -> 667 | W8: =IF(千円単!W8="","",ROUND(千円単!W8/1000,0)) -> 2062 | X8: =IF(千円単!X8="","",ROUND(千円単!X8/1000,0)) -> -1624 | Y8: =IF(千円単!Y8="","",ROUND(千円単!Y8/1000,0)) -> 547
A9: 2017 | B9: 46 | C9: 17 | D9: 1 | E9: 8 | F9: 公共 | G9: 012084 | H9: 北海道 | I9: 北見市 | J9: =IF(千円単!J9="","",ROUND(千円単!J9/1000,0)) -> 4175 | K9: =IF(千円単!K9="","",ROUND(千円単!K9/1000,0)) -> 1737 | L9: =IF(千円単!L9="","",ROUND(千円単!L9/1000,0)) -> 1059 | M9: =IF(千円単!M9="","",ROUND(千円単!M9/1000,0)) -> 3887 | N9: =IF(千円単!N9="","",ROUND(千円単!N9/1000,0)) -> 534 | O9: =IF(千円単!O9="","",ROUND(千円単!O9/1000,0)) -> 2330 | P9: =IF(千円単!P9="","",ROUND(千円単!P9/1000,0)) -> 178 | Q9: =IF(千円単!Q9="","",ROUND(千円単!Q9/1000,0)) -> 288 | R9: =IF(千円単!R9="","",ROUND(千円単!R9/1000,0)) -> 4061 | S9: =IF(千円単!S9="","",ROUND(千円単!S9/1000,0)) -> 2677 | T9: =IF(千円単!T9="","",ROUND(千円単!T9/1000,0)) -> 377 | U9: =IF(千円単!U9="","",ROUND(千円単!U9/1000,0)) -> 5207 | V9: =IF(千円単!V9="","",ROUND(千円単!V9/1000,0)) -> 2220 | W9: =IF(千円単!W9="","",ROUND(千円単!W9/1000,0)) -> 2987 | X9: =IF(千円単!X9="","",ROUND(千円単!X9/1000,0)) -> -1147 | Y9: =IF(千円単!Y9="","",ROUND(千円単!Y9/1000,0)) -> 288
A10: 2017 | B10: 46 | C10: 17 | D10: 1 | E10: 9 | F10: 公共 | G10: 012106 | H10: 北海道 | I10: 岩見沢市 | J10: =IF(千円単!J10="","",ROUND(千円単!J10/1000,0)) -> 2538 | K10: =IF(千円単!K10="","",ROUND(千円単!K10/1000,0)) -> 1215 | L10: =IF(千円単!L10="","",ROUND(千円単!L10/1000,0)) -> 516 | M10: =IF(千円単!M10="","",ROUND(千円単!M10/1000,0)) -> 2268 | N10: =IF(千円単!N10="","",ROUND(千円単!N10/1000,0)) -> 259 | O10: =IF(千円単!O10="","",ROUND(千円単!O10/1000,0)) -> 1216 | P10: =IF(千円単!P10="","",ROUND(千円単!P10/1000,0)) -> 26 | Q10: =IF(千円単!Q10="","",ROUND(千円単!Q10/1000,0)) -> 270 | R10: =IF(千円単!R10="","",ROUND(千円単!R10/1000,0)) -> 1737 | S10: =IF(千円単!S10="","",ROUND(千円単!S10/1000,0)) -> 564 | T10: =IF(千円単!T10="","",ROUND(千円単!T10/1000,0)) -> 387 | U10: =IF(千円単!U10="","",ROUND(千円単!U10/1000,0)) -> 2558 | V10: =IF(千円単!V10="","",ROUND(千円単!V10/1000,0)) -> 1409 | W10: =IF(千円単!W10="","",ROUND(千円単!W10/1000,0)) -> 1148 | X10: =IF(千円単!X10="","",ROUND(千円単!X10/1000,0)) -> -821 | Y10: =IF(千円単!Y10="","",ROUND(千円単!Y10/1000,0)) -> 270
A11: 2017 | B11: 46 | C11: 17 | D11: 1 | E11: 10 | F11: 公共 | G11: 012131 | H11: 北海道 | I11: 苫小牧市 | J11: =IF(千円単!J11="","",ROUND(千円単!J11/1000,0)) -> 5183 | K11: =IF(千円単!K11="","",ROUND(千円単!K11/1000,0)) -> 2345 | L11: =IF(千円単!L11="","",ROUND(千円単!L11/1000,0)) -> 1133 | M11: =IF(千円単!M11="","",ROUND(千円単!M11/1000,0)) -> 4619 | N11: =IF(千円単!N11="","",ROUND(千円単!N11/1000,0)) -> 582 | O11: =IF(千円単!O11="","",ROUND(千円単!O11/1000,0)) -> 2682 | P11: =IF(千円単!P11="","",ROUND(千円単!P11/1000,0)) -> 152 | Q11: =IF(千円単!Q11="","",ROUND(千円単!Q11/1000,0)) -> 564 | R11: =IF(千円単!R11="","",ROUND(千円単!R11/1000,0)) -> 2233 | S11: =IF(千円単!S11="","",ROUND(千円単!S11/1000,0)) -> 1455 | T11: =IF(千円単!T11="","",ROUND(千円単!T11/1000,0)) -> 216 | U11: =IF(千円単!U11="","",ROUND(千円単!U11/1000,0)) -> 3793 | V11: =IF(千円単!V11="","",ROUND(千円単!V11/1000,0)) -> 2021 | W11: =IF(千円単!W11="","",ROUND(千円単!W11/1000,0)) -> 1772 | X11: =IF(千円単!X11="","",ROUND(千円単!X11/1000,0)) -> -1560 | Y11: =IF(千円単!Y11="","",ROUND(千円単!Y11/1000,0)) -> 564
A12: 2017 | B12: 46 | C12: 17 | D12: 1 | E12: 11 | F12: 公共 | G12: 012149 | H12: 北海道 | I12: 稚内市 | J12: =IF(千円単!J12="","",ROUND(千円単!J12/1000,0)) -> 1115 | K12: =IF(千円単!K12="","",ROUND(千円単!K12/1000,0)) -> 471 | L12: =IF(千円単!L12="","",ROUND(千円単!L12/1000,0)) -> 393 | M12: =IF(千円単!M12="","",ROUND(千円単!M12/1000,0)) -> 1102 | N12: =IF(千円単!N12="","",ROUND(千円単!N12/1000,0)) -> 145 | O12: =IF(千円単!O12="","",ROUND(千円単!O12/1000,0)) -> 589 | P12: =IF(千円単!P12="","",ROUND(千円単!P12/1000,0)) -> 16 | Q12: =IF(千円単!Q12="","",ROUND(千円単!Q12/1000,0)) -> 13 | R12: =IF(千円単!R12="","",ROUND(千円単!R12/1000,0)) -> 733 | S12: =IF(千円単!S12="","",ROUND(千円単!S12/1000,0)) -> 405 | T12: =IF(千円単!T12="","",ROUND(千円単!T12/1000,0)) -> 97 | U12: =IF(千円単!U12="","",ROUND(千円単!U12/1000,0)) -> 1172 | V12: =IF(千円単!V12="","",ROUND(千円単!V12/1000,0)) -> 524 | W12: =IF(千円単!W12="","",ROUND(千円単!W12/1000,0)) -> 648 | X12: =IF(千円単!X12="","",ROUND(千円単!X12/1000,0)) -> -438 | Y12: =IF(千円単!Y12="","",ROUND(千円単!Y12/1000,0)) -> 13
A13: 2017 | B13: 46 | C13: 17 | D13: 1 | E13: 12 | F13: 公共 | G13: 012173 | H13: 北海道 | I13: 江別市 | J13: =IF(千円単!J13="","",ROUND(千円単!J13/1000,0)) -> 3537 | K13: =IF(千円単!K13="","",ROUND(千円単!K13/1000,0)) -> 1264 | L13: =IF(千円単!L13="","",ROUND(千円単!L13/1000,0)) -> 943 | M13: =IF(千円単!M13="","",ROUND(千円単!M13/1000,0)) -> 3318 | N13: =IF(千円単!N13="","",ROUND(千円単!N13/1000,0)) -> 271 | O13: =IF(千円単!O13="","",ROUND(千円単!O13/1000,0)) -> 1980 | P13: =IF(千円単!P13="","",ROUND(千円単!P13/1000,0)) -> 122 | Q13: =IF(千円単!Q13="","",ROUND(千円単!Q13/1000,0)) -> 220 | R13: =IF(千円単!R13="","",ROUND(千円単!R13/1000,0)) -> 1015 | S13: =IF(千円単!S13="","",ROUND(千円単!S13/1000,0)) -> 448 | T13: =IF(千円単!T13="","",ROUND(千円単!T13/1000,0)) -> 56 | U13: =IF(千円単!U13="","",ROUND(千円単!U13/1000,0)) -> 2154 | V13: =IF(千円単!V13="","",ROUND(千円単!V13/1000,0)) -> 945 | W13: =IF(千円単!W13="","",ROUND(千円単!W13/1000,0)) -> 1072 | X13: =IF(千円単!X13="","",ROUND(千円単!X13/1000,0)) -> -1140 | Y13: =IF(千円単!Y13="","",ROUND(千円単!Y13/1000,0)) -> 220
A14: 2017 | B14: 46 | C14: 17 | D14: 1 | E14: 13 | F14: 公共 | G14: 012190 | H14: 北海道 | I14: 紋別市 | J14: =IF(千円単!J14="","",ROUND(千円単!J14/1000,0)) -> 1285 | K14: =IF(千円単!K14="","",ROUND(千円単!K14/1000,0)) -> 433 | L14: =IF(千円単!L14="","",ROUND(千円単!L14/1000,0)) -> 530 | M14: =IF(千円単!M14="","",ROUND(千円単!M14/1000,0)) -> 1071 | N14: =IF(千円単!N14="","",ROUND(千円単!N14/1000,0)) -> 134 | O14: =IF(千円単!O14="","",ROUND(千円単!O14/1000,0)) -> 647 | P14: =IF(千円単!P14="","",ROUND(千円単!P14/1000,0)) -> 28 | Q14: =IF(千円単!Q14="","",ROUND(千円単!Q14/1000,0)) -> 214 | R14: =IF(千円単!R14="","",ROUND(千円単!R14/1000,0)) -> 465 | S14: =IF(千円単!S14="","",ROUND(千円単!S14/1000,0)) -> 354 | T14: =IF(千円単!T14="","",ROUND(千円単!T14/1000,0)) -> 36 | U14: =IF(千円単!U14="","",ROUND(千円単!U14/1000,0)) -> 983 | V14: =IF(千円単!V14="","",ROUND(千円単!V14/1000,0)) -> 282 | W14: =IF(千円単!W14="","",ROUND(千円単!W14/1000,0)) -> 701 | X14: =IF(千円単!X14="","",ROUND(千円単!X14/1000,0)) -> -518 | Y14: =IF(千円単!Y14="","",ROUND(千円単!Y14/1000,0)) -> 214
A15: 2017 | B15: 46 | C15: 17 | D15: 1 | E15: 14 | F15: 公共 | G15: 012220 | H15: 北海道 | I15: 三笠市 | J15: =IF(千円単!J15="","",ROUND(千円単!J15/1000,0)) -> 588 | K15: =IF(千円単!K15="","",ROUND(千円単!K15/1000,0)) -> 191 | L15: =IF(千円単!L15="","",ROUND(千円単!L15/1000,0)) -> 229 | M15: =IF(千円単!M15="","",ROUND(千円単!M15/1000,0)) -> 549 | N15: =IF(千円単!N15="","",ROUND(千円単!N15/1000,0)) -> 73 | O15: =IF(千円単!O15="","",ROUND(千円単!O15/1000,0)) -> 368 | P15: =IF(千円単!P15="","",ROUND(千円単!P15/1000,0)) -> 20 | Q15: =IF(千円単!Q15="","",ROUND(千円単!Q15/1000,0)) -> 39 | R15: =IF(千円単!R15="","",ROUND(千円単!R15/1000,0)) -> 216 | S15: =IF(千円単!S15="","",ROUND(千円単!S15/1000,0)) -> 27 | T15: =IF(千円単!T15="","",ROUND(千円単!T15/1000,0)) -> 0 | U15: =IF(千円単!U15="","",ROUND(千円単!U15/1000,0)) -> 454 | V15: =IF(千円単!V15="","",ROUND(千円単!V15/1000,0)) -> 95 | W15: =IF(千円単!W15="","",ROUND(千円単!W15/1000,0)) -> 359 | X15: =IF(千円単!X15="","",ROUND(千円単!X15/1000,0)) -> -238 | Y15: =IF(千円単!Y15="","",ROUND(千円単!Y15/1000,0)) -> 39
A16: 2017 | B16: 46 | C16: 17 | D16: 1 | E16: 15 | F16: 公共 | G16: 012238 | H16: 北海道 | I16: 根室市 | J16: =IF(千円単!J16="","",ROUND(千円単!J16/1000,0)) -> 724 | K16: =IF(千円単!K16="","",ROUND(千円単!K16/1000,0)) -> 435 | L16: =IF(千円単!L16="","",ROUND(千円単!L16/1000,0)) -> 102 | M16: =IF(千円単!M16="","",ROUND(千円単!M16/1000,0)) -> 717 | N16: =IF(千円単!N16="","",ROUND(千円単!N16/1000,0)) -> 44 | O16: =IF(千円単!O16="","",ROUND(千円単!O16/1000,0)) -> 419 | P16: =IF(千円単!P16="","",ROUND(千円単!P16/1000,0)) -> 32 | Q16: =IF(千円単!Q16="","",ROUND(千円単!Q16/1000,0)) -> 7 | R16: =IF(千円単!R16="","",ROUND(千円単!R16/1000,0)) -> 768 | S16: =IF(千円単!S16="","",ROUND(千円単!S16/1000,0)) -> 374 | T16: =IF(千円単!T16="","",ROUND(千円単!T16/1000,0)) -> 21 | U16: =IF(千円単!U16="","",ROUND(千円単!U16/1000,0)) -> 971 | V16: =IF(千円単!V16="","",ROUND(千円単!V16/1000,0)) -> 768 | W16: =IF(千円単!W16="","",ROUND(千円単!W16/1000,0)) -> 199 | X16: =IF(千円単!X16="","",ROUND(千円単!X16/1000,0)) -> -203 | Y16: =IF(千円単!Y16="","",ROUND(千円単!Y16/1000,0)) -> 7
A17: 2017 | B17: 46 | C17: 17 | D17: 1 | E17: 16 | F17: 公共 | G17: 012246 | H17: 北海道 | I17: 千歳市 | J17: =IF(千円単!J17="","",ROUND(千円単!J17/1000,0)) -> 3580 | K17: =IF(千円単!K17="","",ROUND(千円単!K17/1000,0)) -> 1606 | L17: =IF(千円単!L17="","",ROUND(千円単!L17/1000,0)) -> 798 | M17: =IF(千円単!M17="","",ROUND(千円単!M17/1000,0)) -> 3164 | N17: =IF(千円単!N17="","",ROUND(千円単!N17/1000,0)) -> 212 | O17: =IF(千円単!O17="","",ROUND(千円単!O17/1000,0)) -> 1882 | P17: =IF(千円単!P17="","",ROUND(千円単!P17/1000,0)) -> 143 | Q17: =IF(千円単!Q17="","",ROUND(千円単!Q17/1000,0)) -> 415 | R17: =IF(千円単!R17="","",ROUND(千円単!R17/1000,0)) -> 304 | S17: =IF(千円単!S17="","",ROUND(千円単!S17/1000,0)) -> 89 | T17: =IF(千円単!T17="","",ROUND(千円単!T17/1000,0)) -> 84 | U17: =IF(千円単!U17="","",ROUND(千円単!U17/1000,0)) -> 1195 | V17: =IF(千円単!V17="","",ROUND(千円単!V17/1000,0)) -> 448 | W17: =IF(千円単!W17="","",ROUND(千円単!W17/1000,0)) -> 743 | X17: =IF(千円単!X17="","",ROUND(千円単!X17/1000,0)) -> -891 | Y17: =IF(千円単!Y17="","",ROUND(千円単!Y17/1000,0)) -> 415
A18: 2017 | B18: 46 | C18: 17 | D18: 1 | E18: 17 | F18: 公共 | G18: 012254 | H18: 北海道 | I18: 滝川市 | J18: =IF(千円単!J18="","",ROUND(千円単!J18/1000,0)) -> 1288 | K18: =IF(千円単!K18="","",ROUND(千円単!K18/1000,0)) -> 736 | L18: =IF(千円単!L18="","",ROUND(千円単!L18/1000,0)) -> 228 | M18: =IF(千円単!M18="","",ROUND(千円単!M18/1000,0)) -> 1226 | N18: =IF(千円単!N18="","",ROUND(千円単!N18/1000,0)) -> 145 | O18: =IF(千円単!O18="","",ROUND(千円単!O18/1000,0)) -> 783 | P18: =IF(千円単!P18="","",ROUND(千円単!P18/1000,0)) -> 8 | Q18: =IF(千円単!Q18="","",ROUND(千円単!Q18/1000,0)) -> 62 | R18: =IF(千円単!R18="","",ROUND(千円単!R18/1000,0)) -> 748 | S18: =IF(千円単!S18="","",ROUND(千円単!S18/1000,0)) -> 256 | T18: =IF(千円単!T18="","",ROUND(千円単!T18/1000,0)) -> 202 | U18: =IF(千円単!U18="","",ROUND(千円単!U18/1000,0)) -> 1299 | V18: =IF(千円単!V18="","",ROUND(千円単!V18/1000,0)) -> 333 | W18: =IF(千円単!W18="","",ROUND(千円単!W18/1000,0)) -> 965 | X18: =IF(千円単!X18="","",ROUND(千円単!X18/1000,0)) -> -550 | Y18: =IF(千円単!Y18="","",ROUND(千円単!Y18/1000,0)) -> 62
A19: 2017 | B19: 46 | C19: 17 | D19: 1 | E19: 18 | F19: 公共 | G19: 012301 | H19: 北海道 | I19: 登別市 | J19: =IF(千円単!J19="","",ROUND(千円単!J19/1000,0)) -> 1732 | K19: =IF(千円単!K19="","",ROUND(千円単!K19/1000,0)) -> 581 | L19: =IF(千円単!L19="","",ROUND(千円単!L19/1000,0)) -> 669 | M19: =IF(千円単!M19="","",ROUND(千円単!M19/1000,0)) -> 1734 | N19: =IF(千円単!N19="","",ROUND(千円単!N19/1000,0)) -> 328 | O19: =IF(千円単!O19="","",ROUND(千円単!O19/1000,0)) -> 977 | P19: =IF(千円単!P19="","",ROUND(千円単!P19/1000,0)) -> 61 | Q19: =IF(千円単!Q19="","",ROUND(千円単!Q19/1000,0)) -> -2 | R19: =IF(千円単!R19="","",ROUND(千円単!R19/1000,0)) -> 958 | S19: =IF(千円単!S19="","",ROUND(千円単!S19/1000,0)) -> 692 | T19: =IF(千円単!T19="","",ROUND(千円単!T19/1000,0)) -> 160 | U19: =IF(千円単!U19="","",ROUND(千円単!U19/1000,0)) -> 1564 | V19: =IF(千円単!V19="","",ROUND(千円単!V19/1000,0)) -> 350 | W19: =IF(千円単!W19="","",ROUND(千円単!W19/1000,0)) -> 1214 | X19: =IF(千円単!X19="","",ROUND(千円単!X19/1000,0)) -> -606 | Y19: =IF(千円単!Y19="","",ROUND(千円単!Y19/1000,0)) -> -2
A20: 2017 | B20: 46 | C20: 17 | D20: 1 | E20: 19 | F20: 公共 | G20: 012319 | H20: 北海道 | I20: 恵庭市 | J20: =IF(千円単!J20="","",ROUND(千円単!J20/1000,0)) -> 2778 | K20: =IF(千円単!K20="","",ROUND(千円単!K20/1000,0)) -> 1023 | L20: =IF(千円単!L20="","",ROUND(千円単!L20/1000,0)) -> 822 | M20: =IF(千円単!M20="","",ROUND(千円単!M20/1000,0)) -> 2560 | N20: =IF(千円単!N20="","",ROUND(千円単!N20/1000,0)) -> 206 | O20: =IF(千円単!O20="","",ROUND(千円単!O20/1000,0)) -> 1549 | P20: =IF(千円単!P20="","",ROUND(千円単!P20/1000,0)) -> 67 | Q20: =IF(千円単!Q20="","",ROUND(千円単!Q20/1000,0)) -> 218 | R20: =IF(千円単!R20="","",ROUND(千円単!R20/1000,0)) -> 527 | S20: =IF(千円単!S20="","",ROUND(千円単!S20/1000,0)) -> 318 | T20: =IF(千円単!T20="","",ROUND(千円単!T20/1000,0)) -> 124 | U20: =IF(千円単!U20="","",ROUND(千円単!U20/1000,0)) -> 1507 | V20: =IF(千円単!V20="","",ROUND(千円単!V20/1000,0)) -> 392 | W20: =IF(千円単!W20="","",ROUND(千円単!W20/1000,0)) -> 1114 | X20: =IF(千円単!X20="","",ROUND(千円単!X20/1000,0)) -> -980 | Y20: =IF(千円単!Y20="","",ROUND(千円単!Y20/1000,0)) -> 218
A21: 2017 | B21: 46 | C21: 17 | D21: 1 | E21: 20 | F21: 公共 | G21: 012351 | H21: 北海道 | I21: 石狩市 | J21: =IF(千円単!J21="","",ROUND(千円単!J21/1000,0)) -> 1376 | K21: =IF(千円単!K21="","",ROUND(千円単!K21/1000,0)) -> 585 | L21: =IF(千円単!L21="","",ROUND(千円単!L21/1000,0)) -> 473 | M21: =IF(千円単!M21="","",ROUND(千円単!M21/1000,0)) -> 1347 | N21: =IF(千円単!N21="","",ROUND(千円単!N21/1000,0)) -> 181 | O21: =IF(千円単!O21="","",ROUND(千円単!O21/1000,0)) -> 782 | P21: =IF(千円単!P21="","",ROUND(千円単!P21/1000,0)) -> 50 | Q21: =IF(千円単!Q21="","",ROUND(千円単!Q21/1000,0)) -> 29 | R21: =IF(千円単!R21="","",ROUND(千円単!R21/1000,0)) -> 531 | S21: =IF(千円単!S21="","",ROUND(千円単!S21/1000,0)) -> 390 | T21: =IF(千円単!T21="","",ROUND(千円単!T21/1000,0)) -> 30 | U21: =IF(千円単!U21="","",ROUND(千円単!U21/1000,0)) -> 1045 | V21: =IF(千円単!V21="","",ROUND(千円単!V21/1000,0)) -> 270 | W21: =IF(千円単!W21="","",ROUND(千円単!W21/1000,0)) -> 775 | X21: =IF(千円単!X21="","",ROUND(千円単!X21/1000,0)) -> -514 | Y21: =IF(千円単!Y21="","",ROUND(千円単!Y21/1000,0)) -> 29
A22: 2017 | B22: 46 | C22: 17 | D22: 1 | E22: 21 | F22: 公共 | G22: 013455 | H22: 北海道 | I22: 森町 | J22: =IF(千円単!J22="","",ROUND(千円単!J22/1000,0)) -> 440 | K22: =IF(千円単!K22="","",ROUND(千円単!K22/1000,0)) -> 85 | L22: =IF(千円単!L22="","",ROUND(千円単!L22/1000,0)) -> 217 | M22: =IF(千円単!M22="","",ROUND(千円単!M22/1000,0)) -> 440 | N22: =IF(千円単!N22="","",ROUND(千円単!N22/1000,0)) -> 72 | O22: =IF(千円単!O22="","",ROUND(千円単!O22/1000,0)) -> 257 | P22: =IF(千円単!P22="","",ROUND(千円単!P22/1000,0)) -> 17 | Q22: =IF(千円単!Q22="","",ROUND(千円単!Q22/1000,0)) -> 1 | R22: =IF(千円単!R22="","",ROUND(千円単!R22/1000,0)) -> 176 | S22: =IF(千円単!S22="","",ROUND(千円単!S22/1000,0)) -> 53 | T22: =IF(千円単!T22="","",ROUND(千円単!T22/1000,0)) -> 0 | U22: =IF(千円単!U22="","",ROUND(千円単!U22/1000,0)) -> 296 | V22: =IF(千円単!V22="","",ROUND(千円単!V22/1000,0)) -> 89 | W22: =IF(千円単!W22="","",ROUND(千円単!W22/1000,0)) -> 208 | X22: =IF(千円単!X22="","",ROUND(千円単!X22/1000,0)) -> -120 | Y22: =IF(千円単!Y22="","",ROUND(千円単!Y22/1000,0)) -> 1
A23: 2017 | B23: 46 | C23: 17 | D23: 1 | E23: 22 | F23: 公共 | G23: 014028 | H23: 北海道 | I23: 岩内町 | J23: =IF(千円単!J23="","",ROUND(千円単!J23/1000,0)) -> 513 | K23: =IF(千円単!K23="","",ROUND(千円単!K23/1000,0)) -> 64 | L23: =IF(千円単!L23="","",ROUND(千円単!L23/1000,0)) -> 240 | M23: =IF(千円単!M23="","",ROUND(千円単!M23/1000,0)) -> 513 | N23: =IF(千円単!N23="","",ROUND(千円単!N23/1000,0)) -> 61 | O23: =IF(千円単!O23="","",ROUND(千円単!O23/1000,0)) -> 328 | P23: =IF(千円単!P23="","",ROUND(千円単!P23/1000,0)) -> 19 | Q23: =IF(千円単!Q23="","",ROUND(千円単!Q23/1000,0)) -> 0 | R23: =IF(千円単!R23="","",ROUND(千円単!R23/1000,0)) -> 508 | S23: =IF(千円単!S23="","",ROUND(千円単!S23/1000,0)) -> 269 | T23: =IF(千円単!T23="","",ROUND(千円単!T23/1000,0)) -> 0 | U23: =IF(千円単!U23="","",ROUND(千円単!U23/1000,0)) -> 665 | V23: =IF(千円単!V23="","",ROUND(千円単!V23/1000,0)) -> 290 | W23: =IF(千円単!W23="","",ROUND(千円単!W23/1000,0)) -> 376 | X23: =IF(千円単!X23="","",ROUND(千円単!X23/1000,0)) -> -157 | Y23: =IF(千円単!Y23="","",ROUND(千円単!Y23/1000,0)) -> 0
A24: 2017 | B24: 46 | C24: 17 | D24: 1 | E24: 23 | F24: 公共 | G24: 014290 | H24: 北海道 | I24: 栗山町 | J24: =IF(千円単!J24="","",ROUND(千円単!J24/1000,0)) -> 501 | K24: =IF(千円単!K24="","",ROUND(千円単!K24/1000,0)) -> 181 | L24: =IF(千円単!L24="","",ROUND(千円単!L24/1000,0)) -> 176 | M24: =IF(千円単!M24="","",ROUND(千円単!M24/1000,0)) -> 436 | N24: =IF(千円単!N24="","",ROUND(千円単!N24/1000,0)) -> 42 | O24: =IF(千円単!O24="","",ROUND(千円単!O24/1000,0)) -> 275 | P24: =IF(千円単!P24="","",ROUND(千円単!P24/1000,0)) -> 16 | Q24: =IF(千円単!Q24="","",ROUND(千円単!Q24/1000,0)) -> 65 | R24: =IF(千円単!R24="","",ROUND(千円単!R24/1000,0)) -> 317 | S24: =IF(千円単!S24="","",ROUND(千円単!S24/1000,0)) -> 202 | T24: =IF(千円単!T24="","",ROUND(千円単!T24/1000,0)) -> 66 | U24: =IF(千円単!U24="","",ROUND(千円単!U24/1000,0)) -> 570 | V24: =IF(千円単!V24="","",ROUND(千円単!V24/1000,0)) -> 124 | W24: =IF(千円単!W24="","",ROUND(千円単!W24/1000,0)) -> 446 | X24: =IF(千円単!X24="","",ROUND(千円単!X24/1000,0)) -> -252 | Y24: =IF(千円単!Y24="","",ROUND(千円単!Y24/1000,0)) -> 65
A25: 2017 | B25: 46 | C25: 17 | D25: 1 | E25: 24 | F25: 公共 | G25: 015148 | H25: 北海道 | I25: 枝幸町 | J25: =IF(千円単!J25="","",ROUND(千円単!J25/1000,0)) -> 250 | K25: =IF(千円単!K25="","",ROUND(千円単!K25/1000,0)) -> 65 | L25: =IF(千円単!L25="","",ROUND(千円単!L25/1000,0)) -> 117 | M25: =IF(千円単!M25="","",ROUND(千円単!M25/1000,0)) -> 245 | N25: =IF(千円単!N25="","",ROUND(千円単!N25/1000,0)) -> 28 | O25: =IF(千円単!O25="","",ROUND(千円単!O25/1000,0)) -> 147 | P25: =IF(千円単!P25="","",ROUND(千円単!P25/1000,0)) -> 6 | Q25: =IF(千円単!Q25="","",ROUND(千円単!Q25/1000,0)) -> 5 | R25: =IF(千円単!R25="","",ROUND(千円単!R25/1000,0)) -> 145 | S25: =IF(千円単!S25="","",ROUND(千円単!S25/1000,0)) -> 41 | T25: =IF(千円単!T25="","",ROUND(千円単!T25/1000,0)) -> 26 | U25: =IF(千円単!U25="","",ROUND(千円単!U25/1000,0)) -> 230 | V25: =IF(千円単!V25="","",ROUND(千円単!V25/1000,0)) -> 87 | W25: =IF(千円単!W25="","",ROUND(千円単!W25/1000,0)) -> 143 | X25: =IF(千円単!X25="","",ROUND(千円単!X25/1000,0)) -> -84 | Y25: =IF(千円単!Y25="","",ROUND(千円単!Y25/1000,0)) -> 5
A26: 2017 | B26: 46 | C26: 17 | D26: 1 | E26: 25 | F26: 公共 | G26: 015555 | H26: 北海道 | I26: 遠軽町 | J26: =IF(千円単!J26="","",ROUND(千円単!J26/1000,0)) -> 833 | K26: =IF(千円単!K26="","",ROUND(千円単!K26/1000,0)) -> 228 | L26: =IF(千円単!L26="","",ROUND(千円単!L26/1000,0)) -> 363 | M26: =IF(千円単!M26="","",ROUND(千円単!M26/1000,0)) -> 769 | N26: =IF(千円単!N26="","",ROUND(千円単!N26/1000,0)) -> 77 | O26: =IF(千円単!O26="","",ROUND(千円単!O26/1000,0)) -> 396 | P26: =IF(千円単!P26="","",ROUND(千円単!P26/1000,0)) -> 40 | Q26: =IF(千円単!Q26="","",ROUND(千円単!Q26/1000,0)) -> 65 | R26: =IF(千円単!R26="","",ROUND(千円単!R26/1000,0)) -> 601 | S26: =IF(千円単!S26="","",ROUND(千円単!S26/1000,0)) -> 280 | T26: =IF(千円単!T26="","",ROUND(千円単!T26/1000,0)) -> 51 | U26: =IF(千円単!U26="","",ROUND(千円単!U26/1000,0)) -> 910 | V26: =IF(千円単!V26="","",ROUND(千円単!V26/1000,0)) -> 559 | W26: =IF(千円単!W26="","",ROUND(千円単!W26/1000,0)) -> 351 | X26: =IF(千円単!X26="","",ROUND(千円単!X26/1000,0)) -> -309 | Y26: =IF(千円単!Y26="","",ROUND(千円単!Y26/1000,0)) -> 65
A27: 2017 | B27: 46 | C27: 17 | D27: 1 | E27: 26 | F27: 公共 | G27: 015865 | H27: 北海道 | I27: むかわ町 | J27: =IF(千円単!J27="","",ROUND(千円単!J27/1000,0)) -> 228 | K27: =IF(千円単!K27="","",ROUND(千円単!K27/1000,0)) -> 55 | L27: =IF(千円単!L27="","",ROUND(千円単!L27/1000,0)) -> 86 | M27: =IF(千円単!M27="","",ROUND(千円単!M27/1000,0)) -> 227 | N27: =IF(千円単!N27="","",ROUND(千円単!N27/1000,0)) -> 29 | O27: =IF(千円単!O27="","",ROUND(千円単!O27/1000,0)) -> 138 | P27: =IF(千円単!P27="","",ROUND(千円単!P27/1000,0)) -> 8 | Q27: =IF(千円単!Q27="","",ROUND(千円単!Q27/1000,0)) -> 1 | R27: =IF(千円単!R27="","",ROUND(千円単!R27/1000,0)) -> 68 | S27: =IF(千円単!S27="","",ROUND(千円単!S27/1000,0)) -> 39 | T27: =IF(千円単!T27="","",ROUND(千円単!T27/1000,0)) -> 0 | U27: =IF(千円単!U27="","",ROUND(千円単!U27/1000,0)) -> 133 | V27: =IF(千円単!V27="","",ROUND(千円単!V27/1000,0)) -> 0 | W27: =IF(千円単!W27="","",ROUND(千円単!W27/1000,0)) -> 121 | X27: =IF(千円単!X27="","",ROUND(千円単!X27/1000,0)) -> -64 | Y27: =IF(千円単!Y27="","",ROUND(千円単!Y27/1000,0)) -> 1
A28: 2017 | B28: 46 | C28: 17 | D28: 1 | E28: 27 | F28: 公共 | G28: 016314 | H28: 北海道 | I28: 音更町 | J28: =IF(千円単!J28="","",ROUND(千円単!J28/1000,0)) -> 1079 | K28: =IF(千円単!K28="","",ROUND(千円単!K28/1000,0)) -> 578 | L28: =IF(千円単!L28="","",ROUND(千円単!L28/1000,0)) -> 234 | M28: =IF(千円単!M28="","",ROUND(千円単!M28/1000,0)) -> 934 | N28: =IF(千円単!N28="","",ROUND(千円単!N28/1000,0)) -> 146 | O28: =IF(千円単!O28="","",ROUND(千円単!O28/1000,0)) -> 567 | P28: =IF(千円単!P28="","",ROUND(千円単!P28/1000,0)) -> 4 | Q28: =IF(千円単!Q28="","",ROUND(千円単!Q28/1000,0)) -> 145 | R28: =IF(千円単!R28="","",ROUND(千円単!R28/1000,0)) -> 429 | S28: =IF(千円単!S28="","",ROUND(千円単!S28/1000,0)) -> 284 | T28: =IF(千円単!T28="","",ROUND(千円単!T28/1000,0)) -> 77 | U28: =IF(千円単!U28="","",ROUND(千円単!U28/1000,0)) -> 923 | V28: =IF(千円単!V28="","",ROUND(千円単!V28/1000,0)) -> 207 | W28: =IF(千円単!W28="","",ROUND(千円単!W28/1000,0)) -> 716 | X28: =IF(千円単!X28="","",ROUND(千円単!X28/1000,0)) -> -494 | Y28: =IF(千円単!Y28="","",ROUND(千円単!Y28/1000,0)) -> 145
A29: 2017 | B29: 46 | C29: 17 | D29: 1 | E29: 28 | F29: 公共 | G29: 016365 | H29: 北海道 | I29: 清水町 | J29: =IF(千円単!J29="","",ROUND(千円単!J29/1000,0)) -> 198 | K29: =IF(千円単!K29="","",ROUND(千円単!K29/1000,0)) -> 90 | L29: =IF(千円単!L29="","",ROUND(千円単!L29/1000,0)) -> 53 | M29: =IF(千円単!M29="","",ROUND(千円単!M29/1000,0)) -> 210 | N29: =IF(千円単!N29="","",ROUND(千円単!N29/1000,0)) -> 9 | O29: =IF(千円単!O29="","",ROUND(千円単!O29/1000,0)) -> 128 | P29: =IF(千円単!P29="","",ROUND(千円単!P29/1000,0)) -> 14 | Q29: =IF(千円単!Q29="","",ROUND(千円単!Q29/1000,0)) -> -12 | R29: =IF(千円単!R29="","",ROUND(千円単!R29/1000,0)) -> 95 | S29: =IF(千円単!S29="","",ROUND(千円単!S29/1000,0)) -> 0 | T29: =IF(千円単!T29="","",ROUND(千円単!T29/1000,0)) -> 11 | U29: =IF(千円単!U29="","",ROUND(千円単!U29/1000,0)) -> 131 | V29: =IF(千円単!V29="","",ROUND(千円単!V29/1000,0)) -> 8 | W29: =IF(千円単!W29="","",ROUND(千円単!W29/1000,0)) -> 123 | X29: =IF(千円単!X29="","",ROUND(千円単!X29/1000,0)) -> -36 | Y29: =IF(千円単!Y29="","",ROUND(千円単!Y29/1000,0)) -> -12
A30: 2017 | B30: 46 | C30: 17 | D30: 1 | E30: 29 | F30: 公共 | G30: 022021 | H30: 青森県 | I30: 弘前市 | J30: =IF(千円単!J30="","",ROUND(千円単!J30/1000,0)) -> 4950 | K30: =IF(千円単!K30="","",ROUND(千円単!K30/1000,0)) -> 2854 | L30: =IF(千円単!L30="","",ROUND(千円単!L30/1000,0)) -> 1356 | M30: =IF(千円単!M30="","",ROUND(千円単!M30/1000,0)) -> 4245 | N30: =IF(千円単!N30="","",ROUND(千円単!N30/1000,0)) -> 598 | O30: =IF(千円単!O30="","",ROUND(千円単!O30/1000,0)) -> 2151 | P30: =IF(千円単!P30="","",ROUND(千円単!P30/1000,0)) -> 177 | Q30: =IF(千円単!Q30="","",ROUND(千円単!Q30/1000,0)) -> 704 | R30: =IF(千円単!R30="","",ROUND(千円単!R30/1000,0)) -> 1808 | S30: =IF(千円単!S30="","",ROUND(千円単!S30/1000,0)) -> 1300 | T30: =IF(千円単!T30="","",ROUND(千円単!T30/1000,0)) -> 0 | U30: =IF(千円単!U30="","",ROUND(千円単!U30/1000,0)) -> 3652 | V30: =IF(千円単!V30="","",ROUND(千円単!V30/1000,0)) -> 430 | W30: =IF(千円単!W30="","",ROUND(千円単!W30/1000,0)) -> 3222 | X30: =IF(千円単!X30="","",ROUND(千円単!X30/1000,0)) -> -1844 | Y30: =IF(千円単!Y30="","",ROUND(千円単!Y30/1000,0)) -> 704
A31: 2017 | B31: 46 | C31: 17 | D31: 1 | E31: 30 | F31: 公共 | G31: 022047 | H31: 青森県 | I31: 黒石市 | J31: =IF(千円単!J31="","",ROUND(千円単!J31/1000,0)) -> 847 | K31: =IF(千円単!K31="","",ROUND(千円単!K31/1000,0)) -> 324 | L31: =IF(千円単!L31="","",ROUND(千円単!L31/1000,0)) -> 200 | M31: =IF(千円単!M31="","",ROUND(千円単!M31/1000,0)) -> 581 | N31: =IF(千円単!N31="","",ROUND(千円単!N31/1000,0)) -> 113 | O31: =IF(千円単!O31="","",ROUND(千円単!O31/1000,0)) -> 303 | P31: =IF(千円単!P31="","",ROUND(千円単!P31/1000,0)) -> 16 | Q31: =IF(千円単!Q31="","",ROUND(千円単!Q31/1000,0)) -> 267 | R31: =IF(千円単!R31="","",ROUND(千円単!R31/1000,0)) -> 510 | S31: =IF(千円単!S31="","",ROUND(千円単!S31/1000,0)) -> 369 | T31: =IF(千円単!T31="","",ROUND(千円単!T31/1000,0)) -> 125 | U31: =IF(千円単!U31="","",ROUND(千円単!U31/1000,0)) -> 713 | V31: =IF(千円単!V31="","",ROUND(千円単!V31/1000,0)) -> 76 | W31: =IF(千円単!W31="","",ROUND(千円単!W31/1000,0)) -> 637 | X31: =IF(千円単!X31="","",ROUND(千円単!X31/1000,0)) -> -202 | Y31: =IF(千円単!Y31="","",ROUND(千円単!Y31/1000,0)) -> 267
A32: 2017 | B32: 46 | C32: 17 | D32: 1 | E32: 31 | F32: 公共 | G32: 022055 | H32: 青森県 | I32: 五所川原市 | J32: =IF(千円単!J32="","",ROUND(千円単!J32/1000,0)) -> 667 | K32: =IF(千円単!K32="","",ROUND(千円単!K32/1000,0)) -> 367 | L32: =IF(千円単!L32="","",ROUND(千円単!L32/1000,0)) -> 101 | M32: =IF(千円単!M32="","",ROUND(千円単!M32/1000,0)) -> 754 | N32: =IF(千円単!N32="","",ROUND(千円単!N32/1000,0)) -> 100 | O32: =IF(千円単!O32="","",ROUND(千円単!O32/1000,0)) -> 408 | P32: =IF(千円単!P32="","",ROUND(千円単!P32/1000,0)) -> 36 | Q32: =IF(千円単!Q32="","",ROUND(千円単!Q32/1000,0)) -> -87 | R32: =IF(千円単!R32="","",ROUND(千円単!R32/1000,0)) -> 516 | S32: =IF(千円単!S32="","",ROUND(千円単!S32/1000,0)) -> 271 | T32: =IF(千円単!T32="","",ROUND(千円単!T32/1000,0)) -> 0 | U32: =IF(千円単!U32="","",ROUND(千円単!U32/1000,0)) -> 682 | V32: =IF(千円単!V32="","",ROUND(千円単!V32/1000,0)) -> 205 | W32: =IF(千円単!W32="","",ROUND(千円単!W32/1000,0)) -> 473 | X32: =IF(千円単!X32="","",ROUND(千円単!X32/1000,0)) -> -166 | Y32: =IF(千円単!Y32="","",ROUND(千円単!Y32/1000,0)) -> -87
A33: 2017 | B33: 46 | C33: 17 | D33: 1 | E33: 32 | F33: 公共 | G33: 022063 | H33: 青森県 | I33: 十和田市 | J33: =IF(千円単!J33="","",ROUND(千円単!J33/1000,0)) -> 1596 | K33: =IF(千円単!K33="","",ROUND(千円単!K33/1000,0)) -> 816 | L33: =IF(千円単!L33="","",ROUND(千円単!L33/1000,0)) -> 374 | M33: =IF(千円単!M33="","",ROUND(千円単!M33/1000,0)) -> 1507 | N33: =IF(千円単!N33="","",ROUND(千円単!N33/1000,0)) -> 247 | O33: =IF(千円単!O33="","",ROUND(千円単!O33/1000,0)) -> 877 | P33: =IF(千円単!P33="","",ROUND(千円単!P33/1000,0)) -> 65 | Q33: =IF(千円単!Q33="","",ROUND(千円単!Q33/1000,0)) -> 88 | R33: =IF(千円単!R33="","",ROUND(千円単!R33/1000,0)) -> 1145 | S33: =IF(千円単!S33="","",ROUND(千円単!S33/1000,0)) -> 725 | T33: =IF(千円単!T33="","",ROUND(千円単!T33/1000,0)) -> 130 | U33: =IF(千円単!U33="","",ROUND(千円単!U33/1000,0)) -> 1783 | V33: =IF(千円単!V33="","",ROUND(千円単!V33/1000,0)) -> 672 | W33: =IF(千円単!W33="","",ROUND(千円単!W33/1000,0)) -> 1110 | X33: =IF(千円単!X33="","",ROUND(千円単!X33/1000,0)) -> -638 | Y33: =IF(千円単!Y33="","",ROUND(千円単!Y33/1000,0)) -> 88
A34: 2017 | B34: 46 | C34: 17 | D34: 1 | E34: 33 | F34: 公共 | G34: 022101 | H34: 青森県 | I34: 平川市 | J34: =IF(千円単!J34="","",ROUND(千円単!J34/1000,0)) -> 615 | K34: =IF(千円単!K34="","",ROUND(千円単!K34/1000,0)) -> 304 | L34: =IF(千円単!L34="","",ROUND(千円単!L34/1000,0)) -> 182 | M34: =IF(千円単!M34="","",ROUND(千円単!M34/1000,0)) -> 603 | N34: =IF(千円単!N34="","",ROUND(千円単!N34/1000,0)) -> 100 | O34: =IF(千円単!O34="","",ROUND(千円単!O34/1000,0)) -> 333 | P34: =IF(千円単!P34="","",ROUND(千円単!P34/1000,0)) -> 24 | Q34: =IF(千円単!Q34="","",ROUND(千円単!Q34/1000,0)) -> 12 | R34: =IF(千円単!R34="","",ROUND(千円単!R34/1000,0)) -> 250 | S34: =IF(千円単!S34="","",ROUND(千円単!S34/1000,0)) -> 16 | T34: =IF(千円単!T34="","",ROUND(千円単!T34/1000,0)) -> 0 | U34: =IF(千円単!U34="","",ROUND(千円単!U34/1000,0)) -> 492 | V34: =IF(千円単!V34="","",ROUND(千円単!V34/1000,0)) -> 26 | W34: =IF(千円単!W34="","",ROUND(千円単!W34/1000,0)) -> 466 | X34: =IF(千円単!X34="","",ROUND(千円単!X34/1000,0)) -> -241 | Y34: =IF(千円単!Y34="","",ROUND(千円単!Y34/1000,0)) -> 12
A35: 2017 | B35: 46 | C35: 17 | D35: 1 | E35: 34 | F35: 公共 | G35: 023612 | H35: 青森県 | I35: 藤崎町 | J35: =IF(千円単!J35="","",ROUND(千円単!J35/1000,0)) -> 248 | K35: =IF(千円単!K35="","",ROUND(千円単!K35/1000,0)) -> 88 | L35: =IF(千円単!L35="","",ROUND(千円単!L35/1000,0)) -> 82 | M35: =IF(千円単!M35="","",ROUND(千円単!M35/1000,0)) -> 243 | N35: =IF(千円単!N35="","",ROUND(千円単!N35/1000,0)) -> 42 | O35: =IF(千円単!O35="","",ROUND(千円単!O35/1000,0)) -> 165 | P35: =IF(千円単!P35="","",ROUND(千円単!P35/1000,0)) -> 0 | Q35: =IF(千円単!Q35="","",ROUND(千円単!Q35/1000,0)) -> 5 | R35: =IF(千円単!R35="","",ROUND(千円単!R35/1000,0)) -> 317 | S35: =IF(千円単!S35="","",ROUND(千円単!S35/1000,0)) -> 170 | T35: =IF(千円単!T35="","",ROUND(千円単!T35/1000,0)) -> 0 | U35: =IF(千円単!U35="","",ROUND(千円単!U35/1000,0)) -> 411 | V35: =IF(千円単!V35="","",ROUND(千円単!V35/1000,0)) -> 188 | W35: =IF(千円単!W35="","",ROUND(千円単!W35/1000,0)) -> 223 | X35: =IF(千円単!X35="","",ROUND(千円単!X35/1000,0)) -> -94 | Y35: =IF(千円単!Y35="","",ROUND(千円単!Y35/1000,0)) -> 5
A36: 2017 | B36: 46 | C36: 17 | D36: 1 | E36: 35 | F36: 公共 | G36: 023671 | H36: 青森県 | I36: 田舎館村 | J36: =IF(千円単!J36="","",ROUND(千円単!J36/1000,0)) -> 294 | K36: =IF(千円単!K36="","",ROUND(千円単!K36/1000,0)) -> 105 | L36: =IF(千円単!L36="","",ROUND(千円単!L36/1000,0)) -> 79 | M36: =IF(千円単!M36="","",ROUND(千円単!M36/1000,0)) -> 233 | N36: =IF(千円単!N36="","",ROUND(千円単!N36/1000,0)) -> 50 | O36: =IF(千円単!O36="","",ROUND(千円単!O36/1000,0)) -> 128 | P36: =IF(千円単!P36="","",ROUND(千円単!P36/1000,0)) -> 6 | Q36: =IF(千円単!Q36="","",ROUND(千円単!Q36/1000,0)) -> 61 | R36: =IF(千円単!R36="","",ROUND(千円単!R36/1000,0)) -> 143 | S36: =IF(千円単!S36="","",ROUND(千円単!S36/1000,0)) -> 85 | T36: =IF(千円単!T36="","",ROUND(千円単!T36/1000,0)) -> 58 | U36: =IF(千円単!U36="","",ROUND(千円単!U36/1000,0)) -> 223 | V36: =IF(千円単!V36="","",ROUND(千円単!V36/1000,0)) -> 5 | W36: =IF(千円単!W36="","",ROUND(千円単!W36/1000,0)) -> 218 | X36: =IF(千円単!X36="","",ROUND(千円単!X36/1000,0)) -> -79 | Y36: =IF(千円単!Y36="","",ROUND(千円単!Y36/1000,0)) -> 61
A37: 2017 | B37: 46 | C37: 17 | D37: 1 | E37: 36 | F37: 公共 | G37: 023817 | H37: 青森県 | I37: 板柳町 | J37: =IF(千円単!J37="","",ROUND(千円単!J37/1000,0)) -> 286 | K37: =IF(千円単!K37="","",ROUND(千円単!K37/1000,0)) -> 81 | L37: =IF(千円単!L37="","",ROUND(千円単!L37/1000,0)) -> 69 | M37: =IF(千円単!M37="","",ROUND(千円単!M37/1000,0)) -> 269 | N37: =IF(千円単!N37="","",ROUND(千円単!N37/1000,0)) -> 61 | O37: =IF(千円単!O37="","",ROUND(千円単!O37/1000,0)) -> 154 | P37: =IF(千円単!P37="","",ROUND(千円単!P37/1000,0)) -> 8 | Q37: =IF(千円単!Q37="","",ROUND(千円単!Q37/1000,0)) -> 17 | R37: =IF(千円単!R37="","",ROUND(千円単!R37/1000,0)) -> 260 | S37: =IF(千円単!S37="","",ROUND(千円単!S37/1000,0)) -> 160 | T37: =IF(千円単!T37="","",ROUND(千円単!T37/1000,0)) -> 66 | U37: =IF(千円単!U37="","",ROUND(千円単!U37/1000,0)) -> 308 | V37: =IF(千円単!V37="","",ROUND(千円単!V37/1000,0)) -> 112 | W37: =IF(千円単!W37="","",ROUND(千円単!W37/1000,0)) -> 196 | X37: =IF(千円単!X37="","",ROUND(千円単!X37/1000,0)) -> -48 | Y37: =IF(千円単!Y37="","",ROUND(千円単!Y37/1000,0)) -> 17
A38: 2017 | B38: 46 | C38: 17 | D38: 1 | E38: 37 | F38: 公共 | G38: 023841 | H38: 青森県 | I38: 鶴田町 | J38: =IF(千円単!J38="","",ROUND(千円単!J38/1000,0)) -> 409 | K38: =IF(千円単!K38="","",ROUND(千円単!K38/1000,0)) -> 55 | L38: =IF(千円単!L38="","",ROUND(千円単!L38/1000,0)) -> 221 | M38: =IF(千円単!M38="","",ROUND(千円単!M38/1000,0)) -> 324 | N38: =IF(千円単!N38="","",ROUND(千円単!N38/1000,0)) -> 61 | O38: =IF(千円単!O38="","",ROUND(千円単!O38/1000,0)) -> 237 | P38: =IF(千円単!P38="","",ROUND(千円単!P38/1000,0)) -> 4 | Q38: =IF(千円単!Q38="","",ROUND(千円単!Q38/1000,0)) -> 85 | R38: =IF(千円単!R38="","",ROUND(千円単!R38/1000,0)) -> 13 | S38: =IF(千円単!S38="","",ROUND(千円単!S38/1000,0)) -> 6 | T38: =IF(千円単!T38="","",ROUND(千円単!T38/1000,0)) -> 5 | U38: =IF(千円単!U38="","",ROUND(千円単!U38/1000,0)) -> 206 | V38: =IF(千円単!V38="","",ROUND(千円単!V38/1000,0)) -> 10 | W38: =IF(千円単!W38="","",ROUND(千円単!W38/1000,0)) -> 196 | X38: =IF(千円単!X38="","",ROUND(千円単!X38/1000,0)) -> -193 | Y38: =IF(千円単!Y38="","",ROUND(千円単!Y38/1000,0)) -> 85
A39: 2017 | B39: 46 | C39: 17 | D39: 1 | E39: 38 | F39: 公共 | G39: 024112 | H39: 青森県 | I39: 六ケ所村 | J39: =IF(千円単!J39="","",ROUND(千円単!J39/1000,0)) -> 632 | K39: =IF(千円単!K39="","",ROUND(千円単!K39/1000,0)) -> 47 | L39: =IF(千円単!L39="","",ROUND(千円単!L39/1000,0)) -> 310 | M39: =IF(千円単!M39="","",ROUND(千円単!M39/1000,0)) -> 626 | N39: =IF(千円単!N39="","",ROUND(千円単!N39/1000,0)) -> 76 | O39: =IF(千円単!O39="","",ROUND(千円単!O39/1000,0)) -> 422 | P39: =IF(千円単!P39="","",ROUND(千円単!P39/1000,0)) -> 14 | Q39: =IF(千円単!Q39="","",ROUND(千円単!Q39/1000,0)) -> 6 | R39: =IF(千円単!R39="","",ROUND(千円単!R39/1000,0)) -> 374 | S39: =IF(千円単!S39="","",ROUND(千円単!S39/1000,0)) -> 92 | T39: =IF(千円単!T39="","",ROUND(千円単!T39/1000,0)) -> 0 | U39: =IF(千円単!U39="","",ROUND(千円単!U39/1000,0)) -> 477 | V39: =IF(千円単!V39="","",ROUND(千円単!V39/1000,0)) -> 314 | W39: =IF(千円単!W39="","",ROUND(千円単!W39/1000,0)) -> 163 | X39: =IF(千円単!X39="","",ROUND(千円単!X39/1000,0)) -> -103 | Y39: =IF(千円単!Y39="","",ROUND(千円単!Y39/1000,0)) -> 6
A40: 2017 | B40: 46 | C40: 17 | D40: 1 | E40: 39 | F40: 公共 | G40: 032018 | H40: 岩手県 | I40: 盛岡市 | J40: =IF(千円単!J40="","",ROUND(千円単!J40/1000,0)) -> 8281 | K40: =IF(千円単!K40="","",ROUND(千円単!K40/1000,0)) -> 4338 | L40: =IF(千円単!L40="","",ROUND(千円単!L40/1000,0)) -> 2779 | M40: =IF(千円単!M40="","",ROUND(千円単!M40/1000,0)) -> 7605 | N40: =IF(千円単!N40="","",ROUND(千円単!N40/1000,0)) -> 905 | O40: =IF(千円単!O40="","",ROUND(千円単!O40/1000,0)) -> 4003 | P40: =IF(千円単!P40="","",ROUND(千円単!P40/1000,0)) -> 318 | Q40: =IF(千円単!Q40="","",ROUND(千円単!Q40/1000,0)) -> 676 | R40: =IF(千円単!R40="","",ROUND(千円単!R40/1000,0)) -> 2537 | S40: =IF(千円単!S40="","",ROUND(千円単!S40/1000,0)) -> 1061 | T40: =IF(千円単!T40="","",ROUND(千円単!T40/1000,0)) -> 526 | U40: =IF(千円単!U40="","",ROUND(千円単!U40/1000,0)) -> 6027 | V40: =IF(千円単!V40="","",ROUND(千円単!V40/1000,0)) -> 2302 | W40: =IF(千円単!W40="","",ROUND(千円単!W40/1000,0)) -> 3724 | X40: =IF(千円単!X40="","",ROUND(千円単!X40/1000,0)) -> -3491 | Y40: =IF(千円単!Y40="","",ROUND(千円単!Y40/1000,0)) -> 676
A41: 2017 | B41: 46 | C41: 17 | D41: 1 | E41: 40 | F41: 公共 | G41: 032026 | H41: 岩手県 | I41: 宮古市 | J41: =IF(千円単!J41="","",ROUND(千円単!J41/1000,0)) -> 1562 | K41: =IF(千円単!K41="","",ROUND(千円単!K41/1000,0)) -> 555 | L41: =IF(千円単!L41="","",ROUND(千円単!L41/1000,0)) -> 544 | M41: =IF(千円単!M41="","",ROUND(千円単!M41/1000,0)) -> 1373 | N41: =IF(千円単!N41="","",ROUND(千円単!N41/1000,0)) -> 164 | O41: =IF(千円単!O41="","",ROUND(千円単!O41/1000,0)) -> 661 | P41: =IF(千円単!P41="","",ROUND(千円単!P41/1000,0)) -> 43 | Q41: =IF(千円単!Q41="","",ROUND(千円単!Q41/1000,0)) -> 189 | R41: =IF(千円単!R41="","",ROUND(千円単!R41/1000,0)) -> 2679 | S41: =IF(千円単!S41="","",ROUND(千円単!S41/1000,0)) -> 515 | T41: =IF(千円単!T41="","",ROUND(千円単!T41/1000,0)) -> 1594 | U41: =IF(千円単!U41="","",ROUND(千円単!U41/1000,0)) -> 3301 | V41: =IF(千円単!V41="","",ROUND(千円単!V41/1000,0)) -> 2228 | W41: =IF(千円単!W41="","",ROUND(千円単!W41/1000,0)) -> 994 | X41: =IF(千円単!X41="","",ROUND(千円単!X41/1000,0)) -> -622 | Y41: =IF(千円単!Y41="","",ROUND(千円単!Y41/1000,0)) -> 189
A42: 2017 | B42: 46 | C42: 17 | D42: 1 | E42: 41 | F42: 公共 | G42: 032051 | H42: 岩手県 | I42: 花巻市 | J42: =IF(千円単!J42="","",ROUND(千円単!J42/1000,0)) -> 2195 | K42: =IF(千円単!K42="","",ROUND(千円単!K42/1000,0)) -> 704 | L42: =IF(千円単!L42="","",ROUND(千円単!L42/1000,0)) -> 1098 | M42: =IF(千円単!M42="","",ROUND(千円単!M42/1000,0)) -> 2090 | N42: =IF(千円単!N42="","",ROUND(千円単!N42/1000,0)) -> 405 | O42: =IF(千円単!O42="","",ROUND(千円単!O42/1000,0)) -> 1172 | P42: =IF(千円単!P42="","",ROUND(千円単!P42/1000,0)) -> 43 | Q42: =IF(千円単!Q42="","",ROUND(千円単!Q42/1000,0)) -> 106 | R42: =IF(千円単!R42="","",ROUND(千円単!R42/1000,0)) -> 1551 | S42: =IF(千円単!S42="","",ROUND(千円単!S42/1000,0)) -> 1050 | T42: =IF(千円単!T42="","",ROUND(千円単!T42/1000,0)) -> 236 | U42: =IF(千円単!U42="","",ROUND(千円単!U42/1000,0)) -> 2058 | V42: =IF(千円単!V42="","",ROUND(千円単!V42/1000,0)) -> 778 | W42: =IF(千円単!W42="","",ROUND(千円単!W42/1000,0)) -> 1280 | X42: =IF(千円単!X42="","",ROUND(千円単!X42/1000,0)) -> -507 | Y42: =IF(千円単!Y42="","",ROUND(千円単!Y42/1000,0)) -> 106
A43: 2017 | B43: 46 | C43: 17 | D43: 1 | E43: 42 | F43: 公共 | G43: 032069 | H43: 岩手県 | I43: 北上市 | J43: =IF(千円単!J43="","",ROUND(千円単!J43/1000,0)) -> 1984 | K43: =IF(千円単!K43="","",ROUND(千円単!K43/1000,0)) -> 1198 | L43: =IF(千円単!L43="","",ROUND(千円単!L43/1000,0)) -> 548 | M43: =IF(千円単!M43="","",ROUND(千円単!M43/1000,0)) -> 2063 | N43: =IF(千円単!N43="","",ROUND(千円単!N43/1000,0)) -> 351 | O43: =IF(千円単!O43="","",ROUND(千円単!O43/1000,0)) -> 957 | P43: =IF(千円単!P43="","",ROUND(千円単!P43/1000,0)) -> 53 | Q43: =IF(千円単!Q43="","",ROUND(千円単!Q43/1000,0)) -> -79 | R43: =IF(千円単!R43="","",ROUND(千円単!R43/1000,0)) -> 1117 | S43: =IF(千円単!S43="","",ROUND(千円単!S43/1000,0)) -> 653 | T43: =IF(千円単!T43="","",ROUND(千円単!T43/1000,0)) -> 0 | U43: =IF(千円単!U43="","",ROUND(千円単!U43/1000,0)) -> 1851 | V43: =IF(千円単!V43="","",ROUND(千円単!V43/1000,0)) -> 297 | W43: =IF(千円単!W43="","",ROUND(千円単!W43/1000,0)) -> 1504 | X43: =IF(千円単!X43="","",ROUND(千円単!X43/1000,0)) -> -734 | Y43: =IF(千円単!Y43="","",ROUND(千円単!Y43/1000,0)) -> -79
A44: 2017 | B44: 46 | C44: 17 | D44: 1 | E44: 43 | F44: 公共 | G44: 032115 | H44: 岩手県 | I44: 釜石市 | J44: =IF(千円単!J44="","",ROUND(千円単!J44/1000,0)) -> 1082 | K44: =IF(千円単!K44="","",ROUND(千円単!K44/1000,0)) -> 398 | L44: =IF(千円単!L44="","",ROUND(千円単!L44/1000,0)) -> 309 | M44: =IF(千円単!M44="","",ROUND(千円単!M44/1000,0)) -> 1003 | N44: =IF(千円単!N44="","",ROUND(千円単!N44/1000,0)) -> 81 | O44: =IF(千円単!O44="","",ROUND(千円単!O44/1000,0)) -> 580 | P44: =IF(千円単!P44="","",ROUND(千円単!P44/1000,0)) -> 70 | Q44: =IF(千円単!Q44="","",ROUND(千円単!Q44/1000,0)) -> 79 | R44: =IF(千円単!R44="","",ROUND(千円単!R44/1000,0)) -> 4312 | S44: =IF(千円単!S44="","",ROUND(千円単!S44/1000,0)) -> 321 | T44: =IF(千円単!T44="","",ROUND(千円単!T44/1000,0)) -> 3687 | U44: =IF(千円単!U44="","",ROUND(千円単!U44/1000,0)) -> 4476 | V44: =IF(千円単!V44="","",ROUND(千円単!V44/1000,0)) -> 4233 | W44: =IF(千円単!W44="","",ROUND(千円単!W44/1000,0)) -> 242 | X44: =IF(千円単!X44="","",ROUND(千円単!X44/1000,0)) -> -163 | Y44: =IF(千円単!Y44="","",ROUND(千円単!Y44/1000,0)) -> 79
A45: 2017 | B45: 46 | C45: 17 | D45: 1 | E45: 44 | F45: 公共 | G45: 032166 | H45: 岩手県 | I45: 滝沢市 | J45: =IF(千円単!J45="","",ROUND(千円単!J45/1000,0)) -> 1174 | K45: =IF(千円単!K45="","",ROUND(千円単!K45/1000,0)) -> 469 | L45: =IF(千円単!L45="","",ROUND(千円単!L45/1000,0)) -> 288 | M45: =IF(千円単!M45="","",ROUND(千円単!M45/1000,0)) -> 985 | N45: =IF(千円単!N45="","",ROUND(千円単!N45/1000,0)) -> 115 | O45: =IF(千円単!O45="","",ROUND(千円単!O45/1000,0)) -> 556 | P45: =IF(千円単!P45="","",ROUND(千円単!P45/1000,0)) -> 34 | Q45: =IF(千円単!Q45="","",ROUND(千円単!Q45/1000,0)) -> 189 | R45: =IF(千円単!R45="","",ROUND(千円単!R45/1000,0)) -> 254 | S45: =IF(千円単!S45="","",ROUND(千円単!S45/1000,0)) -> 121 | T45: =IF(千円単!T45="","",ROUND(千円単!T45/1000,0)) -> 19 | U45: =IF(千円単!U45="","",ROUND(千円単!U45/1000,0)) -> 526 | V45: =IF(千円単!V45="","",ROUND(千円単!V45/1000,0)) -> 158 | W45: =IF(千円単!W45="","",ROUND(千円単!W45/1000,0)) -> 367 | X45: =IF(千円単!X45="","",ROUND(千円単!X45/1000,0)) -> -271 | Y45: =IF(千円単!Y45="","",ROUND(千円単!Y45/1000,0)) -> 189
A46: 2017 | B46: 46 | C46: 17 | D46: 1 | E46: 45 | F46: 公共 | G46: 033014 | H46: 岩手県 | I46: 雫石町 | J46: =IF(千円単!J46="","",ROUND(千円単!J46/1000,0)) -> 480 | K46: =IF(千円単!K46="","",ROUND(千円単!K46/1000,0)) -> 121 | L46: =IF(千円単!L46="","",ROUND(千円単!L46/1000,0)) -> 181 | M46: =IF(千円単!M46="","",ROUND(千円単!M46/1000,0)) -> 482 | N46: =IF(千円単!N46="","",ROUND(千円単!N46/1000,0)) -> 75 | O46: =IF(千円単!O46="","",ROUND(千円単!O46/1000,0)) -> 302 | P46: =IF(千円単!P46="","",ROUND(千円単!P46/1000,0)) -> 6 | Q46: =IF(千円単!Q46="","",ROUND(千円単!Q46/1000,0)) -> -2 | R46: =IF(千円単!R46="","",ROUND(千円単!R46/1000,0)) -> 528 | S46: =IF(千円単!S46="","",ROUND(千円単!S46/1000,0)) -> 274 | T46: =IF(千円単!T46="","",ROUND(千円単!T46/1000,0)) -> 0 | U46: =IF(千円単!U46="","",ROUND(千円単!U46/1000,0)) -> 730 | V46: =IF(千円単!V46="","",ROUND(千円単!V46/1000,0)) -> 347 | W46: =IF(千円単!W46="","",ROUND(千円単!W46/1000,0)) -> 381 | X46: =IF(千円単!X46="","",ROUND(千円単!X46/1000,0)) -> -201 | Y46: =IF(千円単!Y46="","",ROUND(千円単!Y46/1000,0)) -> -2
A47: 2017 | B47: 46 | C47: 17 | D47: 1 | E47: 46 | F47: 公共 | G47: 033219 | H47: 岩手県 | I47: 紫波町 | J47: =IF(千円単!J47="","",ROUND(千円単!J47/1000,0)) -> 731 | K47: =IF(千円単!K47="","",ROUND(千円単!K47/1000,0)) -> 277 | L47: =IF(千円単!L47="","",ROUND(千円単!L47/1000,0)) -> 418 | M47: =IF(千円単!M47="","",ROUND(千円単!M47/1000,0)) -> 757 | N47: =IF(千円単!N47="","",ROUND(千円単!N47/1000,0)) -> 91 | O47: =IF(千円単!O47="","",ROUND(千円単!O47/1000,0)) -> 478 | P47: =IF(千円単!P47="","",ROUND(千円単!P47/1000,0)) -> 22 | Q47: =IF(千円単!Q47="","",ROUND(千円単!Q47/1000,0)) -> -25 | R47: =IF(千円単!R47="","",ROUND(千円単!R47/1000,0)) -> 227 | S47: =IF(千円単!S47="","",ROUND(千円単!S47/1000,0)) -> 117 | T47: =IF(千円単!T47="","",ROUND(千円単!T47/1000,0)) -> 18 | U47: =IF(千円単!U47="","",ROUND(千円単!U47/1000,0)) -> 567 | V47: =IF(千円単!V47="","",ROUND(千円単!V47/1000,0)) -> 237 | W47: =IF(千円単!W47="","",ROUND(千円単!W47/1000,0)) -> 330 | X47: =IF(千円単!X47="","",ROUND(千円単!X47/1000,0)) -> -341 | Y47: =IF(千円単!Y47="","",ROUND(千円単!Y47/1000,0)) -> -25
A48: 2017 | B48: 46 | C48: 17 | D48: 1 | E48: 47 | F48: 公共 | G48: 033227 | H48: 岩手県 | I48: 矢巾町 | J48: =IF(千円単!J48="","",ROUND(千円単!J48/1000,0)) -> 690 | K48: =IF(千円単!K48="","",ROUND(千円単!K48/1000,0)) -> 365 | L48: =IF(千円単!L48="","",ROUND(千円単!L48/1000,0)) -> 121 | M48: =IF(千円単!M48="","",ROUND(千円単!M48/1000,0)) -> 629 | N48: =IF(千円単!N48="","",ROUND(千円単!N48/1000,0)) -> 77 | O48: =IF(千円単!O48="","",ROUND(千円単!O48/1000,0)) -> 365 | P48: =IF(千円単!P48="","",ROUND(千円単!P48/1000,0)) -> 4 | Q48: =IF(千円単!Q48="","",ROUND(千円単!Q48/1000,0)) -> 61 | R48: =IF(千円単!R48="","",ROUND(千円単!R48/1000,0)) -> 347 | S48: =IF(千円単!S48="","",ROUND(千円単!S48/1000,0)) -> 203 | T48: =IF(千円単!T48="","",ROUND(千円単!T48/1000,0)) -> 25 | U48: =IF(千円単!U48="","",ROUND(千円単!U48/1000,0)) -> 639 | V48: =IF(千円単!V48="","",ROUND(千円単!V48/1000,0)) -> 407 | W48: =IF(千円単!W48="","",ROUND(千円単!W48/1000,0)) -> 232 | X48: =IF(千円単!X48="","",ROUND(千円単!X48/1000,0)) -> -292 | Y48: =IF(千円単!Y48="","",ROUND(千円単!Y48/1000,0)) -> 61
A49: 2017 | B49: 46 | C49: 17 | D49: 1 | E49: 48 | F49: 公共 | G49: 033812 | H49: 岩手県 | I49: 金ケ崎町 | J49: =IF(千円単!J49="","",ROUND(千円単!J49/1000,0)) -> 454 | K49: =IF(千円単!K49="","",ROUND(千円単!K49/1000,0)) -> 169 | L49: =IF(千円単!L49="","",ROUND(千円単!L49/1000,0)) -> 199 | M49: =IF(千円単!M49="","",ROUND(千円単!M49/1000,0)) -> 412 | N49: =IF(千円単!N49="","",ROUND(千円単!N49/1000,0)) -> 84 | O49: =IF(千円単!O49="","",ROUND(千円単!O49/1000,0)) -> 206 | P49: =IF(千円単!P49="","",ROUND(千円単!P49/1000,0)) -> 6 | Q49: =IF(千円単!Q49="","",ROUND(千円単!Q49/1000,0)) -> 42 | R49: =IF(千円単!R49="","",ROUND(千円単!R49/1000,0)) -> 196 | S49: =IF(千円単!S49="","",ROUND(千円単!S49/1000,0)) -> 152 | T49: =IF(千円単!T49="","",ROUND(千円単!T49/1000,0)) -> 30 | U49: =IF(千円単!U49="","",ROUND(千円単!U49/1000,0)) -> 342 | V49: =IF(千円単!V49="","",ROUND(千円単!V49/1000,0)) -> 24 | W49: =IF(千円単!W49="","",ROUND(千円単!W49/1000,0)) -> 318 | X49: =IF(千円単!X49="","",ROUND(千円単!X49/1000,0)) -> -145 | Y49: =IF(千円単!Y49="","",ROUND(千円単!Y49/1000,0)) -> 42
A50: 2017 | B50: 46 | C50: 17 | D50: 1 | E50: 49 | F50: 公共 | G50: 041009 | H50: 宮城県 | I50: 仙台市 | J50: =IF(千円単!J50="","",ROUND(千円単!J50/1000,0)) -> 35023 | K50: =IF(千円単!K50="","",ROUND(千円単!K50/1000,0)) -> 16233 | L50: =IF(千円単!L50="","",ROUND(千円単!L50/1000,0)) -> 6874 | M50: =IF(千円単!M50="","",ROUND(千円単!M50/1000,0)) -> 32270 | N50: =IF(千円単!N50="","",ROUND(千円単!N50/1000,0)) -> 3724 | O50: =IF(千円単!O50="","",ROUND(千円単!O50/1000,0)) -> 18828 | P50: =IF(千円単!P50="","",ROUND(千円単!P50/1000,0)) -> 1163 | Q50: =IF(千円単!Q50="","",ROUND(千円単!Q50/1000,0)) -> 2752 | R50: =IF(千円単!R50="","",ROUND(千円単!R50/1000,0)) -> 21050 | S50: =IF(千円単!S50="","",ROUND(千円単!S50/1000,0)) -> 11232 | T50: =IF(千円単!T50="","",ROUND(千円単!T50/1000,0)) -> 4112 | U50: =IF(千円単!U50="","",ROUND(千円単!U50/1000,0)) -> 33613 | V50: =IF(千円単!V50="","",ROUND(千円単!V50/1000,0)) -> 15965 | W50: =IF(千円単!W50="","",ROUND(千円単!W50/1000,0)) -> 17649 | X50: =IF(千円単!X50="","",ROUND(千円単!X50/1000,0)) -> -12563 | Y50: =IF(千円単!Y50="","",ROUND(千円単!Y50/1000,0)) -> 2752
A51: 2017 | B51: 46 | C51: 17 | D51: 1 | E51: 50 | F51: 公共 | G51: 042064 | H51: 宮城県 | I51: 白石市 | J51: =IF(千円単!J51="","",ROUND(千円単!J51/1000,0)) -> 879 | K51: =IF(千円単!K51="","",ROUND(千円単!K51/1000,0)) -> 424 | L51: =IF(千円単!L51="","",ROUND(千円単!L51/1000,0)) -> 162 | M51: =IF(千円単!M51="","",ROUND(千円単!M51/1000,0)) -> 1181 | N51: =IF(千円単!N51="","",ROUND(千円単!N51/1000,0)) -> 125 | O51: =IF(千円単!O51="","",ROUND(千円単!O51/1000,0)) -> 455 | P51: =IF(千円単!P51="","",ROUND(千円単!P51/1000,0)) -> 26 | Q51: =IF(千円単!Q51="","",ROUND(千円単!Q51/1000,0)) -> -302 | R51: =IF(千円単!R51="","",ROUND(千円単!R51/1000,0)) -> 881 | S51: =IF(千円単!S51="","",ROUND(千円単!S51/1000,0)) -> 577 | T51: =IF(千円単!T51="","",ROUND(千円単!T51/1000,0)) -> 252 | U51: =IF(千円単!U51="","",ROUND(千円単!U51/1000,0)) -> 1370 | V51: =IF(千円単!V51="","",ROUND(千円単!V51/1000,0)) -> 399 | W51: =IF(千円単!W51="","",ROUND(千円単!W51/1000,0)) -> 964 | X51: =IF(千円単!X51="","",ROUND(千円単!X51/1000,0)) -> -489 | Y51: =IF(千円単!Y51="","",ROUND(千円単!Y51/1000,0)) -> -302
A52: 2017 | B52: 46 | C52: 17 | D52: 1 | E52: 51 | F52: 公共 | G52: 042072 | H52: 宮城県 | I52: 名取市 | J52: =IF(千円単!J52="","",ROUND(千円単!J52/1000,0)) -> 2623 | K52: =IF(千円単!K52="","",ROUND(千円単!K52/1000,0)) -> 1291 | L52: =IF(千円単!L52="","",ROUND(千円単!L52/1000,0)) -> 599 | M52: =IF(千円単!M52="","",ROUND(千円単!M52/1000,0)) -> 2651 | N52: =IF(千円単!N52="","",ROUND(千円単!N52/1000,0)) -> 356 | O52: =IF(千円単!O52="","",ROUND(千円単!O52/1000,0)) -> 1547 | P52: =IF(千円単!P52="","",ROUND(千円単!P52/1000,0)) -> 57 | Q52: =IF(千円単!Q52="","",ROUND(千円単!Q52/1000,0)) -> -28 | R52: =IF(千円単!R52="","",ROUND(千円単!R52/1000,0)) -> 2939 | S52: =IF(千円単!S52="","",ROUND(千円単!S52/1000,0)) -> 875 | T52: =IF(千円単!T52="","",ROUND(千円単!T52/1000,0)) -> 0 | U52: =IF(千円単!U52="","",ROUND(千円単!U52/1000,0)) -> 3905 | V52: =IF(千円単!V52="","",ROUND(千円単!V52/1000,0)) -> 1662 | W52: =IF(千円単!W52="","",ROUND(千円単!W52/1000,0)) -> 2243 | X52: =IF(千円単!X52="","",ROUND(千円単!X52/1000,0)) -> -966 | Y52: =IF(千円単!Y52="","",ROUND(千円単!Y52/1000,0)) -> -28
A53: 2017 | B53: 46 | C53: 17 | D53: 1 | E53: 52 | F53: 公共 | G53: 045055 | H53: 宮城県 | I53: 美里町 | J53: =IF(千円単!J53="","",ROUND(千円単!J53/1000,0)) -> 448 | K53: =IF(千円単!K53="","",ROUND(千円単!K53/1000,0)) -> 132 | L53: =IF(千円単!L53="","",ROUND(千円単!L53/1000,0)) -> 142 | M53: =IF(千円単!M53="","",ROUND(千円単!M53/1000,0)) -> 441 | N53: =IF(千円単!N53="","",ROUND(千円単!N53/1000,0)) -> 74 | O53: =IF(千円単!O53="","",ROUND(千円単!O53/1000,0)) -> 229 | P53: =IF(千円単!P53="","",ROUND(千円単!P53/1000,0)) -> 18 | Q53: =IF(千円単!Q53="","",ROUND(千円単!Q53/1000,0)) -> 7 | R53: =IF(千円単!R53="","",ROUND(千円単!R53/1000,0)) -> 679 | S53: =IF(千円単!S53="","",ROUND(千円単!S53/1000,0)) -> 372 | T53: =IF(千円単!T53="","",ROUND(千円単!T53/1000,0)) -> 82 | U53: =IF(千円単!U53="","",ROUND(千円単!U53/1000,0)) -> 829 | V53: =IF(千円単!V53="","",ROUND(千円単!V53/1000,0)) -> 532 | W53: =IF(千円単!W53="","",ROUND(千円単!W53/1000,0)) -> 297 | X53: =IF(千円単!X53="","",ROUND(千円単!X53/1000,0)) -> -149 | Y53: =IF(千円単!Y53="","",ROUND(千円単!Y53/1000,0)) -> 7
A54: 2017 | B54: 46 | C54: 17 | D54: 1 | E54: 53 | F54: 公共 | G54: 052019 | H54: 秋田県 | I54: 秋田市 | J54: =IF(千円単!J54="","",ROUND(千円単!J54/1000,0)) -> 10236 | K54: =IF(千円単!K54="","",ROUND(千円単!K54/1000,0)) -> 4957 | L54: =IF(千円単!L54="","",ROUND(千円単!L54/1000,0)) -> 3335 | M54: =IF(千円単!M54="","",ROUND(千円単!M54/1000,0)) -> 9082 | N54: =IF(千円単!N54="","",ROUND(千円単!N54/1000,0)) -> 1150 | O54: =IF(千円単!O54="","",ROUND(千円単!O54/1000,0)) -> 5094 | P54: =IF(千円単!P54="","",ROUND(千円単!P54/1000,0)) -> 333 | Q54: =IF(千円単!Q54="","",ROUND(千円単!Q54/1000,0)) -> 1154 | R54: =IF(千円単!R54="","",ROUND(千円単!R54/1000,0)) -> 5213 | S54: =IF(千円単!S54="","",ROUND(千円単!S54/1000,0)) -> 3044 | T54: =IF(千円単!T54="","",ROUND(千円単!T54/1000,0)) -> 904 | U54: =IF(千円単!U54="","",ROUND(千円単!U54/1000,0)) -> 9461 | V54: =IF(千円単!V54="","",ROUND(千円単!V54/1000,0)) -> 3676 | W54: =IF(千円単!W54="","",ROUND(千円単!W54/1000,0)) -> 5785 | X54: =IF(千円単!X54="","",ROUND(千円単!X54/1000,0)) -> -4248 | Y54: =IF(千円単!Y54="","",ROUND(千円単!Y54/1000,0)) -> 1154
A55: 2017 | B55: 46 | C55: 17 | D55: 1 | E55: 54 | F55: 公共 | G55: 052027 | H55: 秋田県 | I55: 能代市 | J55: =IF(千円単!J55="","",ROUND(千円単!J55/1000,0)) -> 1382 | K55: =IF(千円単!K55="","",ROUND(千円単!K55/1000,0)) -> 408 | L55: =IF(千円単!L55="","",ROUND(千円単!L55/1000,0)) -> 642 | M55: =IF(千円単!M55="","",ROUND(千円単!M55/1000,0)) -> 1259 | N55: =IF(千円単!N55="","",ROUND(千円単!N55/1000,0)) -> 175 | O55: =IF(千円単!O55="","",ROUND(千円単!O55/1000,0)) -> 739 | P55: =IF(千円単!P55="","",ROUND(千円単!P55/1000,0)) -> 25 | Q55: =IF(千円単!Q55="","",ROUND(千円単!Q55/1000,0)) -> 122 | R55: =IF(千円単!R55="","",ROUND(千円単!R55/1000,0)) -> 1616 | S55: =IF(千円単!S55="","",ROUND(千円単!S55/1000,0)) -> 951 | T55: =IF(千円単!T55="","",ROUND(千円単!T55/1000,0)) -> 75 | U55: =IF(千円単!U55="","",ROUND(千円単!U55/1000,0)) -> 2141 | V55: =IF(千円単!V55="","",ROUND(千円単!V55/1000,0)) -> 1439 | W55: =IF(千円単!W55="","",ROUND(千円単!W55/1000,0)) -> 701 | X55: =IF(千円単!X55="","",ROUND(千円単!X55/1000,0)) -> -525 | Y55: =IF(千円単!Y55="","",ROUND(千円単!Y55/1000,0)) -> 122
A56: 2017 | B56: 46 | C56: 17 | D56: 1 | E56: 55 | F56: 公共 | G56: 052035 | H56: 秋田県 | I56: 横手市 | J56: =IF(千円単!J56="","",ROUND(千円単!J56/1000,0)) -> 1708 | K56: =IF(千円単!K56="","",ROUND(千円単!K56/1000,0)) -> 638 | L56: =IF(千円単!L56="","",ROUND(千円単!L56/1000,0)) -> 802 | M56: =IF(千円単!M56="","",ROUND(千円単!M56/1000,0)) -> 1642 | N56: =IF(千円単!N56="","",ROUND(千円単!N56/1000,0)) -> 294 | O56: =IF(千円単!O56="","",ROUND(千円単!O56/1000,0)) -> 836 | P56: =IF(千円単!P56="","",ROUND(千円単!P56/1000,0)) -> 103 | Q56: =IF(千円単!Q56="","",ROUND(千円単!Q56/1000,0)) -> 66 | R56: =IF(千円単!R56="","",ROUND(千円単!R56/1000,0)) -> 1274 | S56: =IF(千円単!S56="","",ROUND(千円単!S56/1000,0)) -> 677 | T56: =IF(千円単!T56="","",ROUND(千円単!T56/1000,0)) -> 436 | U56: =IF(千円単!U56="","",ROUND(千円単!U56/1000,0)) -> 1840 | V56: =IF(千円単!V56="","",ROUND(千円単!V56/1000,0)) -> 428 | W56: =IF(千円単!W56="","",ROUND(千円単!W56/1000,0)) -> 1412 | X56: =IF(千円単!X56="","",ROUND(千円単!X56/1000,0)) -> -565 | Y56: =IF(千円単!Y56="","",ROUND(千円単!Y56/1000,0)) -> 66
A57: 2017 | B57: 46 | C57: 17 | D57: 1 | E57: 56 | F57: 公共 | G57: 052043 | H57: 秋田県 | I57: 大館市 | J57: =IF(千円単!J57="","",ROUND(千円単!J57/1000,0)) -> 1168 | K57: =IF(千円単!K57="","",ROUND(千円単!K57/1000,0)) -> 456 | L57: =IF(千円単!L57="","",ROUND(千円単!L57/1000,0)) -> 496 | M57: =IF(千円単!M57="","",ROUND(千円単!M57/1000,0)) -> 1214 | N57: =IF(千円単!N57="","",ROUND(千円単!N57/1000,0)) -> 228 | O57: =IF(千円単!O57="","",ROUND(千円単!O57/1000,0)) -> 619 | P57: =IF(千円単!P57="","",ROUND(千円単!P57/1000,0)) -> 59 | Q57: =IF(千円単!Q57="","",ROUND(千円単!Q57/1000,0)) -> -46 | R57: =IF(千円単!R57="","",ROUND(千円単!R57/1000,0)) -> 1393 | S57: =IF(千円単!S57="","",ROUND(千円単!S57/1000,0)) -> 869 | T57: =IF(千円単!T57="","",ROUND(千円単!T57/1000,0)) -> 152 | U57: =IF(千円単!U57="","",ROUND(千円単!U57/1000,0)) -> 1896 | V57: =IF(千円単!V57="","",ROUND(千円単!V57/1000,0)) -> 904 | W57: =IF(千円単!W57="","",ROUND(千円単!W57/1000,0)) -> 992 | X57: =IF(千円単!X57="","",ROUND(千円単!X57/1000,0)) -> -503 | Y57: =IF(千円単!Y57="","",ROUND(千円単!Y57/1000,0)) -> -46
A58: 2017 | B58: 46 | C58: 17 | D58: 1 | E58: 57 | F58: 公共 | G58: 052060 | H58: 秋田県 | I58: 男鹿市 | J58: =IF(千円単!J58="","",ROUND(千円単!J58/1000,0)) -> 658 | K58: =IF(千円単!K58="","",ROUND(千円単!K58/1000,0)) -> 196 | L58: =IF(千円単!L58="","",ROUND(千円単!L58/1000,0)) -> 302 | M58: =IF(千円単!M58="","",ROUND(千円単!M58/1000,0)) -> 598 | N58: =IF(千円単!N58="","",ROUND(千円単!N58/1000,0)) -> 140 | O58: =IF(千円単!O58="","",ROUND(千円単!O58/1000,0)) -> 351 | P58: =IF(千円単!P58="","",ROUND(千円単!P58/1000,0)) -> 19 | Q58: =IF(千円単!Q58="","",ROUND(千円単!Q58/1000,0)) -> 61 | R58: =IF(千円単!R58="","",ROUND(千円単!R58/1000,0)) -> 736 | S58: =IF(千円単!S58="","",ROUND(千円単!S58/1000,0)) -> 523 | T58: =IF(千円単!T58="","",ROUND(千円単!T58/1000,0)) -> 95 | U58: =IF(千円単!U58="","",ROUND(千円単!U58/1000,0)) -> 1029 | V58: =IF(千円単!V58="","",ROUND(千円単!V58/1000,0)) -> 306 | W58: =IF(千円単!W58="","",ROUND(千円単!W58/1000,0)) -> 723 | X58: =IF(千円単!X58="","",ROUND(千円単!X58/1000,0)) -> -294 | Y58: =IF(千円単!Y58="","",ROUND(千円単!Y58/1000,0)) -> 61
A59: 2017 | B59: 46 | C59: 17 | D59: 1 | E59: 58 | F59: 公共 | G59: 062014 | H59: 山形県 | I59: 山形市 | J59: =IF(千円単!J59="","",ROUND(千円単!J59/1000,0)) -> 7366 | K59: =IF(千円単!K59="","",ROUND(千円単!K59/1000,0)) -> 3918 | L59: =IF(千円単!L59="","",ROUND(千円単!L59/1000,0)) -> 1831 | M59: =IF(千円単!M59="","",ROUND(千円単!M59/1000,0)) -> 7076 | N59: =IF(千円単!N59="","",ROUND(千円単!N59/1000,0)) -> 1451 | O59: =IF(千円単!O59="","",ROUND(千円単!O59/1000,0)) -> 4094 | P59: =IF(千円単!P59="","",ROUND(千円単!P59/1000,0)) -> 234 | Q59: =IF(千円単!Q59="","",ROUND(千円単!Q59/1000,0)) -> 290 | R59: =IF(千円単!R59="","",ROUND(千円単!R59/1000,0)) -> 4510 | S59: =IF(千円単!S59="","",ROUND(千円単!S59/1000,0)) -> 2545 | T59: =IF(千円単!T59="","",ROUND(千円単!T59/1000,0)) -> 1152 | U59: =IF(千円単!U59="","",ROUND(千円単!U59/1000,0)) -> 7908 | V59: =IF(千円単!V59="","",ROUND(千円単!V59/1000,0)) -> 2314 | W59: =IF(千円単!W59="","",ROUND(千円単!W59/1000,0)) -> 5595 | X59: =IF(千円単!X59="","",ROUND(千円単!X59/1000,0)) -> -3398 | Y59: =IF(千円単!Y59="","",ROUND(千円単!Y59/1000,0)) -> 290
A60: 2017 | B60: 46 | C60: 17 | D60: 1 | E60: 59 | F60: 公共 | G60: 062031 | H60: 山形県 | I60: 鶴岡市 | J60: =IF(千円単!J60="","",ROUND(千円単!J60/1000,0)) -> 4233 | K60: =IF(千円単!K60="","",ROUND(千円単!K60/1000,0)) -> 2180 | L60: =IF(千円単!L60="","",ROUND(千円単!L60/1000,0)) -> 1030 | M60: =IF(千円単!M60="","",ROUND(千円単!M60/1000,0)) -> 3869 | N60: =IF(千円単!N60="","",ROUND(千円単!N60/1000,0)) -> 614 | O60: =IF(千円単!O60="","",ROUND(千円単!O60/1000,0)) -> 2432 | P60: =IF(千円単!P60="","",ROUND(千円単!P60/1000,0)) -> 152 | Q60: =IF(千円単!Q60="","",ROUND(千円単!Q60/1000,0)) -> 364 | R60: =IF(千円単!R60="","",ROUND(千円単!R60/1000,0)) -> 3236 | S60: =IF(千円単!S60="","",ROUND(千円単!S60/1000,0)) -> 1275 | T60: =IF(千円単!T60="","",ROUND(千円単!T60/1000,0)) -> 755 | U60: =IF(千円単!U60="","",ROUND(千円単!U60/1000,0)) -> 4860 | V60: =IF(千円単!V60="","",ROUND(千円単!V60/1000,0)) -> 2473 | W60: =IF(千円単!W60="","",ROUND(千円単!W60/1000,0)) -> 2388 | X60: =IF(千円単!X60="","",ROUND(千円単!X60/1000,0)) -> -1624 | Y60: =IF(千円単!Y60="","",ROUND(千円単!Y60/1000,0)) -> 364
A61: 2017 | B61: 46 | C61: 17 | D61: 1 | E61: 60 | F61: 公共 | G61: 062049 | H61: 山形県 | I61: 酒田市 | J61: =IF(千円単!J61="","",ROUND(千円単!J61/1000,0)) -> 3666 | K61: =IF(千円単!K61="","",ROUND(千円単!K61/1000,0)) -> 1487 | L61: =IF(千円単!L61="","",ROUND(千円単!L61/1000,0)) -> 1845 | M61: =IF(千円単!M61="","",ROUND(千円単!M61/1000,0)) -> 4118 | N61: =IF(千円単!N61="","",ROUND(千円単!N61/1000,0)) -> 564 | O61: =IF(千円単!O61="","",ROUND(千円単!O61/1000,0)) -> 2623 | P61: =IF(千円単!P61="","",ROUND(千円単!P61/1000,0)) -> 137 | Q61: =IF(千円単!Q61="","",ROUND(千円単!Q61/1000,0)) -> -452 | R61: =IF(千円単!R61="","",ROUND(千円単!R61/1000,0)) -> 1349 | S61: =IF(千円単!S61="","",ROUND(千円単!S61/1000,0)) -> 857 | T61: =IF(千円単!T61="","",ROUND(千円単!T61/1000,0)) -> 0 | U61: =IF(千円単!U61="","",ROUND(千円単!U61/1000,0)) -> 3113 | V61: =IF(千円単!V61="","",ROUND(千円単!V61/1000,0)) -> 1338 | W61: =IF(千円単!W61="","",ROUND(千円単!W61/1000,0)) -> 1773 | X61: =IF(千円単!X61="","",ROUND(千円単!X61/1000,0)) -> -1763 | Y61: =IF(千円単!Y61="","",ROUND(千円単!Y61/1000,0)) -> -452
A62: 2017 | B62: 46 | C62: 17 | D62: 1 | E62: 61 | F62: 公共 | G62: 062103 | H62: 山形県 | I62: 天童市 | J62: =IF(千円単!J62="","",ROUND(千円単!J62/1000,0)) -> 1268 | K62: =IF(千円単!K62="","",ROUND(千円単!K62/1000,0)) -> 872 | L62: =IF(千円単!L62="","",ROUND(千円単!L62/1000,0)) -> 201 | M62: =IF(千円単!M62="","",ROUND(千円単!M62/1000,0)) -> 1096 | N62: =IF(千円単!N62="","",ROUND(千円単!N62/1000,0)) -> 160 | O62: =IF(千円単!O62="","",ROUND(千円単!O62/1000,0)) -> 579 | P62: =IF(千円単!P62="","",ROUND(千円単!P62/1000,0)) -> 17 | Q62: =IF(千円単!Q62="","",ROUND(千円単!Q62/1000,0)) -> 172 | R62: =IF(千円単!R62="","",ROUND(千円単!R62/1000,0)) -> 950 | S62: =IF(千円単!S62="","",ROUND(千円単!S62/1000,0)) -> 569 | T62: =IF(千円単!T62="","",ROUND(千円単!T62/1000,0)) -> 168 | U62: =IF(千円単!U62="","",ROUND(千円単!U62/1000,0)) -> 1281 | V62: =IF(千円単!V62="","",ROUND(千円単!V62/1000,0)) -> 646 | W62: =IF(千円単!W62="","",ROUND(千円単!W62/1000,0)) -> 635 | X62: =IF(千円単!X62="","",ROUND(千円単!X62/1000,0)) -> -331 | Y62: =IF(千円単!Y62="","",ROUND(千円単!Y62/1000,0)) -> 172
A63: 2017 | B63: 46 | C63: 17 | D63: 1 | E63: 62 | F63: 公共 | G63: 062138 | H63: 山形県 | I63: 南陽市 | J63: =IF(千円単!J63="","",ROUND(千円単!J63/1000,0)) -> 962 | K63: =IF(千円単!K63="","",ROUND(千円単!K63/1000,0)) -> 345 | L63: =IF(千円単!L63="","",ROUND(千円単!L63/1000,0)) -> 422 | M63: =IF(千円単!M63="","",ROUND(千円単!M63/1000,0)) -> 955 | N63: =IF(千円単!N63="","",ROUND(千円単!N63/1000,0)) -> 163 | O63: =IF(千円単!O63="","",ROUND(千円単!O63/1000,0)) -> 541 | P63: =IF(千円単!P63="","",ROUND(千円単!P63/1000,0)) -> 32 | Q63: =IF(千円単!Q63="","",ROUND(千円単!Q63/1000,0)) -> 6 | R63: =IF(千円単!R63="","",ROUND(千円単!R63/1000,0)) -> 742 | S63: =IF(千円単!S63="","",ROUND(千円単!S63/1000,0)) -> 279 | T63: =IF(千円単!T63="","",ROUND(千円単!T63/1000,0)) -> 66 | U63: =IF(千円単!U63="","",ROUND(千円単!U63/1000,0)) -> 1127 | V63: =IF(千円単!V63="","",ROUND(千円単!V63/1000,0)) -> 396 | W63: =IF(千円単!W63="","",ROUND(千円単!W63/1000,0)) -> 731 | X63: =IF(千円単!X63="","",ROUND(千円単!X63/1000,0)) -> -385 | Y63: =IF(千円単!Y63="","",ROUND(千円単!Y63/1000,0)) -> 6
A64: 2017 | B64: 46 | C64: 17 | D64: 1 | E64: 63 | F64: 公共 | G64: 072010 | H64: 福島県 | I64: 福島市 | J64: =IF(千円単!J64="","",ROUND(千円単!J64/1000,0)) -> 7497 | K64: =IF(千円単!K64="","",ROUND(千円単!K64/1000,0)) -> 3225 | L64: =IF(千円単!L64="","",ROUND(千円単!L64/1000,0)) -> 2539 | M64: =IF(千円単!M64="","",ROUND(千円単!M64/1000,0)) -> 7088 | N64: =IF(千円単!N64="","",ROUND(千円単!N64/1000,0)) -> 1110 | O64: =IF(千円単!O64="","",ROUND(千円単!O64/1000,0)) -> 3925 | P64: =IF(千円単!P64="","",ROUND(千円単!P64/1000,0)) -> 118 | Q64: =IF(千円単!Q64="","",ROUND(千円単!Q64/1000,0)) -> 409 | R64: =IF(千円単!R64="","",ROUND(千円単!R64/1000,0)) -> 3017 | S64: =IF(千円単!S64="","",ROUND(千円単!S64/1000,0)) -> 1186 | T64: =IF(千円単!T64="","",ROUND(千円単!T64/1000,0)) -> 0 | U64: =IF(千円単!U64="","",ROUND(千円単!U64/1000,0)) -> 5931 | V64: =IF(千円単!V64="","",ROUND(千円単!V64/1000,0)) -> 2030 | W64: =IF(千円単!W64="","",ROUND(千円単!W64/1000,0)) -> 3901 | X64: =IF(千円単!X64="","",ROUND(千円単!X64/1000,0)) -> -2914 | Y64: =IF(千円単!Y64="","",ROUND(千円単!Y64/1000,0)) -> 409
A65: 2017 | B65: 46 | C65: 17 | D65: 1 | E65: 64 | F65: 公共 | G65: 072036 | H65: 福島県 | I65: 郡山市 | J65: =IF(千円単!J65="","",ROUND(千円単!J65/1000,0)) -> 8181 | K65: =IF(千円単!K65="","",ROUND(千円単!K65/1000,0)) -> 3953 | L65: =IF(千円単!L65="","",ROUND(千円単!L65/1000,0)) -> 2860 | M65: =IF(千円単!M65="","",ROUND(千円単!M65/1000,0)) -> 8121 | N65: =IF(千円単!N65="","",ROUND(千円単!N65/1000,0)) -> 1247 | O65: =IF(千円単!O65="","",ROUND(千円単!O65/1000,0)) -> 3950 | P65: =IF(千円単!P65="","",ROUND(千円単!P65/1000,0)) -> 257 | Q65: =IF(千円単!Q65="","",ROUND(千円単!Q65/1000,0)) -> 60 | R65: =IF(千円単!R65="","",ROUND(千円単!R65/1000,0)) -> 4875 | S65: =IF(千円単!S65="","",ROUND(千円単!S65/1000,0)) -> 1851 | T65: =IF(千円単!T65="","",ROUND(千円単!T65/1000,0)) -> 0 | U65: =IF(千円単!U65="","",ROUND(千円単!U65/1000,0)) -> 7404 | V65: =IF(千円単!V65="","",ROUND(千円単!V65/1000,0)) -> 1796 | W65: =IF(千円単!W65="","",ROUND(千円単!W65/1000,0)) -> 5605 | X65: =IF(千円単!X65="","",ROUND(千円単!X65/1000,0)) -> -2529 | Y65: =IF(千円単!Y65="","",ROUND(千円単!Y65/1000,0)) -> 60
A66: 2017 | B66: 46 | C66: 17 | D66: 1 | E66: 65 | F66: 公共 | G66: 072044 | H66: 福島県 | I66: いわき市 | J66: =IF(千円単!J66="","",ROUND(千円単!J66/1000,0)) -> 7908 | K66: =IF(千円単!K66="","",ROUND(千円単!K66/1000,0)) -> 3092 | L66: =IF(千円単!L66="","",ROUND(千円単!L66/1000,0)) -> 2874 | M66: =IF(千円単!M66="","",ROUND(千円単!M66/1000,0)) -> 7822 | N66: =IF(千円単!N66="","",ROUND(千円単!N66/1000,0)) -> 1046 | O66: =IF(千円単!O66="","",ROUND(千円単!O66/1000,0)) -> 4260 | P66: =IF(千円単!P66="","",ROUND(千円単!P66/1000,0)) -> 178 | Q66: =IF(千円単!Q66="","",ROUND(千円単!Q66/1000,0)) -> 87 | R66: =IF(千円単!R66="","",ROUND(千円単!R66/1000,0)) -> 5071 | S66: =IF(千円単!S66="","",ROUND(千円単!S66/1000,0)) -> 2743 | T66: =IF(千円単!T66="","",ROUND(千円単!T66/1000,0)) -> 761 | U66: =IF(千円単!U66="","",ROUND(千円単!U66/1000,0)) -> 7938 | V66: =IF(千円単!V66="","",ROUND(千円単!V66/1000,0)) -> 4048 | W66: =IF(千円単!W66="","",ROUND(千円単!W66/1000,0)) -> 3883 | X66: =IF(千円単!X66="","",ROUND(千円単!X66/1000,0)) -> -2867 | Y66: =IF(千円単!Y66="","",ROUND(千円単!Y66/1000,0)) -> 87
A67: 2017 | B67: 46 | C67: 17 | D67: 1 | E67: 66 | F67: 公共 | G67: 072109 | H67: 福島県 | I67: 二本松市 | J67: =IF(千円単!J67="","",ROUND(千円単!J67/1000,0)) -> 555 | K67: =IF(千円単!K67="","",ROUND(千円単!K67/1000,0)) -> 143 | L67: =IF(千円単!L67="","",ROUND(千円単!L67/1000,0)) -> 308 | M67: =IF(千円単!M67="","",ROUND(千円単!M67/1000,0)) -> 555 | N67: =IF(千円単!N67="","",ROUND(千円単!N67/1000,0)) -> 82 | O67: =IF(千円単!O67="","",ROUND(千円単!O67/1000,0)) -> 233 | P67: =IF(千円単!P67="","",ROUND(千円単!P67/1000,0)) -> 36 | Q67: =IF(千円単!Q67="","",ROUND(千円単!Q67/1000,0)) -> 0 | R67: =IF(千円単!R67="","",ROUND(千円単!R67/1000,0)) -> 47 | S67: =IF(千円単!S67="","",ROUND(千円単!S67/1000,0)) -> 25 | T67: =IF(千円単!T67="","",ROUND(千円単!T67/1000,0)) -> 5 | U67: =IF(千円単!U67="","",ROUND(千円単!U67/1000,0)) -> 273 | V67: =IF(千円単!V67="","",ROUND(千円単!V67/1000,0)) -> 31 | W67: =IF(千円単!W67="","",ROUND(千円単!W67/1000,0)) -> 242 | X67: =IF(千円単!X67="","",ROUND(千円単!X67/1000,0)) -> -226 | Y67: =IF(千円単!Y67="","",ROUND(千円単!Y67/1000,0)) -> 0
A68: 2017 | B68: 46 | C68: 17 | D68: 1 | E68: 67 | F68: 公共 | G68: 072125 | H68: 福島県 | I68: 南相馬市 | J68: =IF(千円単!J68="","",ROUND(千円単!J68/1000,0)) -> 1611 | K68: =IF(千円単!K68="","",ROUND(千円単!K68/1000,0)) -> 464 | L68: =IF(千円単!L68="","",ROUND(千円単!L68/1000,0)) -> 532 | M68: =IF(千円単!M68="","",ROUND(千円単!M68/1000,0)) -> 1472 | N68: =IF(千円単!N68="","",ROUND(千円単!N68/1000,0)) -> 192 | O68: =IF(千円単!O68="","",ROUND(千円単!O68/1000,0)) -> 904 | P68: =IF(千円単!P68="","",ROUND(千円単!P68/1000,0)) -> 54 | Q68: =IF(千円単!Q68="","",ROUND(千円単!Q68/1000,0)) -> 139 | R68: =IF(千円単!R68="","",ROUND(千円単!R68/1000,0)) -> 1016 | S68: =IF(千円単!S68="","",ROUND(千円単!S68/1000,0)) -> 625 | T68: =IF(千円単!T68="","",ROUND(千円単!T68/1000,0)) -> 1 | U68: =IF(千円単!U68="","",ROUND(千円単!U68/1000,0)) -> 1545 | V68: =IF(千円単!V68="","",ROUND(千円単!V68/1000,0)) -> 774 | W68: =IF(千円単!W68="","",ROUND(千円単!W68/1000,0)) -> 771 | X68: =IF(千円単!X68="","",ROUND(千円単!X68/1000,0)) -> -529 | Y68: =IF(千円単!Y68="","",ROUND(千円単!Y68/1000,0)) -> 139
A69: 2017 | B69: 46 | C69: 17 | D69: 1 | E69: 68 | F69: 公共 | G69: 075213 | H69: 福島県 | I69: 三春町 | J69: =IF(千円単!J69="","",ROUND(千円単!J69/1000,0)) -> 179 | K69: =IF(千円単!K69="","",ROUND(千円単!K69/1000,0)) -> 70 | L69: =IF(千円単!L69="","",ROUND(千円単!L69/1000,0)) -> 27 | M69: =IF(千円単!M69="","",ROUND(千円単!M69/1000,0)) -> 202 | N69: =IF(千円単!N69="","",ROUND(千円単!N69/1000,0)) -> 27 | O69: =IF(千円単!O69="","",ROUND(千円単!O69/1000,0)) -> 138 | P69: =IF(千円単!P69="","",ROUND(千円単!P69/1000,0)) -> 10 | Q69: =IF(千円単!Q69="","",ROUND(千円単!Q69/1000,0)) -> -23 | R69: =IF(千円単!R69="","",ROUND(千円単!R69/1000,0)) -> 99 | S69: =IF(千円単!S69="","",ROUND(千円単!S69/1000,0)) -> 0 | T69: =IF(千円単!T69="","",ROUND(千円単!T69/1000,0)) -> 0 | U69: =IF(千円単!U69="","",ROUND(千円単!U69/1000,0)) -> 116 | V69: =IF(千円単!V69="","",ROUND(千円単!V69/1000,0)) -> 0 | W69: =IF(千円単!W69="","",ROUND(千円単!W69/1000,0)) -> 116 | X69: =IF(千円単!X69="","",ROUND(千円単!X69/1000,0)) -> -17 | Y69: =IF(千円単!Y69="","",ROUND(千円単!Y69/1000,0)) -> -23
A70: 2017 | B70: 46 | C70: 17 | D70: 1 | E70: 69 | F70: 公共 | G70: 082015 | H70: 茨城県 | I70: 水戸市 | J70: =IF(千円単!J70="","",ROUND(千円単!J70/1000,0)) -> 8999 | K70: =IF(千円単!K70="","",ROUND(千円単!K70/1000,0)) -> 3186 | L70: =IF(千円単!L70="","",ROUND(千円単!L70/1000,0)) -> 3781 | M70: =IF(千円単!M70="","",ROUND(千円単!M70/1000,0)) -> 8906 | N70: =IF(千円単!N70="","",ROUND(千円単!N70/1000,0)) -> 1614 | O70: =IF(千円単!O70="","",ROUND(千円単!O70/1000,0)) -> 5359 | P70: =IF(千円単!P70="","",ROUND(千円単!P70/1000,0)) -> 203 | Q70: =IF(千円単!Q70="","",ROUND(千円単!Q70/1000,0)) -> 93 | R70: =IF(千円単!R70="","",ROUND(千円単!R70/1000,0)) -> 5884 | S70: =IF(千円単!S70="","",ROUND(千円単!S70/1000,0)) -> 3070 | T70: =IF(千円単!T70="","",ROUND(千円単!T70/1000,0)) -> 597 | U70: =IF(千円単!U70="","",ROUND(千円単!U70/1000,0)) -> 9574 | V70: =IF(千円単!V70="","",ROUND(千円単!V70/1000,0)) -> 4205 | W70: =IF(千円単!W70="","",ROUND(千円単!W70/1000,0)) -> 5369 | X70: =IF(千円単!X70="","",ROUND(千円単!X70/1000,0)) -> -3690 | Y70: =IF(千円単!Y70="","",ROUND(千円単!Y70/1000,0)) -> 93
A71: 2017 | B71: 46 | C71: 17 | D71: 1 | E71: 70 | F71: 公共 | G71: 082023 | H71: 茨城県 | I71: 日立市 | J71: =IF(千円単!J71="","",ROUND(千円単!J71/1000,0)) -> 3964 | K71: =IF(千円単!K71="","",ROUND(千円単!K71/1000,0)) -> 2621 | L71: =IF(千円単!L71="","",ROUND(千円単!L71/1000,0)) -> 100 | M71: =IF(千円単!M71="","",ROUND(千円単!M71/1000,0)) -> 3558 | N71: =IF(千円単!N71="","",ROUND(千円単!N71/1000,0)) -> 270 | O71: =IF(千円単!O71="","",ROUND(千円単!O71/1000,0)) -> 2053 | P71: =IF(千円単!P71="","",ROUND(千円単!P71/1000,0)) -> 101 | Q71: =IF(千円単!Q71="","",ROUND(千円単!Q71/1000,0)) -> 407 | R71: =IF(千円単!R71="","",ROUND(千円単!R71/1000,0)) -> 1223 | S71: =IF(千円単!S71="","",ROUND(千円単!S71/1000,0)) -> 429 | T71: =IF(千円単!T71="","",ROUND(千円単!T71/1000,0)) -> 258 | U71: =IF(千円単!U71="","",ROUND(千円単!U71/1000,0)) -> 2533 | V71: =IF(千円単!V71="","",ROUND(千円単!V71/1000,0)) -> 1190 | W71: =IF(千円単!W71="","",ROUND(千円単!W71/1000,0)) -> 1343 | X71: =IF(千円単!X71="","",ROUND(千円単!X71/1000,0)) -> -1310 | Y71: =IF(千円単!Y71="","",ROUND(千円単!Y71/1000,0)) -> 407
A72: 2017 | B72: 46 | C72: 17 | D72: 1 | E72: 71 | F72: 公共 | G72: 082244 | H72: 茨城県 | I72: 守谷市 | J72: =IF(千円単!J72="","",ROUND(千円単!J72/1000,0)) -> 1898 | K72: =IF(千円単!K72="","",ROUND(千円単!K72/1000,0)) -> 1400 | L72: =IF(千円単!L72="","",ROUND(千円単!L72/1000,0)) -> 17 | M72: =IF(千円単!M72="","",ROUND(千円単!M72/1000,0)) -> 1634 | N72: =IF(千円単!N72="","",ROUND(千円単!N72/1000,0)) -> 83 | O72: =IF(千円単!O72="","",ROUND(千円単!O72/1000,0)) -> 867 | P72: =IF(千円単!P72="","",ROUND(千円単!P72/1000,0)) -> 66 | Q72: =IF(千円単!Q72="","",ROUND(千円単!Q72/1000,0)) -> 264 | R72: =IF(千円単!R72="","",ROUND(千円単!R72/1000,0)) -> 88 | S72: =IF(千円単!S72="","",ROUND(千円単!S72/1000,0)) -> 0 | T72: =IF(千円単!T72="","",ROUND(千円単!T72/1000,0)) -> 17 | U72: =IF(千円単!U72="","",ROUND(千円単!U72/1000,0)) -> 434 | V72: =IF(千円単!V72="","",ROUND(千円単!V72/1000,0)) -> 49 | W72: =IF(千円単!W72="","",ROUND(千円単!W72/1000,0)) -> 299 | X72: =IF(千円単!X72="","",ROUND(千円単!X72/1000,0)) -> -346 | Y72: =IF(千円単!Y72="","",ROUND(千円単!Y72/1000,0)) -> 264
A73: 2017 | B73: 46 | C73: 17 | D73: 1 | E73: 72 | F73: 公共 | G73: 089192 | H73: 茨城県 | I73: 取手地方広域下水道組合 | J73: =IF(千円単!J73="","",ROUND(千円単!J73/1000,0)) -> 4131 | K73: =IF(千円単!K73="","",ROUND(千円単!K73/1000,0)) -> 1059 | L73: =IF(千円単!L73="","",ROUND(千円単!L73/1000,0)) -> 1785 | M73: =IF(千円単!M73="","",ROUND(千円単!M73/1000,0)) -> 4020 | N73: =IF(千円単!N73="","",ROUND(千円単!N73/1000,0)) -> 457 | O73: =IF(千円単!O73="","",ROUND(千円単!O73/1000,0)) -> 2420 | P73: =IF(千円単!P73="","",ROUND(千円単!P73/1000,0)) -> 311 | Q73: =IF(千円単!Q73="","",ROUND(千円単!Q73/1000,0)) -> 111 | R73: =IF(千円単!R73="","",ROUND(千円単!R73/1000,0)) -> 1683 | S73: =IF(千円単!S73="","",ROUND(千円単!S73/1000,0)) -> 791 | T73: =IF(千円単!T73="","",ROUND(千円単!T73/1000,0)) -> 86 | U73: =IF(千円単!U73="","",ROUND(千円単!U73/1000,0)) -> 3004 | V73: =IF(千円単!V73="","",ROUND(千円単!V73/1000,0)) -> 1525 | W73: =IF(千円単!W73="","",ROUND(千円単!W73/1000,0)) -> 1475 | X73: =IF(千円単!X73="","",ROUND(千円単!X73/1000,0)) -> -1321 | Y73: =IF(千円単!Y73="","",ROUND(千円単!Y73/1000,0)) -> 111
A74: 2017 | B74: 46 | C74: 17 | D74: 1 | E74: 73 | F74: 公共 | G74: 089222 | H74: 茨城県 | I74: 日立・高萩広域下水道組合 | J74: =IF(千円単!J74="","",ROUND(千円単!J74/1000,0)) -> 2384 | K74: =IF(千円単!K74="","",ROUND(千円単!K74/1000,0)) -> 1169 | L74: =IF(千円単!L74="","",ROUND(千円単!L74/1000,0)) -> 590 | M74: =IF(千円単!M74="","",ROUND(千円単!M74/1000,0)) -> 2368 | N74: =IF(千円単!N74="","",ROUND(千円単!N74/1000,0)) -> 272 | O74: =IF(千円単!O74="","",ROUND(千円単!O74/1000,0)) -> 1443 | P74: =IF(千円単!P74="","",ROUND(千円単!P74/1000,0)) -> 194 | Q74: =IF(千円単!Q74="","",ROUND(千円単!Q74/1000,0)) -> 16 | R74: =IF(千円単!R74="","",ROUND(千円単!R74/1000,0)) -> 1100 | S74: =IF(千円単!S74="","",ROUND(千円単!S74/1000,0)) -> 232 | T74: =IF(千円単!T74="","",ROUND(千円単!T74/1000,0)) -> 0 | U74: =IF(千円単!U74="","",ROUND(千円単!U74/1000,0)) -> 2024 | V74: =IF(千円単!V74="","",ROUND(千円単!V74/1000,0)) -> 530 | W74: =IF(千円単!W74="","",ROUND(千円単!W74/1000,0)) -> 1494 | X74: =IF(千円単!X74="","",ROUND(千円単!X74/1000,0)) -> -925 | Y74: =IF(千円単!Y74="","",ROUND(千円単!Y74/1000,0)) -> 16
A75: 2017 | B75: 46 | C75: 17 | D75: 1 | E75: 74 | F75: 公共 | G75: 092011 | H75: 栃木県 | I75: 宇都宮市 | J75: =IF(千円単!J75="","",ROUND(千円単!J75/1000,0)) -> 11907 | K75: =IF(千円単!K75="","",ROUND(千円単!K75/1000,0)) -> 6863 | L75: =IF(千円単!L75="","",ROUND(千円単!L75/1000,0)) -> 2960 | M75: =IF(千円単!M75="","",ROUND(千円単!M75/1000,0)) -> 10645 | N75: =IF(千円単!N75="","",ROUND(千円単!N75/1000,0)) -> 1128 | O75: =IF(千円単!O75="","",ROUND(千円単!O75/1000,0)) -> 5459 | P75: =IF(千円単!P75="","",ROUND(千円単!P75/1000,0)) -> 501 | Q75: =IF(千円単!Q75="","",ROUND(千円単!Q75/1000,0)) -> 1262 | R75: =IF(千円単!R75="","",ROUND(千円単!R75/1000,0)) -> 2491 | S75: =IF(千円単!S75="","",ROUND(千円単!S75/1000,0)) -> 936 | T75: =IF(千円単!T75="","",ROUND(千円単!T75/1000,0)) -> 176 | U75: =IF(千円単!U75="","",ROUND(千円単!U75/1000,0)) -> 7281 | V75: =IF(千円単!V75="","",ROUND(千円単!V75/1000,0)) -> 2601 | W75: =IF(千円単!W75="","",ROUND(千円単!W75/1000,0)) -> 4680 | X75: =IF(千円単!X75="","",ROUND(千円単!X75/1000,0)) -> -4790 | Y75: =IF(千円単!Y75="","",ROUND(千円単!Y75/1000,0)) -> 1262
A76: 2017 | B76: 46 | C76: 17 | D76: 1 | E76: 75 | F76: 公共 | G76: 102016 | H76: 群馬県 | I76: 前橋市 | J76: =IF(千円単!J76="","",ROUND(千円単!J76/1000,0)) -> 7075 | K76: =IF(千円単!K76="","",ROUND(千円単!K76/1000,0)) -> 3063 | L76: =IF(千円単!L76="","",ROUND(千円単!L76/1000,0)) -> 2473 | M76: =IF(千円単!M76="","",ROUND(千円単!M76/1000,0)) -> 6469 | N76: =IF(千円単!N76="","",ROUND(千円単!N76/1000,0)) -> 831 | O76: =IF(千円単!O76="","",ROUND(千円単!O76/1000,0)) -> 3096 | P76: =IF(千円単!P76="","",ROUND(千円単!P76/1000,0)) -> 370 | Q76: =IF(千円単!Q76="","",ROUND(千円単!Q76/1000,0)) -> 606 | R76: =IF(千円単!R76="","",ROUND(千円単!R76/1000,0)) -> 3748 | S76: =IF(千円単!S76="","",ROUND(千円単!S76/1000,0)) -> 2065 | T76: =IF(千円単!T76="","",ROUND(千円単!T76/1000,0)) -> 440 | U76: =IF(千円単!U76="","",ROUND(千円単!U76/1000,0)) -> 6409 | V76: =IF(千円単!V76="","",ROUND(千円単!V76/1000,0)) -> 3363 | W76: =IF(千円単!W76="","",ROUND(千円単!W76/1000,0)) -> 3046 | X76: =IF(千円単!X76="","",ROUND(千円単!X76/1000,0)) -> -2661 | Y76: =IF(千円単!Y76="","",ROUND(千円単!Y76/1000,0)) -> 606
A77: 2017 | B77: 46 | C77: 17 | D77: 1 | E77: 76 | F77: 公共 | G77: 102024 | H77: 群馬県 | I77: 高崎市 | J77: =IF(千円単!J77="","",ROUND(千円単!J77/1000,0)) -> 8406 | K77: =IF(千円単!K77="","",ROUND(千円単!K77/1000,0)) -> 3801 | L77: =IF(千円単!L77="","",ROUND(千円単!L77/1000,0)) -> 3067 | M77: =IF(千円単!M77="","",ROUND(千円単!M77/1000,0)) -> 6608 | N77: =IF(千円単!N77="","",ROUND(千円単!N77/1000,0)) -> 919 | O77: =IF(千円単!O77="","",ROUND(千円単!O77/1000,0)) -> 3362 | P77: =IF(千円単!P77="","",ROUND(千円単!P77/1000,0)) -> 424 | Q77: =IF(千円単!Q77="","",ROUND(千円単!Q77/1000,0)) -> 1798 | R77: =IF(千円単!R77="","",ROUND(千円単!R77/1000,0)) -> 3582 | S77: =IF(千円単!S77="","",ROUND(千円単!S77/1000,0)) -> 1915 | T77: =IF(千円単!T77="","",ROUND(千円単!T77/1000,0)) -> 513 | U77: =IF(千円単!U77="","",ROUND(千円単!U77/1000,0)) -> 6832 | V77: =IF(千円単!V77="","",ROUND(千円単!V77/1000,0)) -> 3659 | W77: =IF(千円単!W77="","",ROUND(千円単!W77/1000,0)) -> 3172 | X77: =IF(千円単!X77="","",ROUND(千円単!X77/1000,0)) -> -3250 | Y77: =IF(千円単!Y77="","",ROUND(千円単!Y77/1000,0)) -> 1798
A78: 2017 | B78: 46 | C78: 17 | D78: 1 | E78: 77 | F78: 公共 | G78: 102059 | H78: 群馬県 | I78: 太田市 | J78: =IF(千円単!J78="","",ROUND(千円単!J78/1000,0)) -> 2783 | K78: =IF(千円単!K78="","",ROUND(千円単!K78/1000,0)) -> 803 | L78: =IF(千円単!L78="","",ROUND(千円単!L78/1000,0)) -> 1162 | M78: =IF(千円単!M78="","",ROUND(千円単!M78/1000,0)) -> 2777 | N78: =IF(千円単!N78="","",ROUND(千円単!N78/1000,0)) -> 422 | O78: =IF(千円単!O78="","",ROUND(千円単!O78/1000,0)) -> 1490 | P78: =IF(千円単!P78="","",ROUND(千円単!P78/1000,0)) -> 82 | Q78: =IF(千円単!Q78="","",ROUND(千円単!Q78/1000,0)) -> 6 | R78: =IF(千円単!R78="","",ROUND(千円単!R78/1000,0)) -> 2052 | S78: =IF(千円単!S78="","",ROUND(千円単!S78/1000,0)) -> 995 | T78: =IF(千円単!T78="","",ROUND(千円単!T78/1000,0)) -> 731 | U78: =IF(千円単!U78="","",ROUND(千円単!U78/1000,0)) -> 2871 | V78: =IF(千円単!V78="","",ROUND(千円単!V78/1000,0)) -> 1396 | W78: =IF(千円単!W78="","",ROUND(千円単!W78/1000,0)) -> 1467 | X78: =IF(千円単!X78="","",ROUND(千円単!X78/1000,0)) -> -820 | Y78: =IF(千円単!Y78="","",ROUND(千円単!Y78/1000,0)) -> 6
A79: 2017 | B79: 46 | C79: 17 | D79: 1 | E79: 78 | F79: 公共 | G79: 111007 | H79: 埼玉県 | I79: さいたま市 | J79: =IF(千円単!J79="","",ROUND(千円単!J79/1000,0)) -> 24201 | K79: =IF(千円単!K79="","",ROUND(千円単!K79/1000,0)) -> 16826 | L79: =IF(千円単!L79="","",ROUND(千円単!L79/1000,0)) -> 4347 | M79: =IF(千円単!M79="","",ROUND(千円単!M79/1000,0)) -> 24012 | N79: =IF(千円単!N79="","",ROUND(千円単!N79/1000,0)) -> 3205 | O79: =IF(千円単!O79="","",ROUND(千円単!O79/1000,0)) -> 12384 | P79: =IF(千円単!P79="","",ROUND(千円単!P79/1000,0)) -> 645 | Q79: =IF(千円単!Q79="","",ROUND(千円単!Q79/1000,0)) -> 190 | R79: =IF(千円単!R79="","",ROUND(千円単!R79/1000,0)) -> 15134 | S79: =IF(千円単!S79="","",ROUND(千円単!S79/1000,0)) -> 12431 | T79: =IF(千円単!T79="","",ROUND(千円単!T79/1000,0)) -> 396 | U79: =IF(千円単!U79="","",ROUND(千円単!U79/1000,0)) -> 26678 | V79: =IF(千円単!V79="","",ROUND(千円単!V79/1000,0)) -> 14985 | W79: =IF(千円単!W79="","",ROUND(千円単!W79/1000,0)) -> 11688 | X79: =IF(千円単!X79="","",ROUND(千円単!X79/1000,0)) -> -11543 | Y79: =IF(千円単!Y79="","",ROUND(千円単!Y79/1000,0)) -> 190
A80: 2017 | B80: 46 | C80: 17 | D80: 1 | E80: 79 | F80: 公共 | G80: 112011 | H80: 埼玉県 | I80: 川越市 | J80: =IF(千円単!J80="","",ROUND(千円単!J80/1000,0)) -> 6000 | K80: =IF(千円単!K80="","",ROUND(千円単!K80/1000,0)) -> 3255 | L80: =IF(千円単!L80="","",ROUND(千円単!L80/1000,0)) -> 1920 | M80: =IF(千円単!M80="","",ROUND(千円単!M80/1000,0)) -> 5769 | N80: =IF(千円単!N80="","",ROUND(千円単!N80/1000,0)) -> 386 | O80: =IF(千円単!O80="","",ROUND(千円単!O80/1000,0)) -> 2692 | P80: =IF(千円単!P80="","",ROUND(千円単!P80/1000,0)) -> 390 | Q80: =IF(千円単!Q80="","",ROUND(千円単!Q80/1000,0)) -> 232 | R80: =IF(千円単!R80="","",ROUND(千円単!R80/1000,0)) -> 879 | S80: =IF(千円単!S80="","",ROUND(千円単!S80/1000,0)) -> 544 | T80: =IF(千円単!T80="","",ROUND(千円単!T80/1000,0)) -> 151 | U80: =IF(千円単!U80="","",ROUND(千円単!U80/1000,0)) -> 2595 | V80: =IF(千円単!V80="","",ROUND(千円単!V80/1000,0)) -> 1379 | W80: =IF(千円単!W80="","",ROUND(千円単!W80/1000,0)) -> 1217 | X80: =IF(千円単!X80="","",ROUND(千円単!X80/1000,0)) -> -1716 | Y80: =IF(千円単!Y80="","",ROUND(千円単!Y80/1000,0)) -> 232
A81: 2017 | B81: 46 | C81: 17 | D81: 1 | E81: 80 | F81: 公共 | G81: 112089 | H81: 埼玉県 | I81: 所沢市 | J81: =IF(千円単!J81="","",ROUND(千円単!J81/1000,0)) -> 5213 | K81: =IF(千円単!K81="","",ROUND(千円単!K81/1000,0)) -> 2665 | L81: =IF(千円単!L81="","",ROUND(千円単!L81/1000,0)) -> 1480 | M81: =IF(千円単!M81="","",ROUND(千円単!M81/1000,0)) -> 5373 | N81: =IF(千円単!N81="","",ROUND(千円単!N81/1000,0)) -> 395 | O81: =IF(千円単!O81="","",ROUND(千円単!O81/1000,0)) -> 2938 | P81: =IF(千円単!P81="","",ROUND(千円単!P81/1000,0)) -> 363 | Q81: =IF(千円単!Q81="","",ROUND(千円単!Q81/1000,0)) -> -159 | R81: =IF(千円単!R81="","",ROUND(千円単!R81/1000,0)) -> 2191 | S81: =IF(千円単!S81="","",ROUND(千円単!S81/1000,0)) -> 1633 | T81: =IF(千円単!T81="","",ROUND(千円単!T81/1000,0)) -> 183 | U81: =IF(千円単!U81="","",ROUND(千円単!U81/1000,0)) -> 4017 | V81: =IF(千円単!V81="","",ROUND(千円単!V81/1000,0)) -> 2784 | W81: =IF(千円単!W81="","",ROUND(千円単!W81/1000,0)) -> 1229 | X81: =IF(千円単!X81="","",ROUND(千円単!X81/1000,0)) -> -1825 | Y81: =IF(千円単!Y81="","",ROUND(千円単!Y81/1000,0)) -> -159
A82: 2017 | B82: 46 | C82: 17 | D82: 1 | E82: 81 | F82: 公共 | G82: 112101 | H82: 埼玉県 | I82: 加須市 | J82: =IF(千円単!J82="","",ROUND(千円単!J82/1000,0)) -> 1722 | K82: =IF(千円単!K82="","",ROUND(千円単!K82/1000,0)) -> 503 | L82: =IF(千円単!L82="","",ROUND(千円単!L82/1000,0)) -> 666 | M82: =IF(千円単!M82="","",ROUND(千円単!M82/1000,0)) -> 1640 | N82: =IF(千円単!N82="","",ROUND(千円単!N82/1000,0)) -> 230 | O82: =IF(千円単!O82="","",ROUND(千円単!O82/1000,0)) -> 1001 | P82: =IF(千円単!P82="","",ROUND(千円単!P82/1000,0)) -> 41 | Q82: =IF(千円単!Q82="","",ROUND(千円単!Q82/1000,0)) -> 82 | R82: =IF(千円単!R82="","",ROUND(千円単!R82/1000,0)) -> 1134 | S82: =IF(千円単!S82="","",ROUND(千円単!S82/1000,0)) -> 682 | T82: =IF(千円単!T82="","",ROUND(千円単!T82/1000,0)) -> 316 | U82: =IF(千円単!U82="","",ROUND(千円単!U82/1000,0)) -> 1651 | V82: =IF(千円単!V82="","",ROUND(千円単!V82/1000,0)) -> 634 | W82: =IF(千円単!W82="","",ROUND(千円単!W82/1000,0)) -> 1015 | X82: =IF(千円単!X82="","",ROUND(千円単!X82/1000,0)) -> -518 | Y82: =IF(千円単!Y82="","",ROUND(千円単!Y82/1000,0)) -> 82
A83: 2017 | B83: 46 | C83: 17 | D83: 1 | E83: 82 | F83: 公共 | G83: 112119 | H83: 埼玉県 | I83: 本庄市 | J83: =IF(千円単!J83="","",ROUND(千円単!J83/1000,0)) -> 1463 | K83: =IF(千円単!K83="","",ROUND(千円単!K83/1000,0)) -> 610 | L83: =IF(千円単!L83="","",ROUND(千円単!L83/1000,0)) -> 273 | M83: =IF(千円単!M83="","",ROUND(千円単!M83/1000,0)) -> 1430 | N83: =IF(千円単!N83="","",ROUND(千円単!N83/1000,0)) -> 135 | O83: =IF(千円単!O83="","",ROUND(千円単!O83/1000,0)) -> 837 | P83: =IF(千円単!P83="","",ROUND(千円単!P83/1000,0)) -> 45 | Q83: =IF(千円単!Q83="","",ROUND(千円単!Q83/1000,0)) -> 33 | R83: =IF(千円単!R83="","",ROUND(千円単!R83/1000,0)) -> 1242 | S83: =IF(千円単!S83="","",ROUND(千円単!S83/1000,0)) -> 615 | T83: =IF(千円単!T83="","",ROUND(千円単!T83/1000,0)) -> 253 | U83: =IF(千円単!U83="","",ROUND(千円単!U83/1000,0)) -> 1602 | V83: =IF(千円単!V83="","",ROUND(千円単!V83/1000,0)) -> 1093 | W83: =IF(千円単!W83="","",ROUND(千円単!W83/1000,0)) -> 509 | X83: =IF(千円単!X83="","",ROUND(千円単!X83/1000,0)) -> -359 | Y83: =IF(千円単!Y83="","",ROUND(千円単!Y83/1000,0)) -> 33
A84: 2017 | B84: 46 | C84: 17 | D84: 1 | E84: 83 | F84: 公共 | G84: 112143 | H84: 埼玉県 | I84: 春日部市 | J84: =IF(千円単!J84="","",ROUND(千円単!J84/1000,0)) -> 4708 | K84: =IF(千円単!K84="","",ROUND(千円単!K84/1000,0)) -> 2464 | L84: =IF(千円単!L84="","",ROUND(千円単!L84/1000,0)) -> 1502 | M84: =IF(千円単!M84="","",ROUND(千円単!M84/1000,0)) -> 4138 | N84: =IF(千円単!N84="","",ROUND(千円単!N84/1000,0)) -> 725 | O84: =IF(千円単!O84="","",ROUND(千円単!O84/1000,0)) -> 2201 | P84: =IF(千円単!P84="","",ROUND(千円単!P84/1000,0)) -> 91 | Q84: =IF(千円単!Q84="","",ROUND(千円単!Q84/1000,0)) -> 570 | R84: =IF(千円単!R84="","",ROUND(千円単!R84/1000,0)) -> 2863 | S84: =IF(千円単!S84="","",ROUND(千円単!S84/1000,0)) -> 2372 | T84: =IF(千円単!T84="","",ROUND(千円単!T84/1000,0)) -> 99 | U84: =IF(千円単!U84="","",ROUND(千円単!U84/1000,0)) -> 4907 | V84: =IF(千円単!V84="","",ROUND(千円単!V84/1000,0)) -> 1790 | W84: =IF(千円単!W84="","",ROUND(千円単!W84/1000,0)) -> 3118 | X84: =IF(千円単!X84="","",ROUND(千円単!X84/1000,0)) -> -2045 | Y84: =IF(千円単!Y84="","",ROUND(千円単!Y84/1000,0)) -> 570
A85: 2017 | B85: 46 | C85: 17 | D85: 1 | E85: 84 | F85: 公共 | G85: 112151 | H85: 埼玉県 | I85: 狭山市 | J85: =IF(千円単!J85="","",ROUND(千円単!J85/1000,0)) -> 3178 | K85: =IF(千円単!K85="","",ROUND(千円単!K85/1000,0)) -> 1515 | L85: =IF(千円単!L85="","",ROUND(千円単!L85/1000,0)) -> 927 | M85: =IF(千円単!M85="","",ROUND(千円単!M85/1000,0)) -> 3048 | N85: =IF(千円単!N85="","",ROUND(千円単!N85/1000,0)) -> 331 | O85: =IF(千円単!O85="","",ROUND(千円単!O85/1000,0)) -> 1831 | P85: =IF(千円単!P85="","",ROUND(千円単!P85/1000,0)) -> 91 | Q85: =IF(千円単!Q85="","",ROUND(千円単!Q85/1000,0)) -> 131 | R85: =IF(千円単!R85="","",ROUND(千円単!R85/1000,0)) -> 547 | S85: =IF(千円単!S85="","",ROUND(千円単!S85/1000,0)) -> 280 | T85: =IF(千円単!T85="","",ROUND(千円単!T85/1000,0)) -> 123 | U85: =IF(千円単!U85="","",ROUND(千円単!U85/1000,0)) -> 1721 | V85: =IF(千円単!V85="","",ROUND(千円単!V85/1000,0)) -> 631 | W85: =IF(千円単!W85="","",ROUND(千円単!W85/1000,0)) -> 1089 | X85: =IF(千円単!X85="","",ROUND(千円単!X85/1000,0)) -> -1174 | Y85: =IF(千円単!Y85="","",ROUND(千円単!Y85/1000,0)) -> 131
A86: 2017 | B86: 46 | C86: 17 | D86: 1 | E86: 85 | F86: 公共 | G86: 112178 | H86: 埼玉県 | I86: 鴻巣市 | J86: =IF(千円単!J86="","",ROUND(千円単!J86/1000,0)) -> 2137 | K86: =IF(千円単!K86="","",ROUND(千円単!K86/1000,0)) -> 1026 | L86: =IF(千円単!L86="","",ROUND(千円単!L86/1000,0)) -> 568 | M86: =IF(千円単!M86="","",ROUND(千円単!M86/1000,0)) -> 2052 | N86: =IF(千円単!N86="","",ROUND(千円単!N86/1000,0)) -> 259 | O86: =IF(千円単!O86="","",ROUND(千円単!O86/1000,0)) -> 1188 | P86: =IF(千円単!P86="","",ROUND(千円単!P86/1000,0)) -> 47 | Q86: =IF(千円単!Q86="","",ROUND(千円単!Q86/1000,0)) -> 85 | R86: =IF(千円単!R86="","",ROUND(千円単!R86/1000,0)) -> 1858 | S86: =IF(千円単!S86="","",ROUND(千円単!S86/1000,0)) -> 963 | T86: =IF(千円単!T86="","",ROUND(千円単!T86/1000,0)) -> 532 | U86: =IF(千円単!U86="","",ROUND(千円単!U86/1000,0)) -> 2476 | V86: =IF(千円単!V86="","",ROUND(千円単!V86/1000,0)) -> 1291 | W86: =IF(千円単!W86="","",ROUND(千円単!W86/1000,0)) -> 1184 | X86: =IF(千円単!X86="","",ROUND(千円単!X86/1000,0)) -> -618 | Y86: =IF(千円単!Y86="","",ROUND(千円単!Y86/1000,0)) -> 85
A87: 2017 | B87: 46 | C87: 17 | D87: 1 | E87: 86 | F87: 公共 | G87: 112186 | H87: 埼玉県 | I87: 深谷市 | J87: =IF(千円単!J87="","",ROUND(千円単!J87/1000,0)) -> 2358 | K87: =IF(千円単!K87="","",ROUND(千円単!K87/1000,0)) -> 1027 | L87: =IF(千円単!L87="","",ROUND(千円単!L87/1000,0)) -> 692 | M87: =IF(千円単!M87="","",ROUND(千円単!M87/1000,0)) -> 2310 | N87: =IF(千円単!N87="","",ROUND(千円単!N87/1000,0)) -> 311 | O87: =IF(千円単!O87="","",ROUND(千円単!O87/1000,0)) -> 1374 | P87: =IF(千円単!P87="","",ROUND(千円単!P87/1000,0)) -> 54 | Q87: =IF(千円単!Q87="","",ROUND(千円単!Q87/1000,0)) -> 48 | R87: =IF(千円単!R87="","",ROUND(千円単!R87/1000,0)) -> 1040 | S87: =IF(千円単!S87="","",ROUND(千円単!S87/1000,0)) -> 718 | T87: =IF(千円単!T87="","",ROUND(千円単!T87/1000,0)) -> 50 | U87: =IF(千円単!U87="","",ROUND(千円単!U87/1000,0)) -> 1924 | V87: =IF(千円単!V87="","",ROUND(千円単!V87/1000,0)) -> 818 | W87: =IF(千円単!W87="","",ROUND(千円単!W87/1000,0)) -> 1104 | X87: =IF(千円単!X87="","",ROUND(千円単!X87/1000,0)) -> -884 | Y87: =IF(千円単!Y87="","",ROUND(千円単!Y87/1000,0)) -> 48
A88: 2017 | B88: 46 | C88: 17 | D88: 1 | E88: 87 | F88: 公共 | G88: 112241 | H88: 埼玉県 | I88: 戸田市 | J88: =IF(千円単!J88="","",ROUND(千円単!J88/1000,0)) -> 2580 | K88: =IF(千円単!K88="","",ROUND(千円単!K88/1000,0)) -> 1308 | L88: =IF(千円単!L88="","",ROUND(千円単!L88/1000,0)) -> 773 | M88: =IF(千円単!M88="","",ROUND(千円単!M88/1000,0)) -> 2469 | N88: =IF(千円単!N88="","",ROUND(千円単!N88/1000,0)) -> 176 | O88: =IF(千円単!O88="","",ROUND(千円単!O88/1000,0)) -> 1070 | P88: =IF(千円単!P88="","",ROUND(千円単!P88/1000,0)) -> 61 | Q88: =IF(千円単!Q88="","",ROUND(千円単!Q88/1000,0)) -> 110 | R88: =IF(千円単!R88="","",ROUND(千円単!R88/1000,0)) -> 634 | S88: =IF(千円単!S88="","",ROUND(千円単!S88/1000,0)) -> 451 | T88: =IF(千円単!T88="","",ROUND(千円単!T88/1000,0)) -> 0 | U88: =IF(千円単!U88="","",ROUND(千円単!U88/1000,0)) -> 1353 | V88: =IF(千円単!V88="","",ROUND(千円単!V88/1000,0)) -> 727 | W88: =IF(千円単!W88="","",ROUND(千円単!W88/1000,0)) -> 627 | X88: =IF(千円単!X88="","",ROUND(千円単!X88/1000,0)) -> -719 | Y88: =IF(千円単!Y88="","",ROUND(千円単!Y88/1000,0)) -> 110
A89: 2017 | B89: 46 | C89: 17 | D89: 1 | E89: 88 | F89: 公共 | G89: 112259 | H89: 埼玉県 | I89: 入間市 | J89: =IF(千円単!J89="","",ROUND(千円単!J89/1000,0)) -> 2318 | K89: =IF(千円単!K89="","",ROUND(千円単!K89/1000,0)) -> 1358 | L89: =IF(千円単!L89="","",ROUND(千円単!L89/1000,0)) -> 410 | M89: =IF(千円単!M89="","",ROUND(千円単!M89/1000,0)) -> 2168 | N89: =IF(千円単!N89="","",ROUND(千円単!N89/1000,0)) -> 207 | O89: =IF(千円単!O89="","",ROUND(千円単!O89/1000,0)) -> 1311 | P89: =IF(千円単!P89="","",ROUND(千円単!P89/1000,0)) -> 55 | Q89: =IF(千円単!Q89="","",ROUND(千円単!Q89/1000,0)) -> 149 | R89: =IF(千円単!R89="","",ROUND(千円単!R89/1000,0)) -> 236 | S89: =IF(千円単!S89="","",ROUND(千円単!S89/1000,0)) -> 124 | T89: =IF(千円単!T89="","",ROUND(千円単!T89/1000,0)) -> 108 | U89: =IF(千円単!U89="","",ROUND(千円単!U89/1000,0)) -> 986 | V89: =IF(千円単!V89="","",ROUND(千円単!V89/1000,0)) -> 188 | W89: =IF(千円単!W89="","",ROUND(千円単!W89/1000,0)) -> 797 | X89: =IF(千円単!X89="","",ROUND(千円単!X89/1000,0)) -> -749 | Y89: =IF(千円単!Y89="","",ROUND(千円単!Y89/1000,0)) -> 149
A90: 2017 | B90: 46 | C90: 17 | D90: 1 | E90: 89 | F90: 公共 | G90: 112283 | H90: 埼玉県 | I90: 志木市 | J90: =IF(千円単!J90="","",ROUND(千円単!J90/1000,0)) -> 1957 | K90: =IF(千円単!K90="","",ROUND(千円単!K90/1000,0)) -> 823 | L90: =IF(千円単!L90="","",ROUND(千円単!L90/1000,0)) -> 475 | M90: =IF(千円単!M90="","",ROUND(千円単!M90/1000,0)) -> 1801 | N90: =IF(千円単!N90="","",ROUND(千円単!N90/1000,0)) -> 152 | O90: =IF(千円単!O90="","",ROUND(千円単!O90/1000,0)) -> 871 | P90: =IF(千円単!P90="","",ROUND(千円単!P90/1000,0)) -> 83 | Q90: =IF(千円単!Q90="","",ROUND(千円単!Q90/1000,0)) -> 156 | R90: =IF(千円単!R90="","",ROUND(千円単!R90/1000,0)) -> 449 | S90: =IF(千円単!S90="","",ROUND(千円単!S90/1000,0)) -> 104 | T90: =IF(千円単!T90="","",ROUND(千円単!T90/1000,0)) -> 310 | U90: =IF(千円単!U90="","",ROUND(千円単!U90/1000,0)) -> 780 | V90: =IF(千円単!V90="","",ROUND(千円単!V90/1000,0)) -> 120 | W90: =IF(千円単!W90="","",ROUND(千円単!W90/1000,0)) -> 639 | X90: =IF(千円単!X90="","",ROUND(千円単!X90/1000,0)) -> -331 | Y90: =IF(千円単!Y90="","",ROUND(千円単!Y90/1000,0)) -> 156
A91: 2017 | B91: 46 | C91: 17 | D91: 1 | E91: 90 | F91: 公共 | G91: 112291 | H91: 埼玉県 | I91: 和光市 | J91: =IF(千円単!J91="","",ROUND(千円単!J91/1000,0)) -> 1079 | K91: =IF(千円単!K91="","",ROUND(千円単!K91/1000,0)) -> 604 | L91: =IF(千円単!L91="","",ROUND(千円単!L91/1000,0)) -> 335 | M91: =IF(千円単!M91="","",ROUND(千円単!M91/1000,0)) -> 972 | N91: =IF(千円単!N91="","",ROUND(千円単!N91/1000,0)) -> 90 | O91: =IF(千円単!O91="","",ROUND(千円単!O91/1000,0)) -> 439 | P91: =IF(千円単!P91="","",ROUND(千円単!P91/1000,0)) -> 31 | Q91: =IF(千円単!Q91="","",ROUND(千円単!Q91/1000,0)) -> 108 | R91: =IF(千円単!R91="","",ROUND(千円単!R91/1000,0)) -> 253 | S91: =IF(千円単!S91="","",ROUND(千円単!S91/1000,0)) -> 105 | T91: =IF(千円単!T91="","",ROUND(千円単!T91/1000,0)) -> 56 | U91: =IF(千円単!U91="","",ROUND(千円単!U91/1000,0)) -> 625 | V91: =IF(千円単!V91="","",ROUND(千円単!V91/1000,0)) -> 241 | W91: =IF(千円単!W91="","",ROUND(千円単!W91/1000,0)) -> 383 | X91: =IF(千円単!X91="","",ROUND(千円単!X91/1000,0)) -> -372 | Y91: =IF(千円単!Y91="","",ROUND(千円単!Y91/1000,0)) -> 108
A92: 2017 | B92: 46 | C92: 17 | D92: 1 | E92: 91 | F92: 公共 | G92: 112321 | H92: 埼玉県 | I92: 久喜市 | J92: =IF(千円単!J92="","",ROUND(千円単!J92/1000,0)) -> 3781 | K92: =IF(千円単!K92="","",ROUND(千円単!K92/1000,0)) -> 1304 | L92: =IF(千円単!L92="","",ROUND(千円単!L92/1000,0)) -> 1493 | M92: =IF(千円単!M92="","",ROUND(千円単!M92/1000,0)) -> 3655 | N92: =IF(千円単!N92="","",ROUND(千円単!N92/1000,0)) -> 317 | O92: =IF(千円単!O92="","",ROUND(千円単!O92/1000,0)) -> 1726 | P92: =IF(千円単!P92="","",ROUND(千円単!P92/1000,0)) -> 101 | Q92: =IF(千円単!Q92="","",ROUND(千円単!Q92/1000,0)) -> 126 | R92: =IF(千円単!R92="","",ROUND(千円単!R92/1000,0)) -> 1522 | S92: =IF(千円単!S92="","",ROUND(千円単!S92/1000,0)) -> 1080 | T92: =IF(千円単!T92="","",ROUND(千円単!T92/1000,0)) -> 201 | U92: =IF(千円単!U92="","",ROUND(千円単!U92/1000,0)) -> 2360 | V92: =IF(千円単!V92="","",ROUND(千円単!V92/1000,0)) -> 889 | W92: =IF(千円単!W92="","",ROUND(千円単!W92/1000,0)) -> 1470 | X92: =IF(千円単!X92="","",ROUND(千円単!X92/1000,0)) -> -838 | Y92: =IF(千円単!Y92="","",ROUND(千円単!Y92/1000,0)) -> 126
A93: 2017 | B93: 46 | C93: 17 | D93: 1 | E93: 92 | F93: 公共 | G93: 112330 | H93: 埼玉県 | I93: 北本市 | J93: =IF(千円単!J93="","",ROUND(千円単!J93/1000,0)) -> 1027 | K93: =IF(千円単!K93="","",ROUND(千円単!K93/1000,0)) -> 525 | L93: =IF(千円単!L93="","",ROUND(千円単!L93/1000,0)) -> 300 | M93: =IF(千円単!M93="","",ROUND(千円単!M93/1000,0)) -> 995 | N93: =IF(千円単!N93="","",ROUND(千円単!N93/1000,0)) -> 97 | O93: =IF(千円単!O93="","",ROUND(千円単!O93/1000,0)) -> 493 | P93: =IF(千円単!P93="","",ROUND(千円単!P93/1000,0)) -> 45 | Q93: =IF(千円単!Q93="","",ROUND(千円単!Q93/1000,0)) -> 32 | R93: =IF(千円単!R93="","",ROUND(千円単!R93/1000,0)) -> 463 | S93: =IF(千円単!S93="","",ROUND(千円単!S93/1000,0)) -> 243 | T93: =IF(千円単!T93="","",ROUND(千円単!T93/1000,0)) -> 165 | U93: =IF(千円単!U93="","",ROUND(千円単!U93/1000,0)) -> 762 | V93: =IF(千円単!V93="","",ROUND(千円単!V93/1000,0)) -> 289 | W93: =IF(千円単!W93="","",ROUND(千円単!W93/1000,0)) -> 474 | X93: =IF(千円単!X93="","",ROUND(千円単!X93/1000,0)) -> -300 | Y93: =IF(千円単!Y93="","",ROUND(千円単!Y93/1000,0)) -> 32
A94: 2017 | B94: 46 | C94: 17 | D94: 1 | E94: 93 | F94: 公共 | G94: 112356 | H94: 埼玉県 | I94: 富士見市 | J94: =IF(千円単!J94="","",ROUND(千円単!J94/1000,0)) -> 1541 | K94: =IF(千円単!K94="","",ROUND(千円単!K94/1000,0)) -> 881 | L94: =IF(千円単!L94="","",ROUND(千円単!L94/1000,0)) -> 383 | M94: =IF(千円単!M94="","",ROUND(千円単!M94/1000,0)) -> 1301 | N94: =IF(千円単!N94="","",ROUND(千円単!N94/1000,0)) -> 162 | O94: =IF(千円単!O94="","",ROUND(千円単!O94/1000,0)) -> 649 | P94: =IF(千円単!P94="","",ROUND(千円単!P94/1000,0)) -> 26 | Q94: =IF(千円単!Q94="","",ROUND(千円単!Q94/1000,0)) -> 240 | R94: =IF(千円単!R94="","",ROUND(千円単!R94/1000,0)) -> 566 | S94: =IF(千円単!S94="","",ROUND(千円単!S94/1000,0)) -> 325 | T94: =IF(千円単!T94="","",ROUND(千円単!T94/1000,0)) -> 131 | U94: =IF(千円単!U94="","",ROUND(千円単!U94/1000,0)) -> 1079 | V94: =IF(千円単!V94="","",ROUND(千円単!V94/1000,0)) -> 453 | W94: =IF(千円単!W94="","",ROUND(千円単!W94/1000,0)) -> 626 | X94: =IF(千円単!X94="","",ROUND(千円単!X94/1000,0)) -> -513 | Y94: =IF(千円単!Y94="","",ROUND(千円単!Y94/1000,0)) -> 240
A95: 2017 | B95: 46 | C95: 17 | D95: 1 | E95: 94 | F95: 公共 | G95: 112429 | H95: 埼玉県 | I95: 日高市 | J95: =IF(千円単!J95="","",ROUND(千円単!J95/1000,0)) -> 976 | K95: =IF(千円単!K95="","",ROUND(千円単!K95/1000,0)) -> 594 | L95: =IF(千円単!L95="","",ROUND(千円単!L95/1000,0)) -> 144 | M95: =IF(千円単!M95="","",ROUND(千円単!M95/1000,0)) -> 919 | N95: =IF(千円単!N95="","",ROUND(千円単!N95/1000,0)) -> 103 | O95: =IF(千円単!O95="","",ROUND(千円単!O95/1000,0)) -> 456 | P95: =IF(千円単!P95="","",ROUND(千円単!P95/1000,0)) -> 70 | Q95: =IF(千円単!Q95="","",ROUND(千円単!Q95/1000,0)) -> 57 | R95: =IF(千円単!R95="","",ROUND(千円単!R95/1000,0)) -> 628 | S95: =IF(千円単!S95="","",ROUND(千円単!S95/1000,0)) -> 558 | T95: =IF(千円単!T95="","",ROUND(千円単!T95/1000,0)) -> 42 | U95: =IF(千円単!U95="","",ROUND(千円単!U95/1000,0)) -> 1046 | V95: =IF(千円単!V95="","",ROUND(千円単!V95/1000,0)) -> 474 | W95: =IF(千円単!W95="","",ROUND(千円単!W95/1000,0)) -> 572 | X95: =IF(千円単!X95="","",ROUND(千円単!X95/1000,0)) -> -418 | Y95: =IF(千円単!Y95="","",ROUND(千円単!Y95/1000,0)) -> 57
A96: 2017 | B96: 46 | C96: 17 | D96: 1 | E96: 95 | F96: 公共 | G96: 112453 | H96: 埼玉県 | I96: ふじみ野市 | J96: =IF(千円単!J96="","",ROUND(千円単!J96/1000,0)) -> 1622 | K96: =IF(千円単!K96="","",ROUND(千円単!K96/1000,0)) -> 1002 | L96: =IF(千円単!L96="","",ROUND(千円単!L96/1000,0)) -> 217 | M96: =IF(千円単!M96="","",ROUND(千円単!M96/1000,0)) -> 1454 | N96: =IF(千円単!N96="","",ROUND(千円単!N96/1000,0)) -> 67 | O96: =IF(千円単!O96="","",ROUND(千円単!O96/1000,0)) -> 717 | P96: =IF(千円単!P96="","",ROUND(千円単!P96/1000,0)) -> 55 | Q96: =IF(千円単!Q96="","",ROUND(千円単!Q96/1000,0)) -> 168 | R96: =IF(千円単!R96="","",ROUND(千円単!R96/1000,0)) -> 182 | S96: =IF(千円単!S96="","",ROUND(千円単!S96/1000,0)) -> 103 | T96: =IF(千円単!T96="","",ROUND(千円単!T96/1000,0)) -> 24 | U96: =IF(千円単!U96="","",ROUND(千円単!U96/1000,0)) -> 560 | V96: =IF(千円単!V96="","",ROUND(千円単!V96/1000,0)) -> 220 | W96: =IF(千円単!W96="","",ROUND(千円単!W96/1000,0)) -> 340 | X96: =IF(千円単!X96="","",ROUND(千円単!X96/1000,0)) -> -378 | Y96: =IF(千円単!Y96="","",ROUND(千円単!Y96/1000,0)) -> 168
A97: 2017 | B97: 46 | C97: 17 | D97: 1 | E97: 96 | F97: 公共 | G97: 113859 | H97: 埼玉県 | I97: 上里町 | J97: =IF(千円単!J97="","",ROUND(千円単!J97/1000,0)) -> 209 | K97: =IF(千円単!K97="","",ROUND(千円単!K97/1000,0)) -> 60 | L97: =IF(千円単!L97="","",ROUND(千円単!L97/1000,0)) -> 104 | M97: =IF(千円単!M97="","",ROUND(千円単!M97/1000,0)) -> 185 | N97: =IF(千円単!N97="","",ROUND(千円単!N97/1000,0)) -> 41 | O97: =IF(千円単!O97="","",ROUND(千円単!O97/1000,0)) -> 108 | P97: =IF(千円単!P97="","",ROUND(千円単!P97/1000,0)) -> 7 | Q97: =IF(千円単!Q97="","",ROUND(千円単!Q97/1000,0)) -> 24 | R97: =IF(千円単!R97="","",ROUND(千円単!R97/1000,0)) -> 112 | S97: =IF(千円単!S97="","",ROUND(千円単!S97/1000,0)) -> 77 | T97: =IF(千円単!T97="","",ROUND(千円単!T97/1000,0)) -> 14 | U97: =IF(千円単!U97="","",ROUND(千円単!U97/1000,0)) -> 188 | V97: =IF(千円単!V97="","",ROUND(千円単!V97/1000,0)) -> 105 | W97: =IF(千円単!W97="","",ROUND(千円単!W97/1000,0)) -> 83 | X97: =IF(千円単!X97="","",ROUND(千円単!X97/1000,0)) -> -76 | Y97: =IF(千円単!Y97="","",ROUND(千円単!Y97/1000,0)) -> 24
A98: 2017 | B98: 46 | C98: 17 | D98: 1 | E98: 97 | F98: 公共 | G98: 121002 | H98: 千葉県 | I98: 千葉市 | J98: =IF(千円単!J98="","",ROUND(千円単!J98/1000,0)) -> 28539 | K98: =IF(千円単!K98="","",ROUND(千円単!K98/1000,0)) -> 13799 | L98: =IF(千円単!L98="","",ROUND(千円単!L98/1000,0)) -> 7461 | M98: =IF(千円単!M98="","",ROUND(千円単!M98/1000,0)) -> 26051 | N98: =IF(千円単!N98="","",ROUND(千円単!N98/1000,0)) -> 3984 | O98: =IF(千円単!O98="","",ROUND(千円単!O98/1000,0)) -> 14882 | P98: =IF(千円単!P98="","",ROUND(千円単!P98/1000,0)) -> 683 | Q98: =IF(千円単!Q98="","",ROUND(千円単!Q98/1000,0)) -> 2488 | R98: =IF(千円単!R98="","",ROUND(千円単!R98/1000,0)) -> 14576 | S98: =IF(千円単!S98="","",ROUND(千円単!S98/1000,0)) -> 11316 | T98: =IF(千円単!T98="","",ROUND(千円単!T98/1000,0)) -> 170 | U98: =IF(千円単!U98="","",ROUND(千円単!U98/1000,0)) -> 24732 | V98: =IF(千円単!V98="","",ROUND(千円単!V98/1000,0)) -> 9735 | W98: =IF(千円単!W98="","",ROUND(千円単!W98/1000,0)) -> 14943 | X98: =IF(千円単!X98="","",ROUND(千円単!X98/1000,0)) -> -10156 | Y98: =IF(千円単!Y98="","",ROUND(千円単!Y98/1000,0)) -> 2488
A99: 2017 | B99: 46 | C99: 17 | D99: 1 | E99: 98 | F99: 公共 | G99: 122122 | H99: 千葉県 | I99: 佐倉市 | J99: =IF(千円単!J99="","",ROUND(千円単!J99/1000,0)) -> 3554 | K99: =IF(千円単!K99="","",ROUND(千円単!K99/1000,0)) -> 2182 | L99: =IF(千円単!L99="","",ROUND(千円単!L99/1000,0)) -> 236 | M99: =IF(千円単!M99="","",ROUND(千円単!M99/1000,0)) -> 3193 | N99: =IF(千円単!N99="","",ROUND(千円単!N99/1000,0)) -> 78 | O99: =IF(千円単!O99="","",ROUND(千円単!O99/1000,0)) -> 1592 | P99: =IF(千円単!P99="","",ROUND(千円単!P99/1000,0)) -> 126 | Q99: =IF(千円単!Q99="","",ROUND(千円単!Q99/1000,0)) -> 362 | R99: =IF(千円単!R99="","",ROUND(千円単!R99/1000,0)) -> 213 | S99: =IF(千円単!S99="","",ROUND(千円単!S99/1000,0)) -> 7 | T99: =IF(千円単!T99="","",ROUND(千円単!T99/1000,0)) -> 0 | U99: =IF(千円単!U99="","",ROUND(千円単!U99/1000,0)) -> 856 | V99: =IF(千円単!V99="","",ROUND(千円単!V99/1000,0)) -> 544 | W99: =IF(千円単!W99="","",ROUND(千円単!W99/1000,0)) -> 312 | X99: =IF(千円単!X99="","",ROUND(千円単!X99/1000,0)) -> -643 | Y99: =IF(千円単!Y99="","",ROUND(千円単!Y99/1000,0)) -> 362
A100: 2017 | B100: 46 | C100: 17 | D100: 1 | E100: 99 | F100: 公共 | G100: 122173 | H100: 千葉県 | I100: 柏市 | J100: =IF(千円単!J100="","",ROUND(千円単!J100/1000,0)) -> 9275 | K100: =IF(千円単!K100="","",ROUND(千円単!K100/1000,0)) -> 5411 | L100: =IF(千円単!L100="","",ROUND(千円単!L100/1000,0)) -> 1403 | M100: =IF(千円単!M100="","",ROUND(千円単!M100/1000,0)) -> 8797 | N100: =IF(千円単!N100="","",ROUND(千円単!N100/1000,0)) -> 870 | O100: =IF(千円単!O100="","",ROUND(千円単!O100/1000,0)) -> 4532 | P100: =IF(千円単!P100="","",ROUND(千円単!P100/1000,0)) -> 204 | Q100: =IF(千円単!Q100="","",ROUND(千円単!Q100/1000,0)) -> 478 | R100: =IF(千円単!R100="","",ROUND(千円単!R100/1000,0)) -> 3073 | S100: =IF(千円単!S100="","",ROUND(千円単!S100/1000,0)) -> 952 | T100: =IF(千円単!T100="","",ROUND(千円単!T100/1000,0)) -> 0 | U100: =IF(千円単!U100="","",ROUND(千円単!U100/1000,0)) -> 5753 | V100: =IF(千円単!V100="","",ROUND(千円単!V100/1000,0)) -> 2629 | W100: =IF(千円単!W100="","",ROUND(千円単!W100/1000,0)) -> 3120 | X100: =IF(千円単!X100="","",ROUND(千円単!X100/1000,0)) -> -2680 | Y100: =IF(千円単!Y100="","",ROUND(千円単!Y100/1000,0)) -> 478
A101: 2017 | B101: 46 | C101: 17 | D101: 1 | E101: 100 | F101: 公共 | G101: 122203 | H101: 千葉県 | I101: 流山市 | J101: =IF(千円単!J101="","",ROUND(千円単!J101/1000,0)) -> 2980 | K101: =IF(千円単!K101="","",ROUND(千円単!K101/1000,0)) -> 1810 | L101: =IF(千円単!L101="","",ROUND(千円単!L101/1000,0)) -> 407 | M101: =IF(千円単!M101="","",ROUND(千円単!M101/1000,0)) -> 2981 | N101: =IF(千円単!N101="","",ROUND(千円単!N101/1000,0)) -> 378 | O101: =IF(千円単!O101="","",ROUND(千円単!O101/1000,0)) -> 1421 | P101: =IF(千円単!P101="","",ROUND(千円単!P101/1000,0)) -> 106 | Q101: =IF(千円単!Q101="","",ROUND(千円単!Q101/1000,0)) -> -2 | R101: =IF(千円単!R101="","",ROUND(千円単!R101/1000,0)) -> 2947 | S101: =IF(千円単!S101="","",ROUND(千円単!S101/1000,0)) -> 1043 | T101: =IF(千円単!T101="","",ROUND(千円単!T101/1000,0)) -> 0 | U101: =IF(千円単!U101="","",ROUND(千円単!U101/1000,0)) -> 3248 | V101: =IF(千円単!V101="","",ROUND(千円単!V101/1000,0)) -> 2181 | W101: =IF(千円単!W101="","",ROUND(千円単!W101/1000,0)) -> 1067 | X101: =IF(千円単!X101="","",ROUND(千円単!X101/1000,0)) -> -302 | Y101: =IF(千円単!Y101="","",ROUND(千円単!Y101/1000,0)) -> -2
A102: 2017 | B102: 46 | C102: 17 | D102: 1 | E102: 101 | F102: 公共 | G102: 122211 | H102: 千葉県 | I102: 八千代市 | J102: =IF(千円単!J102="","",ROUND(千円単!J102/1000,0)) -> 3317 | K102: =IF(千円単!K102="","",ROUND(千円単!K102/1000,0)) -> 2200 | L102: =IF(千円単!L102="","",ROUND(千円単!L102/1000,0)) -> 443 | M102: =IF(千円単!M102="","",ROUND(千円単!M102/1000,0)) -> 3189 | N102: =IF(千円単!N102="","",ROUND(千円単!N102/1000,0)) -> 188 | O102: =IF(千円単!O102="","",ROUND(千円単!O102/1000,0)) -> 1443 | P102: =IF(千円単!P102="","",ROUND(千円単!P102/1000,0)) -> 117 | Q102: =IF(千円単!Q102="","",ROUND(千円単!Q102/1000,0)) -> 129 | R102: =IF(千円単!R102="","",ROUND(千円単!R102/1000,0)) -> 1130 | S102: =IF(千円単!S102="","",ROUND(千円単!S102/1000,0)) -> 507 | T102: =IF(千円単!T102="","",ROUND(千円単!T102/1000,0)) -> 126 | U102: =IF(千円単!U102="","",ROUND(千円単!U102/1000,0)) -> 1844 | V102: =IF(千円単!V102="","",ROUND(千円単!V102/1000,0)) -> 1118 | W102: =IF(千円単!W102="","",ROUND(千円単!W102/1000,0)) -> 638 | X102: =IF(千円単!X102="","",ROUND(千円単!X102/1000,0)) -> -714 | Y102: =IF(千円単!Y102="","",ROUND(千円単!Y102/1000,0)) -> 129
A103: 2017 | B103: 46 | C103: 17 | D103: 1 | E103: 102 | F103: 公共 | G103: 122289 | H103: 千葉県 | I103: 四街道市 | J103: =IF(千円単!J103="","",ROUND(千円単!J103/1000,0)) -> 1817 | K103: =IF(千円単!K103="","",ROUND(千円単!K103/1000,0)) -> 883 | L103: =IF(千円単!L103="","",ROUND(千円単!L103/1000,0)) -> 198 | M103: =IF(千円単!M103="","",ROUND(千円単!M103/1000,0)) -> 1817 | N103: =IF(千円単!N103="","",ROUND(千円単!N103/1000,0)) -> 115 | O103: =IF(千円単!O103="","",ROUND(千円単!O103/1000,0)) -> 1083 | P103: =IF(千円単!P103="","",ROUND(千円単!P103/1000,0)) -> 47 | Q103: =IF(千円単!Q103="","",ROUND(千円単!Q103/1000,0)) -> 0 | R103: =IF(千円単!R103="","",ROUND(千円単!R103/1000,0)) -> 172 | S103: =IF(千円単!S103="","",ROUND(千円単!S103/1000,0)) -> 51 | T103: =IF(千円単!T103="","",ROUND(千円単!T103/1000,0)) -> 53 | U103: =IF(千円単!U103="","",ROUND(千円単!U103/1000,0)) -> 558 | V103: =IF(千円単!V103="","",ROUND(千円単!V103/1000,0)) -> 135 | W103: =IF(千円単!W103="","",ROUND(千円単!W103/1000,0)) -> 423 | X103: =IF(千円単!X103="","",ROUND(千円単!X103/1000,0)) -> -386 | Y103: =IF(千円単!Y103="","",ROUND(千円単!Y103/1000,0)) -> 0
A104: 2017 | B104: 46 | C104: 17 | D104: 1 | E104: 103 | F104: 公共 | G104: 123226 | H104: 千葉県 | I104: 酒々井町 | J104: =IF(千円単!J104="","",ROUND(千円単!J104/1000,0)) -> 281 | K104: =IF(千円単!K104="","",ROUND(千円単!K104/1000,0)) -> 233 | L104: =IF(千円単!L104="","",ROUND(千円単!L104/1000,0)) -> 18 | M104: =IF(千円単!M104="","",ROUND(千円単!M104/1000,0)) -> 321 | N104: =IF(千円単!N104="","",ROUND(千円単!N104/1000,0)) -> 20 | O104: =IF(千円単!O104="","",ROUND(千円単!O104/1000,0)) -> 183 | P104: =IF(千円単!P104="","",ROUND(千円単!P104/1000,0)) -> 4 | Q104: =IF(千円単!Q104="","",ROUND(千円単!Q104/1000,0)) -> -40 | R104: =IF(千円単!R104="","",ROUND(千円単!R104/1000,0)) -> 40 | S104: =IF(千円単!S104="","",ROUND(千円単!S104/1000,0)) -> 9 | T104: =IF(千円単!T104="","",ROUND(千円単!T104/1000,0)) -> 21 | U104: =IF(千円単!U104="","",ROUND(千円単!U104/1000,0)) -> 114 | V104: =IF(千円単!V104="","",ROUND(千円単!V104/1000,0)) -> 40 | W104: =IF(千円単!W104="","",ROUND(千円単!W104/1000,0)) -> 74 | X104: =IF(千円単!X104="","",ROUND(千円単!X104/1000,0)) -> -74 | Y104: =IF(千円単!Y104="","",ROUND(千円単!Y104/1000,0)) -> -40
A105: 2017 | B105: 46 | C105: 17 | D105: 1 | E105: 104 | F105: 公共 | G105: 130001 | H105: 東京都 | I105: 東京都 | J105: =IF(千円単!J105="","",ROUND(千円単!J105/1000,0)) -> 436105 | K105: =IF(千円単!K105="","",ROUND(千円単!K105/1000,0)) -> 158471 | L105: =IF(千円単!L105="","",ROUND(千円単!L105/1000,0)) -> 122668 | M105: =IF(千円単!M105="","",ROUND(千円単!M105/1000,0)) -> 308787 | N105: =IF(千円単!N105="","",ROUND(千円単!N105/1000,0)) -> 24497 | O105: =IF(千円単!O105="","",ROUND(千円単!O105/1000,0)) -> 170823 | P105: =IF(千円単!P105="","",ROUND(千円単!P105/1000,0)) -> 13386 | Q105: =IF(千円単!Q105="","",ROUND(千円単!Q105/1000,0)) -> 127318 | R105: =IF(千円単!R105="","",ROUND(千円単!R105/1000,0)) -> 170782 | S105: =IF(千円単!S105="","",ROUND(千円単!S105/1000,0)) -> 82646 | T105: =IF(千円単!T105="","",ROUND(千円単!T105/1000,0)) -> 0 | U105: =IF(千円単!U105="","",ROUND(千円単!U105/1000,0)) -> 426721 | V105: =IF(千円単!V105="","",ROUND(千円単!V105/1000,0)) -> 182359 | W105: =IF(千円単!W105="","",ROUND(千円単!W105/1000,0)) -> 153837 | X105: =IF(千円単!X105="","",ROUND(千円単!X105/1000,0)) -> -255939 | Y105: =IF(千円単!Y105="","",ROUND(千円単!Y105/1000,0)) -> 127318
A106: 2017 | B106: 46 | C106: 17 | D106: 1 | E106: 105 | F106: 公共 | G106: 132241 | H106: 東京都 | I106: 多摩市 | J106: =IF(千円単!J106="","",ROUND(千円単!J106/1000,0)) -> 3397 | K106: =IF(千円単!K106="","",ROUND(千円単!K106/1000,0)) -> 2136 | L106: =IF(千円単!L106="","",ROUND(千円単!L106/1000,0)) -> 228 | M106: =IF(千円単!M106="","",ROUND(千円単!M106/1000,0)) -> 2870 | N106: =IF(千円単!N106="","",ROUND(千円単!N106/1000,0)) -> 32 | O106: =IF(千円単!O106="","",ROUND(千円単!O106/1000,0)) -> 1481 | P106: =IF(千円単!P106="","",ROUND(千円単!P106/1000,0)) -> 110 | Q106: =IF(千円単!Q106="","",ROUND(千円単!Q106/1000,0)) -> 527 | R106: =IF(千円単!R106="","",ROUND(千円単!R106/1000,0)) -> 11 | S106: =IF(千円単!S106="","",ROUND(千円単!S106/1000,0)) -> 0 | T106: =IF(千円単!T106="","",ROUND(千円単!T106/1000,0)) -> 11 | U106: =IF(千円単!U106="","",ROUND(千円単!U106/1000,0)) -> 342 | V106: =IF(千円単!V106="","",ROUND(千円単!V106/1000,0)) -> 177 | W106: =IF(千円単!W106="","",ROUND(千円単!W106/1000,0)) -> 165 | X106: =IF(千円単!X106="","",ROUND(千円単!X106/1000,0)) -> -331 | Y106: =IF(千円単!Y106="","",ROUND(千円単!Y106/1000,0)) -> 527
A107: 2017 | B107: 46 | C107: 17 | D107: 1 | E107: 106 | F107: 公共 | G107: 141003 | H107: 神奈川県 | I107: 横浜市 | J107: =IF(千円単!J107="","",ROUND(千円単!J107/1000,0)) -> 130851 | K107: =IF(千円単!K107="","",ROUND(千円単!K107/1000,0)) -> 56249 | L107: =IF(千円単!L107="","",ROUND(千円単!L107/1000,0)) -> 43505 | M107: =IF(千円単!M107="","",ROUND(千円単!M107/1000,0)) -> 113618 | N107: =IF(千円単!N107="","",ROUND(千円単!N107/1000,0)) -> 10761 | O107: =IF(千円単!O107="","",ROUND(千円単!O107/1000,0)) -> 74129 | P107: =IF(千円単!P107="","",ROUND(千円単!P107/1000,0)) -> 5865 | Q107: =IF(千円単!Q107="","",ROUND(千円単!Q107/1000,0)) -> 17233 | R107: =IF(千円単!R107="","",ROUND(千円単!R107/1000,0)) -> 72991 | S107: =IF(千円単!S107="","",ROUND(千円単!S107/1000,0)) -> 57711 | T107: =IF(千円単!T107="","",ROUND(千円単!T107/1000,0)) -> 0 | U107: =IF(千円単!U107="","",ROUND(千円単!U107/1000,0)) -> 131249 | V107: =IF(千円単!V107="","",ROUND(千円単!V107/1000,0)) -> 43702 | W107: =IF(千円単!W107="","",ROUND(千円単!W107/1000,0)) -> 87543 | X107: =IF(千円単!X107="","",ROUND(千円単!X107/1000,0)) -> -58258 | Y107: =IF(千円単!Y107="","",ROUND(千円単!Y107/1000,0)) -> 17233
A108: 2017 | B108: 46 | C108: 17 | D108: 1 | E108: 107 | F108: 公共 | G108: 141305 | H108: 神奈川県 | I108: 川崎市 | J108: =IF(千円単!J108="","",ROUND(千円単!J108/1000,0)) -> 42317 | K108: =IF(千円単!K108="","",ROUND(千円単!K108/1000,0)) -> 22401 | L108: =IF(千円単!L108="","",ROUND(千円単!L108/1000,0)) -> 12143 | M108: =IF(千円単!M108="","",ROUND(千円単!M108/1000,0)) -> 39234 | N108: =IF(千円単!N108="","",ROUND(千円単!N108/1000,0)) -> 5155 | O108: =IF(千円単!O108="","",ROUND(千円単!O108/1000,0)) -> 22613 | P108: =IF(千円単!P108="","",ROUND(千円単!P108/1000,0)) -> 2811 | Q108: =IF(千円単!Q108="","",ROUND(千円単!Q108/1000,0)) -> 3082 | R108: =IF(千円単!R108="","",ROUND(千円単!R108/1000,0)) -> 56915 | S108: =IF(千円単!S108="","",ROUND(千円単!S108/1000,0)) -> 39363 | T108: =IF(千円単!T108="","",ROUND(千円単!T108/1000,0)) -> 1738 | U108: =IF(千円単!U108="","",ROUND(千円単!U108/1000,0)) -> 74163 | V108: =IF(千円単!V108="","",ROUND(千円単!V108/1000,0)) -> 16478 | W108: =IF(千円単!W108="","",ROUND(千円単!W108/1000,0)) -> 55142 | X108: =IF(千円単!X108="","",ROUND(千円単!X108/1000,0)) -> -17247 | Y108: =IF(千円単!Y108="","",ROUND(千円単!Y108/1000,0)) -> 3082
A109: 2017 | B109: 46 | C109: 17 | D109: 1 | E109: 108 | F109: 公共 | G109: 141500 | H109: 神奈川県 | I109: 相模原市 | J109: =IF(千円単!J109="","",ROUND(千円単!J109/1000,0)) -> 15431 | K109: =IF(千円単!K109="","",ROUND(千円単!K109/1000,0)) -> 8768 | L109: =IF(千円単!L109="","",ROUND(千円単!L109/1000,0)) -> 4435 | M109: =IF(千円単!M109="","",ROUND(千円単!M109/1000,0)) -> 14192 | N109: =IF(千円単!N109="","",ROUND(千円単!N109/1000,0)) -> 1976 | O109: =IF(千円単!O109="","",ROUND(千円単!O109/1000,0)) -> 8075 | P109: =IF(千円単!P109="","",ROUND(千円単!P109/1000,0)) -> 449 | Q109: =IF(千円単!Q109="","",ROUND(千円単!Q109/1000,0)) -> 1239 | R109: =IF(千円単!R109="","",ROUND(千円単!R109/1000,0)) -> 5117 | S109: =IF(千円単!S109="","",ROUND(千円単!S109/1000,0)) -> 3781 | T109: =IF(千円単!T109="","",ROUND(千円単!T109/1000,0)) -> 284 | U109: =IF(千円単!U109="","",ROUND(千円単!U109/1000,0)) -> 11559 | V109: =IF(千円単!V109="","",ROUND(千円単!V109/1000,0)) -> 4455 | W109: =IF(千円単!W109="","",ROUND(千円単!W109/1000,0)) -> 7104 | X109: =IF(千円単!X109="","",ROUND(千円単!X109/1000,0)) -> -6441 | Y109: =IF(千円単!Y109="","",ROUND(千円単!Y109/1000,0)) -> 1239
A110: 2017 | B110: 46 | C110: 17 | D110: 1 | E110: 109 | F110: 公共 | G110: 142018 | H110: 神奈川県 | I110: 横須賀市 | J110: =IF(千円単!J110="","",ROUND(千円単!J110/1000,0)) -> 15511 | K110: =IF(千円単!K110="","",ROUND(千円単!K110/1000,0)) -> 6941 | L110: =IF(千円単!L110="","",ROUND(千円単!L110/1000,0)) -> 2793 | M110: =IF(千円単!M110="","",ROUND(千円単!M110/1000,0)) -> 14434 | N110: =IF(千円単!N110="","",ROUND(千円単!N110/1000,0)) -> 1413 | O110: =IF(千円単!O110="","",ROUND(千円単!O110/1000,0)) -> 8487 | P110: =IF(千円単!P110="","",ROUND(千円単!P110/1000,0)) -> 769 | Q110: =IF(千円単!Q110="","",ROUND(千円単!Q110/1000,0)) -> 1077 | R110: =IF(千円単!R110="","",ROUND(千円単!R110/1000,0)) -> 7647 | S110: =IF(千円単!S110="","",ROUND(千円単!S110/1000,0)) -> 5194 | T110: =IF(千円単!T110="","",ROUND(千円単!T110/1000,0)) -> 1075 | U110: =IF(千円単!U110="","",ROUND(千円単!U110/1000,0)) -> 12058 | V110: =IF(千円単!V110="","",ROUND(千円単!V110/1000,0)) -> 3830 | W110: =IF(千円単!W110="","",ROUND(千円単!W110/1000,0)) -> 8227 | X110: =IF(千円単!X110="","",ROUND(千円単!X110/1000,0)) -> -4410 | Y110: =IF(千円単!Y110="","",ROUND(千円単!Y110/1000,0)) -> 1077
A111: 2017 | B111: 46 | C111: 17 | D111: 1 | E111: 110 | F111: 公共 | G111: 142034 | H111: 神奈川県 | I111: 平塚市 | J111: =IF(千円単!J111="","",ROUND(千円単!J111/1000,0)) -> 8022 | K111: =IF(千円単!K111="","",ROUND(千円単!K111/1000,0)) -> 3368 | L111: =IF(千円単!L111="","",ROUND(千円単!L111/1000,0)) -> 2515 | M111: =IF(千円単!M111="","",ROUND(千円単!M111/1000,0)) -> 7244 | N111: =IF(千円単!N111="","",ROUND(千円単!N111/1000,0)) -> 1074 | O111: =IF(千円単!O111="","",ROUND(千円単!O111/1000,0)) -> 4443 | P111: =IF(千円単!P111="","",ROUND(千円単!P111/1000,0)) -> 157 | Q111: =IF(千円単!Q111="","",ROUND(千円単!Q111/1000,0)) -> 778 | R111: =IF(千円単!R111="","",ROUND(千円単!R111/1000,0)) -> 2779 | S111: =IF(千円単!S111="","",ROUND(千円単!S111/1000,0)) -> 993 | T111: =IF(千円単!T111="","",ROUND(千円単!T111/1000,0)) -> 1258 | U111: =IF(千円単!U111="","",ROUND(千円単!U111/1000,0)) -> 5478 | V111: =IF(千円単!V111="","",ROUND(千円単!V111/1000,0)) -> 1642 | W111: =IF(千円単!W111="","",ROUND(千円単!W111/1000,0)) -> 3837 | X111: =IF(千円単!X111="","",ROUND(千円単!X111/1000,0)) -> -2699 | Y111: =IF(千円単!Y111="","",ROUND(千円単!Y111/1000,0)) -> 778
A112: 2017 | B112: 46 | C112: 17 | D112: 1 | E112: 111 | F112: 公共 | G112: 142051 | H112: 神奈川県 | I112: 藤沢市 | J112: =IF(千円単!J112="","",ROUND(千円単!J112/1000,0)) -> 12383 | K112: =IF(千円単!K112="","",ROUND(千円単!K112/1000,0)) -> 5712 | L112: =IF(千円単!L112="","",ROUND(千円単!L112/1000,0)) -> 4150 | M112: =IF(千円単!M112="","",ROUND(千円単!M112/1000,0)) -> 11844 | N112: =IF(千円単!N112="","",ROUND(千円単!N112/1000,0)) -> 1322 | O112: =IF(千円単!O112="","",ROUND(千円単!O112/1000,0)) -> 5165 | P112: =IF(千円単!P112="","",ROUND(千円単!P112/1000,0)) -> 505 | Q112: =IF(千円単!Q112="","",ROUND(千円単!Q112/1000,0)) -> 539 | R112: =IF(千円単!R112="","",ROUND(千円単!R112/1000,0)) -> 5142 | S112: =IF(千円単!S112="","",ROUND(千円単!S112/1000,0)) -> 3601 | T112: =IF(千円単!T112="","",ROUND(千円単!T112/1000,0)) -> 350 | U112: =IF(千円単!U112="","",ROUND(千円単!U112/1000,0)) -> 8909 | V112: =IF(千円単!V112="","",ROUND(千円単!V112/1000,0)) -> 4032 | W112: =IF(千円単!W112="","",ROUND(千円単!W112/1000,0)) -> 4876 | X112: =IF(千円単!X112="","",ROUND(千円単!X112/1000,0)) -> -3767 | Y112: =IF(千円単!Y112="","",ROUND(千円単!Y112/1000,0)) -> 539
A113: 2017 | B113: 46 | C113: 17 | D113: 1 | E113: 112 | F113: 公共 | G113: 142069 | H113: 神奈川県 | I113: 小田原市 | J113: =IF(千円単!J113="","",ROUND(千円単!J113/1000,0)) -> 6530 | K113: =IF(千円単!K113="","",ROUND(千円単!K113/1000,0)) -> 3343 | L113: =IF(千円単!L113="","",ROUND(千円単!L113/1000,0)) -> 1838 | M113: =IF(千円単!M113="","",ROUND(千円単!M113/1000,0)) -> 6254 | N113: =IF(千円単!N113="","",ROUND(千円単!N113/1000,0)) -> 907 | O113: =IF(千円単!O113="","",ROUND(千円単!O113/1000,0)) -> 3591 | P113: =IF(千円単!P113="","",ROUND(千円単!P113/1000,0)) -> 225 | Q113: =IF(千円単!Q113="","",ROUND(千円単!Q113/1000,0)) -> 276 | R113: =IF(千円単!R113="","",ROUND(千円単!R113/1000,0)) -> 2489 | S113: =IF(千円単!S113="","",ROUND(千円単!S113/1000,0)) -> 1798 | T113: =IF(千円単!T113="","",ROUND(千円単!T113/1000,0)) -> 312 | U113: =IF(千円単!U113="","",ROUND(千円単!U113/1000,0)) -> 4867 | V113: =IF(千円単!V113="","",ROUND(千円単!V113/1000,0)) -> 1405 | W113: =IF(千円単!W113="","",ROUND(千円単!W113/1000,0)) -> 3461 | X113: =IF(千円単!X113="","",ROUND(千円単!X113/1000,0)) -> -2378 | Y113: =IF(千円単!Y113="","",ROUND(千円単!Y113/1000,0)) -> 276
A114: 2017 | B114: 46 | C114: 17 | D114: 1 | E114: 113 | F114: 公共 | G114: 142077 | H114: 神奈川県 | I114: 茅ヶ崎市 | J114: =IF(千円単!J114="","",ROUND(千円単!J114/1000,0)) -> 6097 | K114: =IF(千円単!K114="","",ROUND(千円単!K114/1000,0)) -> 2597 | L114: =IF(千円単!L114="","",ROUND(千円単!L114/1000,0)) -> 1664 | M114: =IF(千円単!M114="","",ROUND(千円単!M114/1000,0)) -> 5676 | N114: =IF(千円単!N114="","",ROUND(千円単!N114/1000,0)) -> 693 | O114: =IF(千円単!O114="","",ROUND(千円単!O114/1000,0)) -> 2623 | P114: =IF(千円単!P114="","",ROUND(千円単!P114/1000,0)) -> 135 | Q114: =IF(千円単!Q114="","",ROUND(千円単!Q114/1000,0)) -> 420 | R114: =IF(千円単!R114="","",ROUND(千円単!R114/1000,0)) -> 1941 | S114: =IF(千円単!S114="","",ROUND(千円単!S114/1000,0)) -> 1266 | T114: =IF(千円単!T114="","",ROUND(千円単!T114/1000,0)) -> 432 | U114: =IF(千円単!U114="","",ROUND(千円単!U114/1000,0)) -> 3889 | V114: =IF(千円単!V114="","",ROUND(千円単!V114/1000,0)) -> 1646 | W114: =IF(千円単!W114="","",ROUND(千円単!W114/1000,0)) -> 2243 | X114: =IF(千円単!X114="","",ROUND(千円単!X114/1000,0)) -> -1948 | Y114: =IF(千円単!Y114="","",ROUND(千円単!Y114/1000,0)) -> 420
A115: 2017 | B115: 46 | C115: 17 | D115: 1 | E115: 114 | F115: 公共 | G115: 142115 | H115: 神奈川県 | I115: 秦野市 | J115: =IF(千円単!J115="","",ROUND(千円単!J115/1000,0)) -> 5486 | K115: =IF(千円単!K115="","",ROUND(千円単!K115/1000,0)) -> 2101 | L115: =IF(千円単!L115="","",ROUND(千円単!L115/1000,0)) -> 2058 | M115: =IF(千円単!M115="","",ROUND(千円単!M115/1000,0)) -> 4690 | N115: =IF(千円単!N115="","",ROUND(千円単!N115/1000,0)) -> 665 | O115: =IF(千円単!O115="","",ROUND(千円単!O115/1000,0)) -> 2610 | P115: =IF(千円単!P115="","",ROUND(千円単!P115/1000,0)) -> 208 | Q115: =IF(千円単!Q115="","",ROUND(千円単!Q115/1000,0)) -> 796 | R115: =IF(千円単!R115="","",ROUND(千円単!R115/1000,0)) -> 910 | S115: =IF(千円単!S115="","",ROUND(千円単!S115/1000,0)) -> 625 | T115: =IF(千円単!T115="","",ROUND(千円単!T115/1000,0)) -> 73 | U115: =IF(千円単!U115="","",ROUND(千円単!U115/1000,0)) -> 3010 | V115: =IF(千円単!V115="","",ROUND(千円単!V115/1000,0)) -> 936 | W115: =IF(千円単!W115="","",ROUND(千円単!W115/1000,0)) -> 2073 | X115: =IF(千円単!X115="","",ROUND(千円単!X115/1000,0)) -> -2100 | Y115: =IF(千円単!Y115="","",ROUND(千円単!Y115/1000,0)) -> 796
A116: 2017 | B116: 46 | C116: 17 | D116: 1 | E116: 115 | F116: 公共 | G116: 142158 | H116: 神奈川県 | I116: 海老名市 | J116: =IF(千円単!J116="","",ROUND(千円単!J116/1000,0)) -> 3095 | K116: =IF(千円単!K116="","",ROUND(千円単!K116/1000,0)) -> 1815 | L116: =IF(千円単!L116="","",ROUND(千円単!L116/1000,0)) -> 193 | M116: =IF(千円単!M116="","",ROUND(千円単!M116/1000,0)) -> 2786 | N116: =IF(千円単!N116="","",ROUND(千円単!N116/1000,0)) -> 273 | O116: =IF(千円単!O116="","",ROUND(千円単!O116/1000,0)) -> 1625 | P116: =IF(千円単!P116="","",ROUND(千円単!P116/1000,0)) -> 96 | Q116: =IF(千円単!Q116="","",ROUND(千円単!Q116/1000,0)) -> 309 | R116: =IF(千円単!R116="","",ROUND(千円単!R116/1000,0)) -> 1390 | S116: =IF(千円単!S116="","",ROUND(千円単!S116/1000,0)) -> 1115 | T116: =IF(千円単!T116="","",ROUND(千円単!T116/1000,0)) -> 55 | U116: =IF(千円単!U116="","",ROUND(千円単!U116/1000,0)) -> 2126 | V116: =IF(千円単!V116="","",ROUND(千円単!V116/1000,0)) -> 914 | W116: =IF(千円単!W116="","",ROUND(千円単!W116/1000,0)) -> 1212 | X116: =IF(千円単!X116="","",ROUND(千円単!X116/1000,0)) -> -736 | Y116: =IF(千円単!Y116="","",ROUND(千円単!Y116/1000,0)) -> 309
A117: 2017 | B117: 46 | C117: 17 | D117: 1 | E117: 116 | F117: 公共 | G117: 142166 | H117: 神奈川県 | I117: 座間市 | J117: =IF(千円単!J117="","",ROUND(千円単!J117/1000,0)) -> 2574 | K117: =IF(千円単!K117="","",ROUND(千円単!K117/1000,0)) -> 1595 | L117: =IF(千円単!L117="","",ROUND(千円単!L117/1000,0)) -> 490 | M117: =IF(千円単!M117="","",ROUND(千円単!M117/1000,0)) -> 2406 | N117: =IF(千円単!N117="","",ROUND(千円単!N117/1000,0)) -> 390 | O117: =IF(千円単!O117="","",ROUND(千円単!O117/1000,0)) -> 1353 | P117: =IF(千円単!P117="","",ROUND(千円単!P117/1000,0)) -> 79 | Q117: =IF(千円単!Q117="","",ROUND(千円単!Q117/1000,0)) -> 169 | R117: =IF(千円単!R117="","",ROUND(千円単!R117/1000,0)) -> 750 | S117: =IF(千円単!S117="","",ROUND(千円単!S117/1000,0)) -> 631 | T117: =IF(千円単!T117="","",ROUND(千円単!T117/1000,0)) -> 100 | U117: =IF(千円単!U117="","",ROUND(千円単!U117/1000,0)) -> 1799 | V117: =IF(千円単!V117="","",ROUND(千円単!V117/1000,0)) -> 223 | W117: =IF(千円単!W117="","",ROUND(千円単!W117/1000,0)) -> 1537 | X117: =IF(千円単!X117="","",ROUND(千円単!X117/1000,0)) -> -1049 | Y117: =IF(千円単!Y117="","",ROUND(千円単!Y117/1000,0)) -> 169
A118: 2017 | B118: 46 | C118: 17 | D118: 1 | E118: 117 | F118: 公共 | G118: 142174 | H118: 神奈川県 | I118: 南足柄市 | J118: =IF(千円単!J118="","",ROUND(千円単!J118/1000,0)) -> 1067 | K118: =IF(千円単!K118="","",ROUND(千円単!K118/1000,0)) -> 570 | L118: =IF(千円単!L118="","",ROUND(千円単!L118/1000,0)) -> 226 | M118: =IF(千円単!M118="","",ROUND(千円単!M118/1000,0)) -> 1024 | N118: =IF(千円単!N118="","",ROUND(千円単!N118/1000,0)) -> 148 | O118: =IF(千円単!O118="","",ROUND(千円単!O118/1000,0)) -> 559 | P118: =IF(千円単!P118="","",ROUND(千円単!P118/1000,0)) -> 10 | Q118: =IF(千円単!Q118="","",ROUND(千円単!Q118/1000,0)) -> 43 | R118: =IF(千円単!R118="","",ROUND(千円単!R118/1000,0)) -> 414 | S118: =IF(千円単!S118="","",ROUND(千円単!S118/1000,0)) -> 248 | T118: =IF(千円単!T118="","",ROUND(千円単!T118/1000,0)) -> 101 | U118: =IF(千円単!U118="","",ROUND(千円単!U118/1000,0)) -> 735 | V118: =IF(千円単!V118="","",ROUND(千円単!V118/1000,0)) -> 136 | W118: =IF(千円単!W118="","",ROUND(千円単!W118/1000,0)) -> 599 | X118: =IF(千円単!X118="","",ROUND(千円単!X118/1000,0)) -> -320 | Y118: =IF(千円単!Y118="","",ROUND(千円単!Y118/1000,0)) -> 43
A119: 2017 | B119: 46 | C119: 17 | D119: 1 | E119: 118 | F119: 公共 | G119: 143219 | H119: 神奈川県 | I119: 寒川町 | J119: =IF(千円単!J119="","",ROUND(千円単!J119/1000,0)) -> 1277 | K119: =IF(千円単!K119="","",ROUND(千円単!K119/1000,0)) -> 543 | L119: =IF(千円単!L119="","",ROUND(千円単!L119/1000,0)) -> 420 | M119: =IF(千円単!M119="","",ROUND(千円単!M119/1000,0)) -> 1273 | N119: =IF(千円単!N119="","",ROUND(千円単!N119/1000,0)) -> 159 | O119: =IF(千円単!O119="","",ROUND(千円単!O119/1000,0)) -> 759 | P119: =IF(千円単!P119="","",ROUND(千円単!P119/1000,0)) -> 59 | Q119: =IF(千円単!Q119="","",ROUND(千円単!Q119/1000,0)) -> 4 | R119: =IF(千円単!R119="","",ROUND(千円単!R119/1000,0)) -> 476 | S119: =IF(千円単!S119="","",ROUND(千円単!S119/1000,0)) -> 339 | T119: =IF(千円単!T119="","",ROUND(千円単!T119/1000,0)) -> 69 | U119: =IF(千円単!U119="","",ROUND(千円単!U119/1000,0)) -> 908 | V119: =IF(千円単!V119="","",ROUND(千円単!V119/1000,0)) -> 323 | W119: =IF(千円単!W119="","",ROUND(千円単!W119/1000,0)) -> 585 | X119: =IF(千円単!X119="","",ROUND(千円単!X119/1000,0)) -> -432 | Y119: =IF(千円単!Y119="","",ROUND(千円単!Y119/1000,0)) -> 4
A120: 2017 | B120: 46 | C120: 17 | D120: 1 | E120: 119 | F120: 公共 | G120: 143847 | H120: 神奈川県 | I120: 湯河原町 | J120: =IF(千円単!J120="","",ROUND(千円単!J120/1000,0)) -> 909 | K120: =IF(千円単!K120="","",ROUND(千円単!K120/1000,0)) -> 454 | L120: =IF(千円単!L120="","",ROUND(千円単!L120/1000,0)) -> 125 | M120: =IF(千円単!M120="","",ROUND(千円単!M120/1000,0)) -> 930 | N120: =IF(千円単!N120="","",ROUND(千円単!N120/1000,0)) -> 71 | O120: =IF(千円単!O120="","",ROUND(千円単!O120/1000,0)) -> 551 | P120: =IF(千円単!P120="","",ROUND(千円単!P120/1000,0)) -> 55 | Q120: =IF(千円単!Q120="","",ROUND(千円単!Q120/1000,0)) -> -21 | R120: =IF(千円単!R120="","",ROUND(千円単!R120/1000,0)) -> 639 | S120: =IF(千円単!S120="","",ROUND(千円単!S120/1000,0)) -> 225 | T120: =IF(千円単!T120="","",ROUND(千円単!T120/1000,0)) -> 77 | U120: =IF(千円単!U120="","",ROUND(千円単!U120/1000,0)) -> 812 | V120: =IF(千円単!V120="","",ROUND(千円単!V120/1000,0)) -> 520 | W120: =IF(千円単!W120="","",ROUND(千円単!W120/1000,0)) -> 292 | X120: =IF(千円単!X120="","",ROUND(千円単!X120/1000,0)) -> -173 | Y120: =IF(千円単!Y120="","",ROUND(千円単!Y120/1000,0)) -> -21
A121: 2017 | B121: 46 | C121: 17 | D121: 1 | E121: 120 | F121: 公共 | G121: 151009 | H121: 新潟県 | I121: 新潟市 | J121: =IF(千円単!J121="","",ROUND(千円単!J121/1000,0)) -> 31475 | K121: =IF(千円単!K121="","",ROUND(千円単!K121/1000,0)) -> 12079 | L121: =IF(千円単!L121="","",ROUND(千円単!L121/1000,0)) -> 12218 | M121: =IF(千円単!M121="","",ROUND(千円単!M121/1000,0)) -> 29297 | N121: =IF(千円単!N121="","",ROUND(千円単!N121/1000,0)) -> 5614 | O121: =IF(千円単!O121="","",ROUND(千円単!O121/1000,0)) -> 17648 | P121: =IF(千円単!P121="","",ROUND(千円単!P121/1000,0)) -> 1012 | Q121: =IF(千円単!Q121="","",ROUND(千円単!Q121/1000,0)) -> 2178 | R121: =IF(千円単!R121="","",ROUND(千円単!R121/1000,0)) -> 21947 | S121: =IF(千円単!S121="","",ROUND(千円単!S121/1000,0)) -> 14108 | T121: =IF(千円単!T121="","",ROUND(千円単!T121/1000,0)) -> 2601 | U121: =IF(千円単!U121="","",ROUND(千円単!U121/1000,0)) -> 35055 | V121: =IF(千円単!V121="","",ROUND(千円単!V121/1000,0)) -> 16508 | W121: =IF(千円単!W121="","",ROUND(千円単!W121/1000,0)) -> 18536 | X121: =IF(千円単!X121="","",ROUND(千円単!X121/1000,0)) -> -13108 | Y121: =IF(千円単!Y121="","",ROUND(千円単!Y121/1000,0)) -> 2178
A122: 2017 | B122: 46 | C122: 17 | D122: 1 | E122: 121 | F122: 公共 | G122: 152021 | H122: 新潟県 | I122: 長岡市 | J122: =IF(千円単!J122="","",ROUND(千円単!J122/1000,0)) -> 7699 | K122: =IF(千円単!K122="","",ROUND(千円単!K122/1000,0)) -> 3370 | L122: =IF(千円単!L122="","",ROUND(千円単!L122/1000,0)) -> 1896 | M122: =IF(千円単!M122="","",ROUND(千円単!M122/1000,0)) -> 7651 | N122: =IF(千円単!N122="","",ROUND(千円単!N122/1000,0)) -> 975 | O122: =IF(千円単!O122="","",ROUND(千円単!O122/1000,0)) -> 4751 | P122: =IF(千円単!P122="","",ROUND(千円単!P122/1000,0)) -> 156 | Q122: =IF(千円単!Q122="","",ROUND(千円単!Q122/1000,0)) -> 47 | R122: =IF(千円単!R122="","",ROUND(千円単!R122/1000,0)) -> 4512 | S122: =IF(千円単!S122="","",ROUND(千円単!S122/1000,0)) -> 1580 | T122: =IF(千円単!T122="","",ROUND(千円単!T122/1000,0)) -> 0 | U122: =IF(千円単!U122="","",ROUND(千円単!U122/1000,0)) -> 7391 | V122: =IF(千円単!V122="","",ROUND(千円単!V122/1000,0)) -> 3198 | W122: =IF(千円単!W122="","",ROUND(千円単!W122/1000,0)) -> 4193 | X122: =IF(千円単!X122="","",ROUND(千円単!X122/1000,0)) -> -2879 | Y122: =IF(千円単!Y122="","",ROUND(千円単!Y122/1000,0)) -> 47
A123: 2017 | B123: 46 | C123: 17 | D123: 1 | E123: 122 | F123: 公共 | G123: 152056 | H123: 新潟県 | I123: 柏崎市 | J123: =IF(千円単!J123="","",ROUND(千円単!J123/1000,0)) -> 3415 | K123: =IF(千円単!K123="","",ROUND(千円単!K123/1000,0)) -> 1008 | L123: =IF(千円単!L123="","",ROUND(千円単!L123/1000,0)) -> 1140 | M123: =IF(千円単!M123="","",ROUND(千円単!M123/1000,0)) -> 3122 | N123: =IF(千円単!N123="","",ROUND(千円単!N123/1000,0)) -> 373 | O123: =IF(千円単!O123="","",ROUND(千円単!O123/1000,0)) -> 1989 | P123: =IF(千円単!P123="","",ROUND(千円単!P123/1000,0)) -> 95 | Q123: =IF(千円単!Q123="","",ROUND(千円単!Q123/1000,0)) -> 294 | R123: =IF(千円単!R123="","",ROUND(千円単!R123/1000,0)) -> 2355 | S123: =IF(千円単!S123="","",ROUND(千円単!S123/1000,0)) -> 1187 | T123: =IF(千円単!T123="","",ROUND(千円単!T123/1000,0)) -> 443 | U123: =IF(千円単!U123="","",ROUND(千円単!U123/1000,0)) -> 3282 | V123: =IF(千円単!V123="","",ROUND(千円単!V123/1000,0)) -> 999 | W123: =IF(千円単!W123="","",ROUND(千円単!W123/1000,0)) -> 2283 | X123: =IF(千円単!X123="","",ROUND(千円単!X123/1000,0)) -> -928 | Y123: =IF(千円単!Y123="","",ROUND(千円単!Y123/1000,0)) -> 294
A124: 2017 | B124: 46 | C124: 17 | D124: 1 | E124: 123 | F124: 公共 | G124: 152081 | H124: 新潟県 | I124: 小千谷市 | J124: =IF(千円単!J124="","",ROUND(千円単!J124/1000,0)) -> 1432 | K124: =IF(千円単!K124="","",ROUND(千円単!K124/1000,0)) -> 490 | L124: =IF(千円単!L124="","",ROUND(千円単!L124/1000,0)) -> 726 | M124: =IF(千円単!M124="","",ROUND(千円単!M124/1000,0)) -> 1014 | N124: =IF(千円単!N124="","",ROUND(千円単!N124/1000,0)) -> 195 | O124: =IF(千円単!O124="","",ROUND(千円単!O124/1000,0)) -> 568 | P124: =IF(千円単!P124="","",ROUND(千円単!P124/1000,0)) -> 41 | Q124: =IF(千円単!Q124="","",ROUND(千円単!Q124/1000,0)) -> 418 | R124: =IF(千円単!R124="","",ROUND(千円単!R124/1000,0)) -> 311 | S124: =IF(千円単!S124="","",ROUND(千円単!S124/1000,0)) -> 257 | T124: =IF(千円単!T124="","",ROUND(千円単!T124/1000,0)) -> 33 | U124: =IF(千円単!U124="","",ROUND(千円単!U124/1000,0)) -> 1139 | V124: =IF(千円単!V124="","",ROUND(千円単!V124/1000,0)) -> 189 | W124: =IF(千円単!W124="","",ROUND(千円単!W124/1000,0)) -> 949 | X124: =IF(千円単!X124="","",ROUND(千円単!X124/1000,0)) -> -828 | Y124: =IF(千円単!Y124="","",ROUND(千円単!Y124/1000,0)) -> 418
A125: 2017 | B125: 46 | C125: 17 | D125: 1 | E125: 124 | F125: 公共 | G125: 152111 | H125: 新潟県 | I125: 見附市 | J125: =IF(千円単!J125="","",ROUND(千円単!J125/1000,0)) -> 1682 | K125: =IF(千円単!K125="","",ROUND(千円単!K125/1000,0)) -> 592 | L125: =IF(千円単!L125="","",ROUND(千円単!L125/1000,0)) -> 603 | M125: =IF(千円単!M125="","",ROUND(千円単!M125/1000,0)) -> 1684 | N125: =IF(千円単!N125="","",ROUND(千円単!N125/1000,0)) -> 207 | O125: =IF(千円単!O125="","",ROUND(千円単!O125/1000,0)) -> 949 | P125: =IF(千円単!P125="","",ROUND(千円単!P125/1000,0)) -> 51 | Q125: =IF(千円単!Q125="","",ROUND(千円単!Q125/1000,0)) -> -2 | R125: =IF(千円単!R125="","",ROUND(千円単!R125/1000,0)) -> 1668 | S125: =IF(千円単!S125="","",ROUND(千円単!S125/1000,0)) -> 812 | T125: =IF(千円単!T125="","",ROUND(千円単!T125/1000,0)) -> 304 | U125: =IF(千円単!U125="","",ROUND(千円単!U125/1000,0)) -> 2041 | V125: =IF(千円単!V125="","",ROUND(千円単!V125/1000,0)) -> 1228 | W125: =IF(千円単!W125="","",ROUND(千円単!W125/1000,0)) -> 813 | X125: =IF(千円単!X125="","",ROUND(千円単!X125/1000,0)) -> -373 | Y125: =IF(千円単!Y125="","",ROUND(千円単!Y125/1000,0)) -> -2
A126: 2017 | B126: 46 | C126: 17 | D126: 1 | E126: 125 | F126: 公共 | G126: 152170 | H126: 新潟県 | I126: 妙高市 | J126: =IF(千円単!J126="","",ROUND(千円単!J126/1000,0)) -> 1067 | K126: =IF(千円単!K126="","",ROUND(千円単!K126/1000,0)) -> 364 | L126: =IF(千円単!L126="","",ROUND(千円単!L126/1000,0)) -> 471 | M126: =IF(千円単!M126="","",ROUND(千円単!M126/1000,0)) -> 788 | N126: =IF(千円単!N126="","",ROUND(千円単!N126/1000,0)) -> 99 | O126: =IF(千円単!O126="","",ROUND(千円単!O126/1000,0)) -> 458 | P126: =IF(千円単!P126="","",ROUND(千円単!P126/1000,0)) -> 20 | Q126: =IF(千円単!Q126="","",ROUND(千円単!Q126/1000,0)) -> 279 | R126: =IF(千円単!R126="","",ROUND(千円単!R126/1000,0)) -> 610 | S126: =IF(千円単!S126="","",ROUND(千円単!S126/1000,0)) -> 248 | T126: =IF(千円単!T126="","",ROUND(千円単!T126/1000,0)) -> 123 | U126: =IF(千円単!U126="","",ROUND(千円単!U126/1000,0)) -> 983 | V126: =IF(千円単!V126="","",ROUND(千円単!V126/1000,0)) -> 419 | W126: =IF(千円単!W126="","",ROUND(千円単!W126/1000,0)) -> 508 | X126: =IF(千円単!X126="","",ROUND(千円単!X126/1000,0)) -> -373 | Y126: =IF(千円単!Y126="","",ROUND(千円単!Y126/1000,0)) -> 279
A127: 2017 | B127: 46 | C127: 17 | D127: 1 | E127: 126 | F127: 公共 | G127: 152251 | H127: 新潟県 | I127: 魚沼市 | J127: =IF(千円単!J127="","",ROUND(千円単!J127/1000,0)) -> 1139 | K127: =IF(千円単!K127="","",ROUND(千円単!K127/1000,0)) -> 492 | L127: =IF(千円単!L127="","",ROUND(千円単!L127/1000,0)) -> 435 | M127: =IF(千円単!M127="","",ROUND(千円単!M127/1000,0)) -> 1028 | N127: =IF(千円単!N127="","",ROUND(千円単!N127/1000,0)) -> 172 | O127: =IF(千円単!O127="","",ROUND(千円単!O127/1000,0)) -> 569 | P127: =IF(千円単!P127="","",ROUND(千円単!P127/1000,0)) -> 24 | Q127: =IF(千円単!Q127="","",ROUND(千円単!Q127/1000,0)) -> 111 | R127: =IF(千円単!R127="","",ROUND(千円単!R127/1000,0)) -> 603 | S127: =IF(千円単!S127="","",ROUND(千円単!S127/1000,0)) -> 39 | T127: =IF(千円単!T127="","",ROUND(千円単!T127/1000,0)) -> 0 | U127: =IF(千円単!U127="","",ROUND(千円単!U127/1000,0)) -> 885 | V127: =IF(千円単!V127="","",ROUND(千円単!V127/1000,0)) -> 62 | W127: =IF(千円単!W127="","",ROUND(千円単!W127/1000,0)) -> 823 | X127: =IF(千円単!X127="","",ROUND(千円単!X127/1000,0)) -> -283 | Y127: =IF(千円単!Y127="","",ROUND(千円単!Y127/1000,0)) -> 111
A128: 2017 | B128: 46 | C128: 17 | D128: 1 | E128: 127 | F128: 公共 | G128: 152277 | H128: 新潟県 | I128: 胎内市 | J128: =IF(千円単!J128="","",ROUND(千円単!J128/1000,0)) -> 828 | K128: =IF(千円単!K128="","",ROUND(千円単!K128/1000,0)) -> 224 | L128: =IF(千円単!L128="","",ROUND(千円単!L128/1000,0)) -> 311 | M128: =IF(千円単!M128="","",ROUND(千円単!M128/1000,0)) -> 676 | N128: =IF(千円単!N128="","",ROUND(千円単!N128/1000,0)) -> 124 | O128: =IF(千円単!O128="","",ROUND(千円単!O128/1000,0)) -> 429 | P128: =IF(千円単!P128="","",ROUND(千円単!P128/1000,0)) -> 7 | Q128: =IF(千円単!Q128="","",ROUND(千円単!Q128/1000,0)) -> 152 | R128: =IF(千円単!R128="","",ROUND(千円単!R128/1000,0)) -> 571 | S128: =IF(千円単!S128="","",ROUND(千円単!S128/1000,0)) -> 460 | T128: =IF(千円単!T128="","",ROUND(千円単!T128/1000,0)) -> 23 | U128: =IF(千円単!U128="","",ROUND(千円単!U128/1000,0)) -> 839 | V128: =IF(千円単!V128="","",ROUND(千円単!V128/1000,0)) -> 178 | W128: =IF(千円単!W128="","",ROUND(千円単!W128/1000,0)) -> 660 | X128: =IF(千円単!X128="","",ROUND(千円単!X128/1000,0)) -> -267 | Y128: =IF(千円単!Y128="","",ROUND(千円単!Y128/1000,0)) -> 152
A129: 2017 | B129: 46 | C129: 17 | D129: 1 | E129: 128 | F129: 公共 | G129: 153079 | H129: 新潟県 | I129: 聖籠町 | J129: =IF(千円単!J129="","",ROUND(千円単!J129/1000,0)) -> 508 | K129: =IF(千円単!K129="","",ROUND(千円単!K129/1000,0)) -> 155 | L129: =IF(千円単!L129="","",ROUND(千円単!L129/1000,0)) -> 212 | M129: =IF(千円単!M129="","",ROUND(千円単!M129/1000,0)) -> 483 | N129: =IF(千円単!N129="","",ROUND(千円単!N129/1000,0)) -> 85 | O129: =IF(千円単!O129="","",ROUND(千円単!O129/1000,0)) -> 297 | P129: =IF(千円単!P129="","",ROUND(千円単!P129/1000,0)) -> 14 | Q129: =IF(千円単!Q129="","",ROUND(千円単!Q129/1000,0)) -> 25 | R129: =IF(千円単!R129="","",ROUND(千円単!R129/1000,0)) -> 75 | S129: =IF(千円単!S129="","",ROUND(千円単!S129/1000,0)) -> 67 | T129: =IF(千円単!T129="","",ROUND(千円単!T129/1000,0)) -> 0 | U129: =IF(千円単!U129="","",ROUND(千円単!U129/1000,0)) -> 263 | V129: =IF(千円単!V129="","",ROUND(千円単!V129/1000,0)) -> 29 | W129: =IF(千円単!W129="","",ROUND(千円単!W129/1000,0)) -> 234 | X129: =IF(千円単!X129="","",ROUND(千円単!X129/1000,0)) -> -188 | Y129: =IF(千円単!Y129="","",ROUND(千円単!Y129/1000,0)) -> 25
A130: 2017 | B130: 46 | C130: 17 | D130: 1 | E130: 129 | F130: 公共 | G130: 162019 | H130: 富山県 | I130: 富山市 | J130: =IF(千円単!J130="","",ROUND(千円単!J130/1000,0)) -> 13440 | K130: =IF(千円単!K130="","",ROUND(千円単!K130/1000,0)) -> 6238 | L130: =IF(千円単!L130="","",ROUND(千円単!L130/1000,0)) -> 4480 | M130: =IF(千円単!M130="","",ROUND(千円単!M130/1000,0)) -> 11241 | N130: =IF(千円単!N130="","",ROUND(千円単!N130/1000,0)) -> 1878 | O130: =IF(千円単!O130="","",ROUND(千円単!O130/1000,0)) -> 6951 | P130: =IF(千円単!P130="","",ROUND(千円単!P130/1000,0)) -> 285 | Q130: =IF(千円単!Q130="","",ROUND(千円単!Q130/1000,0)) -> 2199 | R130: =IF(千円単!R130="","",ROUND(千円単!R130/1000,0)) -> 6365 | S130: =IF(千円単!S130="","",ROUND(千円単!S130/1000,0)) -> 2601 | T130: =IF(千円単!T130="","",ROUND(千円単!T130/1000,0)) -> 1655 | U130: =IF(千円単!U130="","",ROUND(千円単!U130/1000,0)) -> 12794 | V130: =IF(千円単!V130="","",ROUND(千円単!V130/1000,0)) -> 5091 | W130: =IF(千円単!W130="","",ROUND(千円単!W130/1000,0)) -> 7699 | X130: =IF(千円単!X130="","",ROUND(千円単!X130/1000,0)) -> -6429 | Y130: =IF(千円単!Y130="","",ROUND(千円単!Y130/1000,0)) -> 2199
A131: 2017 | B131: 46 | C131: 17 | D131: 1 | E131: 130 | F131: 公共 | G131: 162027 | H131: 富山県 | I131: 高岡市 | J131: =IF(千円単!J131="","",ROUND(千円単!J131/1000,0)) -> 4276 | K131: =IF(千円単!K131="","",ROUND(千円単!K131/1000,0)) -> 2532 | L131: =IF(千円単!L131="","",ROUND(千円単!L131/1000,0)) -> 736 | M131: =IF(千円単!M131="","",ROUND(千円単!M131/1000,0)) -> 4000 | N131: =IF(千円単!N131="","",ROUND(千円単!N131/1000,0)) -> 619 | O131: =IF(千円単!O131="","",ROUND(千円単!O131/1000,0)) -> 2050 | P131: =IF(千円単!P131="","",ROUND(千円単!P131/1000,0)) -> 63 | Q131: =IF(千円単!Q131="","",ROUND(千円単!Q131/1000,0)) -> 275 | R131: =IF(千円単!R131="","",ROUND(千円単!R131/1000,0)) -> 2578 | S131: =IF(千円単!S131="","",ROUND(千円単!S131/1000,0)) -> 1794 | T131: =IF(千円単!T131="","",ROUND(千円単!T131/1000,0)) -> 0 | U131: =IF(千円単!U131="","",ROUND(千円単!U131/1000,0)) -> 4115 | V131: =IF(千円単!V131="","",ROUND(千円単!V131/1000,0)) -> 1039 | W131: =IF(千円単!W131="","",ROUND(千円単!W131/1000,0)) -> 3072 | X131: =IF(千円単!X131="","",ROUND(千円単!X131/1000,0)) -> -1537 | Y131: =IF(千円単!Y131="","",ROUND(千円単!Y131/1000,0)) -> 275
A132: 2017 | B132: 46 | C132: 17 | D132: 1 | E132: 131 | F132: 公共 | G132: 162078 | H132: 富山県 | I132: 黒部市 | J132: =IF(千円単!J132="","",ROUND(千円単!J132/1000,0)) -> 1076 | K132: =IF(千円単!K132="","",ROUND(千円単!K132/1000,0)) -> 293 | L132: =IF(千円単!L132="","",ROUND(千円単!L132/1000,0)) -> 471 | M132: =IF(千円単!M132="","",ROUND(千円単!M132/1000,0)) -> 1047 | N132: =IF(千円単!N132="","",ROUND(千円単!N132/1000,0)) -> 140 | O132: =IF(千円単!O132="","",ROUND(千円単!O132/1000,0)) -> 572 | P132: =IF(千円単!P132="","",ROUND(千円単!P132/1000,0)) -> 26 | Q132: =IF(千円単!Q132="","",ROUND(千円単!Q132/1000,0)) -> 28 | R132: =IF(千円単!R132="","",ROUND(千円単!R132/1000,0)) -> 582 | S132: =IF(千円単!S132="","",ROUND(千円単!S132/1000,0)) -> 308 | T132: =IF(千円単!T132="","",ROUND(千円単!T132/1000,0)) -> 0 | U132: =IF(千円単!U132="","",ROUND(千円単!U132/1000,0)) -> 940 | V132: =IF(千円単!V132="","",ROUND(千円単!V132/1000,0)) -> 202 | W132: =IF(千円単!W132="","",ROUND(千円単!W132/1000,0)) -> 738 | X132: =IF(千円単!X132="","",ROUND(千円単!X132/1000,0)) -> -357 | Y132: =IF(千円単!Y132="","",ROUND(千円単!Y132/1000,0)) -> 28
A133: 2017 | B133: 46 | C133: 17 | D133: 1 | E133: 132 | F133: 公共 | G133: 162108 | H133: 富山県 | I133: 南砺市 | J133: =IF(千円単!J133="","",ROUND(千円単!J133/1000,0)) -> 1054 | K133: =IF(千円単!K133="","",ROUND(千円単!K133/1000,0)) -> 361 | L133: =IF(千円単!L133="","",ROUND(千円単!L133/1000,0)) -> 590 | M133: =IF(千円単!M133="","",ROUND(千円単!M133/1000,0)) -> 706 | N133: =IF(千円単!N133="","",ROUND(千円単!N133/1000,0)) -> 105 | O133: =IF(千円単!O133="","",ROUND(千円単!O133/1000,0)) -> 414 | P133: =IF(千円単!P133="","",ROUND(千円単!P133/1000,0)) -> 15 | Q133: =IF(千円単!Q133="","",ROUND(千円単!Q133/1000,0)) -> 348 | R133: =IF(千円単!R133="","",ROUND(千円単!R133/1000,0)) -> 305 | S133: =IF(千円単!S133="","",ROUND(千円単!S133/1000,0)) -> 145 | T133: =IF(千円単!T133="","",ROUND(千円単!T133/1000,0)) -> 154 | U133: =IF(千円単!U133="","",ROUND(千円単!U133/1000,0)) -> 875 | V133: =IF(千円単!V133="","",ROUND(千円単!V133/1000,0)) -> 130 | W133: =IF(千円単!W133="","",ROUND(千円単!W133/1000,0)) -> 746 | X133: =IF(千円単!X133="","",ROUND(千円単!X133/1000,0)) -> -570 | Y133: =IF(千円単!Y133="","",ROUND(千円単!Y133/1000,0)) -> 348
A134: 2017 | B134: 46 | C134: 17 | D134: 1 | E134: 133 | F134: 公共 | G134: 162116 | H134: 富山県 | I134: 射水市 | J134: =IF(千円単!J134="","",ROUND(千円単!J134/1000,0)) -> 2452 | K134: =IF(千円単!K134="","",ROUND(千円単!K134/1000,0)) -> 939 | L134: =IF(千円単!L134="","",ROUND(千円単!L134/1000,0)) -> 1061 | M134: =IF(千円単!M134="","",ROUND(千円単!M134/1000,0)) -> 2337 | N134: =IF(千円単!N134="","",ROUND(千円単!N134/1000,0)) -> 391 | O134: =IF(千円単!O134="","",ROUND(千円単!O134/1000,0)) -> 1198 | P134: =IF(千円単!P134="","",ROUND(千円単!P134/1000,0)) -> 85 | Q134: =IF(千円単!Q134="","",ROUND(千円単!Q134/1000,0)) -> 116 | R134: =IF(千円単!R134="","",ROUND(千円単!R134/1000,0)) -> 3149 | S134: =IF(千円単!S134="","",ROUND(千円単!S134/1000,0)) -> 1512 | T134: =IF(千円単!T134="","",ROUND(千円単!T134/1000,0)) -> 0 | U134: =IF(千円単!U134="","",ROUND(千円単!U134/1000,0)) -> 4136 | V134: =IF(千円単!V134="","",ROUND(千円単!V134/1000,0)) -> 2810 | W134: =IF(千円単!W134="","",ROUND(千円単!W134/1000,0)) -> 1315 | X134: =IF(千円単!X134="","",ROUND(千円単!X134/1000,0)) -> -986 | Y134: =IF(千円単!Y134="","",ROUND(千円単!Y134/1000,0)) -> 116
A135: 2017 | B135: 46 | C135: 17 | D135: 1 | E135: 134 | F135: 公共 | G135: 169048 | H135: 富山県 | I135: 中新川広域行政事務組合 | J135: =IF(千円単!J135="","",ROUND(千円単!J135/1000,0)) -> 1465 | K135: =IF(千円単!K135="","",ROUND(千円単!K135/1000,0)) -> 438 | L135: =IF(千円単!L135="","",ROUND(千円単!L135/1000,0)) -> 484 | M135: =IF(千円単!M135="","",ROUND(千円単!M135/1000,0)) -> 1474 | N135: =IF(千円単!N135="","",ROUND(千円単!N135/1000,0)) -> 286 | O135: =IF(千円単!O135="","",ROUND(千円単!O135/1000,0)) -> 927 | P135: =IF(千円単!P135="","",ROUND(千円単!P135/1000,0)) -> 32 | Q135: =IF(千円単!Q135="","",ROUND(千円単!Q135/1000,0)) -> -8 | R135: =IF(千円単!R135="","",ROUND(千円単!R135/1000,0)) -> 1281 | S135: =IF(千円単!S135="","",ROUND(千円単!S135/1000,0)) -> 407 | T135: =IF(千円単!T135="","",ROUND(千円単!T135/1000,0)) -> 0 | U135: =IF(千円単!U135="","",ROUND(千円単!U135/1000,0)) -> 1758 | V135: =IF(千円単!V135="","",ROUND(千円単!V135/1000,0)) -> 832 | W135: =IF(千円単!W135="","",ROUND(千円単!W135/1000,0)) -> 926 | X135: =IF(千円単!X135="","",ROUND(千円単!X135/1000,0)) -> -478 | Y135: =IF(千円単!Y135="","",ROUND(千円単!Y135/1000,0)) -> -8
A136: 2017 | B136: 46 | C136: 17 | D136: 1 | E136: 135 | F136: 公共 | G136: 172014 | H136: 石川県 | I136: 金沢市 | J136: =IF(千円単!J136="","",ROUND(千円単!J136/1000,0)) -> 16868 | K136: =IF(千円単!K136="","",ROUND(千円単!K136/1000,0)) -> 7126 | L136: =IF(千円単!L136="","",ROUND(千円単!L136/1000,0)) -> 5448 | M136: =IF(千円単!M136="","",ROUND(千円単!M136/1000,0)) -> 15628 | N136: =IF(千円単!N136="","",ROUND(千円単!N136/1000,0)) -> 2565 | O136: =IF(千円単!O136="","",ROUND(千円単!O136/1000,0)) -> 9634 | P136: =IF(千円単!P136="","",ROUND(千円単!P136/1000,0)) -> 482 | Q136: =IF(千円単!Q136="","",ROUND(千円単!Q136/1000,0)) -> 1240 | R136: =IF(千円単!R136="","",ROUND(千円単!R136/1000,0)) -> 7168 | S136: =IF(千円単!S136="","",ROUND(千円単!S136/1000,0)) -> 4572 | T136: =IF(千円単!T136="","",ROUND(千円単!T136/1000,0)) -> 16 | U136: =IF(千円単!U136="","",ROUND(千円単!U136/1000,0)) -> 13887 | V136: =IF(千円単!V136="","",ROUND(千円単!V136/1000,0)) -> 4199 | W136: =IF(千円単!W136="","",ROUND(千円単!W136/1000,0)) -> 9682 | X136: =IF(千円単!X136="","",ROUND(千円単!X136/1000,0)) -> -6718 | Y136: =IF(千円単!Y136="","",ROUND(千円単!Y136/1000,0)) -> 1240
A137: 2017 | B137: 46 | C137: 17 | D137: 1 | E137: 136 | F137: 公共 | G137: 172031 | H137: 石川県 | I137: 小松市 | J137: =IF(千円単!J137="","",ROUND(千円単!J137/1000,0)) -> 3571 | K137: =IF(千円単!K137="","",ROUND(千円単!K137/1000,0)) -> 1004 | L137: =IF(千円単!L137="","",ROUND(千円単!L137/1000,0)) -> 1781 | M137: =IF(千円単!M137="","",ROUND(千円単!M137/1000,0)) -> 3640 | N137: =IF(千円単!N137="","",ROUND(千円単!N137/1000,0)) -> 810 | O137: =IF(千円単!O137="","",ROUND(千円単!O137/1000,0)) -> 2173 | P137: =IF(千円単!P137="","",ROUND(千円単!P137/1000,0)) -> 61 | Q137: =IF(千円単!Q137="","",ROUND(千円単!Q137/1000,0)) -> -69 | R137: =IF(千円単!R137="","",ROUND(千円単!R137/1000,0)) -> 3575 | S137: =IF(千円単!S137="","",ROUND(千円単!S137/1000,0)) -> 2292 | T137: =IF(千円単!T137="","",ROUND(千円単!T137/1000,0)) -> 230 | U137: =IF(千円単!U137="","",ROUND(千円単!U137/1000,0)) -> 5451 | V137: =IF(千円単!V137="","",ROUND(千円単!V137/1000,0)) -> 2356 | W137: =IF(千円単!W137="","",ROUND(千円単!W137/1000,0)) -> 3083 | X137: =IF(千円単!X137="","",ROUND(千円単!X137/1000,0)) -> -1876 | Y137: =IF(千円単!Y137="","",ROUND(千円単!Y137/1000,0)) -> -69
A138: 2017 | B138: 46 | C138: 17 | D138: 1 | E138: 137 | F138: 公共 | G138: 172065 | H138: 石川県 | I138: 加賀市 | J138: =IF(千円単!J138="","",ROUND(千円単!J138/1000,0)) -> 1705 | K138: =IF(千円単!K138="","",ROUND(千円単!K138/1000,0)) -> 564 | L138: =IF(千円単!L138="","",ROUND(千円単!L138/1000,0)) -> 811 | M138: =IF(千円単!M138="","",ROUND(千円単!M138/1000,0)) -> 1709 | N138: =IF(千円単!N138="","",ROUND(千円単!N138/1000,0)) -> 279 | O138: =IF(千円単!O138="","",ROUND(千円単!O138/1000,0)) -> 897 | P138: =IF(千円単!P138="","",ROUND(千円単!P138/1000,0)) -> 32 | Q138: =IF(千円単!Q138="","",ROUND(千円単!Q138/1000,0)) -> -4 | R138: =IF(千円単!R138="","",ROUND(千円単!R138/1000,0)) -> 1253 | S138: =IF(千円単!S138="","",ROUND(千円単!S138/1000,0)) -> 1003 | T138: =IF(千円単!T138="","",ROUND(千円単!T138/1000,0)) -> 124 | U138: =IF(千円単!U138="","",ROUND(千円単!U138/1000,0)) -> 1846 | V138: =IF(千円単!V138="","",ROUND(千円単!V138/1000,0)) -> 536 | W138: =IF(千円単!W138="","",ROUND(千円単!W138/1000,0)) -> 1308 | X138: =IF(千円単!X138="","",ROUND(千円単!X138/1000,0)) -> -593 | Y138: =IF(千円単!Y138="","",ROUND(千円単!Y138/1000,0)) -> -4
A139: 2017 | B139: 46 | C139: 17 | D139: 1 | E139: 138 | F139: 公共 | G139: 172073 | H139: 石川県 | I139: 羽咋市 | J139: =IF(千円単!J139="","",ROUND(千円単!J139/1000,0)) -> 659 | K139: =IF(千円単!K139="","",ROUND(千円単!K139/1000,0)) -> 195 | L139: =IF(千円単!L139="","",ROUND(千円単!L139/1000,0)) -> 329 | M139: =IF(千円単!M139="","",ROUND(千円単!M139/1000,0)) -> 639 | N139: =IF(千円単!N139="","",ROUND(千円単!N139/1000,0)) -> 150 | O139: =IF(千円単!O139="","",ROUND(千円単!O139/1000,0)) -> 384 | P139: =IF(千円単!P139="","",ROUND(千円単!P139/1000,0)) -> 16 | Q139: =IF(千円単!Q139="","",ROUND(千円単!Q139/1000,0)) -> 20 | R139: =IF(千円単!R139="","",ROUND(千円単!R139/1000,0)) -> 484 | S139: =IF(千円単!S139="","",ROUND(千円単!S139/1000,0)) -> 322 | T139: =IF(千円単!T139="","",ROUND(千円単!T139/1000,0)) -> 113 | U139: =IF(千円単!U139="","",ROUND(千円単!U139/1000,0)) -> 802 | V139: =IF(千円単!V139="","",ROUND(千円単!V139/1000,0)) -> 115 | W139: =IF(千円単!W139="","",ROUND(千円単!W139/1000,0)) -> 687 | X139: =IF(千円単!X139="","",ROUND(千円単!X139/1000,0)) -> -318 | Y139: =IF(千円単!Y139="","",ROUND(千円単!Y139/1000,0)) -> 20
A140: 2017 | B140: 46 | C140: 17 | D140: 1 | E140: 139 | F140: 公共 | G140: 172090 | H140: 石川県 | I140: かほく市 | J140: =IF(千円単!J140="","",ROUND(千円単!J140/1000,0)) -> 1735 | K140: =IF(千円単!K140="","",ROUND(千円単!K140/1000,0)) -> 335 | L140: =IF(千円単!L140="","",ROUND(千円単!L140/1000,0)) -> 974 | M140: =IF(千円単!M140="","",ROUND(千円単!M140/1000,0)) -> 1502 | N140: =IF(千円単!N140="","",ROUND(千円単!N140/1000,0)) -> 222 | O140: =IF(千円単!O140="","",ROUND(千円単!O140/1000,0)) -> 1092 | P140: =IF(千円単!P140="","",ROUND(千円単!P140/1000,0)) -> 8 | Q140: =IF(千円単!Q140="","",ROUND(千円単!Q140/1000,0)) -> 234 | R140: =IF(千円単!R140="","",ROUND(千円単!R140/1000,0)) -> 514 | S140: =IF(千円単!S140="","",ROUND(千円単!S140/1000,0)) -> 328 | T140: =IF(千円単!T140="","",ROUND(千円単!T140/1000,0)) -> 0 | U140: =IF(千円単!U140="","",ROUND(千円単!U140/1000,0)) -> 1392 | V140: =IF(千円単!V140="","",ROUND(千円単!V140/1000,0)) -> 350 | W140: =IF(千円単!W140="","",ROUND(千円単!W140/1000,0)) -> 1042 | X140: =IF(千円単!X140="","",ROUND(千円単!X140/1000,0)) -> -878 | Y140: =IF(千円単!Y140="","",ROUND(千円単!Y140/1000,0)) -> 234
A141: 2017 | B141: 46 | C141: 17 | D141: 1 | E141: 140 | F141: 公共 | G141: 172103 | H141: 石川県 | I141: 白山市 | J141: =IF(千円単!J141="","",ROUND(千円単!J141/1000,0)) -> 3447 | K141: =IF(千円単!K141="","",ROUND(千円単!K141/1000,0)) -> 1436 | L141: =IF(千円単!L141="","",ROUND(千円単!L141/1000,0)) -> 1219 | M141: =IF(千円単!M141="","",ROUND(千円単!M141/1000,0)) -> 3571 | N141: =IF(千円単!N141="","",ROUND(千円単!N141/1000,0)) -> 691 | O141: =IF(千円単!O141="","",ROUND(千円単!O141/1000,0)) -> 2104 | P141: =IF(千円単!P141="","",ROUND(千円単!P141/1000,0)) -> 63 | Q141: =IF(千円単!Q141="","",ROUND(千円単!Q141/1000,0)) -> -123 | R141: =IF(千円単!R141="","",ROUND(千円単!R141/1000,0)) -> 2495 | S141: =IF(千円単!S141="","",ROUND(千円単!S141/1000,0)) -> 1620 | T141: =IF(千円単!T141="","",ROUND(千円単!T141/1000,0)) -> 452 | U141: =IF(千円単!U141="","",ROUND(千円単!U141/1000,0)) -> 3606 | V141: =IF(千円単!V141="","",ROUND(千円単!V141/1000,0)) -> 981 | W141: =IF(千円単!W141="","",ROUND(千円単!W141/1000,0)) -> 2621 | X141: =IF(千円単!X141="","",ROUND(千円単!X141/1000,0)) -> -1111 | Y141: =IF(千円単!Y141="","",ROUND(千円単!Y141/1000,0)) -> -123
A142: 2017 | B142: 46 | C142: 17 | D142: 1 | E142: 141 | F142: 公共 | G142: 172111 | H142: 石川県 | I142: 能美市 | J142: =IF(千円単!J142="","",ROUND(千円単!J142/1000,0)) -> 1653 | K142: =IF(千円単!K142="","",ROUND(千円単!K142/1000,0)) -> 704 | L142: =IF(千円単!L142="","",ROUND(千円単!L142/1000,0)) -> 512 | M142: =IF(千円単!M142="","",ROUND(千円単!M142/1000,0)) -> 1572 | N142: =IF(千円単!N142="","",ROUND(千円単!N142/1000,0)) -> 312 | O142: =IF(千円単!O142="","",ROUND(千円単!O142/1000,0)) -> 846 | P142: =IF(千円単!P142="","",ROUND(千円単!P142/1000,0)) -> 17 | Q142: =IF(千円単!Q142="","",ROUND(千円単!Q142/1000,0)) -> 81 | R142: =IF(千円単!R142="","",ROUND(千円単!R142/1000,0)) -> 1001 | S142: =IF(千円単!S142="","",ROUND(千円単!S142/1000,0)) -> 611 | T142: =IF(千円単!T142="","",ROUND(千円単!T142/1000,0)) -> 353 | U142: =IF(千円単!U142="","",ROUND(千円単!U142/1000,0)) -> 1371 | V142: =IF(千円単!V142="","",ROUND(千円単!V142/1000,0)) -> 61 | W142: =IF(千円単!W142="","",ROUND(千円単!W142/1000,0)) -> 1310 | X142: =IF(千円単!X142="","",ROUND(千円単!X142/1000,0)) -> -369 | Y142: =IF(千円単!Y142="","",ROUND(千円単!Y142/1000,0)) -> 81
A143: 2017 | B143: 46 | C143: 17 | D143: 1 | E143: 142 | F143: 公共 | G143: 172120 | H143: 石川県 | I143: 野々市市 | J143: =IF(千円単!J143="","",ROUND(千円単!J143/1000,0)) -> 1205 | K143: =IF(千円単!K143="","",ROUND(千円単!K143/1000,0)) -> 723 | L143: =IF(千円単!L143="","",ROUND(千円単!L143/1000,0)) -> 281 | M143: =IF(千円単!M143="","",ROUND(千円単!M143/1000,0)) -> 1273 | N143: =IF(千円単!N143="","",ROUND(千円単!N143/1000,0)) -> 243 | O143: =IF(千円単!O143="","",ROUND(千円単!O143/1000,0)) -> 688 | P143: =IF(千円単!P143="","",ROUND(千円単!P143/1000,0)) -> 44 | Q143: =IF(千円単!Q143="","",ROUND(千円単!Q143/1000,0)) -> -68 | R143: =IF(千円単!R143="","",ROUND(千円単!R143/1000,0)) -> 641 | S143: =IF(千円単!S143="","",ROUND(千円単!S143/1000,0)) -> 379 | T143: =IF(千円単!T143="","",ROUND(千円単!T143/1000,0)) -> 190 | U143: =IF(千円単!U143="","",ROUND(千円単!U143/1000,0)) -> 982 | V143: =IF(千円単!V143="","",ROUND(千円単!V143/1000,0)) -> 127 | W143: =IF(千円単!W143="","",ROUND(千円単!W143/1000,0)) -> 855 | X143: =IF(千円単!X143="","",ROUND(千円単!X143/1000,0)) -> -341 | Y143: =IF(千円単!Y143="","",ROUND(千円単!Y143/1000,0)) -> -68
A144: 2017 | B144: 46 | C144: 17 | D144: 1 | E144: 143 | F144: 公共 | G144: 173614 | H144: 石川県 | I144: 津幡町 | J144: =IF(千円単!J144="","",ROUND(千円単!J144/1000,0)) -> 1334 | K144: =IF(千円単!K144="","",ROUND(千円単!K144/1000,0)) -> 486 | L144: =IF(千円単!L144="","",ROUND(千円単!L144/1000,0)) -> 461 | M144: =IF(千円単!M144="","",ROUND(千円単!M144/1000,0)) -> 1327 | N144: =IF(千円単!N144="","",ROUND(千円単!N144/1000,0)) -> 227 | O144: =IF(千円単!O144="","",ROUND(千円単!O144/1000,0)) -> 876 | P144: =IF(千円単!P144="","",ROUND(千円単!P144/1000,0)) -> 15 | Q144: =IF(千円単!Q144="","",ROUND(千円単!Q144/1000,0)) -> 7 | R144: =IF(千円単!R144="","",ROUND(千円単!R144/1000,0)) -> 976 | S144: =IF(千円単!S144="","",ROUND(千円単!S144/1000,0)) -> 591 | T144: =IF(千円単!T144="","",ROUND(千円単!T144/1000,0)) -> 173 | U144: =IF(千円単!U144="","",ROUND(千円単!U144/1000,0)) -> 1494 | V144: =IF(千円単!V144="","",ROUND(千円単!V144/1000,0)) -> 492 | W144: =IF(千円単!W144="","",ROUND(千円単!W144/1000,0)) -> 1002 | X144: =IF(千円単!X144="","",ROUND(千円単!X144/1000,0)) -> -518 | Y144: =IF(千円単!Y144="","",ROUND(千円単!Y144/1000,0)) -> 7
A145: 2017 | B145: 46 | C145: 17 | D145: 1 | E145: 144 | F145: 公共 | G145: 182010 | H145: 福井県 | I145: 福井市 | J145: =IF(千円単!J145="","",ROUND(千円単!J145/1000,0)) -> 8560 | K145: =IF(千円単!K145="","",ROUND(千円単!K145/1000,0)) -> 3624 | L145: =IF(千円単!L145="","",ROUND(千円単!L145/1000,0)) -> 2351 | M145: =IF(千円単!M145="","",ROUND(千円単!M145/1000,0)) -> 7734 | N145: =IF(千円単!N145="","",ROUND(千円単!N145/1000,0)) -> 1116 | O145: =IF(千円単!O145="","",ROUND(千円単!O145/1000,0)) -> 4386 | P145: =IF(千円単!P145="","",ROUND(千円単!P145/1000,0)) -> 445 | Q145: =IF(千円単!Q145="","",ROUND(千円単!Q145/1000,0)) -> 826 | R145: =IF(千円単!R145="","",ROUND(千円単!R145/1000,0)) -> 6116 | S145: =IF(千円単!S145="","",ROUND(千円単!S145/1000,0)) -> 3805 | T145: =IF(千円単!T145="","",ROUND(千円単!T145/1000,0)) -> 721 | U145: =IF(千円単!U145="","",ROUND(千円単!U145/1000,0)) -> 8384 | V145: =IF(千円単!V145="","",ROUND(千円単!V145/1000,0)) -> 4321 | W145: =IF(千円単!W145="","",ROUND(千円単!W145/1000,0)) -> 4047 | X145: =IF(千円単!X145="","",ROUND(千円単!X145/1000,0)) -> -2268 | Y145: =IF(千円単!Y145="","",ROUND(千円単!Y145/1000,0)) -> 826
A146: 2017 | B146: 46 | C146: 17 | D146: 1 | E146: 145 | F146: 公共 | G146: 182079 | H146: 福井県 | I146: 鯖江市 | J146: =IF(千円単!J146="","",ROUND(千円単!J146/1000,0)) -> 2074 | K146: =IF(千円単!K146="","",ROUND(千円単!K146/1000,0)) -> 1087 | L146: =IF(千円単!L146="","",ROUND(千円単!L146/1000,0)) -> 579 | M146: =IF(千円単!M146="","",ROUND(千円単!M146/1000,0)) -> 1903 | N146: =IF(千円単!N146="","",ROUND(千円単!N146/1000,0)) -> 346 | O146: =IF(千円単!O146="","",ROUND(千円単!O146/1000,0)) -> 1175 | P146: =IF(千円単!P146="","",ROUND(千円単!P146/1000,0)) -> 17 | Q146: =IF(千円単!Q146="","",ROUND(千円単!Q146/1000,0)) -> 171 | R146: =IF(千円単!R146="","",ROUND(千円単!R146/1000,0)) -> 1191 | S146: =IF(千円単!S146="","",ROUND(千円単!S146/1000,0)) -> 759 | T146: =IF(千円単!T146="","",ROUND(千円単!T146/1000,0)) -> 148 | U146: =IF(千円単!U146="","",ROUND(千円単!U146/1000,0)) -> 2135 | V146: =IF(千円単!V146="","",ROUND(千円単!V146/1000,0)) -> 584 | W146: =IF(千円単!W146="","",ROUND(千円単!W146/1000,0)) -> 1550 | X146: =IF(千円単!X146="","",ROUND(千円単!X146/1000,0)) -> -944 | Y146: =IF(千円単!Y146="","",ROUND(千円単!Y146/1000,0)) -> 171
A147: 2017 | B147: 46 | C147: 17 | D147: 1 | E147: 146 | F147: 公共 | G147: 182087 | H147: 福井県 | I147: あわら市 | J147: =IF(千円単!J147="","",ROUND(千円単!J147/1000,0)) -> 1183 | K147: =IF(千円単!K147="","",ROUND(千円単!K147/1000,0)) -> 472 | L147: =IF(千円単!L147="","",ROUND(千円単!L147/1000,0)) -> 427 | M147: =IF(千円単!M147="","",ROUND(千円単!M147/1000,0)) -> 1169 | N147: =IF(千円単!N147="","",ROUND(千円単!N147/1000,0)) -> 190 | O147: =IF(千円単!O147="","",ROUND(千円単!O147/1000,0)) -> 626 | P147: =IF(千円単!P147="","",ROUND(千円単!P147/1000,0)) -> 22 | Q147: =IF(千円単!Q147="","",ROUND(千円単!Q147/1000,0)) -> 14 | R147: =IF(千円単!R147="","",ROUND(千円単!R147/1000,0)) -> 819 | S147: =IF(千円単!S147="","",ROUND(千円単!S147/1000,0)) -> 514 | T147: =IF(千円単!T147="","",ROUND(千円単!T147/1000,0)) -> 242 | U147: =IF(千円単!U147="","",ROUND(千円単!U147/1000,0)) -> 1253 | V147: =IF(千円単!V147="","",ROUND(千円単!V147/1000,0)) -> 446 | W147: =IF(千円単!W147="","",ROUND(千円単!W147/1000,0)) -> 807 | X147: =IF(千円単!X147="","",ROUND(千円単!X147/1000,0)) -> -434 | Y147: =IF(千円単!Y147="","",ROUND(千円単!Y147/1000,0)) -> 14
A148: 2017 | B148: 46 | C148: 17 | D148: 1 | E148: 147 | F148: 公共 | G148: 182109 | H148: 福井県 | I148: 坂井市 | J148: =IF(千円単!J148="","",ROUND(千円単!J148/1000,0)) -> 3038 | K148: =IF(千円単!K148="","",ROUND(千円単!K148/1000,0)) -> 1163 | L148: =IF(千円単!L148="","",ROUND(千円単!L148/1000,0)) -> 984 | M148: =IF(千円単!M148="","",ROUND(千円単!M148/1000,0)) -> 3077 | N148: =IF(千円単!N148="","",ROUND(千円単!N148/1000,0)) -> 410 | O148: =IF(千円単!O148="","",ROUND(千円単!O148/1000,0)) -> 1881 | P148: =IF(千円単!P148="","",ROUND(千円単!P148/1000,0)) -> 30 | Q148: =IF(千円単!Q148="","",ROUND(千円単!Q148/1000,0)) -> -39 | R148: =IF(千円単!R148="","",ROUND(千円単!R148/1000,0)) -> 1336 | S148: =IF(千円単!S148="","",ROUND(千円単!S148/1000,0)) -> 1052 | T148: =IF(千円単!T148="","",ROUND(千円単!T148/1000,0)) -> 0 | U148: =IF(千円単!U148="","",ROUND(千円単!U148/1000,0)) -> 2411 | V148: =IF(千円単!V148="","",ROUND(千円単!V148/1000,0)) -> 439 | W148: =IF(千円単!W148="","",ROUND(千円単!W148/1000,0)) -> 1922 | X148: =IF(千円単!X148="","",ROUND(千円単!X148/1000,0)) -> -1075 | Y148: =IF(千円単!Y148="","",ROUND(千円単!Y148/1000,0)) -> -39
A149: 2017 | B149: 46 | C149: 17 | D149: 1 | E149: 148 | F149: 公共 | G149: 188433 | H149: 福井県 | I149: 五領川公共下水道事務組合 | J149: =IF(千円単!J149="","",ROUND(千円単!J149/1000,0)) -> 479 | K149: =IF(千円単!K149="","",ROUND(千円単!K149/1000,0)) -> 138 | L149: =IF(千円単!L149="","",ROUND(千円単!L149/1000,0)) -> 145 | M149: =IF(千円単!M149="","",ROUND(千円単!M149/1000,0)) -> 415 | N149: =IF(千円単!N149="","",ROUND(千円単!N149/1000,0)) -> 39 | O149: =IF(千円単!O149="","",ROUND(千円単!O149/1000,0)) -> 221 | P149: =IF(千円単!P149="","",ROUND(千円単!P149/1000,0)) -> 28 | Q149: =IF(千円単!Q149="","",ROUND(千円単!Q149/1000,0)) -> 64 | R149: =IF(千円単!R149="","",ROUND(千円単!R149/1000,0)) -> 238 | S149: =IF(千円単!S149="","",ROUND(千円単!S149/1000,0)) -> 133 | T149: =IF(千円単!T149="","",ROUND(千円単!T149/1000,0)) -> 4 | U149: =IF(千円単!U149="","",ROUND(千円単!U149/1000,0)) -> 404 | V149: =IF(千円単!V149="","",ROUND(千円単!V149/1000,0)) -> 227 | W149: =IF(千円単!W149="","",ROUND(千円単!W149/1000,0)) -> 174 | X149: =IF(千円単!X149="","",ROUND(千円単!X149/1000,0)) -> -166 | Y149: =IF(千円単!Y149="","",ROUND(千円単!Y149/1000,0)) -> 64
A150: 2017 | B150: 46 | C150: 17 | D150: 1 | E150: 149 | F150: 公共 | G150: 192015 | H150: 山梨県 | I150: 甲府市 | J150: =IF(千円単!J150="","",ROUND(千円単!J150/1000,0)) -> 6560 | K150: =IF(千円単!K150="","",ROUND(千円単!K150/1000,0)) -> 2873 | L150: =IF(千円単!L150="","",ROUND(千円単!L150/1000,0)) -> 1889 | M150: =IF(千円単!M150="","",ROUND(千円単!M150/1000,0)) -> 5218 | N150: =IF(千円単!N150="","",ROUND(千円単!N150/1000,0)) -> 779 | O150: =IF(千円単!O150="","",ROUND(千円単!O150/1000,0)) -> 3290 | P150: =IF(千円単!P150="","",ROUND(千円単!P150/1000,0)) -> 188 | Q150: =IF(千円単!Q150="","",ROUND(千円単!Q150/1000,0)) -> 1342 | R150: =IF(千円単!R150="","",ROUND(千円単!R150/1000,0)) -> 2644 | S150: =IF(千円単!S150="","",ROUND(千円単!S150/1000,0)) -> 1343 | T150: =IF(千円単!T150="","",ROUND(千円単!T150/1000,0)) -> 898 | U150: =IF(千円単!U150="","",ROUND(千円単!U150/1000,0)) -> 5361 | V150: =IF(千円単!V150="","",ROUND(千円単!V150/1000,0)) -> 1374 | W150: =IF(千円単!W150="","",ROUND(千円単!W150/1000,0)) -> 3791 | X150: =IF(千円単!X150="","",ROUND(千円単!X150/1000,0)) -> -2717 | Y150: =IF(千円単!Y150="","",ROUND(千円単!Y150/1000,0)) -> 1342
A151: 2017 | B151: 46 | C151: 17 | D151: 1 | E151: 150 | F151: 公共 | G151: 192058 | H151: 山梨県 | I151: 山梨市 | J151: =IF(千円単!J151="","",ROUND(千円単!J151/1000,0)) -> 787 | K151: =IF(千円単!K151="","",ROUND(千円単!K151/1000,0)) -> 278 | L151: =IF(千円単!L151="","",ROUND(千円単!L151/1000,0)) -> 375 | M151: =IF(千円単!M151="","",ROUND(千円単!M151/1000,0)) -> 795 | N151: =IF(千円単!N151="","",ROUND(千円単!N151/1000,0)) -> 131 | O151: =IF(千円単!O151="","",ROUND(千円単!O151/1000,0)) -> 363 | P151: =IF(千円単!P151="","",ROUND(千円単!P151/1000,0)) -> 66 | Q151: =IF(千円単!Q151="","",ROUND(千円単!Q151/1000,0)) -> -8 | R151: =IF(千円単!R151="","",ROUND(千円単!R151/1000,0)) -> 579 | S151: =IF(千円単!S151="","",ROUND(千円単!S151/1000,0)) -> 298 | T151: =IF(千円単!T151="","",ROUND(千円単!T151/1000,0)) -> 128 | U151: =IF(千円単!U151="","",ROUND(千円単!U151/1000,0)) -> 815 | V151: =IF(千円単!V151="","",ROUND(千円単!V151/1000,0)) -> 333 | W151: =IF(千円単!W151="","",ROUND(千円単!W151/1000,0)) -> 483 | X151: =IF(千円単!X151="","",ROUND(千円単!X151/1000,0)) -> -237 | Y151: =IF(千円単!Y151="","",ROUND(千円単!Y151/1000,0)) -> -8
A152: 2017 | B152: 46 | C152: 17 | D152: 1 | E152: 151 | F152: 公共 | G152: 192112 | H152: 山梨県 | I152: 笛吹市 | J152: =IF(千円単!J152="","",ROUND(千円単!J152/1000,0)) -> 1972 | K152: =IF(千円単!K152="","",ROUND(千円単!K152/1000,0)) -> 547 | L152: =IF(千円単!L152="","",ROUND(千円単!L152/1000,0)) -> 1091 | M152: =IF(千円単!M152="","",ROUND(千円単!M152/1000,0)) -> 1891 | N152: =IF(千円単!N152="","",ROUND(千円単!N152/1000,0)) -> 348 | O152: =IF(千円単!O152="","",ROUND(千円単!O152/1000,0)) -> 1025 | P152: =IF(千円単!P152="","",ROUND(千円単!P152/1000,0)) -> 45 | Q152: =IF(千円単!Q152="","",ROUND(千円単!Q152/1000,0)) -> 81 | R152: =IF(千円単!R152="","",ROUND(千円単!R152/1000,0)) -> 928 | S152: =IF(千円単!S152="","",ROUND(千円単!S152/1000,0)) -> 246 | T152: =IF(千円単!T152="","",ROUND(千円単!T152/1000,0)) -> 597 | U152: =IF(千円単!U152="","",ROUND(千円単!U152/1000,0)) -> 1647 | V152: =IF(千円単!V152="","",ROUND(千円単!V152/1000,0)) -> 362 | W152: =IF(千円単!W152="","",ROUND(千円単!W152/1000,0)) -> 1284 | X152: =IF(千円単!X152="","",ROUND(千円単!X152/1000,0)) -> -719 | Y152: =IF(千円単!Y152="","",ROUND(千円単!Y152/1000,0)) -> 81
A153: 2017 | B153: 46 | C153: 17 | D153: 1 | E153: 152 | F153: 公共 | G153: 202011 | H153: 長野県 | I153: 長野市 | J153: =IF(千円単!J153="","",ROUND(千円単!J153/1000,0)) -> 12455 | K153: =IF(千円単!K153="","",ROUND(千円単!K153/1000,0)) -> 6785 | L153: =IF(千円単!L153="","",ROUND(千円単!L153/1000,0)) -> 2740 | M153: =IF(千円単!M153="","",ROUND(千円単!M153/1000,0)) -> 9833 | N153: =IF(千円単!N153="","",ROUND(千円単!N153/1000,0)) -> 1731 | O153: =IF(千円単!O153="","",ROUND(千円単!O153/1000,0)) -> 5373 | P153: =IF(千円単!P153="","",ROUND(千円単!P153/1000,0)) -> 277 | Q153: =IF(千円単!Q153="","",ROUND(千円単!Q153/1000,0)) -> 2621 | R153: =IF(千円単!R153="","",ROUND(千円単!R153/1000,0)) -> 3637 | S153: =IF(千円単!S153="","",ROUND(千円単!S153/1000,0)) -> 1575 | T153: =IF(千円単!T153="","",ROUND(千円単!T153/1000,0)) -> 909 | U153: =IF(千円単!U153="","",ROUND(千円単!U153/1000,0)) -> 8926 | V153: =IF(千円単!V153="","",ROUND(千円単!V153/1000,0)) -> 3330 | W153: =IF(千円単!W153="","",ROUND(千円単!W153/1000,0)) -> 5596 | X153: =IF(千円単!X153="","",ROUND(千円単!X153/1000,0)) -> -5289 | Y153: =IF(千円単!Y153="","",ROUND(千円単!Y153/1000,0)) -> 2621
A154: 2017 | B154: 46 | C154: 17 | D154: 1 | E154: 153 | F154: 公共 | G154: 202029 | H154: 長野県 | I154: 松本市 | J154: =IF(千円単!J154="","",ROUND(千円単!J154/1000,0)) -> 5625 | K154: =IF(千円単!K154="","",ROUND(千円単!K154/1000,0)) -> 4188 | L154: =IF(千円単!L154="","",ROUND(千円単!L154/1000,0)) -> 143 | M154: =IF(千円単!M154="","",ROUND(千円単!M154/1000,0)) -> 4821 | N154: =IF(千円単!N154="","",ROUND(千円単!N154/1000,0)) -> 498 | O154: =IF(千円単!O154="","",ROUND(千円単!O154/1000,0)) -> 2753 | P154: =IF(千円単!P154="","",ROUND(千円単!P154/1000,0)) -> 220 | Q154: =IF(千円単!Q154="","",ROUND(千円単!Q154/1000,0)) -> 804 | R154: =IF(千円単!R154="","",ROUND(千円単!R154/1000,0)) -> 2143 | S154: =IF(千円単!S154="","",ROUND(千円単!S154/1000,0)) -> 555 | T154: =IF(千円単!T154="","",ROUND(千円単!T154/1000,0)) -> 948 | U154: =IF(千円単!U154="","",ROUND(千円単!U154/1000,0)) -> 4029 | V154: =IF(千円単!V154="","",ROUND(千円単!V154/1000,0)) -> 1352 | W154: =IF(千円単!W154="","",ROUND(千円単!W154/1000,0)) -> 2675 | X154: =IF(千円単!X154="","",ROUND(千円単!X154/1000,0)) -> -1886 | Y154: =IF(千円単!Y154="","",ROUND(千円単!Y154/1000,0)) -> 804
A155: 2017 | B155: 46 | C155: 17 | D155: 1 | E155: 154 | F155: 公共 | G155: 202037 | H155: 長野県 | I155: 上田市 | J155: =IF(千円単!J155="","",ROUND(千円単!J155/1000,0)) -> 4484 | K155: =IF(千円単!K155="","",ROUND(千円単!K155/1000,0)) -> 1864 | L155: =IF(千円単!L155="","",ROUND(千円単!L155/1000,0)) -> 1580 | M155: =IF(千円単!M155="","",ROUND(千円単!M155/1000,0)) -> 3878 | N155: =IF(千円単!N155="","",ROUND(千円単!N155/1000,0)) -> 667 | O155: =IF(千円単!O155="","",ROUND(千円単!O155/1000,0)) -> 2439 | P155: =IF(千円単!P155="","",ROUND(千円単!P155/1000,0)) -> 70 | Q155: =IF(千円単!Q155="","",ROUND(千円単!Q155/1000,0)) -> 607 | R155: =IF(千円単!R155="","",ROUND(千円単!R155/1000,0)) -> 579 | S155: =IF(千円単!S155="","",ROUND(千円単!S155/1000,0)) -> 204 | T155: =IF(千円単!T155="","",ROUND(千円単!T155/1000,0)) -> 194 | U155: =IF(千円単!U155="","",ROUND(千円単!U155/1000,0)) -> 2724 | V155: =IF(千円単!V155="","",ROUND(千円単!V155/1000,0)) -> 465 | W155: =IF(千円単!W155="","",ROUND(千円単!W155/1000,0)) -> 2259 | X155: =IF(千円単!X155="","",ROUND(千円単!X155/1000,0)) -> -2145 | Y155: =IF(千円単!Y155="","",ROUND(千円単!Y155/1000,0)) -> 607
A156: 2017 | B156: 46 | C156: 17 | D156: 1 | E156: 155 | F156: 公共 | G156: 202045 | H156: 長野県 | I156: 岡谷市 | J156: =IF(千円単!J156="","",ROUND(千円単!J156/1000,0)) -> 1655 | K156: =IF(千円単!K156="","",ROUND(千円単!K156/1000,0)) -> 962 | L156: =IF(千円単!L156="","",ROUND(千円単!L156/1000,0)) -> 282 | M156: =IF(千円単!M156="","",ROUND(千円単!M156/1000,0)) -> 1442 | N156: =IF(千円単!N156="","",ROUND(千円単!N156/1000,0)) -> 167 | O156: =IF(千円単!O156="","",ROUND(千円単!O156/1000,0)) -> 777 | P156: =IF(千円単!P156="","",ROUND(千円単!P156/1000,0)) -> 71 | Q156: =IF(千円単!Q156="","",ROUND(千円単!Q156/1000,0)) -> 213 | R156: =IF(千円単!R156="","",ROUND(千円単!R156/1000,0)) -> 734 | S156: =IF(千円単!S156="","",ROUND(千円単!S156/1000,0)) -> 497 | T156: =IF(千円単!T156="","",ROUND(千円単!T156/1000,0)) -> 143 | U156: =IF(千円単!U156="","",ROUND(千円単!U156/1000,0)) -> 1382 | V156: =IF(千円単!V156="","",ROUND(千円単!V156/1000,0)) -> 286 | W156: =IF(千円単!W156="","",ROUND(千円単!W156/1000,0)) -> 1096 | X156: =IF(千円単!X156="","",ROUND(千円単!X156/1000,0)) -> -648 | Y156: =IF(千円単!Y156="","",ROUND(千円単!Y156/1000,0)) -> 213
A157: 2017 | B157: 46 | C157: 17 | D157: 1 | E157: 156 | F157: 公共 | G157: 202053 | H157: 長野県 | I157: 飯田市 | J157: =IF(千円単!J157="","",ROUND(千円単!J157/1000,0)) -> 3329 | K157: =IF(千円単!K157="","",ROUND(千円単!K157/1000,0)) -> 1588 | L157: =IF(千円単!L157="","",ROUND(千円単!L157/1000,0)) -> 681 | M157: =IF(千円単!M157="","",ROUND(千円単!M157/1000,0)) -> 2833 | N157: =IF(千円単!N157="","",ROUND(千円単!N157/1000,0)) -> 387 | O157: =IF(千円単!O157="","",ROUND(千円単!O157/1000,0)) -> 1676 | P157: =IF(千円単!P157="","",ROUND(千円単!P157/1000,0)) -> 132 | Q157: =IF(千円単!Q157="","",ROUND(千円単!Q157/1000,0)) -> 496 | R157: =IF(千円単!R157="","",ROUND(千円単!R157/1000,0)) -> 1103 | S157: =IF(千円単!S157="","",ROUND(千円単!S157/1000,0)) -> 270 | T157: =IF(千円単!T157="","",ROUND(千円単!T157/1000,0)) -> 635 | U157: =IF(千円単!U157="","",ROUND(千円単!U157/1000,0)) -> 1984 | V157: =IF(千円単!V157="","",ROUND(千円単!V157/1000,0)) -> 489 | W157: =IF(千円単!W157="","",ROUND(千円単!W157/1000,0)) -> 1495 | X157: =IF(千円単!X157="","",ROUND(千円単!X157/1000,0)) -> -881 | Y157: =IF(千円単!Y157="","",ROUND(千円単!Y157/1000,0)) -> 496
A158: 2017 | B158: 46 | C158: 17 | D158: 1 | E158: 157 | F158: 公共 | G158: 202061 | H158: 長野県 | I158: 諏訪市 | J158: =IF(千円単!J158="","",ROUND(千円単!J158/1000,0)) -> 2149 | K158: =IF(千円単!K158="","",ROUND(千円単!K158/1000,0)) -> 1259 | L158: =IF(千円単!L158="","",ROUND(千円単!L158/1000,0)) -> 597 | M158: =IF(千円単!M158="","",ROUND(千円単!M158/1000,0)) -> 1848 | N158: =IF(千円単!N158="","",ROUND(千円単!N158/1000,0)) -> 225 | O158: =IF(千円単!O158="","",ROUND(千円単!O158/1000,0)) -> 1011 | P158: =IF(千円単!P158="","",ROUND(千円単!P158/1000,0)) -> 72 | Q158: =IF(千円単!Q158="","",ROUND(千円単!Q158/1000,0)) -> 301 | R158: =IF(千円単!R158="","",ROUND(千円単!R158/1000,0)) -> 306 | S158: =IF(千円単!S158="","",ROUND(千円単!S158/1000,0)) -> 109 | T158: =IF(千円単!T158="","",ROUND(千円単!T158/1000,0)) -> 133 | U158: =IF(千円単!U158="","",ROUND(千円単!U158/1000,0)) -> 1380 | V158: =IF(千円単!V158="","",ROUND(千円単!V158/1000,0)) -> 335 | W158: =IF(千円単!W158="","",ROUND(千円単!W158/1000,0)) -> 1045 | X158: =IF(千円単!X158="","",ROUND(千円単!X158/1000,0)) -> -1075 | Y158: =IF(千円単!Y158="","",ROUND(千円単!Y158/1000,0)) -> 301
A159: 2017 | B159: 46 | C159: 17 | D159: 1 | E159: 158 | F159: 公共 | G159: 202070 | H159: 長野県 | I159: 須坂市 | J159: =IF(千円単!J159="","",ROUND(千円単!J159/1000,0)) -> 1672 | K159: =IF(千円単!K159="","",ROUND(千円単!K159/1000,0)) -> 741 | L159: =IF(千円単!L159="","",ROUND(千円単!L159/1000,0)) -> 599 | M159: =IF(千円単!M159="","",ROUND(千円単!M159/1000,0)) -> 1364 | N159: =IF(千円単!N159="","",ROUND(千円単!N159/1000,0)) -> 297 | O159: =IF(千円単!O159="","",ROUND(千円単!O159/1000,0)) -> 723 | P159: =IF(千円単!P159="","",ROUND(千円単!P159/1000,0)) -> 16 | Q159: =IF(千円単!Q159="","",ROUND(千円単!Q159/1000,0)) -> 308 | R159: =IF(千円単!R159="","",ROUND(千円単!R159/1000,0)) -> 854 | S159: =IF(千円単!S159="","",ROUND(千円単!S159/1000,0)) -> 515 | T159: =IF(千円単!T159="","",ROUND(千円単!T159/1000,0)) -> 322 | U159: =IF(千円単!U159="","",ROUND(千円単!U159/1000,0)) -> 1417 | V159: =IF(千円単!V159="","",ROUND(千円単!V159/1000,0)) -> 76 | W159: =IF(千円単!W159="","",ROUND(千円単!W159/1000,0)) -> 1340 | X159: =IF(千円単!X159="","",ROUND(千円単!X159/1000,0)) -> -563 | Y159: =IF(千円単!Y159="","",ROUND(千円単!Y159/1000,0)) -> 308
A160: 2017 | B160: 46 | C160: 17 | D160: 1 | E160: 159 | F160: 公共 | G160: 202088 | H160: 長野県 | I160: 小諸市 | J160: =IF(千円単!J160="","",ROUND(千円単!J160/1000,0)) -> 957 | K160: =IF(千円単!K160="","",ROUND(千円単!K160/1000,0)) -> 368 | L160: =IF(千円単!L160="","",ROUND(千円単!L160/1000,0)) -> 362 | M160: =IF(千円単!M160="","",ROUND(千円単!M160/1000,0)) -> 891 | N160: =IF(千円単!N160="","",ROUND(千円単!N160/1000,0)) -> 160 | O160: =IF(千円単!O160="","",ROUND(千円単!O160/1000,0)) -> 542 | P160: =IF(千円単!P160="","",ROUND(千円単!P160/1000,0)) -> 20 | Q160: =IF(千円単!Q160="","",ROUND(千円単!Q160/1000,0)) -> 66 | R160: =IF(千円単!R160="","",ROUND(千円単!R160/1000,0)) -> 594 | S160: =IF(千円単!S160="","",ROUND(千円単!S160/1000,0)) -> 348 | T160: =IF(千円単!T160="","",ROUND(千円単!T160/1000,0)) -> 111 | U160: =IF(千円単!U160="","",ROUND(千円単!U160/1000,0)) -> 915 | V160: =IF(千円単!V160="","",ROUND(千円単!V160/1000,0)) -> 244 | W160: =IF(千円単!W160="","",ROUND(千円単!W160/1000,0)) -> 672 | X160: =IF(千円単!X160="","",ROUND(千円単!X160/1000,0)) -> -321 | Y160: =IF(千円単!Y160="","",ROUND(千円単!Y160/1000,0)) -> 66
A161: 2017 | B161: 46 | C161: 17 | D161: 1 | E161: 160 | F161: 公共 | G161: 202096 | H161: 長野県 | I161: 伊那市 | J161: =IF(千円単!J161="","",ROUND(千円単!J161/1000,0)) -> 1500 | K161: =IF(千円単!K161="","",ROUND(千円単!K161/1000,0)) -> 661 | L161: =IF(千円単!L161="","",ROUND(千円単!L161/1000,0)) -> 437 | M161: =IF(千円単!M161="","",ROUND(千円単!M161/1000,0)) -> 1317 | N161: =IF(千円単!N161="","",ROUND(千円単!N161/1000,0)) -> 235 | O161: =IF(千円単!O161="","",ROUND(千円単!O161/1000,0)) -> 735 | P161: =IF(千円単!P161="","",ROUND(千円単!P161/1000,0)) -> 60 | Q161: =IF(千円単!Q161="","",ROUND(千円単!Q161/1000,0)) -> 182 | R161: =IF(千円単!R161="","",ROUND(千円単!R161/1000,0)) -> 1132 | S161: =IF(千円単!S161="","",ROUND(千円単!S161/1000,0)) -> 883 | T161: =IF(千円単!T161="","",ROUND(千円単!T161/1000,0)) -> 158 | U161: =IF(千円単!U161="","",ROUND(千円単!U161/1000,0)) -> 1622 | V161: =IF(千円単!V161="","",ROUND(千円単!V161/1000,0)) -> 284 | W161: =IF(千円単!W161="","",ROUND(千円単!W161/1000,0)) -> 1338 | X161: =IF(千円単!X161="","",ROUND(千円単!X161/1000,0)) -> -490 | Y161: =IF(千円単!Y161="","",ROUND(千円単!Y161/1000,0)) -> 182
A162: 2017 | B162: 46 | C162: 17 | D162: 1 | E162: 161 | F162: 公共 | G162: 202100 | H162: 長野県 | I162: 駒ケ根市 | J162: =IF(千円単!J162="","",ROUND(千円単!J162/1000,0)) -> 957 | K162: =IF(千円単!K162="","",ROUND(千円単!K162/1000,0)) -> 384 | L162: =IF(千円単!L162="","",ROUND(千円単!L162/1000,0)) -> 321 | M162: =IF(千円単!M162="","",ROUND(千円単!M162/1000,0)) -> 847 | N162: =IF(千円単!N162="","",ROUND(千円単!N162/1000,0)) -> 136 | O162: =IF(千円単!O162="","",ROUND(千円単!O162/1000,0)) -> 501 | P162: =IF(千円単!P162="","",ROUND(千円単!P162/1000,0)) -> 23 | Q162: =IF(千円単!Q162="","",ROUND(千円単!Q162/1000,0)) -> 110 | R162: =IF(千円単!R162="","",ROUND(千円単!R162/1000,0)) -> 358 | S162: =IF(千円単!S162="","",ROUND(千円単!S162/1000,0)) -> 255 | T162: =IF(千円単!T162="","",ROUND(千円単!T162/1000,0)) -> 19 | U162: =IF(千円単!U162="","",ROUND(千円単!U162/1000,0)) -> 682 | V162: =IF(千円単!V162="","",ROUND(千円単!V162/1000,0)) -> 121 | W162: =IF(千円単!W162="","",ROUND(千円単!W162/1000,0)) -> 561 | X162: =IF(千円単!X162="","",ROUND(千円単!X162/1000,0)) -> -324 | Y162: =IF(千円単!Y162="","",ROUND(千円単!Y162/1000,0)) -> 110
A163: 2017 | B163: 46 | C163: 17 | D163: 1 | E163: 162 | F163: 公共 | G163: 202118 | H163: 長野県 | I163: 中野市 | J163: =IF(千円単!J163="","",ROUND(千円単!J163/1000,0)) -> 1255 | K163: =IF(千円単!K163="","",ROUND(千円単!K163/1000,0)) -> 439 | L163: =IF(千円単!L163="","",ROUND(千円単!L163/1000,0)) -> 412 | M163: =IF(千円単!M163="","",ROUND(千円単!M163/1000,0)) -> 1006 | N163: =IF(千円単!N163="","",ROUND(千円単!N163/1000,0)) -> 130 | O163: =IF(千円単!O163="","",ROUND(千円単!O163/1000,0)) -> 591 | P163: =IF(千円単!P163="","",ROUND(千円単!P163/1000,0)) -> 41 | Q163: =IF(千円単!Q163="","",ROUND(千円単!Q163/1000,0)) -> 249 | R163: =IF(千円単!R163="","",ROUND(千円単!R163/1000,0)) -> 571 | S163: =IF(千円単!S163="","",ROUND(千円単!S163/1000,0)) -> 329 | T163: =IF(千円単!T163="","",ROUND(千円単!T163/1000,0)) -> 0 | U163: =IF(千円単!U163="","",ROUND(千円単!U163/1000,0)) -> 971 | V163: =IF(千円単!V163="","",ROUND(千円単!V163/1000,0)) -> 300 | W163: =IF(千円単!W163="","",ROUND(千円単!W163/1000,0)) -> 671 | X163: =IF(千円単!X163="","",ROUND(千円単!X163/1000,0)) -> -400 | Y163: =IF(千円単!Y163="","",ROUND(千円単!Y163/1000,0)) -> 249
A164: 2017 | B164: 46 | C164: 17 | D164: 1 | E164: 163 | F164: 公共 | G164: 202126 | H164: 長野県 | I164: 大町市 | J164: =IF(千円単!J164="","",ROUND(千円単!J164/1000,0)) -> 675 | K164: =IF(千円単!K164="","",ROUND(千円単!K164/1000,0)) -> 257 | L164: =IF(千円単!L164="","",ROUND(千円単!L164/1000,0)) -> 276 | M164: =IF(千円単!M164="","",ROUND(千円単!M164/1000,0)) -> 673 | N164: =IF(千円単!N164="","",ROUND(千円単!N164/1000,0)) -> 136 | O164: =IF(千円単!O164="","",ROUND(千円単!O164/1000,0)) -> 366 | P164: =IF(千円単!P164="","",ROUND(千円単!P164/1000,0)) -> 37 | Q164: =IF(千円単!Q164="","",ROUND(千円単!Q164/1000,0)) -> 1 | R164: =IF(千円単!R164="","",ROUND(千円単!R164/1000,0)) -> 346 | S164: =IF(千円単!S164="","",ROUND(千円単!S164/1000,0)) -> 186 | T164: =IF(千円単!T164="","",ROUND(千円単!T164/1000,0)) -> 84 | U164: =IF(千円単!U164="","",ROUND(千円単!U164/1000,0)) -> 693 | V164: =IF(千円単!V164="","",ROUND(千円単!V164/1000,0)) -> 271 | W164: =IF(千円単!W164="","",ROUND(千円単!W164/1000,0)) -> 423 | X164: =IF(千円単!X164="","",ROUND(千円単!X164/1000,0)) -> -347 | Y164: =IF(千円単!Y164="","",ROUND(千円単!Y164/1000,0)) -> 1
A165: 2017 | B165: 46 | C165: 17 | D165: 1 | E165: 164 | F165: 公共 | G165: 202142 | H165: 長野県 | I165: 茅野市 | J165: =IF(千円単!J165="","",ROUND(千円単!J165/1000,0)) -> 2025 | K165: =IF(千円単!K165="","",ROUND(千円単!K165/1000,0)) -> 1149 | L165: =IF(千円単!L165="","",ROUND(千円単!L165/1000,0)) -> 649 | M165: =IF(千円単!M165="","",ROUND(千円単!M165/1000,0)) -> 1650 | N165: =IF(千円単!N165="","",ROUND(千円単!N165/1000,0)) -> 183 | O165: =IF(千円単!O165="","",ROUND(千円単!O165/1000,0)) -> 912 | P165: =IF(千円単!P165="","",ROUND(千円単!P165/1000,0)) -> 61 | Q165: =IF(千円単!Q165="","",ROUND(千円単!Q165/1000,0)) -> 375 | R165: =IF(千円単!R165="","",ROUND(千円単!R165/1000,0)) -> 292 | S165: =IF(千円単!S165="","",ROUND(千円単!S165/1000,0)) -> 110 | T165: =IF(千円単!T165="","",ROUND(千円単!T165/1000,0)) -> 85 | U165: =IF(千円単!U165="","",ROUND(千円単!U165/1000,0)) -> 1445 | V165: =IF(千円単!V165="","",ROUND(千円単!V165/1000,0)) -> 324 | W165: =IF(千円単!W165="","",ROUND(千円単!W165/1000,0)) -> 1121 | X165: =IF(千円単!X165="","",ROUND(千円単!X165/1000,0)) -> -1153 | Y165: =IF(千円単!Y165="","",ROUND(千円単!Y165/1000,0)) -> 375
A166: 2017 | B166: 46 | C166: 17 | D166: 1 | E166: 165 | F166: 公共 | G166: 202151 | H166: 長野県 | I166: 塩尻市 | J166: =IF(千円単!J166="","",ROUND(千円単!J166/1000,0)) -> 2203 | K166: =IF(千円単!K166="","",ROUND(千円単!K166/1000,0)) -> 1246 | L166: =IF(千円単!L166="","",ROUND(千円単!L166/1000,0)) -> 317 | M166: =IF(千円単!M166="","",ROUND(千円単!M166/1000,0)) -> 2041 | N166: =IF(千円単!N166="","",ROUND(千円単!N166/1000,0)) -> 299 | O166: =IF(千円単!O166="","",ROUND(千円単!O166/1000,0)) -> 1196 | P166: =IF(千円単!P166="","",ROUND(千円単!P166/1000,0)) -> 65 | Q166: =IF(千円単!Q166="","",ROUND(千円単!Q166/1000,0)) -> 162 | R166: =IF(千円単!R166="","",ROUND(千円単!R166/1000,0)) -> 1247 | S166: =IF(千円単!S166="","",ROUND(千円単!S166/1000,0)) -> 645 | T166: =IF(千円単!T166="","",ROUND(千円単!T166/1000,0)) -> 280 | U166: =IF(千円単!U166="","",ROUND(千円単!U166/1000,0)) -> 2062 | V166: =IF(千円単!V166="","",ROUND(千円単!V166/1000,0)) -> 903 | W166: =IF(千円単!W166="","",ROUND(千円単!W166/1000,0)) -> 1159 | X166: =IF(千円単!X166="","",ROUND(千円単!X166/1000,0)) -> -814 | Y166: =IF(千円単!Y166="","",ROUND(千円単!Y166/1000,0)) -> 162
A167: 2017 | B167: 46 | C167: 17 | D167: 1 | E167: 166 | F167: 公共 | G167: 202177 | H167: 長野県 | I167: 佐久市 | J167: =IF(千円単!J167="","",ROUND(千円単!J167/1000,0)) -> 2554 | K167: =IF(千円単!K167="","",ROUND(千円単!K167/1000,0)) -> 1575 | L167: =IF(千円単!L167="","",ROUND(千円単!L167/1000,0)) -> 388 | M167: =IF(千円単!M167="","",ROUND(千円単!M167/1000,0)) -> 2259 | N167: =IF(千円単!N167="","",ROUND(千円単!N167/1000,0)) -> 349 | O167: =IF(千円単!O167="","",ROUND(千円単!O167/1000,0)) -> 1200 | P167: =IF(千円単!P167="","",ROUND(千円単!P167/1000,0)) -> 71 | Q167: =IF(千円単!Q167="","",ROUND(千円単!Q167/1000,0)) -> 295 | R167: =IF(千円単!R167="","",ROUND(千円単!R167/1000,0)) -> 897 | S167: =IF(千円単!S167="","",ROUND(千円単!S167/1000,0)) -> 215 | T167: =IF(千円単!T167="","",ROUND(千円単!T167/1000,0)) -> 0 | U167: =IF(千円単!U167="","",ROUND(千円単!U167/1000,0)) -> 1691 | V167: =IF(千円単!V167="","",ROUND(千円単!V167/1000,0)) -> 456 | W167: =IF(千円単!W167="","",ROUND(千円単!W167/1000,0)) -> 1234 | X167: =IF(千円単!X167="","",ROUND(千円単!X167/1000,0)) -> -793 | Y167: =IF(千円単!Y167="","",ROUND(千円単!Y167/1000,0)) -> 295
A168: 2017 | B168: 46 | C168: 17 | D168: 1 | E168: 167 | F168: 公共 | G168: 202185 | H168: 長野県 | I168: 千曲市 | J168: =IF(千円単!J168="","",ROUND(千円単!J168/1000,0)) -> 2807 | K168: =IF(千円単!K168="","",ROUND(千円単!K168/1000,0)) -> 943 | L168: =IF(千円単!L168="","",ROUND(千円単!L168/1000,0)) -> 1322 | M168: =IF(千円単!M168="","",ROUND(千円単!M168/1000,0)) -> 2352 | N168: =IF(千円単!N168="","",ROUND(千円単!N168/1000,0)) -> 548 | O168: =IF(千円単!O168="","",ROUND(千円単!O168/1000,0)) -> 1277 | P168: =IF(千円単!P168="","",ROUND(千円単!P168/1000,0)) -> 37 | Q168: =IF(千円単!Q168="","",ROUND(千円単!Q168/1000,0)) -> 455 | R168: =IF(千円単!R168="","",ROUND(千円単!R168/1000,0)) -> 835 | S168: =IF(千円単!S168="","",ROUND(千円単!S168/1000,0)) -> 456 | T168: =IF(千円単!T168="","",ROUND(千円単!T168/1000,0)) -> 174 | U168: =IF(千円単!U168="","",ROUND(千円単!U168/1000,0)) -> 1995 | V168: =IF(千円単!V168="","",ROUND(千円単!V168/1000,0)) -> 458 | W168: =IF(千円単!W168="","",ROUND(千円単!W168/1000,0)) -> 1538 | X168: =IF(千円単!X168="","",ROUND(千円単!X168/1000,0)) -> -1160 | Y168: =IF(千円単!Y168="","",ROUND(千円単!Y168/1000,0)) -> 455
A169: 2017 | B169: 46 | C169: 17 | D169: 1 | E169: 168 | F169: 公共 | G169: 202193 | H169: 長野県 | I169: 東御市 | J169: =IF(千円単!J169="","",ROUND(千円単!J169/1000,0)) -> 905 | K169: =IF(千円単!K169="","",ROUND(千円単!K169/1000,0)) -> 297 | L169: =IF(千円単!L169="","",ROUND(千円単!L169/1000,0)) -> 430 | M169: =IF(千円単!M169="","",ROUND(千円単!M169/1000,0)) -> 794 | N169: =IF(千円単!N169="","",ROUND(千円単!N169/1000,0)) -> 156 | O169: =IF(千円単!O169="","",ROUND(千円単!O169/1000,0)) -> 442 | P169: =IF(千円単!P169="","",ROUND(千円単!P169/1000,0)) -> 56 | Q169: =IF(千円単!Q169="","",ROUND(千円単!Q169/1000,0)) -> 111 | R169: =IF(千円単!R169="","",ROUND(千円単!R169/1000,0)) -> 604 | S169: =IF(千円単!S169="","",ROUND(千円単!S169/1000,0)) -> 73 | T169: =IF(千円単!T169="","",ROUND(千円単!T169/1000,0)) -> 25 | U169: =IF(千円単!U169="","",ROUND(千円単!U169/1000,0)) -> 845 | V169: =IF(千円単!V169="","",ROUND(千円単!V169/1000,0)) -> 224 | W169: =IF(千円単!W169="","",ROUND(千円単!W169/1000,0)) -> 621 | X169: =IF(千円単!X169="","",ROUND(千円単!X169/1000,0)) -> -241 | Y169: =IF(千円単!Y169="","",ROUND(千円単!Y169/1000,0)) -> 111
A170: 2017 | B170: 46 | C170: 17 | D170: 1 | E170: 169 | F170: 公共 | G170: 202207 | H170: 長野県 | I170: 安曇野市 | J170: =IF(千円単!J170="","",ROUND(千円単!J170/1000,0)) -> 3715 | K170: =IF(千円単!K170="","",ROUND(千円単!K170/1000,0)) -> 1413 | L170: =IF(千円単!L170="","",ROUND(千円単!L170/1000,0)) -> 1563 | M170: =IF(千円単!M170="","",ROUND(千円単!M170/1000,0)) -> 3168 | N170: =IF(千円単!N170="","",ROUND(千円単!N170/1000,0)) -> 588 | O170: =IF(千円単!O170="","",ROUND(千円単!O170/1000,0)) -> 1650 | P170: =IF(千円単!P170="","",ROUND(千円単!P170/1000,0)) -> 69 | Q170: =IF(千円単!Q170="","",ROUND(千円単!Q170/1000,0)) -> 547 | R170: =IF(千円単!R170="","",ROUND(千円単!R170/1000,0)) -> 312 | S170: =IF(千円単!S170="","",ROUND(千円単!S170/1000,0)) -> 39 | T170: =IF(千円単!T170="","",ROUND(千円単!T170/1000,0)) -> 190 | U170: =IF(千円単!U170="","",ROUND(千円単!U170/1000,0)) -> 1944 | V170: =IF(千円単!V170="","",ROUND(千円単!V170/1000,0)) -> 51 | W170: =IF(千円単!W170="","",ROUND(千円単!W170/1000,0)) -> 1893 | X170: =IF(千円単!X170="","",ROUND(千円単!X170/1000,0)) -> -1632 | Y170: =IF(千円単!Y170="","",ROUND(千円単!Y170/1000,0)) -> 547
A171: 2017 | B171: 46 | C171: 17 | D171: 1 | E171: 170 | F171: 公共 | G171: 203611 | H171: 長野県 | I171: 下諏訪町 | J171: =IF(千円単!J171="","",ROUND(千円単!J171/1000,0)) -> 556 | K171: =IF(千円単!K171="","",ROUND(千円単!K171/1000,0)) -> 429 | L171: =IF(千円単!L171="","",ROUND(千円単!L171/1000,0)) -> 39 | M171: =IF(千円単!M171="","",ROUND(千円単!M171/1000,0)) -> 553 | N171: =IF(千円単!N171="","",ROUND(千円単!N171/1000,0)) -> 43 | O171: =IF(千円単!O171="","",ROUND(千円単!O171/1000,0)) -> 272 | P171: =IF(千円単!P171="","",ROUND(千円単!P171/1000,0)) -> 23 | Q171: =IF(千円単!Q171="","",ROUND(千円単!Q171/1000,0)) -> 3 | R171: =IF(千円単!R171="","",ROUND(千円単!R171/1000,0)) -> 328 | S171: =IF(千円単!S171="","",ROUND(千円単!S171/1000,0)) -> 162 | T171: =IF(千円単!T171="","",ROUND(千円単!T171/1000,0)) -> 61 | U171: =IF(千円単!U171="","",ROUND(千円単!U171/1000,0)) -> 491 | V171: =IF(千円単!V171="","",ROUND(千円単!V171/1000,0)) -> 269 | W171: =IF(千円単!W171="","",ROUND(千円単!W171/1000,0)) -> 222 | X171: =IF(千円単!X171="","",ROUND(千円単!X171/1000,0)) -> -163 | Y171: =IF(千円単!Y171="","",ROUND(千円単!Y171/1000,0)) -> 3
A172: 2017 | B172: 46 | C172: 17 | D172: 1 | E172: 171 | F172: 公共 | G172: 203629 | H172: 長野県 | I172: 富士見町 | J172: =IF(千円単!J172="","",ROUND(千円単!J172/1000,0)) -> 1112 | K172: =IF(千円単!K172="","",ROUND(千円単!K172/1000,0)) -> 527 | L172: =IF(千円単!L172="","",ROUND(千円単!L172/1000,0)) -> 425 | M172: =IF(千円単!M172="","",ROUND(千円単!M172/1000,0)) -> 843 | N172: =IF(千円単!N172="","",ROUND(千円単!N172/1000,0)) -> 151 | O172: =IF(千円単!O172="","",ROUND(千円単!O172/1000,0)) -> 451 | P172: =IF(千円単!P172="","",ROUND(千円単!P172/1000,0)) -> 21 | Q172: =IF(千円単!Q172="","",ROUND(千円単!Q172/1000,0)) -> 269 | R172: =IF(千円単!R172="","",ROUND(千円単!R172/1000,0)) -> 89 | S172: =IF(千円単!S172="","",ROUND(千円単!S172/1000,0)) -> 0 | T172: =IF(千円単!T172="","",ROUND(千円単!T172/1000,0)) -> 0 | U172: =IF(千円単!U172="","",ROUND(千円単!U172/1000,0)) -> 628 | V172: =IF(千円単!V172="","",ROUND(千円単!V172/1000,0)) -> 33 | W172: =IF(千円単!W172="","",ROUND(千円単!W172/1000,0)) -> 588 | X172: =IF(千円単!X172="","",ROUND(千円単!X172/1000,0)) -> -539 | Y172: =IF(千円単!Y172="","",ROUND(千円単!Y172/1000,0)) -> 269
A173: 2017 | B173: 46 | C173: 17 | D173: 1 | E173: 172 | F173: 公共 | G173: 203831 | H173: 長野県 | I173: 箕輪町 | J173: =IF(千円単!J173="","",ROUND(千円単!J173/1000,0)) -> 608 | K173: =IF(千円単!K173="","",ROUND(千円単!K173/1000,0)) -> 226 | L173: =IF(千円単!L173="","",ROUND(千円単!L173/1000,0)) -> 215 | M173: =IF(千円単!M173="","",ROUND(千円単!M173/1000,0)) -> 601 | N173: =IF(千円単!N173="","",ROUND(千円単!N173/1000,0)) -> 121 | O173: =IF(千円単!O173="","",ROUND(千円単!O173/1000,0)) -> 368 | P173: =IF(千円単!P173="","",ROUND(千円単!P173/1000,0)) -> 11 | Q173: =IF(千円単!Q173="","",ROUND(千円単!Q173/1000,0)) -> 7 | R173: =IF(千円単!R173="","",ROUND(千円単!R173/1000,0)) -> 380 | S173: =IF(千円単!S173="","",ROUND(千円単!S173/1000,0)) -> 205 | T173: =IF(千円単!T173="","",ROUND(千円単!T173/1000,0)) -> 114 | U173: =IF(千円単!U173="","",ROUND(千円単!U173/1000,0)) -> 627 | V173: =IF(千円単!V173="","",ROUND(千円単!V173/1000,0)) -> 145 | W173: =IF(千円単!W173="","",ROUND(千円単!W173/1000,0)) -> 482 | X173: =IF(千円単!X173="","",ROUND(千円単!X173/1000,0)) -> -247 | Y173: =IF(千円単!Y173="","",ROUND(千円単!Y173/1000,0)) -> 7
A174: 2017 | B174: 46 | C174: 17 | D174: 1 | E174: 173 | F174: 公共 | G174: 203858 | H174: 長野県 | I174: 南箕輪村 | J174: =IF(千円単!J174="","",ROUND(千円単!J174/1000,0)) -> 627 | K174: =IF(千円単!K174="","",ROUND(千円単!K174/1000,0)) -> 255 | L174: =IF(千円単!L174="","",ROUND(千円単!L174/1000,0)) -> 180 | M174: =IF(千円単!M174="","",ROUND(千円単!M174/1000,0)) -> 615 | N174: =IF(千円単!N174="","",ROUND(千円単!N174/1000,0)) -> 125 | O174: =IF(千円単!O174="","",ROUND(千円単!O174/1000,0)) -> 382 | P174: =IF(千円単!P174="","",ROUND(千円単!P174/1000,0)) -> 20 | Q174: =IF(千円単!Q174="","",ROUND(千円単!Q174/1000,0)) -> 12 | R174: =IF(千円単!R174="","",ROUND(千円単!R174/1000,0)) -> 278 | S174: =IF(千円単!S174="","",ROUND(千円単!S174/1000,0)) -> 58 | T174: =IF(千円単!T174="","",ROUND(千円単!T174/1000,0)) -> 160 | U174: =IF(千円単!U174="","",ROUND(千円単!U174/1000,0)) -> 473 | V174: =IF(千円単!V174="","",ROUND(千円単!V174/1000,0)) -> 95 | W174: =IF(千円単!W174="","",ROUND(千円単!W174/1000,0)) -> 378 | X174: =IF(千円単!X174="","",ROUND(千円単!X174/1000,0)) -> -194 | Y174: =IF(千円単!Y174="","",ROUND(千円単!Y174/1000,0)) -> 12
A175: 2017 | B175: 46 | C175: 17 | D175: 1 | E175: 174 | F175: 公共 | G175: 203882 | H175: 長野県 | I175: 宮田村 | J175: =IF(千円単!J175="","",ROUND(千円単!J175/1000,0)) -> 179 | K175: =IF(千円単!K175="","",ROUND(千円単!K175/1000,0)) -> 115 | L175: =IF(千円単!L175="","",ROUND(千円単!L175/1000,0)) -> 3 | M175: =IF(千円単!M175="","",ROUND(千円単!M175/1000,0)) -> 223 | N175: =IF(千円単!N175="","",ROUND(千円単!N175/1000,0)) -> 33 | O175: =IF(千円単!O175="","",ROUND(千円単!O175/1000,0)) -> 112 | P175: =IF(千円単!P175="","",ROUND(千円単!P175/1000,0)) -> 10 | Q175: =IF(千円単!Q175="","",ROUND(千円単!Q175/1000,0)) -> -44 | R175: =IF(千円単!R175="","",ROUND(千円単!R175/1000,0)) -> 179 | S175: =IF(千円単!S175="","",ROUND(千円単!S175/1000,0)) -> 0 | T175: =IF(千円単!T175="","",ROUND(千円単!T175/1000,0)) -> 0 | U175: =IF(千円単!U175="","",ROUND(千円単!U175/1000,0)) -> 179 | V175: =IF(千円単!V175="","",ROUND(千円単!V175/1000,0)) -> 9 | W175: =IF(千円単!W175="","",ROUND(千円単!W175/1000,0)) -> 170 | X175: =IF(千円単!X175="","",ROUND(千円単!X175/1000,0)) -> 0 | Y175: =IF(千円単!Y175="","",ROUND(千円単!Y175/1000,0)) -> -44
A176: 2017 | B176: 46 | C176: 17 | D176: 1 | E176: 175 | F176: 公共 | G176: 212016 | H176: 岐阜県 | I176: 岐阜市 | J176: =IF(千円単!J176="","",ROUND(千円単!J176/1000,0)) -> 8359 | K176: =IF(千円単!K176="","",ROUND(千円単!K176/1000,0)) -> 5383 | L176: =IF(千円単!L176="","",ROUND(千円単!L176/1000,0)) -> 1420 | M176: =IF(千円単!M176="","",ROUND(千円単!M176/1000,0)) -> 7751 | N176: =IF(千円単!N176="","",ROUND(千円単!N176/1000,0)) -> 1180 | O176: =IF(千円単!O176="","",ROUND(千円単!O176/1000,0)) -> 3621 | P176: =IF(千円単!P176="","",ROUND(千円単!P176/1000,0)) -> 634 | Q176: =IF(千円単!Q176="","",ROUND(千円単!Q176/1000,0)) -> 608 | R176: =IF(千円単!R176="","",ROUND(千円単!R176/1000,0)) -> 4856 | S176: =IF(千円単!S176="","",ROUND(千円単!S176/1000,0)) -> 3031 | T176: =IF(千円単!T176="","",ROUND(千円単!T176/1000,0)) -> 372 | U176: =IF(千円単!U176="","",ROUND(千円単!U176/1000,0)) -> 7253 | V176: =IF(千円単!V176="","",ROUND(千円単!V176/1000,0)) -> 3266 | W176: =IF(千円単!W176="","",ROUND(千円単!W176/1000,0)) -> 3987 | X176: =IF(千円単!X176="","",ROUND(千円単!X176/1000,0)) -> -2397 | Y176: =IF(千円単!Y176="","",ROUND(千円単!Y176/1000,0)) -> 608
A177: 2017 | B177: 46 | C177: 17 | D177: 1 | E177: 176 | F177: 公共 | G177: 212083 | H177: 岐阜県 | I177: 瑞浪市 | J177: =IF(千円単!J177="","",ROUND(千円単!J177/1000,0)) -> 949 | K177: =IF(千円単!K177="","",ROUND(千円単!K177/1000,0)) -> 479 | L177: =IF(千円単!L177="","",ROUND(千円単!L177/1000,0)) -> 165 | M177: =IF(千円単!M177="","",ROUND(千円単!M177/1000,0)) -> 948 | N177: =IF(千円単!N177="","",ROUND(千円単!N177/1000,0)) -> 115 | O177: =IF(千円単!O177="","",ROUND(千円単!O177/1000,0)) -> 573 | P177: =IF(千円単!P177="","",ROUND(千円単!P177/1000,0)) -> 84 | Q177: =IF(千円単!Q177="","",ROUND(千円単!Q177/1000,0)) -> 1 | R177: =IF(千円単!R177="","",ROUND(千円単!R177/1000,0)) -> 964 | S177: =IF(千円単!S177="","",ROUND(千円単!S177/1000,0)) -> 505 | T177: =IF(千円単!T177="","",ROUND(千円単!T177/1000,0)) -> 7 | U177: =IF(千円単!U177="","",ROUND(千円単!U177/1000,0)) -> 1352 | V177: =IF(千円単!V177="","",ROUND(千円単!V177/1000,0)) -> 902 | W177: =IF(千円単!W177="","",ROUND(千円単!W177/1000,0)) -> 450 | X177: =IF(千円単!X177="","",ROUND(千円単!X177/1000,0)) -> -388 | Y177: =IF(千円単!Y177="","",ROUND(千円単!Y177/1000,0)) -> 1
A178: 2017 | B178: 46 | C178: 17 | D178: 1 | E178: 177 | F178: 公共 | G178: 212113 | H178: 岐阜県 | I178: 美濃加茂市 | J178: =IF(千円単!J178="","",ROUND(千円単!J178/1000,0)) -> 1862 | K178: =IF(千円単!K178="","",ROUND(千円単!K178/1000,0)) -> 629 | L178: =IF(千円単!L178="","",ROUND(千円単!L178/1000,0)) -> 723 | M178: =IF(千円単!M178="","",ROUND(千円単!M178/1000,0)) -> 1771 | N178: =IF(千円単!N178="","",ROUND(千円単!N178/1000,0)) -> 325 | O178: =IF(千円単!O178="","",ROUND(千円単!O178/1000,0)) -> 926 | P178: =IF(千円単!P178="","",ROUND(千円単!P178/1000,0)) -> 31 | Q178: =IF(千円単!Q178="","",ROUND(千円単!Q178/1000,0)) -> 91 | R178: =IF(千円単!R178="","",ROUND(千円単!R178/1000,0)) -> 917 | S178: =IF(千円単!S178="","",ROUND(千円単!S178/1000,0)) -> 674 | T178: =IF(千円単!T178="","",ROUND(千円単!T178/1000,0)) -> 153 | U178: =IF(千円単!U178="","",ROUND(千円単!U178/1000,0)) -> 1434 | V178: =IF(千円単!V178="","",ROUND(千円単!V178/1000,0)) -> 208 | W178: =IF(千円単!W178="","",ROUND(千円単!W178/1000,0)) -> 1225 | X178: =IF(千円単!X178="","",ROUND(千円単!X178/1000,0)) -> -517 | Y178: =IF(千円単!Y178="","",ROUND(千円単!Y178/1000,0)) -> 91
A179: 2017 | B179: 46 | C179: 17 | D179: 1 | E179: 178 | F179: 公共 | G179: 212148 | H179: 岐阜県 | I179: 可児市 | J179: =IF(千円単!J179="","",ROUND(千円単!J179/1000,0)) -> 3032 | K179: =IF(千円単!K179="","",ROUND(千円単!K179/1000,0)) -> 1477 | L179: =IF(千円単!L179="","",ROUND(千円単!L179/1000,0)) -> 1030 | M179: =IF(千円単!M179="","",ROUND(千円単!M179/1000,0)) -> 2456 | N179: =IF(千円単!N179="","",ROUND(千円単!N179/1000,0)) -> 373 | O179: =IF(千円単!O179="","",ROUND(千円単!O179/1000,0)) -> 1150 | P179: =IF(千円単!P179="","",ROUND(千円単!P179/1000,0)) -> 55 | Q179: =IF(千円単!Q179="","",ROUND(千円単!Q179/1000,0)) -> 576 | R179: =IF(千円単!R179="","",ROUND(千円単!R179/1000,0)) -> 730 | S179: =IF(千円単!S179="","",ROUND(千円単!S179/1000,0)) -> 192 | T179: =IF(千円単!T179="","",ROUND(千円単!T179/1000,0)) -> 0 | U179: =IF(千円単!U179="","",ROUND(千円単!U179/1000,0)) -> 1998 | V179: =IF(千円単!V179="","",ROUND(千円単!V179/1000,0)) -> 377 | W179: =IF(千円単!W179="","",ROUND(千円単!W179/1000,0)) -> 1621 | X179: =IF(千円単!X179="","",ROUND(千円単!X179/1000,0)) -> -1267 | Y179: =IF(千円単!Y179="","",ROUND(千円単!Y179/1000,0)) -> 576
A180: 2017 | B180: 46 | C180: 17 | D180: 1 | E180: 179 | F180: 公共 | G180: 221007 | H180: 静岡県 | I180: 静岡市 | J180: =IF(千円単!J180="","",ROUND(千円単!J180/1000,0)) -> 21522 | K180: =IF(千円単!K180="","",ROUND(千円単!K180/1000,0)) -> 9655 | L180: =IF(千円単!L180="","",ROUND(千円単!L180/1000,0)) -> 7238 | M180: =IF(千円単!M180="","",ROUND(千円単!M180/1000,0)) -> 20001 | N180: =IF(千円単!N180="","",ROUND(千円単!N180/1000,0)) -> 2883 | O180: =IF(千円単!O180="","",ROUND(千円単!O180/1000,0)) -> 11093 | P180: =IF(千円単!P180="","",ROUND(千円単!P180/1000,0)) -> 897 | Q180: =IF(千円単!Q180="","",ROUND(千円単!Q180/1000,0)) -> 1521 | R180: =IF(千円単!R180="","",ROUND(千円単!R180/1000,0)) -> 12082 | S180: =IF(千円単!S180="","",ROUND(千円単!S180/1000,0)) -> 8420 | T180: =IF(千円単!T180="","",ROUND(千円単!T180/1000,0)) -> 0 | U180: =IF(千円単!U180="","",ROUND(千円単!U180/1000,0)) -> 19659 | V180: =IF(千円単!V180="","",ROUND(千円単!V180/1000,0)) -> 8998 | W180: =IF(千円単!W180="","",ROUND(千円単!W180/1000,0)) -> 10661 | X180: =IF(千円単!X180="","",ROUND(千円単!X180/1000,0)) -> -7577 | Y180: =IF(千円単!Y180="","",ROUND(千円単!Y180/1000,0)) -> 1521
A181: 2017 | B181: 46 | C181: 17 | D181: 1 | E181: 180 | F181: 公共 | G181: 221309 | H181: 静岡県 | I181: 浜松市 | J181: =IF(千円単!J181="","",ROUND(千円単!J181/1000,0)) -> 19823 | K181: =IF(千円単!K181="","",ROUND(千円単!K181/1000,0)) -> 9832 | L181: =IF(千円単!L181="","",ROUND(千円単!L181/1000,0)) -> 4602 | M181: =IF(千円単!M181="","",ROUND(千円単!M181/1000,0)) -> 18186 | N181: =IF(千円単!N181="","",ROUND(千円単!N181/1000,0)) -> 2843 | O181: =IF(千円単!O181="","",ROUND(千円単!O181/1000,0)) -> 11347 | P181: =IF(千円単!P181="","",ROUND(千円単!P181/1000,0)) -> 385 | Q181: =IF(千円単!Q181="","",ROUND(千円単!Q181/1000,0)) -> 1637 | R181: =IF(千円単!R181="","",ROUND(千円単!R181/1000,0)) -> 10489 | S181: =IF(千円単!S181="","",ROUND(千円単!S181/1000,0)) -> 5774 | T181: =IF(千円単!T181="","",ROUND(千円単!T181/1000,0)) -> 0 | U181: =IF(千円単!U181="","",ROUND(千円単!U181/1000,0)) -> 16431 | V181: =IF(千円単!V181="","",ROUND(千円単!V181/1000,0)) -> 6636 | W181: =IF(千円単!W181="","",ROUND(千円単!W181/1000,0)) -> 9795 | X181: =IF(千円単!X181="","",ROUND(千円単!X181/1000,0)) -> -5942 | Y181: =IF(千円単!Y181="","",ROUND(千円単!Y181/1000,0)) -> 1637
A182: 2017 | B182: 46 | C182: 17 | D182: 1 | E182: 181 | F182: 公共 | G182: 222038 | H182: 静岡県 | I182: 沼津市 | J182: =IF(千円単!J182="","",ROUND(千円単!J182/1000,0)) -> 4307 | K182: =IF(千円単!K182="","",ROUND(千円単!K182/1000,0)) -> 1373 | L182: =IF(千円単!L182="","",ROUND(千円単!L182/1000,0)) -> 2112 | M182: =IF(千円単!M182="","",ROUND(千円単!M182/1000,0)) -> 4112 | N182: =IF(千円単!N182="","",ROUND(千円単!N182/1000,0)) -> 651 | O182: =IF(千円単!O182="","",ROUND(千円単!O182/1000,0)) -> 2156 | P182: =IF(千円単!P182="","",ROUND(千円単!P182/1000,0)) -> 163 | Q182: =IF(千円単!Q182="","",ROUND(千円単!Q182/1000,0)) -> 195 | R182: =IF(千円単!R182="","",ROUND(千円単!R182/1000,0)) -> 1702 | S182: =IF(千円単!S182="","",ROUND(千円単!S182/1000,0)) -> 1443 | T182: =IF(千円単!T182="","",ROUND(千円単!T182/1000,0)) -> 2 | U182: =IF(千円単!U182="","",ROUND(千円単!U182/1000,0)) -> 3183 | V182: =IF(千円単!V182="","",ROUND(千円単!V182/1000,0)) -> 1088 | W182: =IF(千円単!W182="","",ROUND(千円単!W182/1000,0)) -> 2096 | X182: =IF(千円単!X182="","",ROUND(千円単!X182/1000,0)) -> -1482 | Y182: =IF(千円単!Y182="","",ROUND(千円単!Y182/1000,0)) -> 195
A183: 2017 | B183: 46 | C183: 17 | D183: 1 | E183: 182 | F183: 公共 | G183: 222054 | H183: 静岡県 | I183: 熱海市 | J183: =IF(千円単!J183="","",ROUND(千円単!J183/1000,0)) -> 2041 | K183: =IF(千円単!K183="","",ROUND(千円単!K183/1000,0)) -> 1173 | L183: =IF(千円単!L183="","",ROUND(千円単!L183/1000,0)) -> 398 | M183: =IF(千円単!M183="","",ROUND(千円単!M183/1000,0)) -> 1739 | N183: =IF(千円単!N183="","",ROUND(千円単!N183/1000,0)) -> 186 | O183: =IF(千円単!O183="","",ROUND(千円単!O183/1000,0)) -> 1038 | P183: =IF(千円単!P183="","",ROUND(千円単!P183/1000,0)) -> 47 | Q183: =IF(千円単!Q183="","",ROUND(千円単!Q183/1000,0)) -> 302 | R183: =IF(千円単!R183="","",ROUND(千円単!R183/1000,0)) -> 445 | S183: =IF(千円単!S183="","",ROUND(千円単!S183/1000,0)) -> 89 | T183: =IF(千円単!T183="","",ROUND(千円単!T183/1000,0)) -> 0 | U183: =IF(千円単!U183="","",ROUND(千円単!U183/1000,0)) -> 864 | V183: =IF(千円単!V183="","",ROUND(千円単!V183/1000,0)) -> 244 | W183: =IF(千円単!W183="","",ROUND(千円単!W183/1000,0)) -> 621 | X183: =IF(千円単!X183="","",ROUND(千円単!X183/1000,0)) -> -419 | Y183: =IF(千円単!Y183="","",ROUND(千円単!Y183/1000,0)) -> 302
A184: 2017 | B184: 46 | C184: 17 | D184: 1 | E184: 183 | F184: 公共 | G184: 222101 | H184: 静岡県 | I184: 富士市 | J184: =IF(千円単!J184="","",ROUND(千円単!J184/1000,0)) -> 6417 | K184: =IF(千円単!K184="","",ROUND(千円単!K184/1000,0)) -> 2768 | L184: =IF(千円単!L184="","",ROUND(千円単!L184/1000,0)) -> 2307 | M184: =IF(千円単!M184="","",ROUND(千円単!M184/1000,0)) -> 5311 | N184: =IF(千円単!N184="","",ROUND(千円単!N184/1000,0)) -> 731 | O184: =IF(千円単!O184="","",ROUND(千円単!O184/1000,0)) -> 2677 | P184: =IF(千円単!P184="","",ROUND(千円単!P184/1000,0)) -> 279 | Q184: =IF(千円単!Q184="","",ROUND(千円単!Q184/1000,0)) -> 1106 | R184: =IF(千円単!R184="","",ROUND(千円単!R184/1000,0)) -> 2514 | S184: =IF(千円単!S184="","",ROUND(千円単!S184/1000,0)) -> 1330 | T184: =IF(千円単!T184="","",ROUND(千円単!T184/1000,0)) -> 102 | U184: =IF(千円単!U184="","",ROUND(千円単!U184/1000,0)) -> 5283 | V184: =IF(千円単!V184="","",ROUND(千円単!V184/1000,0)) -> 2764 | W184: =IF(千円単!W184="","",ROUND(千円単!W184/1000,0)) -> 2519 | X184: =IF(千円単!X184="","",ROUND(千円単!X184/1000,0)) -> -2769 | Y184: =IF(千円単!Y184="","",ROUND(千円単!Y184/1000,0)) -> 1106
A185: 2017 | B185: 46 | C185: 17 | D185: 1 | E185: 184 | F185: 公共 | G185: 231002 | H185: 愛知県 | I185: 名古屋市 | J185: =IF(千円単!J185="","",ROUND(千円単!J185/1000,0)) -> 72556 | K185: =IF(千円単!K185="","",ROUND(千円単!K185/1000,0)) -> 31223 | L185: =IF(千円単!L185="","",ROUND(千円単!L185/1000,0)) -> 34961 | M185: =IF(千円単!M185="","",ROUND(千円単!M185/1000,0)) -> 68980 | N185: =IF(千円単!N185="","",ROUND(千円単!N185/1000,0)) -> 7500 | O185: =IF(千円単!O185="","",ROUND(千円単!O185/1000,0)) -> 36214 | P185: =IF(千円単!P185="","",ROUND(千円単!P185/1000,0)) -> 6355 | Q185: =IF(千円単!Q185="","",ROUND(千円単!Q185/1000,0)) -> 3576 | R185: =IF(千円単!R185="","",ROUND(千円単!R185/1000,0)) -> 26900 | S185: =IF(千円単!S185="","",ROUND(千円単!S185/1000,0)) -> 18519 | T185: =IF(千円単!T185="","",ROUND(千円単!T185/1000,0)) -> 0 | U185: =IF(千円単!U185="","",ROUND(千円単!U185/1000,0)) -> 64681 | V185: =IF(千円単!V185="","",ROUND(千円単!V185/1000,0)) -> 36832 | W185: =IF(千円単!W185="","",ROUND(千円単!W185/1000,0)) -> 27839 | X185: =IF(千円単!X185="","",ROUND(千円単!X185/1000,0)) -> -37781 | Y185: =IF(千円単!Y185="","",ROUND(千円単!Y185/1000,0)) -> 3576
A186: 2017 | B186: 46 | C186: 17 | D186: 1 | E186: 185 | F186: 公共 | G186: 232017 | H186: 愛知県 | I186: 豊橋市 | J186: =IF(千円単!J186="","",ROUND(千円単!J186/1000,0)) -> 7291 | K186: =IF(千円単!K186="","",ROUND(千円単!K186/1000,0)) -> 3633 | L186: =IF(千円単!L186="","",ROUND(千円単!L186/1000,0)) -> 2048 | M186: =IF(千円単!M186="","",ROUND(千円単!M186/1000,0)) -> 7221 | N186: =IF(千円単!N186="","",ROUND(千円単!N186/1000,0)) -> 745 | O186: =IF(千円単!O186="","",ROUND(千円単!O186/1000,0)) -> 3734 | P186: =IF(千円単!P186="","",ROUND(千円単!P186/1000,0)) -> 424 | Q186: =IF(千円単!Q186="","",ROUND(千円単!Q186/1000,0)) -> 69 | R186: =IF(千円単!R186="","",ROUND(千円単!R186/1000,0)) -> 6131 | S186: =IF(千円単!S186="","",ROUND(千円単!S186/1000,0)) -> 2357 | T186: =IF(千円単!T186="","",ROUND(千円単!T186/1000,0)) -> 182 | U186: =IF(千円単!U186="","",ROUND(千円単!U186/1000,0)) -> 8878 | V186: =IF(千円単!V186="","",ROUND(千円単!V186/1000,0)) -> 6081 | W186: =IF(千円単!W186="","",ROUND(千円単!W186/1000,0)) -> 2797 | X186: =IF(千円単!X186="","",ROUND(千円単!X186/1000,0)) -> -2747 | Y186: =IF(千円単!Y186="","",ROUND(千円単!Y186/1000,0)) -> 69
A187: 2017 | B187: 46 | C187: 17 | D187: 1 | E187: 186 | F187: 公共 | G187: 232025 | H187: 愛知県 | I187: 岡崎市 | J187: =IF(千円単!J187="","",ROUND(千円単!J187/1000,0)) -> 8434 | K187: =IF(千円単!K187="","",ROUND(千円単!K187/1000,0)) -> 3766 | L187: =IF(千円単!L187="","",ROUND(千円単!L187/1000,0)) -> 3399 | M187: =IF(千円単!M187="","",ROUND(千円単!M187/1000,0)) -> 7883 | N187: =IF(千円単!N187="","",ROUND(千円単!N187/1000,0)) -> 1334 | O187: =IF(千円単!O187="","",ROUND(千円単!O187/1000,0)) -> 4101 | P187: =IF(千円単!P187="","",ROUND(千円単!P187/1000,0)) -> 224 | Q187: =IF(千円単!Q187="","",ROUND(千円単!Q187/1000,0)) -> 552 | R187: =IF(千円単!R187="","",ROUND(千円単!R187/1000,0)) -> 3780 | S187: =IF(千円単!S187="","",ROUND(千円単!S187/1000,0)) -> 1688 | T187: =IF(千円単!T187="","",ROUND(千円単!T187/1000,0)) -> 133 | U187: =IF(千円単!U187="","",ROUND(千円単!U187/1000,0)) -> 7318 | V187: =IF(千円単!V187="","",ROUND(千円単!V187/1000,0)) -> 3669 | W187: =IF(千円単!W187="","",ROUND(千円単!W187/1000,0)) -> 3645 | X187: =IF(千円単!X187="","",ROUND(千円単!X187/1000,0)) -> -3538 | Y187: =IF(千円単!Y187="","",ROUND(千円単!Y187/1000,0)) -> 552
A188: 2017 | B188: 46 | C188: 17 | D188: 1 | E188: 187 | F188: 公共 | G188: 232033 | H188: 愛知県 | I188: 一宮市 | J188: =IF(千円単!J188="","",ROUND(千円単!J188/1000,0)) -> 7948 | K188: =IF(千円単!K188="","",ROUND(千円単!K188/1000,0)) -> 2425 | L188: =IF(千円単!L188="","",ROUND(千円単!L188/1000,0)) -> 4554 | M188: =IF(千円単!M188="","",ROUND(千円単!M188/1000,0)) -> 8018 | N188: =IF(千円単!N188="","",ROUND(千円単!N188/1000,0)) -> 1475 | O188: =IF(千円単!O188="","",ROUND(千円単!O188/1000,0)) -> 3847 | P188: =IF(千円単!P188="","",ROUND(千円単!P188/1000,0)) -> 439 | Q188: =IF(千円単!Q188="","",ROUND(千円単!Q188/1000,0)) -> -71 | R188: =IF(千円単!R188="","",ROUND(千円単!R188/1000,0)) -> 4372 | S188: =IF(千円単!S188="","",ROUND(千円単!S188/1000,0)) -> 2882 | T188: =IF(千円単!T188="","",ROUND(千円単!T188/1000,0)) -> 294 | U188: =IF(千円単!U188="","",ROUND(千円単!U188/1000,0)) -> 7483 | V188: =IF(千円単!V188="","",ROUND(千円単!V188/1000,0)) -> 3423 | W188: =IF(千円単!W188="","",ROUND(千円単!W188/1000,0)) -> 4060 | X188: =IF(千円単!X188="","",ROUND(千円単!X188/1000,0)) -> -3111 | Y188: =IF(千円単!Y188="","",ROUND(千円単!Y188/1000,0)) -> -71
A189: 2017 | B189: 46 | C189: 17 | D189: 1 | E189: 188 | F189: 公共 | G189: 232050 | H189: 愛知県 | I189: 半田市 | J189: =IF(千円単!J189="","",ROUND(千円単!J189/1000,0)) -> 3881 | K189: =IF(千円単!K189="","",ROUND(千円単!K189/1000,0)) -> 1153 | L189: =IF(千円単!L189="","",ROUND(千円単!L189/1000,0)) -> 1601 | M189: =IF(千円単!M189="","",ROUND(千円単!M189/1000,0)) -> 3771 | N189: =IF(千円単!N189="","",ROUND(千円単!N189/1000,0)) -> 590 | O189: =IF(千円単!O189="","",ROUND(千円単!O189/1000,0)) -> 2183 | P189: =IF(千円単!P189="","",ROUND(千円単!P189/1000,0)) -> 91 | Q189: =IF(千円単!Q189="","",ROUND(千円単!Q189/1000,0)) -> 110 | R189: =IF(千円単!R189="","",ROUND(千円単!R189/1000,0)) -> 1609 | S189: =IF(千円単!S189="","",ROUND(千円単!S189/1000,0)) -> 246 | T189: =IF(千円単!T189="","",ROUND(千円単!T189/1000,0)) -> 159 | U189: =IF(千円単!U189="","",ROUND(千円単!U189/1000,0)) -> 2776 | V189: =IF(千円単!V189="","",ROUND(千円単!V189/1000,0)) -> 408 | W189: =IF(千円単!W189="","",ROUND(千円単!W189/1000,0)) -> 2368 | X189: =IF(千円単!X189="","",ROUND(千円単!X189/1000,0)) -> -1167 | Y189: =IF(千円単!Y189="","",ROUND(千円単!Y189/1000,0)) -> 110
A190: 2017 | B190: 46 | C190: 17 | D190: 1 | E190: 189 | F190: 公共 | G190: 232068 | H190: 愛知県 | I190: 春日井市 | J190: =IF(千円単!J190="","",ROUND(千円単!J190/1000,0)) -> 6944 | K190: =IF(千円単!K190="","",ROUND(千円単!K190/1000,0)) -> 2115 | L190: =IF(千円単!L190="","",ROUND(千円単!L190/1000,0)) -> 2604 | M190: =IF(千円単!M190="","",ROUND(千円単!M190/1000,0)) -> 6944 | N190: =IF(千円単!N190="","",ROUND(千円単!N190/1000,0)) -> 960 | O190: =IF(千円単!O190="","",ROUND(千円単!O190/1000,0)) -> 4224 | P190: =IF(千円単!P190="","",ROUND(千円単!P190/1000,0)) -> 235 | Q190: =IF(千円単!Q190="","",ROUND(千円単!Q190/1000,0)) -> 0 | R190: =IF(千円単!R190="","",ROUND(千円単!R190/1000,0)) -> 5610 | S190: =IF(千円単!S190="","",ROUND(千円単!S190/1000,0)) -> 3195 | T190: =IF(千円単!T190="","",ROUND(千円単!T190/1000,0)) -> 0 | U190: =IF(千円単!U190="","",ROUND(千円単!U190/1000,0)) -> 7958 | V190: =IF(千円単!V190="","",ROUND(千円単!V190/1000,0)) -> 3934 | W190: =IF(千円単!W190="","",ROUND(千円単!W190/1000,0)) -> 4023 | X190: =IF(千円単!X190="","",ROUND(千円単!X190/1000,0)) -> -2347 | Y190: =IF(千円単!Y190="","",ROUND(千円単!Y190/1000,0)) -> 0
A191: 2017 | B191: 46 | C191: 17 | D191: 1 | E191: 190 | F191: 公共 | G191: 232084 | H191: 愛知県 | I191: 津島市 | J191: =IF(千円単!J191="","",ROUND(千円単!J191/1000,0)) -> 668 | K191: =IF(千円単!K191="","",ROUND(千円単!K191/1000,0)) -> 254 | L191: =IF(千円単!L191="","",ROUND(千円単!L191/1000,0)) -> 298 | M191: =IF(千円単!M191="","",ROUND(千円単!M191/1000,0)) -> 649 | N191: =IF(千円単!N191="","",ROUND(千円単!N191/1000,0)) -> 59 | O191: =IF(千円単!O191="","",ROUND(千円単!O191/1000,0)) -> 337 | P191: =IF(千円単!P191="","",ROUND(千円単!P191/1000,0)) -> 39 | Q191: =IF(千円単!Q191="","",ROUND(千円単!Q191/1000,0)) -> 19 | R191: =IF(千円単!R191="","",ROUND(千円単!R191/1000,0)) -> 1559 | S191: =IF(千円単!S191="","",ROUND(千円単!S191/1000,0)) -> 868 | T191: =IF(千円単!T191="","",ROUND(千円単!T191/1000,0)) -> 112 | U191: =IF(千円単!U191="","",ROUND(千円単!U191/1000,0)) -> 1789 | V191: =IF(千円単!V191="","",ROUND(千円単!V191/1000,0)) -> 1468 | W191: =IF(千円単!W191="","",ROUND(千円単!W191/1000,0)) -> 321 | X191: =IF(千円単!X191="","",ROUND(千円単!X191/1000,0)) -> -231 | Y191: =IF(千円単!Y191="","",ROUND(千円単!Y191/1000,0)) -> 19
A192: 2017 | B192: 46 | C192: 17 | D192: 1 | E192: 191 | F192: 公共 | G192: 232106 | H192: 愛知県 | I192: 刈谷市 | J192: =IF(千円単!J192="","",ROUND(千円単!J192/1000,0)) -> 3580 | K192: =IF(千円単!K192="","",ROUND(千円単!K192/1000,0)) -> 1289 | L192: =IF(千円単!L192="","",ROUND(千円単!L192/1000,0)) -> 993 | M192: =IF(千円単!M192="","",ROUND(千円単!M192/1000,0)) -> 3557 | N192: =IF(千円単!N192="","",ROUND(千円単!N192/1000,0)) -> 449 | O192: =IF(千円単!O192="","",ROUND(千円単!O192/1000,0)) -> 2047 | P192: =IF(千円単!P192="","",ROUND(千円単!P192/1000,0)) -> 85 | Q192: =IF(千円単!Q192="","",ROUND(千円単!Q192/1000,0)) -> 23 | R192: =IF(千円単!R192="","",ROUND(千円単!R192/1000,0)) -> 1264 | S192: =IF(千円単!S192="","",ROUND(千円単!S192/1000,0)) -> 548 | T192: =IF(千円単!T192="","",ROUND(千円単!T192/1000,0)) -> 0 | U192: =IF(千円単!U192="","",ROUND(千円単!U192/1000,0)) -> 2681 | V192: =IF(千円単!V192="","",ROUND(千円単!V192/1000,0)) -> 1333 | W192: =IF(千円単!W192="","",ROUND(千円単!W192/1000,0)) -> 1349 | X192: =IF(千円単!X192="","",ROUND(千円単!X192/1000,0)) -> -1418 | Y192: =IF(千円単!Y192="","",ROUND(千円単!Y192/1000,0)) -> 23
A193: 2017 | B193: 46 | C193: 17 | D193: 1 | E193: 192 | F193: 公共 | G193: 232114 | H193: 愛知県 | I193: 豊田市 | J193: =IF(千円単!J193="","",ROUND(千円単!J193/1000,0)) -> 7424 | K193: =IF(千円単!K193="","",ROUND(千円単!K193/1000,0)) -> 3528 | L193: =IF(千円単!L193="","",ROUND(千円単!L193/1000,0)) -> 2308 | M193: =IF(千円単!M193="","",ROUND(千円単!M193/1000,0)) -> 7039 | N193: =IF(千円単!N193="","",ROUND(千円単!N193/1000,0)) -> 863 | O193: =IF(千円単!O193="","",ROUND(千円単!O193/1000,0)) -> 4251 | P193: =IF(千円単!P193="","",ROUND(千円単!P193/1000,0)) -> 191 | Q193: =IF(千円単!Q193="","",ROUND(千円単!Q193/1000,0)) -> 384 | R193: =IF(千円単!R193="","",ROUND(千円単!R193/1000,0)) -> 3835 | S193: =IF(千円単!S193="","",ROUND(千円単!S193/1000,0)) -> 1551 | T193: =IF(千円単!T193="","",ROUND(千円単!T193/1000,0)) -> 139 | U193: =IF(千円単!U193="","",ROUND(千円単!U193/1000,0)) -> 6831 | V193: =IF(千円単!V193="","",ROUND(千円単!V193/1000,0)) -> 4210 | W193: =IF(千円単!W193="","",ROUND(千円単!W193/1000,0)) -> 2622 | X193: =IF(千円単!X193="","",ROUND(千円単!X193/1000,0)) -> -2996 | Y193: =IF(千円単!Y193="","",ROUND(千円単!Y193/1000,0)) -> 384
A194: 2017 | B194: 46 | C194: 17 | D194: 1 | E194: 193 | F194: 公共 | G194: 232203 | H194: 愛知県 | I194: 稲沢市 | J194: =IF(千円単!J194="","",ROUND(千円単!J194/1000,0)) -> 1670 | K194: =IF(千円単!K194="","",ROUND(千円単!K194/1000,0)) -> 655 | L194: =IF(千円単!L194="","",ROUND(千円単!L194/1000,0)) -> 798 | M194: =IF(千円単!M194="","",ROUND(千円単!M194/1000,0)) -> 1693 | N194: =IF(千円単!N194="","",ROUND(千円単!N194/1000,0)) -> 310 | O194: =IF(千円単!O194="","",ROUND(千円単!O194/1000,0)) -> 879 | P194: =IF(千円単!P194="","",ROUND(千円単!P194/1000,0)) -> 68 | Q194: =IF(千円単!Q194="","",ROUND(千円単!Q194/1000,0)) -> -22 | R194: =IF(千円単!R194="","",ROUND(千円単!R194/1000,0)) -> 1240 | S194: =IF(千円単!S194="","",ROUND(千円単!S194/1000,0)) -> 421 | T194: =IF(千円単!T194="","",ROUND(千円単!T194/1000,0)) -> 56 | U194: =IF(千円単!U194="","",ROUND(千円単!U194/1000,0)) -> 1908 | V194: =IF(千円単!V194="","",ROUND(千円単!V194/1000,0)) -> 1036 | W194: =IF(千円単!W194="","",ROUND(千円単!W194/1000,0)) -> 873 | X194: =IF(千円単!X194="","",ROUND(千円単!X194/1000,0)) -> -669 | Y194: =IF(千円単!Y194="","",ROUND(千円単!Y194/1000,0)) -> -22
A195: 2017 | B195: 46 | C195: 17 | D195: 1 | E195: 194 | F195: 公共 | G195: 232211 | H195: 愛知県 | I195: 新城市 | J195: =IF(千円単!J195="","",ROUND(千円単!J195/1000,0)) -> 518 | K195: =IF(千円単!K195="","",ROUND(千円単!K195/1000,0)) -> 221 | L195: =IF(千円単!L195="","",ROUND(千円単!L195/1000,0)) -> 155 | M195: =IF(千円単!M195="","",ROUND(千円単!M195/1000,0)) -> 542 | N195: =IF(千円単!N195="","",ROUND(千円単!N195/1000,0)) -> 87 | O195: =IF(千円単!O195="","",ROUND(千円単!O195/1000,0)) -> 311 | P195: =IF(千円単!P195="","",ROUND(千円単!P195/1000,0)) -> 40 | Q195: =IF(千円単!Q195="","",ROUND(千円単!Q195/1000,0)) -> -24 | R195: =IF(千円単!R195="","",ROUND(千円単!R195/1000,0)) -> 345 | S195: =IF(千円単!S195="","",ROUND(千円単!S195/1000,0)) -> 190 | T195: =IF(千円単!T195="","",ROUND(千円単!T195/1000,0)) -> 0 | U195: =IF(千円単!U195="","",ROUND(千円単!U195/1000,0)) -> 499 | V195: =IF(千円単!V195="","",ROUND(千円単!V195/1000,0)) -> 151 | W195: =IF(千円単!W195="","",ROUND(千円単!W195/1000,0)) -> 348 | X195: =IF(千円単!X195="","",ROUND(千円単!X195/1000,0)) -> -154 | Y195: =IF(千円単!Y195="","",ROUND(千円単!Y195/1000,0)) -> -24
A196: 2017 | B196: 46 | C196: 17 | D196: 1 | E196: 195 | F196: 公共 | G196: 232246 | H196: 愛知県 | I196: 知多市 | J196: =IF(千円単!J196="","",ROUND(千円単!J196/1000,0)) -> 1512 | K196: =IF(千円単!K196="","",ROUND(千円単!K196/1000,0)) -> 809 | L196: =IF(千円単!L196="","",ROUND(千円単!L196/1000,0)) -> 226 | M196: =IF(千円単!M196="","",ROUND(千円単!M196/1000,0)) -> 1612 | N196: =IF(千円単!N196="","",ROUND(千円単!N196/1000,0)) -> 103 | O196: =IF(千円単!O196="","",ROUND(千円単!O196/1000,0)) -> 831 | P196: =IF(千円単!P196="","",ROUND(千円単!P196/1000,0)) -> 62 | Q196: =IF(千円単!Q196="","",ROUND(千円単!Q196/1000,0)) -> -100 | R196: =IF(千円単!R196="","",ROUND(千円単!R196/1000,0)) -> 913 | S196: =IF(千円単!S196="","",ROUND(千円単!S196/1000,0)) -> 253 | T196: =IF(千円単!T196="","",ROUND(千円単!T196/1000,0)) -> 420 | U196: =IF(千円単!U196="","",ROUND(千円単!U196/1000,0)) -> 1125 | V196: =IF(千円単!V196="","",ROUND(千円単!V196/1000,0)) -> 642 | W196: =IF(千円単!W196="","",ROUND(千円単!W196/1000,0)) -> 483 | X196: =IF(千円単!X196="","",ROUND(千円単!X196/1000,0)) -> -212 | Y196: =IF(千円単!Y196="","",ROUND(千円単!Y196/1000,0)) -> -100
A197: 2017 | B197: 46 | C197: 17 | D197: 1 | E197: 196 | F197: 公共 | G197: 232262 | H197: 愛知県 | I197: 尾張旭市 | J197: =IF(千円単!J197="","",ROUND(千円単!J197/1000,0)) -> 1962 | K197: =IF(千円単!K197="","",ROUND(千円単!K197/1000,0)) -> 666 | L197: =IF(千円単!L197="","",ROUND(千円単!L197/1000,0)) -> 467 | M197: =IF(千円単!M197="","",ROUND(千円単!M197/1000,0)) -> 1921 | N197: =IF(千円単!N197="","",ROUND(千円単!N197/1000,0)) -> 175 | O197: =IF(千円単!O197="","",ROUND(千円単!O197/1000,0)) -> 1213 | P197: =IF(千円単!P197="","",ROUND(千円単!P197/1000,0)) -> 74 | Q197: =IF(千円単!Q197="","",ROUND(千円単!Q197/1000,0)) -> 41 | R197: =IF(千円単!R197="","",ROUND(千円単!R197/1000,0)) -> 1813 | S197: =IF(千円単!S197="","",ROUND(千円単!S197/1000,0)) -> 760 | T197: =IF(千円単!T197="","",ROUND(千円単!T197/1000,0)) -> 254 | U197: =IF(千円単!U197="","",ROUND(千円単!U197/1000,0)) -> 2241 | V197: =IF(千円単!V197="","",ROUND(千円単!V197/1000,0)) -> 1711 | W197: =IF(千円単!W197="","",ROUND(千円単!W197/1000,0)) -> 530 | X197: =IF(千円単!X197="","",ROUND(千円単!X197/1000,0)) -> -427 | Y197: =IF(千円単!Y197="","",ROUND(千円単!Y197/1000,0)) -> 41
A198: 2017 | B198: 46 | C198: 17 | D198: 1 | E198: 197 | F198: 公共 | G198: 234257 | H198: 愛知県 | I198: 蟹江町 | J198: =IF(千円単!J198="","",ROUND(千円単!J198/1000,0)) -> 508 | K198: =IF(千円単!K198="","",ROUND(千円単!K198/1000,0)) -> 157 | L198: =IF(千円単!L198="","",ROUND(千円単!L198/1000,0)) -> 260 | M198: =IF(千円単!M198="","",ROUND(千円単!M198/1000,0)) -> 414 | N198: =IF(千円単!N198="","",ROUND(千円単!N198/1000,0)) -> 63 | O198: =IF(千円単!O198="","",ROUND(千円単!O198/1000,0)) -> 160 | P198: =IF(千円単!P198="","",ROUND(千円単!P198/1000,0)) -> 19 | Q198: =IF(千円単!Q198="","",ROUND(千円単!Q198/1000,0)) -> 93 | R198: =IF(千円単!R198="","",ROUND(千円単!R198/1000,0)) -> 1052 | S198: =IF(千円単!S198="","",ROUND(千円単!S198/1000,0)) -> 451 | T198: =IF(千円単!T198="","",ROUND(千円単!T198/1000,0)) -> 140 | U198: =IF(千円単!U198="","",ROUND(千円単!U198/1000,0)) -> 1112 | V198: =IF(千円単!V198="","",ROUND(千円単!V198/1000,0)) -> 1014 | W198: =IF(千円単!W198="","",ROUND(千円単!W198/1000,0)) -> 97 | X198: =IF(千円単!X198="","",ROUND(千円単!X198/1000,0)) -> -60 | Y198: =IF(千円単!Y198="","",ROUND(千円単!Y198/1000,0)) -> 93
A199: 2017 | B199: 46 | C199: 17 | D199: 1 | E199: 198 | F199: 公共 | G199: 242012 | H199: 三重県 | I199: 津市 | J199: =IF(千円単!J199="","",ROUND(千円単!J199/1000,0)) -> 8211 | K199: =IF(千円単!K199="","",ROUND(千円単!K199/1000,0)) -> 1319 | L199: =IF(千円単!L199="","",ROUND(千円単!L199/1000,0)) -> 3580 | M199: =IF(千円単!M199="","",ROUND(千円単!M199/1000,0)) -> 7400 | N199: =IF(千円単!N199="","",ROUND(千円単!N199/1000,0)) -> 1064 | O199: =IF(千円単!O199="","",ROUND(千円単!O199/1000,0)) -> 4412 | P199: =IF(千円単!P199="","",ROUND(千円単!P199/1000,0)) -> 270 | Q199: =IF(千円単!Q199="","",ROUND(千円単!Q199/1000,0)) -> 812 | R199: =IF(千円単!R199="","",ROUND(千円単!R199/1000,0)) -> 5070 | S199: =IF(千円単!S199="","",ROUND(千円単!S199/1000,0)) -> 2606 | T199: =IF(千円単!T199="","",ROUND(千円単!T199/1000,0)) -> 1734 | U199: =IF(千円単!U199="","",ROUND(千円単!U199/1000,0)) -> 7052 | V199: =IF(千円単!V199="","",ROUND(千円単!V199/1000,0)) -> 2772 | W199: =IF(千円単!W199="","",ROUND(千円単!W199/1000,0)) -> 4280 | X199: =IF(千円単!X199="","",ROUND(千円単!X199/1000,0)) -> -1983 | Y199: =IF(千円単!Y199="","",ROUND(千円単!Y199/1000,0)) -> 812
A200: 2017 | B200: 46 | C200: 17 | D200: 1 | E200: 199 | F200: 公共 | G200: 242021 | H200: 三重県 | I200: 四日市市 | J200: =IF(千円単!J200="","",ROUND(千円単!J200/1000,0)) -> 14716 | K200: =IF(千円単!K200="","",ROUND(千円単!K200/1000,0)) -> 3710 | L200: =IF(千円単!L200="","",ROUND(千円単!L200/1000,0)) -> 6407 | M200: =IF(千円単!M200="","",ROUND(千円単!M200/1000,0)) -> 12915 | N200: =IF(千円単!N200="","",ROUND(千円単!N200/1000,0)) -> 1615 | O200: =IF(千円単!O200="","",ROUND(千円単!O200/1000,0)) -> 8029 | P200: =IF(千円単!P200="","",ROUND(千円単!P200/1000,0)) -> 394 | Q200: =IF(千円単!Q200="","",ROUND(千円単!Q200/1000,0)) -> 1801 | R200: =IF(千円単!R200="","",ROUND(千円単!R200/1000,0)) -> 5871 | S200: =IF(千円単!S200="","",ROUND(千円単!S200/1000,0)) -> 3168 | T200: =IF(千円単!T200="","",ROUND(千円単!T200/1000,0)) -> 638 | U200: =IF(千円単!U200="","",ROUND(千円単!U200/1000,0)) -> 11707 | V200: =IF(千円単!V200="","",ROUND(千円単!V200/1000,0)) -> 6216 | W200: =IF(千円単!W200="","",ROUND(千円単!W200/1000,0)) -> 5491 | X200: =IF(千円単!X200="","",ROUND(千円単!X200/1000,0)) -> -5836 | Y200: =IF(千円単!Y200="","",ROUND(千円単!Y200/1000,0)) -> 1801
... 3432 more rows

Sheet 28収支
A1: 決算年度 | B1: 業務コード | C1: 業種コード | D1: 事業コード | E1: 並び順 | F1: 事業区分 | G1: 団体コード | H1: 都道府県 | I1: 団体名 | J1: 収入 | K1: 料金収入 | L1: 繰入金 | M1: 支出 | N1: 支払利息 | O1: 減価償却費 | P1: 職員給与費 | Q1: 収支差引 | R1: 収入 | S1: 地方債 | T1: 繰入金 | U1: 支出 | V1: 建設改良費 | W1: 元金償還金 | X1: 収支差引 | Y1: 収支再差引
A2: 2016 | B2: 46 | C2: 17 | D2: 1 | E2: 1 | F2: 公共 | G2: 011002 | H2: 北海道 | I2: 札幌市 | J2: 50587 | K2: 19364 | L2: 19718 | M2: 46219 | N2: 4680 | O2: 24334 | P2: 3241 | Q2: 4368 | R2: 16020 | S2: 10053 | T2: 750 | U2: 32892 | V2: 15461 | W2: 17380 | X2: -16873 | Y2: 4368
A3: 2016 | B3: 46 | C3: 17 | D3: 1 | E3: 2 | F3: 公共 | G3: 012025 | H3: 北海道 | I3: 函館市 | J3: 7458 | K3: 4294 | L3: 1136 | M3: 6449 | N3: 1063 | O3: 3465 | P3: 374 | Q3: 1009 | R3: 2960 | S3: 2125 | T3: 475 | U3: 5496 | V3: 1445 | W3: 4045 | X3: -2536 | Y3: 1009
A4: 2016 | B4: 46 | C4: 17 | D4: 1 | E4: 3 | F4: 公共 | G4: 012033 | H4: 北海道 | I4: 小樽市 | J4: 3834 | K4: 1913 | L4: 943 | M4: 3222 | N4: 295 | O4: 1840 | P4: 77 | Q4: 612 | R4: 1648 | S4: 737 | T4: 359 | U4: 3235 | V4: 797 | W4: 2436 | X4: -1587 | Y4: 612
A5: 2016 | B5: 46 | C5: 17 | D5: 1 | E5: 4 | F5: 公共 | G5: 012041 | H5: 北海道 | I5: 旭川市 | J5: 9026 | K5: 5406 | L5: 1017 | M5: 8364 | N5: 780 | O5: 4817 | P5: 379 | Q5: 662 | R5: 2539 | S5: 1799 | T5: 302 | U5: 5279 | V5: 1158 | W5: 4121 | X5: -2740 | Y5: 662
A6: 2016 | B6: 46 | C6: 17 | D6: 1 | E6: 5 | F6: 公共 | G6: 012050 | H6: 北海道 | I6: 室蘭市 | J6: 3152 | K6: 1475 | L6: 904 | M6: 2673 | N6: 276 | O6: 1361 | P6: 98 | Q6: 479 | R6: 692 | S6: 314 | T6: 75 | U6: 1448 | V6: 656 | W6: 788 | X6: -756 | Y6: 479
A7: 2016 | B7: 46 | C7: 17 | D7: 1 | E7: 6 | F7: 公共 | G7: 012068 | H7: 北海道 | I7: 釧路市 | J7: 6668 | K7: 3593 | L7: 1044 | M7: 5132 | N7: 550 | O7: 2868 | P7: 216 | Q7: 1536 | R7: 2250 | S7: 1349 | T7: 433 | U7: 3852 | V7: 1481 | W7: 2370 | X7: -1602 | Y7: 1536
A8: 2016 | B8: 46 | C8: 17 | D8: 1 | E8: 7 | F8: 公共 | G8: 012076 | H8: 北海道 | I8: 帯広市 | J8: 4583 | K8: 2685 | L8: 799 | M8: 4135 | N8: 563 | O8: 2255 | P8: 113 | Q8: 448 | R8: 1229 | S8: 835 | T8: 4 | U8: 2886 | V8: 779 | W8: 2106 | X8: -1658 | Y8: 448
A9: 2016 | B9: 46 | C9: 17 | D9: 1 | E9: 8 | F9: 公共 | G9: 012084 | H9: 北海道 | I9: 北見市 | J9: 4212 | K9: 1756 | L9: 1063 | M9: 3870 | N9: 586 | O9: 2335 | P9: 175 | Q9: 342 | R9: 2859 | S9: 1861 | T9: 339 | U9: 3919 | V9: 1525 | W9: 2394 | X9: -1060 | Y9: 342
A10: 2016 | B10: 46 | C10: 17 | D10: 1 | E10: 9 | F10: 公共 | G10: 012106 | H10: 北海道 | I10: 岩見沢市 | J10: 2517 | K10: 1222 | L10: 516 | M10: 2190 | N10: 300 | O10: 1175 | P10: 28 | Q10: 327 | R10: 1407 | S10: 484 | T10: 387 | U10: 2251 | V10: 1046 | W10: 1204 | X10: -844 | Y10: 327
A11: 2016 | B11: 46 | C11: 17 | D11: 1 | E11: 10 | F11: 公共 | G11: 012131 | H11: 北海道 | I11: 苫小牧市 | J11: 5175 | K11: 2345 | L11: 1134 | M11: 4552 | N11: 618 | O11: 2674 | P11: 140 | Q11: 623 | R11: 2219 | S11: 1358 | T11: 281 | U11: 3942 | V11: 1904 | W11: 2037 | X11: -1723 | Y11: 623
A12: 2016 | B12: 46 | C12: 17 | D12: 1 | E12: 11 | F12: 公共 | G12: 012149 | H12: 北海道 | I12: 稚内市 | J12: 1138 | K12: 477 | L12: 410 | M12: 1064 | N12: 162 | O12: 574 | P12: 18 | Q12: 74 | R12: 772 | S12: 419 | T12: 90 | U12: 1229 | V12: 588 | W12: 642 | X12: -457 | Y12: 74
A13: 2016 | B13: 46 | C13: 17 | D13: 1 | E13: 12 | F13: 公共 | G13: 012173 | H13: 北海道 | I13: 江別市 | J13: 3486 | K13: 1265 | L13: 953 | M13: 3267 | N13: 310 | O13: 1994 | P13: 125 | Q13: 220 | R13: 1076 | S13: 468 | T13: 61 | U13: 2346 | V13: 1009 | W13: 1113 | X13: -1270 | Y13: 220
A14: 2016 | B14: 46 | C14: 17 | D14: 1 | E14: 13 | F14: 公共 | G14: 012190 | H14: 北海道 | I14: 紋別市 | J14: 1332 | K14: 433 | L14: 557 | M14: 1107 | N14: 149 | O14: 672 | P14: 33 | Q14: 226 | R14: 550 | S14: 414 | T14: 38 | U14: 1107 | V14: 370 | W14: 737 | X14: -557 | Y14: 226
A15: 2016 | B15: 46 | C15: 17 | D15: 1 | E15: 14 | F15: 公共 | G15: 012220 | H15: 北海道 | I15: 三笠市 | J15: 567 | K15: 187 | L15: 230 | M15: 539 | N15: 82 | O15: 344 | P15: 19 | Q15: 28 | R15: 260 | S15: 64 | T15: 0 | U15: 506 | V15: 126 | W15: 381 | X15: -247 | Y15: 28
A16: 2016 | B16: 46 | C16: 17 | D16: 1 | E16: 15 | F16: 公共 | G16: 012238 | H16: 北海道 | I16: 根室市 | J16: 728 | K16: 442 | L16: 102 | M16: 717 | N16: 50 | O16: 424 | P16: 12 | Q16: 11 | R16: 307 | S16: 134 | T16: 19 | U16: 537 | V16: 323 | W16: 212 | X16: -230 | Y16: 11
A17: 2016 | B17: 46 | C17: 17 | D17: 1 | E17: 16 | F17: 公共 | G17: 012246 | H17: 北海道 | I17: 千歳市 | J17: 3520 | K17: 1589 | L17: 781 | M17: 3045 | N17: 226 | O17: 1837 | P17: 139 | Q17: 474 | R17: 784 | S17: 310 | T17: 106 | U17: 1678 | V17: 828 | W17: 841 | X17: -893 | Y17: 474
A18: 2016 | B18: 46 | C18: 17 | D18: 1 | E18: 17 | F18: 公共 | G18: 012254 | H18: 北海道 | I18: 滝川市 | J18: 1350 | K18: 742 | L18: 243 | M18: 1274 | N18: 174 | O18: 785 | P18: 7 | Q18: 77 | R18: 677 | S18: 201 | T18: 148 | U18: 1235 | V18: 208 | W18: 1027 | X18: -559 | Y18: 77
A19: 2016 | B19: 46 | C19: 17 | D19: 1 | E19: 18 | F19: 公共 | G19: 012301 | H19: 北海道 | I19: 登別市 | J19: 1752 | K19: 578 | L19: 710 | M19: 1758 | N19: 351 | O19: 980 | P19: 61 | Q19: -7 | R19: 1086 | S19: 751 | T19: 151 | U19: 1673 | V19: 476 | W19: 1197 | X19: -587 | Y19: -7
A20: 2016 | B20: 46 | C20: 17 | D20: 1 | E20: 19 | F20: 公共 | G20: 012319 | H20: 北海道 | I20: 恵庭市 | J20: 2823 | K20: 1011 | L20: 858 | M20: 2592 | N20: 239 | O20: 1554 | P20: 67 | Q20: 231 | R20: 856 | S20: 483 | T20: 122 | U20: 1962 | V20: 813 | W20: 1149 | X20: -1106 | Y20: 231
A21: 2016 | B21: 46 | C21: 17 | D21: 1 | E21: 20 | F21: 公共 | G21: 012351 | H21: 北海道 | I21: 石狩市 | J21: 1314 | K21: 552 | L21: 446 | M21: 1326 | N21: 199 | O21: 782 | P21: 50 | Q21: -12 | R21: 539 | S21: 373 | T21: 48 | U21: 1024 | V21: 260 | W21: 764 | X21: -486 | Y21: -12
A22: 2016 | B22: 46 | C22: 17 | D22: 1 | E22: 21 | F22: 公共 | G22: 013455 | H22: 北海道 | I22: 森町 | J22: 445 | K22: 86 | L22: 221 | M22: 446 | N22: 76 | O22: 257 | P22: 8 | Q22: -1 | R22: 111 | S22: 18 | T22: 0 | U22: 229 | V22: 28 | W22: 201 | X22: -118 | Y22: -1
A23: 2016 | B23: 46 | C23: 17 | D23: 1 | E23: 22 | F23: 公共 | G23: 014028 | H23: 北海道 | I23: 岩内町 | J23: 509 | K23: 55 | L23: 248 | M23: 509 | N23: 66 | O23: 322 | P23: 18 | Q23: 0 | R23: 592 | S23: 351 | T23: 0 | U23: 751 | V23: 366 | W23: 385 | X23: -158 | Y23: 0
A24: 2016 | B24: 46 | C24: 17 | D24: 1 | E24: 23 | F24: 公共 | G24: 014290 | H24: 北海道 | I24: 栗山町 | J24: 502 | K24: 184 | L24: 179 | M24: 429 | N24: 51 | O24: 275 | P24: 15 | Q24: 73 | R24: 322 | S24: 213 | T24: 66 | U24: 548 | V24: 84 | W24: 463 | X24: -226 | Y24: 73
A25: 2016 | B25: 46 | C25: 17 | D25: 1 | E25: 24 | F25: 公共 | G25: 015148 | H25: 北海道 | I25: 枝幸町 | J25: 245 | K25: 65 | L25: 116 | M25: 240 | N25: 33 | O25: 142 | P25: 6 | Q25: 5 | R25: 162 | S25: 34 | T25: 27 | U25: 242 | V25: 90 | W25: 153 | X25: -80 | Y25: 5
A26: 2016 | B26: 46 | C26: 17 | D26: 1 | E26: 25 | F26: 公共 | G26: 015555 | H26: 北海道 | I26: 遠軽町 | J26: 845 | K26: 228 | L26: 403 | M26: 720 | N26: 84 | O26: 409 | P26: 37 | Q26: 124 | R26: 479 | S26: 232 | T26: 50 | U26: 778 | V26: 431 | W26: 348 | X26: -300 | Y26: 124
A27: 2016 | B27: 46 | C27: 17 | D27: 1 | E27: 26 | F27: 公共 | G27: 015865 | H27: 北海道 | I27: むかわ町 | J27: 231 | K27: 54 | L27: 87 | M27: 229 | N27: 32 | O27: 143 | P27: 9 | Q27: 2 | R27: 116 | S27: 26 | T27: 0 | U27: 178 | V27: 53 | W27: 117 | X27: -62 | Y27: 2
A28: 2016 | B28: 46 | C28: 17 | D28: 1 | E28: 27 | F28: 公共 | G28: 016314 | H28: 北海道 | I28: 音更町 | J28: 1057 | K28: 567 | L28: 224 | M28: 912 | N28: 154 | O28: 548 | P28: 4 | Q28: 145 | R28: 476 | S28: 317 | T28: 74 | U28: 943 | V28: 254 | W28: 689 | X28: -466 | Y28: 145
A29: 2016 | B29: 46 | C29: 17 | D29: 1 | E29: 28 | F29: 公共 | G29: 016365 | H29: 北海道 | I29: 清水町 | J29: 208 | K29: 82 | L29: 62 | M29: 229 | N29: 11 | O29: 144 | P29: 19 | Q29: -21 | R29: 88 | S29: 0 | T29: 14 | U29: 152 | V29: 10 | W29: 142 | X29: -64 | Y29: -21
A30: 2016 | B30: 46 | C30: 17 | D30: 1 | E30: 29 | F30: 公共 | G30: 022021 | H30: 青森県 | I30: 弘前市 | J30: 5113 | K30: 2879 | L30: 1410 | M30: 4282 | N30: 668 | O30: 2136 | P30: 222 | Q30: 831 | R30: 2070 | S30: 1423 | T30: 0 | U30: 3853 | V30: 695 | W30: 3159 | X30: -1784 | Y30: 831
A31: 2016 | B31: 46 | C31: 17 | D31: 1 | E31: 30 | F31: 公共 | G31: 022047 | H31: 青森県 | I31: 黒石市 | J31: 752 | K31: 325 | L31: 89 | M31: 598 | N31: 128 | O31: 306 | P31: 17 | Q31: 155 | R31: 730 | S31: 457 | T31: 261 | U31: 813 | V31: 59 | W31: 754 | X31: -83 | Y31: 155
A32: 2016 | B32: 46 | C32: 17 | D32: 1 | E32: 31 | F32: 公共 | G32: 022055 | H32: 青森県 | I32: 五所川原市 | J32: 657 | K32: 366 | L32: 112 | M32: 756 | N32: 111 | O32: 386 | P32: 47 | Q32: -99 | R32: 969 | S32: 490 | T32: 0 | U32: 1094 | V32: 606 | W32: 476 | X32: -125 | Y32: -99
A33: 2016 | B33: 46 | C33: 17 | D33: 1 | E33: 32 | F33: 公共 | G33: 022063 | H33: 青森県 | I33: 十和田市 | J33: 1608 | K33: 816 | L33: 360 | M33: 1516 | N33: 272 | O33: 863 | P33: 61 | Q33: 92 | R33: 1072 | S33: 686 | T33: 124 | U33: 1664 | V33: 560 | W33: 1105 | X33: -592 | Y33: 92
A34: 2016 | B34: 46 | C34: 17 | D34: 1 | E34: 33 | F34: 公共 | G34: 022101 | H34: 青森県 | I34: 平川市 | J34: 632 | K34: 301 | L34: 200 | M34: 619 | N34: 111 | O34: 334 | P34: 27 | Q34: 13 | R34: 263 | S34: 13 | T34: 0 | U34: 497 | V34: 22 | W34: 475 | X34: -234 | Y34: 13
A35: 2016 | B35: 46 | C35: 17 | D35: 1 | E35: 34 | F35: 公共 | G35: 023612 | H35: 青森県 | I35: 藤崎町 | J35: 264 | K35: 88 | L35: 98 | M35: 256 | N35: 47 | O35: 166 | P35: 0 | Q35: 7 | R35: 445 | S35: 242 | T35: 0 | U35: 537 | V35: 308 | W35: 229 | X35: -92 | Y35: 7
A36: 2016 | B36: 46 | C36: 17 | D36: 1 | E36: 35 | F36: 公共 | G36: 023671 | H36: 青森県 | I36: 田舎館村 | J36: 289 | K36: 104 | L36: 76 | M36: 242 | N36: 55 | O36: 128 | P36: 8 | Q36: 48 | R36: 151 | S36: 91 | T36: 60 | U36: 223 | V36: 3 | W36: 220 | X36: -71 | Y36: 48
A37: 2016 | B37: 46 | C37: 17 | D37: 1 | E37: 36 | F37: 公共 | G37: 023817 | H37: 青森県 | I37: 板柳町 | J37: 281 | K37: 81 | L37: 73 | M37: 277 | N37: 64 | O37: 153 | P37: 8 | Q37: 4 | R37: 261 | S37: 157 | T37: 59 | U37: 304 | V37: 105 | W37: 199 | X37: -43 | Y37: 4
A38: 2016 | B38: 46 | C38: 17 | D38: 1 | E38: 37 | F38: 公共 | G38: 023841 | H38: 青森県 | I38: 鶴田町 | J38: 426 | K38: 54 | L38: 239 | M38: 332 | N38: 64 | O38: 236 | P38: 5 | Q38: 94 | R38: 31 | S38: 24 | T38: 5 | U38: 218 | V38: 27 | W38: 191 | X38: -187 | Y38: 94
A39: 2016 | B39: 46 | C39: 17 | D39: 1 | E39: 38 | F39: 公共 | G39: 024112 | H39: 青森県 | I39: 六ケ所村 | J39: 640 | K39: 44 | L39: 321 | M39: 628 | N39: 77 | O39: 389 | P39: 15 | Q39: 12 | R39: 886 | S39: 339 | T39: 0 | U39: 1001 | V39: 847 | W39: 155 | X39: -115 | Y39: 12
A40: 2016 | B40: 46 | C40: 17 | D40: 1 | E40: 39 | F40: 公共 | G40: 032018 | H40: 岩手県 | I40: 盛岡市 | J40: 8247 | K40: 4381 | L40: 2822 | M40: 7678 | N40: 1012 | O40: 4000 | P40: 402 | Q40: 569 | R40: 2140 | S40: 966 | T40: 526 | U40: 5598 | V40: 1802 | W40: 3796 | X40: -3459 | Y40: 569
A41: 2016 | B41: 46 | C41: 17 | D41: 1 | E41: 40 | F41: 公共 | G41: 032026 | H41: 岩手県 | I41: 宮古市 | J41: 1544 | K41: 537 | L41: 547 | M41: 1383 | N41: 179 | O41: 626 | P41: 45 | Q41: 161 | R41: 874 | S41: 475 | T41: 194 | U41: 1475 | V41: 454 | W41: 1021 | X41: -601 | Y41: 161
A42: 2016 | B42: 46 | C42: 17 | D42: 1 | E42: 41 | F42: 公共 | G42: 032051 | H42: 岩手県 | I42: 花巻市 | J42: 2130 | K42: 699 | L42: 1044 | M42: 2104 | N42: 431 | O42: 1158 | P42: 37 | Q42: 26 | R42: 1505 | S42: 1009 | T42: 220 | U42: 2392 | V42: 795 | W42: 1597 | X42: -887 | Y42: 26
A43: 2016 | B43: 46 | C43: 17 | D43: 1 | E43: 42 | F43: 公共 | G43: 032069 | H43: 岩手県 | I43: 北上市 | J43: 2286 | K43: 1195 | L43: 852 | M43: 2053 | N43: 378 | O43: 954 | P43: 54 | Q43: 233 | R43: 1084 | S43: 659 | T43: 0 | U43: 1857 | V43: 277 | W43: 1530 | X43: -773 | Y43: 233
A44: 2016 | B44: 46 | C44: 17 | D44: 1 | E44: 43 | F44: 公共 | G44: 032115 | H44: 岩手県 | I44: 釜石市 | J44: 1014 | K44: 383 | L44: 317 | M44: 971 | N44: 84 | O44: 537 | P44: 71 | Q44: 42 | R44: 1975 | S44: 288 | T44: 1266 | U44: 2305 | V44: 2078 | W44: 228 | X44: -330 | Y44: 42
A45: 2016 | B45: 46 | C45: 17 | D45: 1 | E45: 44 | F45: 公共 | G45: 032166 | H45: 岩手県 | I45: 滝沢市 | J45: 1070 | K45: 461 | L45: 297 | M45: 954 | N45: 123 | O45: 550 | P45: 32 | Q45: 116 | R45: 507 | S45: 274 | T45: 19 | U45: 849 | V45: 486 | W45: 363 | X45: -342 | Y45: 116
A46: 2016 | B46: 46 | C46: 17 | D46: 1 | E46: 45 | F46: 公共 | G46: 033014 | H46: 岩手県 | I46: 雫石町 | J46: 464 | K46: 113 | L46: 202 | M46: 463 | N46: 86 | O46: 309 | P46: 5 | Q46: 1 | R46: 317 | S46: 150 | T46: 0 | U46: 472 | V46: 92 | W46: 380 | X46: -156 | Y46: 1
A47: 2016 | B47: 46 | C47: 17 | D47: 1 | E47: 46 | F47: 公共 | G47: 033219 | H47: 岩手県 | I47: 紫波町 | J47: 720 | K47: 275 | L47: 412 | M47: 749 | N47: 101 | O47: 472 | P47: 25 | Q47: -29 | R47: 320 | S47: 136 | T47: 24 | U47: 665 | V47: 284 | W47: 381 | X47: -346 | Y47: -29
A48: 2016 | B48: 46 | C48: 17 | D48: 1 | E48: 47 | F48: 公共 | G48: 033227 | H48: 岩手県 | I48: 矢巾町 | J48: 639 | K48: 303 | L48: 150 | M48: 609 | N48: 80 | O48: 351 | P48: 0 | Q48: 30 | R48: 793 | S48: 484 | T48: 60 | U48: 955 | V48: 730 | W48: 225 | X48: -162 | Y48: 30
A49: 2016 | B49: 46 | C49: 17 | D49: 1 | E49: 48 | F49: 公共 | G49: 041009 | H49: 宮城県 | I49: 仙台市 | J49: 34968 | K49: 16289 | L49: 6995 | M49: 29745 | N49: 4110 | O49: 17795 | P49: 1149 | Q49: 5223 | R49: 27691 | S49: 11664 | T49: 6005 | U49: 40750 | V49: 23003 | W49: 17744 | X49: -13059 | Y49: 5223
A50: 2016 | B50: 46 | C50: 17 | D50: 1 | E50: 49 | F50: 公共 | G50: 042064 | H50: 宮城県 | I50: 白石市 | J50: 952 | K50: 417 | L50: 222 | M50: 1251 | N50: 144 | O50: 450 | P50: 17 | Q50: -299 | R50: 1499 | S50: 619 | T50: 833 | U50: 1878 | V50: 856 | W50: 973 | X50: -379 | Y50: -299
A51: 2016 | B51: 46 | C51: 17 | D51: 1 | E51: 50 | F51: 公共 | G51: 042072 | H51: 宮城県 | I51: 名取市 | J51: 2490 | K51: 1272 | L51: 623 | M51: 2586 | N51: 404 | O51: 1486 | P51: 51 | Q51: -96 | R51: 3593 | S51: 930 | T51: 0 | U51: 4594 | V51: 2326 | W51: 2268 | X51: -1000 | Y51: -96
A52: 2016 | B52: 46 | C52: 17 | D52: 1 | E52: 51 | F52: 公共 | G52: 045055 | H52: 宮城県 | I52: 美里町 | J52: 446 | K52: 127 | L52: 144 | M52: 451 | N52: 78 | O52: 222 | P52: 18 | Q52: -5 | R52: 576 | S52: 310 | T52: 68 | U52: 660 | V52: 391 | W52: 269 | X52: -83 | Y52: -5
A53: 2016 | B53: 46 | C53: 17 | D53: 1 | E53: 52 | F53: 公共 | G53: 052019 | H53: 秋田県 | I53: 秋田市 | J53: 10275 | K53: 4982 | L53: 3403 | M53: 9237 | N53: 1314 | O53: 5060 | P53: 356 | Q53: 1037 | R53: 4002 | S53: 2636 | T53: 903 | U53: 8064 | V53: 2309 | W53: 5755 | X53: -4063 | Y53: 1037
A54: 2016 | B54: 46 | C54: 17 | D54: 1 | E54: 53 | F54: 公共 | G54: 052027 | H54: 秋田県 | I54: 能代市 | J54: 1262 | K54: 383 | L54: 570 | M54: 1220 | N54: 186 | O54: 722 | P54: 31 | Q54: 42 | R54: 1429 | S54: 869 | T54: 80 | U54: 1901 | V54: 1269 | W54: 631 | X54: -471 | Y54: 42
A55: 2016 | B55: 46 | C55: 17 | D55: 1 | E55: 54 | F55: 公共 | G55: 052035 | H55: 秋田県 | I55: 横手市 | J55: 1734 | K55: 635 | L55: 831 | M55: 1674 | N55: 325 | O55: 830 | P55: 101 | Q55: 60 | R55: 1079 | S55: 539 | T55: 431 | U55: 1621 | V55: 216 | W55: 1405 | X55: -542 | Y55: 60
A56: 2016 | B56: 46 | C56: 17 | D56: 1 | E56: 55 | F56: 公共 | G56: 052043 | H56: 秋田県 | I56: 大館市 | J56: 1180 | K56: 441 | L56: 533 | M56: 1217 | N56: 247 | O56: 606 | P56: 60 | Q56: -37 | R56: 1298 | S56: 808 | T56: 143 | U56: 1790 | V56: 847 | W56: 943 | X56: -491 | Y56: -37
A57: 2016 | B57: 46 | C57: 17 | D57: 1 | E57: 56 | F57: 公共 | G57: 052060 | H57: 秋田県 | I57: 男鹿市 | J57: 619 | K57: 194 | L57: 267 | M57: 610 | N57: 151 | O57: 345 | P57: 28 | Q57: 8 | R57: 607 | S57: 369 | T57: 93 | U57: 881 | V57: 338 | W57: 542 | X57: -274 | Y57: 8
A58: 2016 | B58: 46 | C58: 17 | D58: 1 | E58: 57 | F58: 公共 | G58: 062014 | H58: 山形県 | I58: 山形市 | J58: 7808 | K58: 3927 | L58: 2289 | M58: 7229 | N58: 1572 | O58: 4157 | P58: 221 | Q58: 579 | R58: 4790 | S58: 3015 | T58: 898 | U58: 8020 | V58: 2518 | W58: 5501 | X58: -3230 | Y58: 579
A59: 2016 | B59: 46 | C59: 17 | D59: 1 | E59: 58 | F59: 公共 | G59: 062031 | H59: 山形県 | I59: 鶴岡市 | J59: 4810 | K59: 2101 | L59: 893 | M59: 3909 | N59: 677 | O59: 2425 | P59: 176 | Q59: 901 | R59: 2864 | S59: 1262 | T59: 654 | U59: 4115 | V59: 1744 | W59: 2371 | X59: -1251 | Y59: 901
A60: 2016 | B60: 46 | C60: 17 | D60: 1 | E60: 59 | F60: 公共 | G60: 062103 | H60: 山形県 | I60: 天童市 | J60: 1293 | K60: 864 | L60: 196 | M60: 1121 | N60: 170 | O60: 582 | P60: 14 | Q60: 172 | R60: 930 | S60: 652 | T60: 166 | U60: 1382 | V60: 744 | W60: 638 | X60: -452 | Y60: 172
A61: 2016 | B61: 46 | C61: 17 | D61: 1 | E61: 60 | F61: 公共 | G61: 062138 | H61: 山形県 | I61: 南陽市 | J61: 987 | K61: 345 | L61: 450 | M61: 948 | N61: 180 | O61: 536 | P61: 25 | Q61: 40 | R61: 684 | S61: 330 | T61: 67 | U61: 1033 | V61: 294 | W61: 739 | X61: -349 | Y61: 40
A62: 2016 | B62: 46 | C62: 17 | D62: 1 | E62: 61 | F62: 公共 | G62: 072010 | H62: 福島県 | I62: 福島市 | J62: 7247 | K62: 3245 | L62: 2032 | M62: 7247 | N62: 1202 | O62: 3887 | P62: 126 | Q62: 0 | R62: 2964 | S62: 1039 | T62: 0 | U62: 5479 | V62: 1656 | W62: 3823 | X62: -2515 | Y62: 0
A63: 2016 | B63: 46 | C63: 17 | D63: 1 | E63: 62 | F63: 公共 | G63: 072036 | H63: 福島県 | I63: 郡山市 | J63: 7943 | K63: 3939 | L63: 2628 | M63: 7950 | N63: 1351 | O63: 3863 | P63: 266 | Q63: -7 | R63: 5886 | S63: 2473 | T63: 0 | U63: 8891 | V63: 3459 | W63: 5431 | X63: -3005 | Y63: -7
A64: 2016 | B64: 46 | C64: 17 | D64: 1 | E64: 63 | F64: 公共 | G64: 072044 | H64: 福島県 | I64: いわき市 | J64: 8091 | K64: 3110 | L64: 2806 | M64: 7875 | N64: 1116 | O64: 4334 | P64: 177 | Q64: 217 | R64: 4175 | S64: 2259 | T64: 859 | U64: 6963 | V64: 2985 | W64: 3976 | X64: -2788 | Y64: 217
A65: 2016 | B65: 46 | C65: 17 | D65: 1 | E65: 64 | F65: 公共 | G65: 072109 | H65: 福島県 | I65: 二本松市 | J65: 567 | K65: 146 | L65: 311 | M65: 567 | N65: 87 | O65: 232 | P65: 37 | Q65: 0 | R65: 108 | S65: 78 | T65: 5 | U65: 333 | V65: 99 | W65: 235 | X65: -225 | Y65: 0
A66: 2016 | B66: 46 | C66: 17 | D66: 1 | E66: 65 | F66: 公共 | G66: 072125 | H66: 福島県 | I66: 南相馬市 | J66: 1732 | K66: 458 | L66: 569 | M66: 1611 | N66: 206 | O66: 908 | P66: 54 | Q66: 122 | R66: 707 | S66: 385 | T66: 27 | U66: 1199 | V66: 323 | W66: 770 | X66: -492 | Y66: 122
A67: 2016 | B67: 46 | C67: 17 | D67: 1 | E67: 66 | F67: 公共 | G67: 075213 | H67: 福島県 | I67: 三春町 | J67: 188 | K67: 68 | L67: 29 | M67: 211 | N67: 29 | O67: 136 | P67: 10 | Q67: -23 | R67: 109 | S67: 39 | T67: 0 | U67: 161 | V67: 48 | W67: 113 | X67: -52 | Y67: -23
A68: 2016 | B68: 46 | C68: 17 | D68: 1 | E68: 67 | F68: 公共 | G68: 082015 | H68: 茨城県 | I68: 水戸市 | J68: 8806 | K68: 3121 | L68: 3873 | M68: 8707 | N68: 1713 | O68: 5342 | P68: 187 | Q68: 99 | R68: 4978 | S68: 2563 | T68: 519 | U68: 8727 | V68: 3511 | W68: 5214 | X68: -3749 | Y68: 99
A69: 2016 | B69: 46 | C69: 17 | D69: 1 | E69: 68 | F69: 公共 | G69: 082023 | H69: 茨城県 | I69: 日立市 | J69: 3991 | K69: 2659 | L69: 103 | M69: 3639 | N69: 299 | O69: 2021 | P69: 108 | Q69: 351 | R69: 1495 | S69: 531 | T69: 361 | U69: 2750 | V69: 1346 | W69: 1404 | X69: -1255 | Y69: 351
A70: 2016 | B70: 46 | C70: 17 | D70: 1 | E70: 69 | F70: 公共 | G70: 082244 | H70: 茨城県 | I70: 守谷市 | J70: 1863 | K70: 1380 | L70: 16 | M70: 1677 | N70: 92 | O70: 847 | P70: 65 | Q70: 186 | R70: 251 | S70: 0 | T70: 16 | U70: 834 | V70: 534 | W70: 300 | X70: -583 | Y70: 186
A71: 2016 | B71: 46 | C71: 17 | D71: 1 | E71: 70 | F71: 公共 | G71: 089222 | H71: 茨城県 | I71: 日立・高萩広域下水道組合 | J71: 2427 | K71: 1169 | L71: 652 | M71: 2407 | N71: 308 | O71: 1440 | P71: 190 | Q71: 21 | R71: 927 | S71: 94 | T71: 0 | U71: 1863 | V71: 288 | W71: 1575 | X71: -936 | Y71: 21
A72: 2016 | B72: 46 | C72: 17 | D72: 1 | E72: 71 | F72: 公共 | G72: 092011 | H72: 栃木県 | I72: 宇都宮市 | J72: 12036 | K72: 6831 | L72: 2983 | M72: 10856 | N72: 1242 | O72: 5556 | P72: 513 | Q72: 1181 | R72: 2776 | S72: 853 | T72: 184 | U72: 6747 | V72: 2028 | W72: 4719 | X72: -3971 | Y72: 1181
A73: 2016 | B73: 46 | C73: 17 | D73: 1 | E73: 72 | F73: 公共 | G73: 102016 | H73: 群馬県 | I73: 前橋市 | J73: 6968 | K73: 3016 | L73: 2420 | M73: 6395 | N73: 889 | O73: 3006 | P73: 323 | Q73: 572 | R73: 4889 | S73: 2474 | T73: 861 | U73: 7169 | V73: 4153 | W73: 3016 | X73: -2281 | Y73: 572
A74: 2016 | B74: 46 | C74: 17 | D74: 1 | E74: 73 | F74: 公共 | G74: 102024 | H74: 群馬県 | I74: 高崎市 | J74: 8370 | K74: 3707 | L74: 3166 | M74: 6589 | N74: 992 | O74: 3327 | P74: 415 | Q74: 1781 | R74: 3177 | S74: 1564 | T74: 507 | U74: 6394 | V74: 3091 | W74: 3292 | X74: -3217 | Y74: 1781
A75: 2016 | B75: 46 | C75: 17 | D75: 1 | E75: 74 | F75: 公共 | G75: 102059 | H75: 群馬県 | I75: 太田市 | J75: 2777 | K75: 794 | L75: 1202 | M75: 2784 | N75: 448 | O75: 1450 | P75: 75 | Q75: -8 | R75: 2096 | S75: 861 | T75: 669 | U75: 2663 | V75: 1231 | W75: 1428 | X75: -567 | Y75: -8
A76: 2016 | B76: 46 | C76: 17 | D76: 1 | E76: 75 | F76: 公共 | G76: 111007 | H76: 埼玉県 | I76: さいたま市 | J76: 24101 | K76: 16779 | L76: 4370 | M76: 22872 | N76: 3435 | O76: 12180 | P76: 550 | Q76: 1229 | R76: 14819 | S76: 12018 | T76: 404 | U76: 24943 | V76: 13301 | W76: 11640 | X76: -10124 | Y76: 1229
A77: 2016 | B77: 46 | C77: 17 | D77: 1 | E77: 76 | F77: 公共 | G77: 112011 | H77: 埼玉県 | I77: 川越市 | J77: 5947 | K77: 3242 | L77: 1911 | M77: 5635 | N77: 419 | O77: 2669 | P77: 358 | Q77: 312 | R77: 806 | S77: 582 | T77: 86 | U77: 2458 | V77: 1249 | W77: 1209 | X77: -1652 | Y77: 312
A78: 2016 | B78: 46 | C78: 17 | D78: 1 | E78: 77 | F78: 公共 | G78: 112089 | H78: 埼玉県 | I78: 所沢市 | J78: 5044 | K78: 2658 | L78: 1324 | M78: 5360 | N78: 432 | O78: 2906 | P78: 384 | Q78: -316 | R78: 1503 | S78: 994 | T78: 171 | U78: 3208 | V78: 1986 | W78: 1219 | X78: -1705 | Y78: -316
A79: 2016 | B79: 46 | C79: 17 | D79: 1 | E79: 78 | F79: 公共 | G79: 112101 | H79: 埼玉県 | I79: 加須市 | J79: 1743 | K79: 505 | L79: 682 | M79: 1658 | N79: 250 | O79: 983 | P79: 46 | Q79: 85 | R79: 1493 | S79: 788 | T79: 300 | U79: 2011 | V79: 980 | W79: 1028 | X79: -518 | Y79: 85
A80: 2016 | B80: 46 | C80: 17 | D80: 1 | E80: 79 | F80: 公共 | G80: 112119 | H80: 埼玉県 | I80: 本庄市 | J80: 1423 | K80: 590 | L80: 263 | M80: 1399 | N80: 144 | O80: 826 | P80: 45 | Q80: 25 | R80: 1037 | S80: 591 | T80: 290 | U80: 1132 | V80: 613 | W80: 518 | X80: -94 | Y80: 25
A81: 2016 | B81: 46 | C81: 17 | D81: 1 | E81: 80 | F81: 公共 | G81: 112143 | H81: 埼玉県 | I81: 春日部市 | J81: 4713 | K81: 2273 | L81: 1720 | M81: 4119 | N81: 797 | O81: 2176 | P81: 93 | Q81: 594 | R81: 2624 | S81: 2192 | T81: 162 | U81: 4419 | V81: 1246 | W81: 3174 | X81: -1795 | Y81: 594
A82: 2016 | B82: 46 | C82: 17 | D82: 1 | E82: 81 | F82: 公共 | G82: 112151 | H82: 埼玉県 | I82: 狭山市 | J82: 3205 | K82: 1538 | L82: 932 | M82: 3054 | N82: 370 | O82: 1822 | P82: 90 | Q82: 150 | R82: 608 | S82: 368 | T82: 124 | U82: 1758 | V82: 669 | W82: 1090 | X82: -1151 | Y82: 150
A83: 2016 | B83: 46 | C83: 17 | D83: 1 | E83: 82 | F83: 公共 | G83: 112178 | H83: 埼玉県 | I83: 鴻巣市 | J83: 2171 | K83: 1019 | L83: 620 | M83: 2044 | N83: 282 | O83: 1182 | P83: 47 | Q83: 128 | R83: 1430 | S83: 678 | T83: 530 | U83: 1974 | V83: 718 | W83: 1256 | X83: -545 | Y83: 128
A84: 2016 | B84: 46 | C84: 17 | D84: 1 | E84: 83 | F84: 公共 | G84: 112186 | H84: 埼玉県 | I84: 深谷市 | J84: 2327 | K84: 1003 | L84: 701 | M84: 2224 | N84: 330 | O84: 1279 | P84: 51 | Q84: 103 | R84: 1811 | S84: 1161 | T84: 53 | U84: 2569 | V84: 1545 | W84: 1022 | X84: -757 | Y84: 103
A85: 2016 | B85: 46 | C85: 17 | D85: 1 | E85: 84 | F85: 公共 | G85: 112241 | H85: 埼玉県 | I85: 戸田市 | J85: 2474 | K85: 1017 | L85: 912 | M85: 2389 | N85: 193 | O85: 1135 | P85: 59 | Q85: 85 | R85: 624 | S85: 508 | T85: 0 | U85: 1376 | V85: 743 | W85: 633 | X85: -752 | Y85: 85
A86: 2016 | B86: 46 | C86: 17 | D86: 1 | E86: 85 | F86: 公共 | G86: 112259 | H86: 埼玉県 | I86: 入間市 | J86: 2357 | K86: 1353 | L86: 456 | M86: 2202 | N86: 235 | O86: 1313 | P86: 60 | Q86: 154 | R86: 273 | S86: 132 | T86: 134 | U86: 1053 | V86: 242 | W86: 811 | X86: -780 | Y86: 154
A87: 2016 | B87: 46 | C87: 17 | D87: 1 | E87: 86 | F87: 公共 | G87: 112283 | H87: 埼玉県 | I87: 志木市 | J87: 1968 | K87: 809 | L87: 498 | M87: 1821 | N87: 176 | O87: 873 | P87: 90 | Q87: 147 | R87: 525 | S87: 110 | T87: 352 | U87: 851 | V87: 183 | W87: 646 | X87: -326 | Y87: 147
A88: 2016 | B88: 46 | C88: 17 | D88: 1 | E88: 87 | F88: 公共 | G88: 112291 | H88: 埼玉県 | I88: 和光市 | J88: 1073 | K88: 597 | L88: 339 | M88: 973 | N88: 103 | O88: 439 | P88: 30 | Q88: 100 | R88: 109 | S88: 30 | T88: 57 | U88: 492 | V88: 110 | W88: 382 | X88: -382 | Y88: 100
A89: 2016 | B89: 46 | C89: 17 | D89: 1 | E89: 88 | F89: 公共 | G89: 112356 | H89: 埼玉県 | I89: 富士見市 | J89: 1578 | K89: 871 | L89: 432 | M89: 1305 | N89: 186 | O89: 641 | P89: 28 | Q89: 273 | R89: 786 | S89: 397 | T89: 123 | U89: 1269 | V89: 674 | W89: 595 | X89: -482 | Y89: 273
A90: 2016 | B90: 46 | C90: 17 | D90: 1 | E90: 89 | F90: 公共 | G90: 112429 | H90: 埼玉県 | I90: 日高市 | J90: 1033 | K90: 569 | L90: 223 | M90: 930 | N90: 115 | O90: 454 | P90: 67 | Q90: 103 | R90: 593 | S90: 471 | T90: 46 | U90: 836 | V90: 258 | W90: 578 | X90: -244 | Y90: 103
A91: 2016 | B91: 46 | C91: 17 | D91: 1 | E91: 90 | F91: 公共 | G91: 112453 | H91: 埼玉県 | I91: ふじみ野市 | J91: 1579 | K91: 987 | L91: 197 | M91: 1457 | N91: 78 | O91: 713 | P91: 57 | Q91: 122 | R91: 327 | S91: 182 | T91: 58 | U91: 675 | V91: 276 | W91: 398 | X91: -348 | Y91: 122
A92: 2016 | B92: 46 | C92: 17 | D92: 1 | E92: 91 | F92: 公共 | G92: 113859 | H92: 埼玉県 | I92: 上里町 | J92: 207 | K92: 56 | L92: 117 | M92: 188 | N92: 44 | O92: 106 | P92: 10 | Q92: 19 | R92: 124 | S92: 80 | T92: 12 | U92: 196 | V92: 119 | W92: 77 | X92: -72 | Y92: 19
A93: 2016 | B93: 46 | C93: 17 | D93: 1 | E93: 92 | F93: 公共 | G93: 121002 | H93: 千葉県 | I93: 千葉市 | J93: 27817 | K93: 12634 | L93: 7567 | M93: 26104 | N93: 4253 | O93: 14931 | P93: 601 | Q93: 1712 | R93: 15041 | S93: 11791 | T93: 92 | U93: 25018 | V93: 10568 | W93: 14445 | X93: -9977 | Y93: 1712
A94: 2016 | B94: 46 | C94: 17 | D94: 1 | E94: 93 | F94: 公共 | G94: 122122 | H94: 千葉県 | I94: 佐倉市 | J94: 3109 | K94: 1792 | L94: 205 | M94: 2973 | N94: 89 | O94: 1586 | P94: 119 | Q94: 136 | R94: 314 | S94: 62 | T94: 0 | U94: 882 | V94: 542 | W94: 340 | X94: -568 | Y94: 136
A95: 2016 | B95: 46 | C95: 17 | D95: 1 | E95: 94 | F95: 公共 | G95: 122173 | H95: 千葉県 | I95: 柏市 | J95: 9050 | K95: 5340 | L95: 1285 | M95: 8589 | N95: 957 | O95: 4467 | P95: 228 | Q95: 461 | R95: 3612 | S95: 1208 | T95: 0 | U95: 5764 | V95: 2107 | W95: 3653 | X95: -2152 | Y95: 461
A96: 2016 | B96: 46 | C96: 17 | D96: 1 | E96: 95 | F96: 公共 | G96: 122203 | H96: 千葉県 | I96: 流山市 | J96: 3034 | K96: 1730 | L96: 516 | M96: 2941 | N96: 407 | O96: 1379 | P96: 100 | Q96: 93 | R96: 2961 | S96: 952 | T96: 1 | U96: 3550 | V96: 2505 | W96: 1045 | X96: -590 | Y96: 93
A97: 2016 | B97: 46 | C97: 17 | D97: 1 | E97: 96 | F97: 公共 | G97: 122211 | H97: 千葉県 | I97: 八千代市 | J97: 3372 | K97: 2188 | L97: 489 | M97: 3187 | N97: 211 | O97: 1437 | P97: 125 | Q97: 185 | R97: 502 | S97: 211 | T97: 128 | U97: 1258 | V97: 491 | W97: 679 | X97: -756 | Y97: 185
A98: 2016 | B98: 46 | C98: 17 | D98: 1 | E98: 97 | F98: 公共 | G98: 123226 | H98: 千葉県 | I98: 酒々井町 | J98: 279 | K98: 237 | L98: 9 | M98: 299 | N98: 23 | O98: 161 | P98: 4 | Q98: -19 | R98: 34 | S98: 0 | T98: 30 | U98: 113 | V98: 41 | W98: 72 | X98: -79 | Y98: -19
A99: 2016 | B99: 46 | C99: 17 | D99: 1 | E99: 98 | F99: 公共 | G99: 130001 | H99: 東京都 | I99: 東京都 | J99: 343395 | K99: 157739 | L99: 122420 | M99: 304842 | N99: 28628 | O99: 170377 | P99: 13156 | Q99: 38552 | R99: 172258 | S99: 85097 | T99: 0 | U99: 351353 | V99: 179862 | W99: 171490 | X99: -179095 | Y99: 38552
A100: 2016 | B100: 46 | C100: 17 | D100: 1 | E100: 99 | F100: 公共 | G100: 141003 | H100: 神奈川県 | I100: 横浜市 | J100: 130467 | K100: 56020 | L100: 43533 | M100: 113673 | N100: 12554 | O100: 73798 | P100: 5514 | Q100: 16794 | R100: 53579 | S100: 41732 | T100: 0 | U100: 104085 | V100: 34217 | W100: 69845 | X100: -50505 | Y100: 16794
A101: 2016 | B101: 46 | C101: 17 | D101: 1 | E101: 100 | F101: 公共 | G101: 141305 | H101: 神奈川県 | I101: 川崎市 | J101: 43046 | K101: 22292 | L101: 12439 | M101: 40463 | N101: 6118 | O101: 22698 | P101: 2903 | Q101: 2582 | R101: 54185 | S101: 37826 | T101: 1705 | U101: 71828 | V101: 15896 | W101: 52539 | X101: -17643 | Y101: 2582
A102: 2016 | B102: 46 | C102: 17 | D102: 1 | E102: 101 | F102: 公共 | G102: 141500 | H102: 神奈川県 | I102: 相模原市 | J102: 15718 | K102: 8658 | L102: 4692 | M102: 15014 | N102: 2184 | O102: 8038 | P102: 485 | Q102: 704 | R102: 3338 | S102: 2275 | T102: 290 | U102: 9794 | V102: 2763 | W102: 7031 | X102: -6456 | Y102: 704
A103: 2016 | B103: 46 | C103: 17 | D103: 1 | E103: 102 | F103: 公共 | G103: 142018 | H103: 神奈川県 | I103: 横須賀市 | J103: 16266 | K103: 6932 | L103: 3106 | M103: 14618 | N103: 1631 | O103: 8498 | P103: 792 | Q103: 1648 | R103: 6631 | S103: 4033 | T103: 961 | U103: 10820 | V103: 3793 | W103: 6993 | X103: -4189 | Y103: 1648
A104: 2016 | B104: 46 | C104: 17 | D104: 1 | E104: 103 | F104: 公共 | G104: 142034 | H104: 神奈川県 | I104: 平塚市 | J104: 8111 | K104: 3367 | L104: 2625 | M104: 7253 | N104: 1215 | O104: 4416 | P104: 146 | Q104: 859 | R104: 2305 | S104: 521 | T104: 1194 | U104: 5190 | V104: 1291 | W104: 3899 | X104: -2885 | Y104: 859
A105: 2016 | B105: 46 | C105: 17 | D105: 1 | E105: 104 | F105: 公共 | G105: 142051 | H105: 神奈川県 | I105: 藤沢市 | J105: 12297 | K105: 5468 | L105: 4267 | M105: 11774 | N105: 1498 | O105: 5048 | P105: 416 | Q105: 523 | R105: 3740 | S105: 2695 | T105: 335 | U105: 7725 | V105: 2836 | W105: 4888 | X105: -3985 | Y105: 523
A106: 2016 | B106: 46 | C106: 17 | D106: 1 | E106: 105 | F106: 公共 | G106: 142069 | H106: 神奈川県 | I106: 小田原市 | J106: 6644 | K106: 3385 | L106: 1863 | M106: 6301 | N106: 984 | O106: 3579 | P106: 166 | Q106: 343 | R106: 2381 | S106: 1844 | T106: 287 | U106: 4617 | V106: 1184 | W106: 3433 | X106: -2236 | Y106: 343
A107: 2016 | B107: 46 | C107: 17 | D107: 1 | E107: 106 | F107: 公共 | G107: 142077 | H107: 神奈川県 | I107: 茅ヶ崎市 | J107: 5168 | K107: 2569 | L107: 1629 | M107: 4944 | N107: 754 | O107: 2437 | P107: 147 | Q107: 224 | R107: 2844 | S107: 1912 | T107: 355 | U107: 4655 | V107: 2490 | W107: 2165 | X107: -1811 | Y107: 224
A108: 2016 | B108: 46 | C108: 17 | D108: 1 | E108: 107 | F108: 公共 | G108: 142115 | H108: 神奈川県 | I108: 秦野市 | J108: 5349 | K108: 2008 | L108: 2052 | M108: 4605 | N108: 708 | O108: 2535 | P108: 196 | Q108: 744 | R108: 2658 | S108: 1806 | T108: 51 | U108: 4803 | V108: 2647 | W108: 2155 | X108: -2145 | Y108: 744
A109: 2016 | B109: 46 | C109: 17 | D109: 1 | E109: 108 | F109: 公共 | G109: 142166 | H109: 神奈川県 | I109: 座間市 | J109: 2604 | K109: 1542 | L109: 580 | M109: 2415 | N109: 438 | O109: 1346 | P109: 98 | Q109: 189 | R109: 772 | S109: 629 | T109: 116 | U109: 1825 | V109: 228 | W109: 1558 | X109: -1054 | Y109: 189
A110: 2016 | B110: 46 | C110: 17 | D110: 1 | E110: 109 | F110: 公共 | G110: 143219 | H110: 神奈川県 | I110: 寒川町 | J110: 1288 | K110: 540 | L110: 442 | M110: 1286 | N110: 178 | O110: 751 | P110: 57 | Q110: 1 | R110: 417 | S110: 336 | T110: 50 | U110: 863 | V110: 267 | W110: 596 | X110: -446 | Y110: 1
A111: 2016 | B111: 46 | C111: 17 | D111: 1 | E111: 110 | F111: 公共 | G111: 151009 | H111: 新潟県 | I111: 新潟市 | J111: 31810 | K111: 11978 | L111: 12598 | M111: 29466 | N111: 5960 | O111: 17498 | P111: 1022 | Q111: 2343 | R111: 21430 | S111: 13397 | T111: 2152 | U111: 34522 | V111: 16800 | W111: 17722 | X111: -13092 | Y111: 2343
A112: 2016 | B112: 46 | C112: 17 | D112: 1 | E112: 111 | F112: 公共 | G112: 152021 | H112: 新潟県 | I112: 長岡市 | J112: 7963 | K112: 3369 | L112: 2025 | M112: 7901 | N112: 1088 | O112: 4887 | P112: 160 | Q112: 62 | R112: 3423 | S112: 1022 | T112: 0 | U112: 6023 | V112: 1724 | W112: 4299 | X112: -2600 | Y112: 62
A113: 2016 | B113: 46 | C113: 17 | D113: 1 | E113: 112 | F113: 公共 | G113: 152056 | H113: 新潟県 | I113: 柏崎市 | J113: 3360 | K113: 1001 | L113: 1230 | M113: 3017 | N113: 420 | O113: 1994 | P113: 103 | Q113: 343 | R113: 1778 | S113: 996 | T113: 346 | U113: 2766 | V113: 451 | W113: 2315 | X113: -988 | Y113: 343
A114: 2016 | B114: 46 | C114: 17 | D114: 1 | E114: 113 | F114: 公共 | G114: 152081 | H114: 新潟県 | I114: 小千谷市 | J114: 1483 | K114: 487 | L114: 778 | M114: 1068 | N114: 217 | O114: 562 | P114: 88 | Q114: 415 | R114: 391 | S114: 299 | T114: 42 | U114: 1202 | V114: 242 | W114: 959 | X114: -810 | Y114: 415
A115: 2016 | B115: 46 | C115: 17 | D115: 1 | E115: 114 | F115: 公共 | G115: 152111 | H115: 新潟県 | I115: 見附市 | J115: 1689 | K115: 579 | L115: 634 | M115: 1676 | N115: 221 | O115: 932 | P115: 51 | Q115: 13 | R115: 1368 | S115: 677 | T115: 231 | U115: 1689 | V115: 980 | W115: 709 | X115: -322 | Y115: 13
A116: 2016 | B116: 46 | C116: 17 | D116: 1 | E116: 115 | F116: 公共 | G116: 152170 | H116: 新潟県 | I116: 妙高市 | J116: 1094 | K116: 400 | L116: 441 | M116: 806 | N116: 141 | O116: 451 | P116: 19 | Q116: 288 | R116: 373 | S116: 162 | T116: 127 | U116: 887 | V116: 200 | W116: 631 | X116: -514 | Y116: 288
A117: 2016 | B117: 46 | C117: 17 | D117: 1 | E117: 116 | F117: 公共 | G117: 152251 | H117: 新潟県 | I117: 魚沼市 | J117: 1202 | K117: 507 | L117: 482 | M117: 1068 | N117: 200 | O117: 573 | P117: 23 | Q117: 135 | R117: 505 | S117: 32 | T117: 0 | U117: 932 | V117: 61 | W117: 871 | X117: -427 | Y117: 135
A118: 2016 | B118: 46 | C118: 17 | D118: 1 | E118: 117 | F118: 公共 | G118: 152277 | H118: 新潟県 | I118: 胎内市 | J118: 798 | K118: 219 | L118: 285 | M118: 703 | N118: 136 | O118: 435 | P118: 9 | Q118: 96 | R118: 473 | S118: 424 | T118: 23 | U118: 694 | V118: 72 | W118: 620 | X118: -221 | Y118: 96
A119: 2016 | B119: 46 | C119: 17 | D119: 1 | E119: 118 | F119: 公共 | G119: 153079 | H119: 新潟県 | I119: 聖籠町 | J119: 508 | K119: 151 | L119: 216 | M119: 482 | N119: 89 | O119: 296 | P119: 14 | Q119: 26 | R119: 74 | S119: 71 | T119: 0 | U119: 259 | V119: 24 | W119: 226 | X119: -184 | Y119: 26
A120: 2016 | B120: 46 | C120: 17 | D120: 1 | E120: 119 | F120: 公共 | G120: 162019 | H120: 富山県 | I120: 富山市 | J120: 13580 | K120: 6151 | L120: 4687 | M120: 11501 | N120: 2062 | O120: 6994 | P120: 262 | Q120: 2079 | R120: 5593 | S120: 2160 | T120: 1605 | U120: 11953 | V120: 4216 | W120: 7737 | X120: -6360 | Y120: 2079
A121: 2016 | B121: 46 | C121: 17 | D121: 1 | E121: 120 | F121: 公共 | G121: 162027 | H121: 富山県 | I121: 高岡市 | J121: 4314 | K121: 2522 | L121: 739 | M121: 4062 | N121: 695 | O121: 2054 | P121: 71 | Q121: 251 | R121: 2549 | S121: 1872 | T121: 0 | U121: 4157 | V121: 1149 | W121: 3007 | X121: -1608 | Y121: 251
A122: 2016 | B122: 46 | C122: 17 | D122: 1 | E122: 121 | F122: 公共 | G122: 162078 | H122: 富山県 | I122: 黒部市 | J122: 1046 | K122: 272 | L122: 466 | M122: 1045 | N122: 152 | O122: 563 | P122: 22 | Q122: 2 | R122: 673 | S122: 362 | T122: 0 | U122: 1011 | V122: 309 | W122: 703 | X122: -339 | Y122: 2
A123: 2016 | B123: 46 | C123: 17 | D123: 1 | E123: 122 | F123: 公共 | G123: 162108 | H123: 富山県 | I123: 南砺市 | J123: 1074 | K123: 368 | L123: 591 | M123: 734 | N123: 123 | O123: 415 | P123: 15 | Q123: 340 | R123: 384 | S123: 183 | T123: 156 | U123: 963 | V123: 169 | W123: 794 | X123: -580 | Y123: 340
A124: 2016 | B124: 46 | C124: 17 | D124: 1 | E124: 123 | F124: 公共 | G124: 162116 | H124: 富山県 | I124: 射水市 | J124: 2469 | K124: 941 | L124: 1054 | M124: 2320 | N124: 418 | O124: 1211 | P124: 69 | Q124: 148 | R124: 1694 | S124: 783 | T124: 0 | U124: 2676 | V124: 1387 | W124: 1279 | X124: -982 | Y124: 148
A125: 2016 | B125: 46 | C125: 17 | D125: 1 | E125: 124 | F125: 公共 | G125: 169048 | H125: 富山県 | I125: 中新川広域行政事務組合 | J125: 1467 | K125: 432 | L125: 498 | M125: 1498 | N125: 307 | O125: 924 | P125: 36 | Q125: -31 | R125: 1291 | S125: 432 | T125: 395 | U125: 1773 | V125: 880 | W125: 894 | X125: -483 | Y125: -31
A126: 2016 | B126: 46 | C126: 17 | D126: 1 | E126: 125 | F126: 公共 | G126: 172014 | H126: 石川県 | I126: 金沢市 | J126: 16928 | K126: 7054 | L126: 5585 | M126: 15778 | N126: 2820 | O126: 9675 | P126: 483 | Q126: 1150 | R126: 6768 | S126: 4191 | T126: 20 | U126: 13801 | V126: 4061 | W126: 9731 | X126: -7033 | Y126: 1150
A127: 2016 | B127: 46 | C127: 17 | D127: 1 | E127: 126 | F127: 公共 | G127: 172031 | H127: 石川県 | I127: 小松市 | J127: 3532 | K127: 953 | L127: 1867 | M127: 3672 | N127: 870 | O127: 2164 | P127: 83 | Q127: -140 | R127: 3741 | S127: 2518 | T127: 223 | U127: 4808 | V127: 1794 | W127: 2998 | X127: -1066 | Y127: -140
A128: 2016 | B128: 46 | C128: 17 | D128: 1 | E128: 127 | F128: 公共 | G128: 172073 | H128: 石川県 | I128: 羽咋市 | J128: 666 | K128: 190 | L128: 333 | M128: 657 | N128: 165 | O128: 398 | P128: 15 | Q128: 9 | R128: 524 | S128: 331 | T128: 111 | U128: 810 | V128: 144 | W128: 666 | X128: -286 | Y128: 9
A129: 2016 | B129: 46 | C129: 17 | D129: 1 | E129: 128 | F129: 公共 | G129: 172090 | H129: 石川県 | I129: かほく市 | J129: 1746 | K129: 327 | L129: 974 | M129: 1584 | N129: 246 | O129: 1138 | P129: 8 | Q129: 162 | R129: 381 | S129: 241 | T129: 0 | U129: 1249 | V129: 245 | W129: 1003 | X129: -867 | Y129: 162
A130: 2016 | B130: 46 | C130: 17 | D130: 1 | E130: 129 | F130: 公共 | G130: 172103 | H130: 石川県 | I130: 白山市 | J130: 3573 | K130: 1412 | L130: 1299 | M130: 3711 | N130: 754 | O130: 2107 | P130: 64 | Q130: -137 | R130: 2400 | S130: 1533 | T130: 441 | U130: 3410 | V130: 824 | W130: 2583 | X130: -1010 | Y130: -137
A131: 2016 | B131: 46 | C131: 17 | D131: 1 | E131: 130 | F131: 公共 | G131: 172111 | H131: 石川県 | I131: 能美市 | J131: 1674 | K131: 705 | L131: 546 | M131: 1587 | N131: 338 | O131: 846 | P131: 11 | Q131: 87 | R131: 999 | S131: 622 | T131: 338 | U131: 1359 | V131: 77 | W131: 1282 | X131: -361 | Y131: 87
A132: 2016 | B132: 46 | C132: 17 | D132: 1 | E132: 131 | F132: 公共 | G132: 172120 | H132: 石川県 | I132: 野々市市 | J132: 1131 | K132: 703 | L132: 226 | M132: 1270 | N132: 263 | O132: 684 | P132: 41 | Q132: -140 | R132: 835 | S132: 483 | T132: 183 | U132: 1154 | V132: 331 | W132: 823 | X132: -319 | Y132: -140
A133: 2016 | B133: 46 | C133: 17 | D133: 1 | E133: 132 | F133: 公共 | G133: 173614 | H133: 石川県 | I133: 津幡町 | J133: 1402 | K133: 478 | L133: 533 | M133: 1373 | N133: 249 | O133: 893 | P133: 23 | Q133: 29 | R133: 1021 | S133: 631 | T133: 152 | U133: 1506 | V133: 482 | W133: 1024 | X133: -484 | Y133: 29
A134: 2016 | B134: 46 | C134: 17 | D134: 1 | E134: 133 | F134: 公共 | G134: 182010 | H134: 福井県 | I134: 福井市 | J134: 8549 | K134: 3565 | L134: 2396 | M134: 7852 | N134: 1189 | O134: 4407 | P134: 460 | Q134: 698 | R134: 5614 | S134: 3504 | T134: 740 | U134: 7898 | V134: 3969 | W134: 3911 | X134: -2284 | Y134: 698
A135: 2016 | B135: 46 | C135: 17 | D135: 1 | E135: 134 | F135: 公共 | G135: 182079 | H135: 福井県 | I135: 鯖江市 | J135: 1935 | K135: 1033 | L135: 497 | M135: 1924 | N135: 385 | O135: 1168 | P135: 20 | Q135: 12 | R135: 1227 | S135: 759 | T135: 270 | U135: 1968 | V135: 422 | W135: 1546 | X135: -741 | Y135: 12
A136: 2016 | B136: 46 | C136: 17 | D136: 1 | E136: 135 | F136: 公共 | G136: 182087 | H136: 福井県 | I136: あわら市 | J136: 1109 | K136: 497 | L136: 361 | M136: 1109 | N136: 201 | O136: 603 | P136: 23 | Q136: 0 | R136: 890 | S136: 580 | T136: 295 | U136: 1315 | V136: 506 | W136: 808 | X136: -425 | Y136: 0
A137: 2016 | B137: 46 | C137: 17 | D137: 1 | E137: 136 | F137: 公共 | G137: 182109 | H137: 福井県 | I137: 坂井市 | J137: 3079 | K137: 1143 | L137: 1040 | M137: 3020 | N137: 445 | O137: 1868 | P137: 28 | Q137: 60 | R137: 1740 | S137: 1384 | T137: 0 | U137: 2742 | V137: 704 | W137: 1989 | X137: -1002 | Y137: 60
A138: 2016 | B138: 46 | C138: 17 | D138: 1 | E138: 137 | F138: 公共 | G138: 188433 | H138: 福井県 | I138: 五領川公共下水道事務組合 | J138: 477 | K138: 135 | L138: 146 | M138: 426 | N138: 43 | O138: 212 | P138: 29 | Q138: 51 | R138: 116 | S138: 70 | T138: 4 | U138: 297 | V138: 112 | W138: 182 | X138: -181 | Y138: 51
A139: 2016 | B139: 46 | C139: 17 | D139: 1 | E139: 138 | F139: 公共 | G139: 192015 | H139: 山梨県 | I139: 甲府市 | J139: 6589 | K139: 2855 | L139: 1877 | M139: 5361 | N139: 878 | O139: 3285 | P139: 186 | Q139: 1229 | R139: 2993 | S139: 1240 | T139: 1134 | U139: 5448 | V139: 941 | W139: 3913 | X139: -2455 | Y139: 1229
A140: 2016 | B140: 46 | C140: 17 | D140: 1 | E140: 139 | F140: 公共 | G140: 192112 | H140: 山梨県 | I140: 笛吹市 | J140: 1937 | K140: 535 | L140: 1139 | M140: 1945 | N140: 379 | O140: 1018 | P140: 54 | Q140: -7 | R140: 938 | S140: 228 | T140: 600 | U140: 1697 | V140: 383 | W140: 1315 | X140: -759 | Y140: -7
A141: 2016 | B141: 46 | C141: 17 | D141: 1 | E141: 140 | F141: 公共 | G141: 202011 | H141: 長野県 | I141: 長野市 | J141: 12270 | K141: 6727 | L141: 2762 | M141: 9916 | N141: 1865 | O141: 5318 | P141: 280 | Q141: 2353 | R141: 3657 | S141: 1449 | T141: 956 | U141: 8615 | V141: 3050 | W141: 5565 | X141: -4958 | Y141: 2353
A142: 2016 | B142: 46 | C142: 17 | D142: 1 | E142: 141 | F142: 公共 | G142: 202029 | H142: 長野県 | I142: 松本市 | J142: 5579 | K142: 4157 | L142: 149 | M142: 4830 | N142: 576 | O142: 2751 | P142: 283 | Q142: 748 | R142: 2257 | S142: 566 | T142: 1025 | U142: 4232 | V142: 1362 | W142: 2870 | X142: -1976 | Y142: 748
A143: 2016 | B143: 46 | C143: 17 | D143: 1 | E143: 142 | F143: 公共 | G143: 202037 | H143: 長野県 | I143: 上田市 | J143: 4476 | K143: 1838 | L143: 1571 | M143: 3945 | N143: 720 | O143: 2440 | P143: 78 | Q143: 531 | R143: 612 | S143: 192 | T143: 197 | U143: 2732 | V143: 460 | W143: 2272 | X143: -2119 | Y143: 531
A144: 2016 | B144: 46 | C144: 17 | D144: 1 | E144: 143 | F144: 公共 | G144: 202045 | H144: 長野県 | I144: 岡谷市 | J144: 1722 | K144: 973 | L144: 316 | M144: 1474 | N144: 187 | O144: 786 | P144: 82 | Q144: 248 | R144: 815 | S144: 520 | T144: 161 | U144: 1393 | V144: 383 | W144: 1010 | X144: -578 | Y144: 248
A145: 2016 | B145: 46 | C145: 17 | D145: 1 | E145: 144 | F145: 公共 | G145: 202053 | H145: 長野県 | I145: 飯田市 | J145: 3533 | K145: 1590 | L145: 743 | M145: 3032 | N145: 419 | O145: 1813 | P145: 135 | Q145: 500 | R145: 1009 | S145: 271 | T145: 593 | U145: 1899 | V145: 384 | W145: 1515 | X145: -890 | Y145: 500
A146: 2016 | B146: 46 | C146: 17 | D146: 1 | E146: 145 | F146: 公共 | G146: 202061 | H146: 長野県 | I146: 諏訪市 | J146: 2383 | K146: 1281 | L146: 647 | M146: 1881 | N146: 251 | O146: 1006 | P146: 91 | Q146: 502 | R146: 376 | S146: 165 | T146: 157 | U146: 1344 | V146: 309 | W146: 1036 | X146: -968 | Y146: 502
A147: 2016 | B147: 46 | C147: 17 | D147: 1 | E147: 146 | F147: 公共 | G147: 202070 | H147: 長野県 | I147: 須坂市 | J147: 1689 | K147: 745 | L147: 616 | M147: 1399 | N147: 327 | O147: 721 | P147: 18 | Q147: 291 | R147: 914 | S147: 574 | T147: 322 | U147: 1427 | V147: 106 | W147: 1321 | X147: -513 | Y147: 291
A148: 2016 | B148: 46 | C148: 17 | D148: 1 | E148: 147 | F148: 公共 | G148: 202088 | H148: 長野県 | I148: 小諸市 | J148: 984 | K148: 373 | L148: 378 | M148: 922 | N148: 176 | O148: 554 | P148: 19 | Q148: 62 | R148: 540 | S148: 336 | T148: 109 | U148: 841 | V148: 156 | W148: 685 | X148: -302 | Y148: 62
A149: 2016 | B149: 46 | C149: 17 | D149: 1 | E149: 148 | F149: 公共 | G149: 202096 | H149: 長野県 | I149: 伊那市 | J149: 1472 | K149: 633 | L149: 439 | M149: 1295 | N149: 255 | O149: 759 | P149: 63 | Q149: 177 | R149: 1022 | S149: 819 | T149: 142 | U149: 1400 | V149: 142 | W149: 1258 | X149: -377 | Y149: 177
A150: 2016 | B150: 46 | C150: 17 | D150: 1 | E150: 149 | F150: 公共 | G150: 202100 | H150: 長野県 | I150: 駒ケ根市 | J150: 1009 | K150: 373 | L150: 384 | M150: 868 | N150: 158 | O150: 498 | P150: 23 | Q150: 141 | R150: 392 | S150: 258 | T150: 19 | U150: 746 | V150: 218 | W150: 528 | X150: -354 | Y150: 141
A151: 2016 | B151: 46 | C151: 17 | D151: 1 | E151: 150 | F151: 公共 | G151: 202118 | H151: 長野県 | I151: 中野市 | J151: 1502 | K151: 438 | L151: 543 | M151: 1194 | N151: 142 | O151: 777 | P151: 38 | Q151: 308 | R151: 460 | S151: 236 | T151: 0 | U151: 867 | V151: 218 | W151: 648 | X151: -407 | Y151: 308
A152: 2016 | B152: 46 | C152: 17 | D152: 1 | E152: 151 | F152: 公共 | G152: 202126 | H152: 長野県 | I152: 大町市 | J152: 829 | K152: 262 | L152: 402 | M152: 778 | N152: 145 | O152: 419 | P152: 42 | Q152: 51 | R152: 483 | S152: 221 | T152: 85 | U152: 692 | V152: 290 | W152: 402 | X152: -209 | Y152: 51
A153: 2016 | B153: 46 | C153: 17 | D153: 1 | E153: 152 | F153: 公共 | G153: 202142 | H153: 長野県 | I153: 茅野市 | J153: 2008 | K153: 1082 | L153: 708 | M153: 1599 | N153: 208 | O153: 881 | P153: 60 | Q153: 409 | R153: 264 | S153: 101 | T153: 125 | U153: 1329 | V153: 187 | W153: 1143 | X153: -1065 | Y153: 409
A154: 2016 | B154: 46 | C154: 17 | D154: 1 | E154: 153 | F154: 公共 | G154: 202151 | H154: 長野県 | I154: 塩尻市 | J154: 2199 | K154: 1215 | L154: 325 | M154: 2096 | N154: 323 | O154: 1219 | P154: 63 | Q154: 104 | R154: 802 | S154: 350 | T154: 274 | U154: 1554 | V154: 421 | W154: 1132 | X154: -752 | Y154: 104
A155: 2016 | B155: 46 | C155: 17 | D155: 1 | E155: 154 | F155: 公共 | G155: 202177 | H155: 長野県 | I155: 佐久市 | J155: 2715 | K155: 1524 | L155: 588 | M155: 2204 | N155: 372 | O155: 1128 | P155: 74 | Q155: 511 | R155: 1422 | S155: 595 | T155: 0 | U155: 2278 | V155: 1094 | W155: 1184 | X155: -857 | Y155: 511
A156: 2016 | B156: 46 | C156: 17 | D156: 1 | E156: 155 | F156: 公共 | G156: 202185 | H156: 長野県 | I156: 千曲市 | J156: 2740 | K156: 905 | L156: 1312 | M156: 2328 | N156: 577 | O156: 1267 | P156: 32 | Q156: 412 | R156: 902 | S156: 500 | T156: 163 | U156: 2058 | V156: 601 | W156: 1457 | X156: -1156 | Y156: 412
A157: 2016 | B157: 46 | C157: 17 | D157: 1 | E157: 156 | F157: 公共 | G157: 202193 | H157: 長野県 | I157: 東御市 | J157: 931 | K157: 297 | L157: 452 | M157: 821 | N157: 173 | O157: 446 | P157: 56 | Q157: 110 | R157: 499 | S157: 45 | T157: 10 | U157: 831 | V157: 205 | W157: 626 | X157: -332 | Y157: 110
A158: 2016 | B158: 46 | C158: 17 | D158: 1 | E158: 157 | F158: 公共 | G158: 202207 | H158: 長野県 | I158: 安曇野市 | J158: 3630 | K158: 1407 | L158: 1388 | M158: 3253 | N158: 627 | O158: 1645 | P158: 89 | Q158: 376 | R158: 755 | S158: 99 | T158: 537 | U158: 1980 | V158: 130 | W158: 1849 | X158: -1225 | Y158: 376
A159: 2016 | B159: 46 | C159: 17 | D159: 1 | E159: 158 | F159: 公共 | G159: 203611 | H159: 長野県 | I159: 下諏訪町 | J159: 558 | K159: 444 | L159: 19 | M159: 547 | N159: 49 | O159: 269 | P159: 22 | Q159: 11 | R159: 203 | S159: 73 | T159: 81 | U159: 381 | V159: 138 | W159: 244 | X159: -178 | Y159: 11
A160: 2016 | B160: 46 | C160: 17 | D160: 1 | E160: 159 | F160: 公共 | G160: 203629 | H160: 長野県 | I160: 富士見町 | J160: 1131 | K160: 518 | L160: 423 | M160: 888 | N160: 167 | O160: 455 | P160: 24 | Q160: 244 | R160: 142 | S160: 0 | T160: 0 | U160: 723 | V160: 144 | W160: 573 | X160: -581 | Y160: 244
A161: 2016 | B161: 46 | C161: 17 | D161: 1 | E161: 160 | F161: 公共 | G161: 203831 | H161: 長野県 | I161: 箕輪町 | J161: 510 | K161: 197 | L161: 172 | M161: 509 | N161: 112 | O161: 305 | P161: 11 | Q161: 1 | R161: 292 | S161: 138 | T161: 148 | U161: 455 | V161: 63 | W161: 392 | X161: -164 | Y161: 1
A162: 2016 | B162: 46 | C162: 17 | D162: 1 | E162: 161 | F162: 公共 | G162: 203858 | H162: 長野県 | I162: 南箕輪村 | J162: 625 | K162: 245 | L162: 185 | M162: 626 | N162: 134 | O162: 387 | P162: 19 | Q162: -1 | R162: 296 | S162: 49 | T162: 123 | U162: 495 | V162: 126 | W162: 368 | X162: -199 | Y162: -1
A163: 2016 | B163: 46 | C163: 17 | D163: 1 | E163: 162 | F163: 公共 | G163: 203882 | H163: 長野県 | I163: 宮田村 | J163: 181 | K163: 116 | L163: 9 | M163: 221 | N163: 38 | O163: 112 | P163: 9 | Q163: -39 | R163: 196 | S163: 0 | T163: 0 | U163: 206 | V163: 30 | W163: 176 | X163: -11 | Y163: -39
A164: 2016 | B164: 46 | C164: 17 | D164: 1 | E164: 163 | F164: 公共 | G164: 212016 | H164: 岐阜県 | I164: 岐阜市 | J164: 8495 | K164: 5367 | L164: 1507 | M164: 7896 | N164: 1270 | O164: 3601 | P164: 731 | Q164: 599 | R164: 4761 | S164: 3099 | T164: 384 | U164: 7297 | V164: 3403 | W164: 3895 | X164: -2537 | Y164: 599
A165: 2016 | B165: 46 | C165: 17 | D165: 1 | E165: 164 | F165: 公共 | G165: 212083 | H165: 岐阜県 | I165: 瑞浪市 | J165: 963 | K165: 479 | L165: 186 | M165: 962 | N165: 129 | O165: 569 | P165: 87 | Q165: 1 | R165: 539 | S165: 64 | T165: 12 | U165: 768 | V165: 329 | W165: 439 | X165: -230 | Y165: 1
A166: 2016 | B166: 46 | C166: 17 | D166: 1 | E166: 165 | F166: 公共 | G166: 212113 | H166: 岐阜県 | I166: 美濃加茂市 | J166: 1894 | K166: 618 | L166: 768 | M166: 1788 | N166: 350 | O166: 924 | P166: 31 | Q166: 106 | R166: 839 | S166: 585 | T166: 150 | U166: 1344 | V166: 177 | W166: 1167 | X166: -505 | Y166: 106
A167: 2016 | B167: 46 | C167: 17 | D167: 1 | E167: 166 | F167: 公共 | G167: 221007 | H167: 静岡県 | I167: 静岡市 | J167: 21487 | K167: 9634 | L167: 7199 | M167: 19617 | N167: 3116 | O167: 10909 | P167: 995 | Q167: 1869 | R167: 14523 | S167: 10028 | T167: 0 | U167: 22361 | V167: 10912 | W167: 11335 | X167: -7838 | Y167: 1869
A168: 2016 | B168: 46 | C168: 17 | D168: 1 | E168: 167 | F168: 公共 | G168: 221309 | H168: 静岡県 | I168: 浜松市 | J168: 19372 | K168: 9179 | L168: 4907 | M168: 21487 | N168: 2906 | O168: 11401 | P168: 396 | Q168: -2115 | R168: 9779 | S168: 5467 | T168: 0 | U168: 16727 | V168: 6820 | W168: 9907 | X168: -6949 | Y168: -2115
A169: 2016 | B169: 46 | C169: 17 | D169: 1 | E169: 168 | F169: 公共 | G169: 222038 | H169: 静岡県 | I169: 沼津市 | J169: 4315 | K169: 1367 | L169: 2112 | M169: 4147 | N169: 695 | O169: 2171 | P169: 175 | Q169: 167 | R169: 1855 | S169: 1389 | T169: 2 | U169: 3309 | V169: 1297 | W169: 2012 | X169: -1454 | Y169: 167
A170: 2016 | B170: 46 | C170: 17 | D170: 1 | E170: 169 | F170: 公共 | G170: 222054 | H170: 静岡県 | I170: 熱海市 | J170: 1944 | K170: 1147 | L170: 323 | M170: 1718 | N170: 203 | O170: 1039 | P170: 52 | Q170: 226 | R170: 594 | S170: 129 | T170: 0 | U170: 921 | V170: 313 | W170: 608 | X170: -327 | Y170: 226
A171: 2016 | B171: 46 | C171: 17 | D171: 1 | E171: 170 | F171: 公共 | G171: 222101 | H171: 静岡県 | I171: 富士市 | J171: 6301 | K171: 2763 | L171: 2333 | M171: 5010 | N171: 811 | O171: 2705 | P171: 221 | Q171: 1291 | R171: 2036 | S171: 1122 | T171: 117 | U171: 4831 | V171: 2233 | W171: 2598 | X171: -2796 | Y171: 1291
A172: 2016 | B172: 46 | C172: 17 | D172: 1 | E172: 171 | F172: 公共 | G172: 231002 | H172: 愛知県 | I172: 名古屋市 | J172: 72431 | K172: 31159 | L172: 34917 | M172: 70216 | N172: 8267 | O172: 36099 | P172: 6736 | Q172: 2215 | R172: 25162 | S172: 16000 | T172: 0 | U172: 65043 | V172: 35759 | W172: 29270 | X172: -39881 | Y172: 2215
A173: 2016 | B173: 46 | C173: 17 | D173: 1 | E173: 172 | F173: 公共 | G173: 232017 | H173: 愛知県 | I173: 豊橋市 | J173: 7295 | K173: 3629 | L173: 2102 | M173: 7265 | N173: 805 | O173: 3757 | P173: 460 | Q173: 30 | R173: 4778 | S173: 1475 | T173: 203 | U173: 7307 | V173: 4463 | W173: 2844 | X173: -2529 | Y173: 30
A174: 2016 | B174: 46 | C174: 17 | D174: 1 | E174: 173 | F174: 公共 | G174: 232025 | H174: 愛知県 | I174: 岡崎市 | J174: 8470 | K174: 3745 | L174: 3460 | M174: 8085 | N174: 1421 | O174: 4057 | P174: 254 | Q174: 385 | R174: 3557 | S174: 1693 | T174: 133 | U174: 7077 | V174: 3504 | W174: 3568 | X174: -3520 | Y174: 385
A175: 2016 | B175: 46 | C175: 17 | D175: 1 | E175: 174 | F175: 公共 | G175: 232033 | H175: 愛知県 | I175: 一宮市 | J175: 8060 | K175: 2361 | L175: 4593 | M175: 8021 | N175: 1548 | O175: 3857 | P175: 416 | Q175: 39 | R175: 4952 | S175: 3211 | T175: 304 | U175: 8332 | V175: 4094 | W175: 4103 | X175: -3381 | Y175: 39
A176: 2016 | B176: 46 | C176: 17 | D176: 1 | E176: 175 | F176: 公共 | G176: 232050 | H176: 愛知県 | I176: 半田市 | J176: 3964 | K176: 1136 | L176: 1675 | M176: 3905 | N176: 651 | O176: 2236 | P176: 75 | Q176: 59 | R176: 2031 | S176: 488 | T176: 239 | U176: 3163 | V176: 795 | W176: 2368 | X176: -1132 | Y176: 59
A177: 2016 | B177: 46 | C177: 17 | D177: 1 | E177: 176 | F177: 公共 | G177: 232068 | H177: 愛知県 | I177: 春日井市 | J177: 6892 | K177: 2107 | L177: 2583 | M177: 6892 | N177: 1054 | O177: 4194 | P177: 222 | Q177: 0 | R177: 4055 | S177: 2599 | T177: 0 | U177: 6220 | V177: 2286 | W177: 3934 | X177: -2165 | Y177: 0
A178: 2016 | B178: 46 | C178: 17 | D178: 1 | E178: 177 | F178: 公共 | G178: 232084 | H178: 愛知県 | I178: 津島市 | J178: 341 | K178: 163 | L178: 122 | M178: 294 | N178: 17 | O178: 125 | P178: 22 | Q178: 47 | R178: 118 | S178: 74 | T178: 21 | U178: 269 | V178: 90 | W178: 179 | X178: -151 | Y178: 47
A179: 2016 | B179: 46 | C179: 17 | D179: 1 | E179: 178 | F179: 公共 | G179: 232114 | H179: 愛知県 | I179: 豊田市 | J179: 7374 | K179: 3473 | L179: 2340 | M179: 7020 | N179: 941 | O179: 4237 | P179: 188 | Q179: 353 | R179: 3025 | S179: 1015 | T179: 139 | U179: 5808 | V179: 3224 | W179: 2584 | X179: -2783 | Y179: 353
A180: 2016 | B180: 46 | C180: 17 | D180: 1 | E180: 179 | F180: 公共 | G180: 232203 | H180: 愛知県 | I180: 稲沢市 | J180: 1632 | K180: 664 | L180: 755 | M180: 1654 | N180: 331 | O180: 866 | P180: 43 | Q180: -22 | R180: 946 | S180: 308 | T180: 54 | U180: 1606 | V180: 758 | W180: 848 | X180: -660 | Y180: -22
A181: 2016 | B181: 46 | C181: 17 | D181: 1 | E181: 180 | F181: 公共 | G181: 232211 | H181: 愛知県 | I181: 新城市 | J181: 505 | K181: 221 | L181: 142 | M181: 531 | N181: 94 | O181: 306 | P181: 26 | Q181: -26 | R181: 408 | S181: 231 | T181: 0 | U181: 546 | V181: 203 | W181: 344 | X181: -138 | Y181: -26
A182: 2016 | B182: 46 | C182: 17 | D182: 1 | E182: 181 | F182: 公共 | G182: 232246 | H182: 愛知県 | I182: 知多市 | J182: 1447 | K182: 735 | L182: 228 | M182: 1625 | N182: 118 | O182: 841 | P182: 62 | Q182: -178 | R182: 951 | S182: 255 | T182: 415 | U182: 1219 | V182: 703 | W182: 516 | X182: -268 | Y182: -178
A183: 2016 | B183: 46 | C183: 17 | D183: 1 | E183: 182 | F183: 公共 | G183: 242012 | H183: 三重県 | I183: 津市 | J183: 7356 | K183: 1340 | L183: 3245 | M183: 7591 | N183: 1130 | O183: 4525 | P183: 312 | Q183: -235 | R183: 5824 | S183: 2962 | T183: 1982 | U183: 7441 | V183: 3221 | W183: 4219 | X183: -1617 | Y183: -235
A184: 2016 | B184: 46 | C184: 17 | D184: 1 | E184: 183 | F184: 公共 | G184: 242021 | H184: 三重県 | I184: 四日市市 | J184: 14559 | K184: 3695 | L184: 6282 | M184: 12980 | N184: 1743 | O184: 7943 | P184: 360 | Q184: 1580 | R184: 5641 | S184: 3020 | T184: 592 | U184: 11442 | V184: 6048 | W184: 5394 | X184: -5801 | Y184: 1580
A185: 2016 | B185: 46 | C185: 17 | D185: 1 | E185: 184 | F185: 公共 | G185: 242039 | H185: 三重県 | I185: 伊勢市 | J185: 3260 | K185: 834 | L185: 1457 | M185: 3042 | N185: 533 | O185: 1511 | P185: 172 | Q185: 218 | R185: 3096 | S185: 1683 | T185: 188 | U185: 4239 | V185: 3163 | W185: 1075 | X185: -1143 | Y185: 218
A186: 2016 | B186: 46 | C186: 17 | D186: 1 | E186: 185 | F186: 公共 | G186: 242047 | H186: 三重県 | I186: 松阪市 | J186: 3893 | K186: 1306 | L186: 1727 | M186: 3948 | N186: 858 | O186: 2094 | P186: 83 | Q186: -55 | R186: 3579 | S186: 1454 | T186: 938 | U186: 4935 | V186: 2740 | W186: 2194 | X186: -1357 | Y186: -55
A187: 2016 | B187: 46 | C187: 17 | D187: 1 | E187: 186 | F187: 公共 | G187: 242055 | H187: 三重県 | I187: 桑名市 | J187: 5080 | K187: 1762 | L187: 1355 | M187: 4814 | N187: 672 | O187: 2876 | P187: 110 | Q187: 265 | R187: 1991 | S187: 1039 | T187: 498 | U187: 3180 | V187: 784 | W187: 2396 | X187: -1189 | Y187: 265
A188: 2016 | B188: 46 | C188: 17 | D188: 1 | E188: 187 | F188: 公共 | G188: 242071 | H188: 三重県 | I188: 鈴鹿市 | J188: 4552 | K188: 1361 | L188: 1908 | M188: 4220 | N188: 816 | O188: 2201 | P188: 177 | Q188: 332 | R188: 4639 | S188: 2514 | T188: 495 | U188: 6227 | V188: 4011 | W188: 2216 | X188: -1588 | Y188: 332
A189: 2016 | B189: 46 | C189: 17 | D189: 1 | E189: 188 | F189: 公共 | G189: 242101 | H189: 三重県 | I189: 亀山市 | J189: 894 | K189: 391 | L189: 277 | M189: 881 | N189: 147 | O189: 397 | P189: 42 | Q189: 13 | R189: 1110 | S189: 516 | T189: 112 | U189: 1339 | V189: 990 | W189: 349 | X189: -229 | Y189: 13
A190: 2016 | B190: 46 | C190: 17 | D190: 1 | E190: 189 | F190: 公共 | G190: 243418 | H190: 三重県 | I190: 菰野町 | J190: 410 | K190: 247 | L190: 62 | M190: 415 | N190: 74 | O190: 208 | P190: 25 | Q190: -5 | R190: 217 | S190: 96 | T190: 107 | U190: 328 | V190: 54 | W190: 274 | X190: -110 | Y190: -5
A191: 2016 | B191: 46 | C191: 17 | D191: 1 | E191: 190 | F191: 公共 | G191: 244619 | H191: 三重県 | I191: 玉城町 | J191: 357 | K191: 96 | L191: 130 | M191: 482 | N191: 98 | O191: 262 | P191: 0 | Q191: -124 | R191: 616 | S191: 225 | T191: 222 | U191: 616 | V191: 423 | W191: 193 | X191: 0 | Y191: -124
A192: 2016 | B192: 46 | C192: 17 | D192: 1 | E192: 191 | F192: 公共 | G192: 252018 | H192: 滋賀県 | I192: 大津市 | J192: 10600 | K192: 6858 | L192: 1430 | M192: 8963 | N192: 1136 | O192: 4603 | P192: 476 | Q192: 1638 | R192: 546 | S192: 115 | T192: 0 | U192: 5529 | V192: 1301 | W192: 4215 | X192: -4982 | Y192: 1638
A193: 2016 | B193: 46 | C193: 17 | D193: 1 | E193: 192 | F193: 公共 | G193: 252069 | H193: 滋賀県 | I193: 草津市 | J193: 2973 | K193: 1735 | L193: 477 | M193: 2567 | N193: 341 | O193: 1272 | P193: 97 | Q193: 406 | R193: 1104 | S193: 334 | T193: 601 | U193: 2176 | V193: 536 | W193: 1641 | X193: -1072 | Y193: 406
A194: 2016 | B194: 46 | C194: 17 | D194: 1 | E194: 193 | F194: 公共 | G194: 252077 | H194: 滋賀県 | I194: 守山市 | J194: 1966 | K194: 1206 | L194: 343 | M194: 1954 | N194: 301 | O194: 1048 | P194: 29 | Q194: 12 | R194: 846 | S194: 519 | T194: 0 | U194: 1591 | V194: 524 | W194: 1067 | X194: -745 | Y194: 12
A195: 2016 | B195: 46 | C195: 17 | D195: 1 | E195: 194 | F195: 公共 | G195: 252085 | H195: 滋賀県 | I195: 栗東市 | J195: 1760 | K195: 988 | L195: 353 | M195: 1568 | N195: 296 | O195: 753 | P195: 32 | Q195: 192 | R195: 793 | S195: 599 | T195: 0 | U195: 1519 | V195: 338 | W195: 1182 | X195: -726 | Y195: 192
A196: 2016 | B196: 46 | C196: 17 | D196: 1 | E196: 195 | F196: 公共 | G196: 252093 | H196: 滋賀県 | I196: 甲賀市 | J196: 2062 | K196: 874 | L196: 630 | M196: 1965 | N196: 329 | O196: 1138 | P196: 72 | Q196: 96 | R196: 1024 | S196: 360 | T196: 0 | U196: 1628 | V196: 632 | W196: 996 | X196: -603 | Y196: 96
A197: 2016 | B197: 46 | C197: 17 | D197: 1 | E197: 196 | F197: 公共 | G197: 252115 | H197: 滋賀県 | I197: 湖南市 | J197: 1750 | K197: 870 | L197: 429 | M197: 1717 | N197: 322 | O197: 931 | P197: 31 | Q197: 33 | R197: 961 | S197: 618 | T197: 27 | U197: 1528 | V197: 408 | W197: 1120 | X197: -567 | Y197: 33
A198: 2016 | B198: 46 | C198: 17 | D198: 1 | E198: 197 | F198: 公共 | G198: 261009 | H198: 京都府 | I198: 京都市 | J198: 50606 | K198: 22228 | L198: 19962 | M198: 45916 | N198: 5794 | O198: 26527 | P198: 3735 | Q198: 4689 | R198: 21044 | S198: 14167 | T198: 1214 | U198: 43268 | V198: 20525 | W198: 22541 | X198: -22224 | Y198: 4689
A199: 2016 | B199: 46 | C199: 17 | D199: 1 | E199: 198 | F199: 公共 | G199: 262013 | H199: 京都府 | I199: 福知山市 | J199: 2802 | K199: 1322 | L199: 656 | M199: 2759 | N199: 272 | O199: 1634 | P199: 52 | Q199: 43 | R199: 2355 | S199: 1201 | T199: 75 | U199: 3469 | V199: 2488 | W199: 981 | X199: -1115 | Y199: 43
A200: 2016 | B200: 46 | C200: 17 | D200: 1 | E200: 199 | F200: 公共 | G200: 262048 | H200: 京都府 | I200: 宇治市 | J200: 5219 | K200: 2538 | L200: 1009 | M200: 5168 | N200: 814 | O200: 3073 | P200: 185 | Q200: 50 | R200: 3370 | S200: 2085 | T200: 337 | U200: 4893 | V200: 2779 | W200: 2114 | X200: -1522 | Y200: 50
... 3440 more rows

Sheet 29公共
A13: 団体 コード | B13: 都道府県名 | C13: 団体名 | D13: 事業 コード | E13: 類型区分 | F13: 処理区域内人口別区分 | G13: 有収水量密度別 区分 | H13: 供用開始後年数別区分 | I13: 処理区域内 人口 | J13: 有収水量 密度 | K13: 供用開始 後年 | L13: 事業別 普及率 | M13: 進捗率 | N13: 一般家庭使用料 （1ヶ月20m3あたり） | O13: 処理区域内 人口密度 | P13: 施設利用率 | Q13: 有収率 | R13: 水洗化率 | S13: 使用料単価 | T13: 汚水処理原価 | U13: 汚水処理原価（分流式下水道等に要する経費控除前） | V13: 汚水処理原価（維持管理費） | W13: 汚水処理原価（資本費） | X13: 経費回収率 | Y13: 経費回収率 （分流式下水道等に要する経費控除前） | Z13: 経費回収率 （維持管理費） | AA13: 処理区域１人 あたりの管理運営費（汚水分） | AB13: 処理区域１人 あたりの維持管理費（汚水分） | AC13: 処理区域１人 あたりの資本費（汚水分） | AD13: 職員1人あたりの処理区域内人口 | AE13: 職員給与費 対営業収益比率 | AF13: 総収支比率 | AG13: 経常収支比率 | AH13: 事業別 資金不足比率 | AI13: 利子負担率 | AJ13: 自己資本 構成比率 | AK13: 固定資産対 長期資本比率 | AL13: 処理区域内人口 1人あたり地方債残高
I14: 人 | J14: 千㎥/ｈa | K14: 年 | L14: ％ | M14: ％ | N14: 円/月 | O14: 人/ha | P14: ％ | Q14: ％ | R14: ％ | S14: 円/m3 | T14: 円/m3 | U14: 円/m3 | V14: 円/m3 | W14: 円/m3 | X14: ％ | Y14: ％ | Z14: ％ | AA14: 円/人 | AB14: 円/人 | AC14: 円/人 | AD14: 人/人 | AE14: ％ | AF14: ％ | AG14: ％ | AH14: ％ | AI14: ％ | AJ14: ％ | AK14: ％ | AL14: 千円/人
A16: 011002 | B16: 北海道 | C16: 札幌市 | D16: 1171 | E16: 政令市等 | F16: 政令市等 | G16: 政令市等 | H16: 政令市等 | I16: 1936035 | J16: 8.4 | K16: 57 | L16: 99.3 | M16: 104.3 | N16: 1371 | O16: 79 | P16: 68 | Q16: 71.1 | R16: 99.9 | S16: 93.82 | T16: 93.81 | U16: 93.81 | V16: 53.73 | W16: 40.08 | X16: 100 | Y16: 100 | Z16: 174.6 | AA16: 9979 | AB16: 5715 | AC16: 4264 | AD16: 3903 | AE16: 8.6 | AF16: 107.9 | AG16: 107.9 | AH16: 0 | AI16: 1.7 | AJ16: 57.4 | AK16: 101.8 | AL16: 125
A17: 041009 | B17: 宮城県 | C17: 仙台市 | D17: 1171 | E17: 政令市等 | F17: 政令市等 | G17: 政令市等 | H17: 政令市等 | I17: 1032631 | J17: 6.5 | K17: 54 | L17: 97.8 | M17: 105.9 | N17: 1882 | O17: 62 | P17: 88.8 | Q17: 80.9 | R17: 99.6 | S17: 149.65 | T17: 123.09 | U17: 123.09 | V17: 53.72 | W17: 69.37 | X17: 121.6 | Y17: 121.6 | Z17: 278.6 | AA17: 12930 | AB17: 5643 | AC17: 7287 | AD17: 4451 | AE17: 5.2 | AF17: 108.5 | AG17: 111 | AH17: 0 | AI17: 1.9 | AJ17: 67 | AK17: 101 | AL17: 186
A18: 111007 | B18: 埼玉県 | C18: さいたま市 | D18: 1171 | E18: 政令市等 | F18: 政令市等 | G18: 政令市等 | H18: 政令市等 | I18: 1203027 | J18: 9.5 | K18: 53 | L18: 92.9 | M18: 109 | N18: 2414 | O18: 98 | P18: 51.3 | Q18: 82.8 | R18: 96.8 | S18: 145.61 | T18: 140.36 | U18: 140.36 | V18: 58.83 | W18: 81.53 | X18: 103.7 | Y18: 103.7 | Z18: 247.5 | AA18: 13481 | AB18: 5651 | AC18: 7831 | AD18: 8413 | AE18: 3.1 | AF18: 100.8 | AG18: 102.9 | AH18: 0 | AI18: 1.8 | AJ18: 55.5 | AK18: 101.6 | AL18: 150
A19: 121002 | B19: 千葉県 | C19: 千葉市 | D19: 1171 | E19: 政令市等 | F19: 政令市等 | G19: 政令市等 | H19: 政令市等 | I19: 871678 | J19: 8.5 | K19: 55 | L19: 90.1 | M19: 95.8 | N19: 1998 | O19: 77 | P19: 92.4 | Q19: 87.2 | R19: 99.7 | S19: 142.43 | T19: 116.52 | U19: 116.52 | V19: 57.58 | W19: 58.94 | X19: 122.2 | Y19: 122.2 | Z19: 247.4 | AA19: 12950 | AB19: 6399 | AC19: 6551 | AD19: 5970 | AE19: 3.8 | AF19: 109.6 | AG19: 109.1 | AH19: 0 | AI19: 1.8 | AJ19: 50.1 | AK19: 103.1 | AL19: 249
A20: 130001 | B20: 東京都 | C20: 東京都 | D20: 1171 | E20: 政令市等 | F20: 政令市等 | G20: 政令市等 | H20: 政令市等 | I20: 9416840 | J20: 21.6 | K20: 66 | L20: 99.9 | M20: 108.3 | N20: 2030 | O20: 167 | P20: 57.8 | Q20: 95.1 | R20: 100 | S20: 130.74 | T20: 111.17 | U20: 111.17 | V20: 61.48 | W20: 49.69 | X20: 117.6 | Y20: 117.6 | Z20: 212.6 | AA20: 14309 | AB20: 7914 | AC20: 6396 | AD20: 4219 | AE20: 4.7 | AF20: 141.2 | AG20: 112.1 | AH20: 0 | AI20: 1.7 | AJ20: 71 | AK20: 101.7 | AL20: 151
A21: 141003 | B21: 神奈川県 | C21: 横浜市 | D21: 1171 | E21: 政令市等 | F21: 政令市等 | G21: 政令市等 | H21: 政令市等 | I21: 3737948 | J21: 12.2 | K21: 56 | L21: 99.9 | M21: 101 | N21: 1998 | O21: 119 | P21: 60.8 | Q21: 69.7 | R21: 99.7 | S21: 147.55 | T21: 110.11 | U21: 110.11 | V21: 51.14 | W21: 58.97 | X21: 134 | Y21: 134 | Z21: 288.5 | AA21: 11230 | AB21: 5216 | AC21: 6014 | AD21: 4531 | AE21: 6 | AF21: 115.2 | AG21: 114.9 | AH21: 0 | AI21: 1.5 | AJ21: 64.2 | AK21: 102.1 | AL21: 194
A22: 141305 | B22: 神奈川県 | C22: 川崎市 | D22: 1171 | E22: 政令市等 | F22: 政令市等 | G22: 政令市等 | H22: 政令市等 | I22: 1501805 | J22: 14 | K22: 87 | L22: 99.5 | M22: 102.4 | N22: 2116 | O22: 140 | P22: 53.8 | Q22: 83.3 | R22: 99 | S22: 149.22 | T22: 126.49 | U22: 126.49 | V22: 50.16 | W22: 76.32 | X22: 118 | Y22: 118 | Z22: 297.5 | AA22: 12644 | AB22: 5014 | AC22: 7630 | AD22: 3663 | AE22: 8.5 | AF22: 107.9 | AG22: 109.8 | AH22: 0 | AI22: 1.6 | AJ22: 50.1 | AK22: 105 | AL22: 214
A23: 141500 | B23: 神奈川県 | C23: 相模原市 | D23: 1171 | E23: 政令市等 | F23: 政令市等 | G23: 政令市等 | H23: 政令市等 | I23: 693383 | J23: 9.7 | K23: 50 | L23: 96.6 | M23: 99.8 | N23: 1999 | O23: 91 | P23: 0 | Q23: 89.3 | R23: 99.1 | S23: 118.45 | T23: 107.95 | U23: 136.56 | V23: 45.06 | W23: 62.88 | X23: 109.7 | Y23: 86.7 | Z23: 262.8 | AA23: 11524 | AB23: 4811 | AC23: 6713 | AD23: 7148 | AE23: 4.3 | AF23: 108.7 | AG23: 108.7 | AH23: 0 | AI23: 2.3 | AJ23: 64.8 | AK23: 102.1 | AL23: 122
A24: 151009 | B24: 新潟県 | C24: 新潟市 | D24: 1171 | E24: 政令市等 | F24: 政令市等 | G24: 政令市等 | H24: 政令市等 | I24: 655471 | J24: 5.9 | K24: 51 | L24: 82.5 | M24: 96.1 | N24: 2991 | O24: 56 | P24: 95 | Q24: 62.9 | R24: 90.8 | S24: 172.68 | T24: 160.59 | U24: 186.34 | V24: 58.83 | W24: 101.76 | X24: 107.5 | Y24: 92.7 | Z24: 293.5 | AA24: 17138 | AB24: 6278 | AC24: 10860 | AD24: 3396 | AE24: 4.7 | AF24: 107.4 | AG24: 107.4 | AH24: 0 | AI24: 1.8 | AJ24: 44.6 | AK24: 103.2 | AL24: 468
A25: 221007 | B25: 静岡県 | C25: 静岡市 | D25: 1171 | E25: 政令市等 | F25: 政令市等 | G25: 政令市等 | H25: 政令市等 | I25: 588256 | J25: 7.2 | K25: 58 | L25: 83.6 | M25: 100.8 | N25: 2720 | O25: 66 | P25: 72.3 | Q25: 47.9 | R25: 89.5 | S25: 150.99 | T25: 150.99 | U25: 182.47 | V25: 67.28 | W25: 83.71 | X25: 100 | Y25: 82.7 | Z25: 224.4 | AA25: 16413 | AB25: 7313 | AC25: 9100 | AD25: 3180 | AE25: 6.1 | AF25: 107.6 | AG25: 107.6 | AH25: 0 | AI25: 1.9 | AJ25: 59 | AK25: 99.9 | AL25: 253
A26: 221309 | B26: 静岡県 | C26: 浜松市 | D26: 1171 | E26: 政令市等 | F26: 政令市等 | G26: 政令市等 | H26: 政令市等 | I26: 578965 | J26: 5.7 | K26: 52 | L26: 71.9 | M26: 91.7 | N26: 2516 | O26: 50 | P26: 71.2 | Q26: 84.3 | R26: 97 | S26: 147.22 | T26: 80.68 | U26: 147.48 | V26: 48.35 | W26: 32.33 | X26: 182.5 | Y26: 99.8 | Z26: 304.5 | AA26: 9307 | AB26: 5577 | AC26: 3729 | AD26: 6433 | AE26: 3.4 | AF26: 109 | AG26: 109 | AH26: 0 | AI26: 2.1 | AJ26: 56.6 | AK26: 102.3 | AL26: 230
A27: 231002 | B27: 愛知県 | C27: 名古屋市 | D27: 1171 | E27: 政令市等 | F27: 政令市等 | G27: 政令市等 | H27: 政令市等 | I27: 2266600 | J27: 9.1 | K27: 106 | L27: 99.3 | M27: 99.5 | N27: 1771 | O27: 80 | P27: 55.9 | Q27: 64.6 | R27: 99.8 | S27: 120.88 | T27: 113.92 | U27: 113.92 | V27: 54.31 | W27: 59.61 | X27: 106.1 | Y27: 106.1 | Z27: 222.6 | AA27: 12982 | AB27: 6189 | AC27: 6793 | AD27: 2366 | AE27: 9.6 | AF27: 105.2 | AG27: 105.2 | AH27: 0 | AI27: 1.7 | AJ27: 55.5 | AK27: 100.4 | AL27: 198
A28: 261009 | B28: 京都府 | C28: 京都市 | D28: 1171 | E28: 政令市等 | F28: 政令市等 | G28: 政令市等 | H28: 政令市等 | I28: 1400300 | J28: 11.9 | K28: 84 | L28: 99.2 | M28: 106.6 | N28: 1976 | O28: 92 | P28: 59.6 | Q28: 57.8 | R28: 99.2 | S28: 122.13 | T28: 102.47 | U28: 102.47 | V28: 46.79 | W28: 55.68 | X28: 119.2 | Y28: 119.2 | Z28: 261 | AA28: 13226 | AB28: 6039 | AC28: 7187 | AD28: 2677 | AE28: 9 | AF28: 110.3 | AG28: 110.3 | AH28: 0 | AI28: 1.8 | AJ28: 56.2 | AK28: 103.5 | AL28: 215
A29: 271004 | B29: 大阪府 | C29: 大阪市 | D29: 1171 | E29: 政令市等 | F29: 政令市等 | G29: 政令市等 | H29: 政令市等 | I29: 2703394 | J29: 21.5 | K29: 78 | L29: 100 | M29: 98.4 | N29: 1252 | O29: 142 | P29: 53.8 | Q29: 76.7 | R29: 100 | S29: 94.31 | T29: 93.28 | U29: 93.28 | V29: 54.46 | W29: 38.82 | X29: 101.1 | Y29: 101.1 | Z29: 173.2 | AA29: 14143 | AB29: 8257 | AC29: 5885 | AD29: 7004 | AE29: 3.1 | AF29: 105.3 | AG29: 105.2 | AH29: 0 | AI29: 1.5 | AJ29: 56.9 | AK29: 100.5 | AL29: 172
A30: 271403 | B30: 大阪府 | C30: 堺市 | D30: 1171 | E30: 政令市等 | F30: 政令市等 | G30: 政令市等 | H30: 政令市等 | I30: 822815 | J30: 8.3 | K30: 58 | L30: 98.1 | M30: 102.9 | N30: 2770 | O30: 81 | P30: 85.4 | Q30: 86.2 | R30: 94.6 | S30: 175.34 | T30: 157.78 | U30: 157.78 | V30: 59.9 | W30: 97.88 | X30: 111.1 | Y30: 111.1 | Z30: 292.7 | AA30: 16142 | AB30: 6128 | AC30: 10014 | AD30: 3994 | AE30: 7.5 | AF30: 104.5 | AG30: 106.3 | AH30: 0 | AI30: 1.9 | AJ30: 46.9 | AK30: 102.7 | AL30: 311
A31: 281000 | B31: 兵庫県 | C31: 神戸市 | D31: 1171 | E31: 政令市等 | F31: 政令市等 | G31: 政令市等 | H31: 政令市等 | I31: 1502465 | J31: 10.1 | K31: 60 | L31: 97.7 | M31: 99.9 | N31: 1566 | O31: 88 | P31: 75.9 | Q31: 95.3 | R31: 99.9 | S31: 110.02 | T31: 111.61 | U31: 111.61 | V31: 45.82 | W31: 65.8 | X31: 98.6 | Y31: 98.6 | Z31: 240.1 | AA31: 12713 | AB31: 5219 | AC31: 7494 | AD31: 4553 | AE31: 10.6 | AF31: 103.9 | AG31: 101.9 | AH31: 0 | AI31: 1.9 | AJ31: 76.2 | AK31: 97.6 | AL31: 92
A32: 331007 | B32: 岡山県 | C32: 岡山市 | D32: 1171 | E32: 政令市等 | F32: 政令市等 | G32: 政令市等 | H32: 政令市等 | I32: 464983 | J32: 6.9 | K32: 56 | L32: 65.7 | M32: 83 | N32: 2957 | O32: 63 | P32: 224.6 | Q32: 84.9 | R32: 88.2 | S32: 183.64 | T32: 186.38 | U32: 221.03 | V32: 67.71 | W32: 118.67 | X32: 98.5 | Y32: 83.1 | Z32: 271.2 | AA32: 20350 | AB32: 7393 | AC32: 12958 | AD32: 3633 | AE32: 4.5 | AF32: 100 | AG32: 99.8 | AH32: 0 | AI32: 1.9 | AJ32: 38.9 | AK32: 104.1 | AL32: 445
A33: 341002 | B33: 広島県 | C33: 広島市 | D33: 1171 | E33: 政令市等 | F33: 政令市等 | G33: 政令市等 | H33: 政令市等 | I33: 1126000 | J33: 8.4 | K33: 57 | L33: 94.3 | M33: 106.1 | N33: 2219 | O33: 80 | P33: 64 | Q33: 83.8 | R33: 97.5 | S33: 168.28 | T33: 153.89 | U33: 153.89 | V33: 49.74 | W33: 104.16 | X33: 109.3 | Y33: 109.3 | Z33: 338.3 | AA33: 16096 | AB33: 5202 | AC33: 10894 | AD33: 2917 | AE33: 7.5 | AF33: 104.4 | AG33: 104.2 | AH33: 0 | AI33: 1.8 | AJ33: 45.8 | AK33: 104.9 | AL33: 378
A34: 401005 | B34: 福岡県 | C34: 北九州市 | D34: 1171 | E34: 政令市等 | F34: 政令市等 | G34: 政令市等 | H34: 政令市等 | I34: 942974 | J34: 6 | K34: 55 | L34: 98.6 | M34: 73.9 | N34: 2207 | O34: 59 | P34: 78.5 | Q34: 76.8 | R34: 99.7 | S34: 147.39 | T34: 151.62 | U34: 151.62 | V34: 60.88 | W34: 90.74 | X34: 97.2 | Y34: 97.2 | Z34: 242.1 | AA34: 15401 | AB34: 6184 | AC34: 9217 | AD34: 6045 | AE34: 5 | AF34: 104.8 | AG34: 104.7 | AH34: 0 | AI34: 1.6 | AJ34: 64.4 | AK34: 101 | AL34: 155
A35: 401307 | B35: 福岡県 | C35: 福岡市 | D35: 1171 | E35: 政令市等 | F35: 政令市等 | G35: 政令市等 | H35: 政令市等 | I35: 1523660 | J35: 9.2 | K35: 56 | L35: 99.7 | M35: 95.2 | N35: 2602 | O35: 89 | P35: 58 | Q35: 83.1 | R35: 99.6 | S35: 179.52 | T35: 143.43 | U35: 143.43 | V35: 66.74 | W35: 76.69 | X35: 125.2 | Y35: 125.2 | Z35: 269 | AA35: 14698 | AB35: 6839 | AC35: 7859 | AD35: 5481 | AE35: 2.7 | AF35: 113.8 | AG35: 113.8 | AH35: 0 | AI35: 1.8 | AJ35: 50.4 | AK35: 102.4 | AL35: 250
A36: 431001 | B36: 熊本県 | C36: 熊本市 | D36: 1171 | E36: 政令市等 | F36: 政令市等 | G36: 政令市等 | H36: 政令市等 | I36: 655441 | J36: 6.2 | K36: 58 | L36: 89.5 | M36: 98.4 | N36: 2303 | O36: 56 | P36: 71.1 | Q36: 83.8 | R36: 97.2 | S36: 145.89 | T36: 150 | U36: 161.7 | V36: 64.51 | W36: 85.49 | X36: 97.3 | Y36: 90.2 | Z36: 226.2 | AA36: 16621 | AB36: 7148 | AC36: 9473 | AD36: 3789 | AE36: 9.5 | AF36: 110.7 | AG36: 110.7 | AH36: 1 | AI36: 1.8 | AJ36: 50.4 | AK36: 99.6 | AL36: 208
B37: 団体数 | C37: 21 | E37: 政令市等 計 | M37: 101.5 | N37: 2174 | O37: 99 | P37: 63.3 | Q37: 79.6 | R37: 98.9 | S37: 133.03 | T37: 116.87 | U37: 120.01 | V37: 56.42 | W37: 60.45 | X37: 113.8 | Y37: 110.8 | Z37: 235.8 | AA37: 13589 | AB37: 6561 | AC37: 7029 | AD37: 4155 | AE37: 5.8 | AF37: 117.6 | AG37: 109.4 | AH37: 0 | AI37: 1.7 | AJ37: 60.7 | AK37: 101.9 | AL37: 193
A38: 112011 | B38: 埼玉県 | C38: 川越市 | D38: 1171 | E38: Aa1 | F38: A | G38: a | H38: 1 | I38: 308327 | J38: 8.8 | K38: 54 | L38: 87.5 | M38: 99.2 | N38: 1566 | O38: 82 | P38: 0 | Q38: 71.3 | R38: 98 | S38: 98.3 | T38: 91.49 | U38: 91.49 | V38: 51.28 | W38: 40.21 | X38: 107.4 | Y38: 107.4 | Z38: 191.7 | AA38: 9826 | AB38: 5507 | AC38: 4319 | AD38: 4818 | AE38: 9.4 | AF38: 104 | AG38: 103.9 | AH38: 0 | AI38: 2.2 | AJ38: 77.5 | AK38: 96.5 | AL38: 58
A39: 112089 | B39: 埼玉県 | C39: 所沢市 | D39: 1171 | E39: Aa1 | F39: A | G39: a | H39: 1 | I39: 322392 | J39: 10.2 | K39: 50 | L39: 93.7 | M39: 101.3 | N39: 1277 | O39: 100 | P39: 0 | Q39: 97.7 | R39: 98.4 | S39: 80.8 | T39: 98.38 | U39: 98.38 | V39: 48.91 | W39: 49.47 | X39: 82.1 | Y39: 82.1 | Z39: 165.2 | AA39: 10064 | AB39: 5003 | AC39: 5061 | AD39: 4672 | AE39: 9.4 | AF39: 97 | AG39: 96.9 | AH39: 0 | AI39: 2.1 | AJ39: 77 | AK39: 99.3 | AL39: 58
A40: 112143 | B40: 埼玉県 | C40: 春日部市 | D40: 1171 | E40: Aa1 | F40: A | G40: a | H40: 1 | I40: 207461 | J40: 8.8 | K40: 31 | L40: 88.1 | M40: 94.8 | N40: 2333 | O40: 93 | P40: 0 | Q40: 89.6 | R40: 96.3 | S40: 126.22 | T40: 154.5 | U40: 154.5 | V40: 59.81 | W40: 94.69 | X40: 81.7 | Y40: 81.7 | Z40: 211 | AA40: 14538 | AB40: 5628 | AC40: 8911 | AD40: 12966 | AE40: 3.5 | AF40: 113.8 | AG40: 113.5 | AH40: 0 | AI40: 1.9 | AJ40: 42.8 | AK40: 103.7 | AL40: 181
A41: 112151 | B41: 埼玉県 | C41: 狭山市 | D41: 1171 | E41: Aa1 | F41: A | G41: a | H41: 1 | I41: 145927 | J41: 8.6 | K41: 44 | L41: 96 | M41: 98.8 | N41: 1404 | O41: 76 | P41: 0 | Q41: 84.7 | R41: 98.4 | S41: 91.81 | T41: 111.37 | U41: 111.37 | V41: 44.11 | W41: 67.26 | X41: 82.4 | Y41: 82.4 | Z41: 208.1 | AA41: 12594 | AB41: 4988 | AC41: 7606 | AD41: 6080 | AE41: 4.9 | AF41: 104.3 | AG41: 104.3 | AH41: 0 | AI41: 2.5 | AJ41: 75.3 | AK41: 99 | AL41: 91
A42: 112241 | B42: 埼玉県 | C42: 戸田市 | D42: 1171 | E42: Aa1 | F42: A | G42: a | H42: 1 | I42: 124870 | J42: 12.6 | K42: 45 | L42: 89.9 | M42: 108.8 | N42: 1004 | O42: 105 | P42: 0 | Q42: 75.8 | R42: 99.3 | S42: 87.09 | T42: 76.5 | U42: 76.5 | V42: 55.03 | W42: 21.47 | X42: 113.8 | Y42: 113.8 | Z42: 158.3 | AA42: 9198 | AB42: 6617 | AC42: 2582 | AD42: 11352 | AE42: 3 | AF42: 104.5 | AG42: 108.2 | AH42: 0 | AI42: 2.1 | AJ42: 59.1 | AK42: 101.1 | AL42: 67
A43: 112259 | B43: 埼玉県 | C43: 入間市 | D43: 1171 | E43: Aa1 | F43: A | G43: a | H43: 1 | I43: 131603 | J43: 8.5 | K43: 32 | L43: 88.6 | M43: 93.4 | N43: 1782 | O43: 84 | P43: 0 | Q43: 88.6 | R43: 97.1 | S43: 102 | T43: 114.97 | U43: 114.97 | V43: 46.39 | W43: 68.58 | X43: 88.7 | Y43: 88.7 | Z43: 219.9 | AA43: 11629 | AB43: 4692 | AC43: 6937 | AD43: 11964 | AE43: 3.7 | AF43: 106.9 | AG43: 106.9 | AH43: 0 | AI43: 2.7 | AJ43: 76.8 | AK43: 100.7 | AL43: 58
A44: 112356 | B44: 埼玉県 | C44: 富士見市 | D44: 1171 | E44: Aa1 | F44: A | G44: a | H44: 1 | I44: 104912 | J44: 11.8 | K44: 36 | L44: 94.5 | M44: 106.1 | N44: 1620 | O44: 125 | P44: 0 | Q44: 84.6 | R44: 97.1 | S44: 88.76 | T44: 86.87 | U44: 86.87 | V44: 45.51 | W44: 41.37 | X44: 102.2 | Y44: 102.2 | Z44: 195 | AA44: 8218 | AB44: 4305 | AC44: 3913 | AD44: 14987 | AE44: 2.4 | AF44: 118.4 | AG44: 118.3 | AH44: 0 | AI44: 2.6 | AJ44: 70 | AK44: 99.6 | AL44: 59
A45: 112453 | B45: 埼玉県 | C45: ふじみ野市 | D45: 1171 | E45: Aa1 | F45: A | G45: a | H45: 1 | I45: 106754 | J45: 13.7 | K45: 36 | L45: 93.7 | M45: 111.7 | N45: 1346 | O45: 115 | P45: 0 | Q45: 83.4 | R45: 97.3 | S45: 78.78 | T45: 71.42 | U45: 71.42 | V45: 47.15 | W45: 24.28 | X45: 110.3 | Y45: 110.3 | Z45: 167.1 | AA45: 8507 | AB45: 5615 | AC45: 2892 | AD45: 10675 | AE45: 4.6 | AF45: 111.5 | AG45: 111.5 | AH45: 0 | AI45: 2.2 | AJ45: 82 | AK45: 97.1 | AL45: 29
A46: 122173 | B46: 千葉県 | C46: 柏市 | D46: 1171 | E46: Aa1 | F46: A | G46: a | H46: 1 | I46: 374700 | J46: 8 | K46: 45 | L46: 89.8 | M46: 95.6 | N46: 2314 | O46: 83 | P46: 0 | Q46: 79.8 | R46: 86.8 | S46: 149.11 | T46: 146.63 | U46: 146.63 | V46: 82.27 | W46: 64.37 | X46: 101.7 | Y46: 101.7 | Z46: 181.3 | AA46: 14200 | AB46: 7967 | AC46: 6233 | AD46: 8516 | AE46: 3.4 | AF46: 105.4 | AG46: 105.8 | AH46: 0 | AI46: 2.2 | AJ46: 72.3 | AK46: 99.5 | AL46: 103
A47: 122203 | B47: 千葉県 | C47: 流山市 | D47: 1171 | E47: Aa1 | F47: A | G47: a | H47: 1 | I47: 162427 | J47: 8.5 | K47: 32 | L47: 86.9 | M47: 97.8 | N47: 2160 | O47: 93 | P47: 0 | Q47: 82 | R47: 92.7 | S47: 122.84 | T47: 139.99 | U47: 144.92 | V47: 77.01 | W47: 62.97 | X47: 87.8 | Y47: 84.8 | Z47: 159.5 | AA47: 12699 | AB47: 6987 | AC47: 5713 | AD47: 9555 | AE47: 5.2 | AF47: 99.9 | AG47: 99.9 | AH47: 0 | AI47: 2 | AJ47: 62.5 | AK47: 100 | AL47: 111
A48: 122211 | B48: 千葉県 | C48: 八千代市 | D48: 1171 | E48: Aa1 | F48: A | G48: a | H48: 1 | I48: 182312 | J48: 8.8 | K48: 50 | L48: 92.2 | M48: 85 | N48: 2062 | O48: 93 | P48: 0 | Q48: 85.1 | R48: 99.1 | S48: 127.69 | T48: 118.48 | U48: 118.48 | V48: 76.82 | W48: 41.66 | X48: 107.8 | Y48: 107.8 | Z48: 166.2 | AA48: 11196 | AB48: 7259 | AC48: 3936 | AD48: 7596 | AE48: 4.5 | AF48: 104 | AG48: 105.2 | AH48: 0 | AI48: 2.3 | AJ48: 78.4 | AK48: 99.3 | AL48: 44
A49: 132241 | B49: 東京都 | C49: 多摩市 | D49: 1171 | E49: Aa1 | F49: A | G49: a | H49: 1 | I49: 148641 | J49: 7.9 | K49: 52 | L49: 100 | M49: 105.6 | N49: 2030 | O49: 74 | P49: 0 | Q49: 90.9 | R49: 99.8 | S49: 134.42 | T49: 92.61 | U49: 92.61 | V49: 73.03 | W49: 19.58 | X49: 145.2 | Y49: 145.2 | Z49: 184.1 | AA49: 9898 | AB49: 7805 | AC49: 2093 | AD49: 8744 | AE49: 4.7 | AF49: 118.4 | AG49: 118.7 | AH49: 0 | AI49: 3.7 | AJ49: 96.5 | AK49: 80.6 | AL49: 6
A50: 142034 | B50: 神奈川県 | C50: 平塚市 | D50: 1171 | E50: Aa1 | F50: A | G50: a | H50: 1 | I50: 250700 | J50: 8.1 | K50: 45 | L50: 97.5 | M50: 99.3 | N50: 1998 | O50: 72 | P50: 0 | Q50: 87.5 | R50: 97.5 | S50: 118.27 | T50: 93.21 | U50: 127.56 | V50: 50.73 | W50: 42.48 | X50: 126.9 | Y50: 92.7 | Z50: 233.1 | AA50: 10587 | AB50: 5763 | AC50: 4825 | AD50: 6776 | AE50: 3.2 | AF50: 110.7 | AG50: 110.4 | AH50: 0 | AI50: 2.7 | AJ50: 64.8 | AK50: 102.3 | AL50: 157
A51: 142051 | B51: 神奈川県 | C51: 藤沢市 | D51: 1171 | E51: Aa1 | F51: A | G51: a | H51: 1 | I51: 411570 | J51: 9.2 | K51: 59 | L51: 95.6 | M51: 98 | N51: 2163 | O51: 87 | P51: 64 | Q51: 78.1 | R51: 98.3 | S51: 131 | T51: 129.84 | U51: 150.46 | V51: 84.1 | W51: 45.75 | X51: 100.9 | Y51: 87.1 | Z51: 155.8 | AA51: 13756 | AB51: 8910 | AC51: 4846 | AD51: 5210 | AE51: 6.1 | AF51: 104.6 | AG51: 103.2 | AH51: 0 | AI51: 2.5 | AJ51: 66.3 | AK51: 101.9 | AL51: 129
A52: 142069 | B52: 神奈川県 | C52: 小田原市 | D52: 1171 | E52: Aa1 | F52: A | G52: a | H52: 1 | I52: 158700 | J52: 7.9 | K52: 52 | L52: 82.7 | M52: 103.7 | N52: 2589 | O52: 63 | P52: 0 | Q52: 0 | R52: 92.8 | S52: 168.49 | T52: 176.38 | U52: 231.87 | V52: 79.96 | W52: 96.42 | X52: 95.5 | Y52: 72.7 | Z52: 210.7 | AA52: 22049 | AB52: 9996 | AC52: 12053 | AD52: 4289 | AE52: 5.7 | AF52: 104.4 | AG52: 104.1 | AH52: 0 | AI52: 2.1 | AJ52: 53.5 | AK52: 102.4 | AL52: 269
A53: 142077 | B53: 神奈川県 | C53: 茅ヶ崎市 | D53: 1171 | E53: Aa1 | F53: A | G53: a | H53: 1 | I53: 232706 | J53: 10.5 | K53: 41 | L53: 95.6 | M53: 96.8 | N53: 1844 | O53: 104 | P53: 0 | Q53: 86.9 | R53: 98.5 | S53: 111.51 | T53: 96.19 | U53: 96.19 | V53: 50.53 | W53: 45.66 | X53: 115.9 | Y53: 115.9 | Z53: 220.7 | AA53: 9627 | AB53: 5057 | AC53: 4570 | AD53: 7052 | AE53: 3.2 | AF53: 107.4 | AG53: 108.4 | AH53: 0 | AI53: 2.2 | AJ53: 55.9 | AK53: 101.2 | AL53: 138
A54: 142158 | B54: 神奈川県 | C54: 海老名市 | D54: 1171 | E54: Aa1 | F54: A | G54: a | H54: 1 | I54: 126916 | J54: 12.7 | K54: 40 | L54: 95.8 | M54: 95.9 | N54: 1763 | O54: 97 | P54: 0 | Q54: 88.3 | R54: 98.1 | S54: 109.44 | T54: 94.58 | U54: 94.58 | V54: 49.94 | W54: 44.64 | X54: 115.7 | Y54: 115.7 | Z54: 219.1 | AA54: 12362 | AB54: 6527 | AC54: 5835 | AD54: 7051 | AE54: 5 | AF54: 111.1 | AG54: 111.4 | AH54: 3.9 | AI54: 2 | AJ54: 69.1 | AK54: 101.7 | AL54: 105
A55: 142166 | B55: 神奈川県 | C55: 座間市 | D55: 1171 | E55: Aa1 | F55: A | G55: a | H55: 1 | I55: 126977 | J55: 10.2 | K55: 40 | L55: 97.3 | M55: 107 | N55: 2370 | O55: 105 | P55: 0 | Q55: 94.1 | R55: 96.7 | S55: 129.62 | T55: 124.11 | U55: 124.11 | V55: 41.42 | W55: 82.69 | X55: 104.4 | Y55: 104.4 | Z55: 313 | AA55: 12029 | AB55: 4014 | AC55: 8014 | AD55: 8465 | AE55: 4.1 | AF55: 107 | AG55: 107.9 | AH55: 0 | AI55: 2.4 | AJ55: 58.9 | AK55: 103.6 | AL55: 128
A56: 222038 | B56: 静岡県 | C56: 沼津市 | D56: 1171 | E56: Aa1 | F56: A | G56: a | H56: 1 | I56: 107373 | J56: 7.8 | K56: 40 | L56: 53.6 | M56: 72.8 | N56: 2100 | O56: 65 | P56: 84.1 | Q56: 61.4 | R56: 88.8 | S56: 107 | T56: 171.48 | U56: 210.97 | V56: 85.12 | W56: 86.36 | X56: 62.4 | Y56: 50.7 | Z56: 125.7 | AA56: 20492 | AB56: 10172 | AC56: 10320 | AD56: 2902 | AE56: 8.8 | AF56: 104.7 | AG56: 104.7 | AH56: 0 | AI56: 1.9 | AJ56: 48 | AK56: 102.7 | AL56: 314
A57: 262048 | B57: 京都府 | C57: 宇治市 | D57: 1171 | E57: Aa1 | F57: A | G57: a | H57: 1 | I57: 176111 | J57: 8.8 | K57: 32 | L57: 93.9 | M57: 94.5 | N57: 3026 | O57: 97 | P57: 70.1 | Q57: 89.8 | R57: 84.8 | S57: 163.21 | T57: 185.68 | U57: 207.69 | V57: 74.09 | W57: 111.59 | X57: 87.9 | Y57: 78.6 | Z57: 220.3 | AA57: 16745 | AB57: 6681 | AC57: 10063 | AD57: 3323 | AE57: 7 | AF57: 100.3 | AG57: 100.5 | AH57: 0 | AI57: 1.8 | AJ57: 53 | AK57: 102.2 | AL57: 242
A58: 272035 | B58: 大阪府 | C58: 豊中市 | D58: 1171 | E58: Aa1 | F58: A | G58: a | H58: 1 | I58: 405432 | J58: 13.1 | K58: 53 | L58: 100 | M58: 84.1 | N58: 1395 | O58: 121 | P58: 71.5 | Q58: 69.1 | R58: 99.9 | S58: 84.89 | T58: 82.75 | U58: 82.75 | V58: 50.25 | W58: 32.5 | X58: 102.6 | Y58: 102.6 | Z58: 168.9 | AA58: 8984 | AB58: 5456 | AC58: 3528 | AD58: 4268 | AE58: 11.1 | AF58: 108.1 | AG58: 108.1 | AH58: 0 | AI58: 1.9 | AJ58: 70.2 | AK58: 98.7 | AL58: 66
A59: 272051 | B59: 大阪府 | C59: 吹田市 | D59: 1171 | E59: Aa1 | F59: A | G59: a | H59: 1 | I59: 369683 | J59: 12.5 | K59: 56 | L59: 99.9 | M59: 105.1 | N59: 1580 | O59: 107 | P59: 57.2 | Q59: 72.6 | R59: 99.5 | S59: 108.43 | T59: 92.33 | U59: 92.33 | V59: 53.25 | W59: 39.08 | X59: 117.4 | Y59: 117.4 | Z59: 203.6 | AA59: 10828 | AB59: 6245 | AC59: 4583 | AD59: 4249 | AE59: 8.7 | AF59: 105.6 | AG59: 117.6 | AH59: 0 | AI59: 2.5 | AJ59: 58.7 | AK59: 100.8 | AL59: 107
A60: 272078 | B60: 大阪府 | C60: 高槻市 | D60: 1171 | E60: Aa1 | F60: A | G60: a | H60: 1 | I60: 351011 | J60: 11.2 | K60: 49 | L60: 99.4 | M60: 114.3 | N60: 1929 | O60: 109 | P60: 0 | Q60: 79.3 | R60: 97.6 | S60: 125.94 | T60: 138.51 | U60: 138.51 | V60: 56.98 | W60: 81.53 | X60: 90.9 | Y60: 90.9 | Z60: 221 | AA60: 14188 | AB60: 5837 | AC60: 8351 | AD60: 8775 | AE60: 2 | AF60: 104.1 | AG60: 104.1 | AH60: 0 | AI60: 2.6 | AJ60: 65.2 | AK60: 102.8 | AL60: 130
A61: 272094 | B61: 大阪府 | C61: 守口市 | D61: 1171 | E61: Aa1 | F61: A | G61: a | H61: 1 | I61: 143708 | J61: 14.1 | K61: 52 | L61: 100 | M61: 101.2 | N61: 2018 | O61: 126 | P61: 54.4 | Q61: 62.8 | R61: 100 | S61: 134.46 | T61: 96.82 | U61: 96.82 | V61: 66.59 | W61: 30.23 | X61: 138.9 | Y61: 138.9 | Z61: 201.9 | AA61: 10849 | AB61: 7462 | AC61: 3387 | AD61: 3992 | AE61: 7 | AF61: 118 | AG61: 117.9 | AH61: 0 | AI61: 2 | AJ61: 59.7 | AK61: 98.5 | AL61: 98
A62: 272108 | B62: 大阪府 | C62: 枚方市 | D62: 1171 | E62: Aa1 | F62: A | G62: a | H62: 1 | I62: 387022 | J62: 11.5 | K62: 60 | L62: 96.1 | M62: 101.8 | N62: 2570 | O62: 114 | P62: 0 | Q62: 85.9 | R62: 97 | S62: 150.74 | T62: 150.74 | U62: 182.69 | V62: 55.77 | W62: 94.97 | X62: 100 | Y62: 82.5 | Z62: 270.3 | AA62: 15227 | AB62: 5633 | AC62: 9594 | AD62: 3425 | AE62: 9.9 | AF62: 116.8 | AG62: 116.1 | AH62: 0 | AI62: 2.2 | AJ62: 67.3 | AK62: 102.4 | AL62: 170
A63: 272116 | B63: 大阪府 | C63: 茨木市 | D63: 1171 | E63: Aa1 | F63: A | G63: a | H63: 1 | I63: 279043 | J63: 11.3 | K63: 48 | L63: 99.1 | M63: 94.6 | N63: 1998 | O63: 105 | P63: 0 | Q63: 70.5 | R63: 98.9 | S63: 119.1 | T63: 97.56 | U63: 97.56 | V63: 51.53 | W63: 46.03 | X63: 122.1 | Y63: 122.1 | Z63: 231.1 | AA63: 10546 | AB63: 5571 | AC63: 4976 | AD63: 10335 | AE63: 2.9 | AF63: 114.8 | AG63: 114.8 | AH63: 0 | AI63: 3 | AJ63: 68.1 | AK63: 102.7 | AL63: 97
A64: 272124 | B64: 大阪府 | C64: 八尾市 | D64: 1171 | E64: Aa1 | F64: A | G64: a | H64: 1 | I64: 231737 | J64: 10.2 | K64: 45 | L64: 86.8 | M64: 92.3 | N64: 2516 | O64: 88 | P64: 0 | Q64: 59.5 | R64: 90.3 | S64: 150.36 | T64: 132.82 | U64: 132.82 | V64: 55.86 | W64: 76.96 | X64: 113.2 | Y64: 113.2 | Z64: 269.2 | AA64: 15485 | AB64: 6513 | AC64: 8973 | AD64: 4828 | AE64: 2.2 | AF64: 106.3 | AG64: 105.8 | AH64: 0 | AI64: 1.9 | AJ64: 49.4 | AK64: 102.1 | AL64: 404
A65: 272159 | B65: 大阪府 | C65: 寝屋川市 | D65: 1171 | E65: Aa1 | F65: A | G65: a | H65: 1 | I65: 234208 | J65: 13.2 | K65: 46 | L65: 99.7 | M65: 119.1 | N65: 2363 | O65: 130 | P65: 0 | Q65: 66.5 | R65: 98.2 | S65: 138.01 | T65: 132.47 | U65: 132.47 | V65: 41.04 | W65: 91.43 | X65: 104.2 | Y65: 104.2 | Z65: 336.3 | AA65: 13439 | AB65: 4164 | AC65: 9275 | AD65: 13012 | AE65: 2 | AF65: 107.2 | AG65: 107.2 | AH65: 0 | AI65: 2.2 | AJ65: 39 | AK65: 104.5 | AL65: 215
A66: 272183 | B66: 大阪府 | C66: 大東市 | D66: 1171 | E66: Aa1 | F66: A | G66: a | H66: 1 | I66: 119963 | J66: 10.4 | K66: 46 | L66: 98.9 | M66: 99.3 | N66: 1934 | O66: 100 | P66: 0 | Q66: 64.3 | R66: 97.4 | S66: 117.79 | T66: 101.58 | U66: 101.58 | V66: 48.71 | W66: 52.86 | X66: 116 | Y66: 116 | Z66: 241.8 | AA66: 10556 | AB66: 5062 | AC66: 5494 | AD66: 6665 | AE66: 4.7 | AF66: 105.6 | AG66: 105.6 | AH66: 1.6 | AI66: 2.3 | AJ66: 53.9 | AK66: 103.7 | AL66: 233
A67: 272205 | B67: 大阪府 | C67: 箕面市 | D67: 1171 | E67: Aa1 | F67: A | G67: a | H67: 1 | I67: 137807 | J67: 8.1 | K67: 49 | L67: 100 | M67: 91.3 | N67: 1829 | O67: 78 | P67: 0 | Q67: 74.6 | R67: 100 | S67: 104.14 | T67: 91.56 | U67: 91.56 | V67: 51.41 | W67: 40.15 | X67: 113.7 | Y67: 113.7 | Z67: 202.6 | AA67: 9516 | AB67: 5343 | AC67: 4173 | AD67: 10601 | AE67: 4.9 | AF67: 111.1 | AG67: 111.1 | AH67: 0 | AI67: 2.3 | AJ67: 87.3 | AK67: 90.7 | AL67: 31
A68: 272230 | B68: 大阪府 | C68: 門真市 | D68: 1171 | E68: Aa1 | F68: A | G68: a | H68: 1 | I68: 112100 | J68: 13 | K68: 46 | L68: 90.9 | M68: 102.9 | N68: 1749 | O68: 118 | P68: 0 | Q68: 66.5 | R68: 99.4 | S68: 104.08 | T68: 114.56 | U68: 114.56 | V68: 51.74 | W68: 62.83 | X68: 90.9 | Y68: 90.9 | Z68: 201.2 | AA68: 12577 | AB68: 5680 | AC68: 6897 | AD68: 5095 | AE68: 3.7 | AF68: 104.7 | AG68: 105 | AH68: 0 | AI68: 1.9 | AJ68: 38 | AK68: 103.5 | AL68: 363
A69: 272272 | B69: 大阪府 | C69: 東大阪市 | D69: 1171 | E69: Aa1 | F69: A | G69: a | H69: 1 | I69: 484887 | J69: 10.8 | K69: 50 | L69: 98.8 | M69: 98.8 | N69: 2049 | O69: 99 | P69: 0 | Q69: 60.3 | R69: 96.1 | S69: 124.93 | T69: 103.26 | U69: 103.26 | V69: 53.79 | W69: 49.47 | X69: 121 | Y69: 121 | Z69: 232.2 | AA69: 11232 | AB69: 5851 | AC69: 5381 | AD69: 5573 | AE69: 3.7 | AF69: 104.2 | AG69: 104.2 | AH69: 0 | AI69: 1.9 | AJ69: 36 | AK69: 102.5 | AL69: 306
A70: 282022 | B70: 兵庫県 | C70: 尼崎市 | D70: 1171 | E70: Aa1 | F70: A | G70: a | H70: 1 | I70: 462436 | J70: 13.6 | K70: 59 | L70: 100 | M70: 101 | N70: 1683 | O70: 114 | P70: 46 | Q70: 71.9 | R70: 99.6 | S70: 103.14 | T70: 74.82 | U70: 74.82 | V70: 49.5 | W70: 25.32 | X70: 137.8 | Y70: 137.8 | Z70: 208.3 | AA70: 8906 | AB70: 5892 | AC70: 3014 | AD70: 4021 | AE70: 7.9 | AF70: 115.1 | AG70: 115.1 | AH70: 0 | AI70: 2.2 | AJ70: 77.1 | AK70: 96.1 | AL70: 70
A71: 282031 | B71: 兵庫県 | C71: 明石市 | D71: 1171 | E71: Aa1 | F71: A | G71: a | H71: 1 | I71: 299829 | J71: 8.2 | K71: 50 | L71: 99.5 | M71: 119.1 | N71: 2157 | O71: 78 | P71: 68.1 | Q71: 81.7 | R71: 98.5 | S71: 148.98 | T71: 125.64 | U71: 150.28 | V71: 58.2 | W71: 67.45 | X71: 118.6 | Y71: 99.1 | Z71: 256 | AA71: 13129 | AB71: 6081 | AC71: 7048 | AD71: 4543 | AE71: 8.2 | AF71: 111.2 | AG71: 111.3 | AH71: 0.1 | AI71: 2.2 | AJ71: 57.3 | AK71: 101.8 | AL71: 166
A72: 282049 | B72: 兵庫県 | C72: 西宮市 | D72: 1171 | E72: Aa1 | F72: A | G72: a | H72: 1 | I72: 483846 | J72: 11.2 | K72: 58 | L72: 99.9 | M72: 93 | N72: 1745 | O72: 100 | P72: 62.4 | Q72: 74.6 | R72: 99.8 | S72: 101.33 | T72: 97.71 | U72: 106.83 | V72: 50.69 | W72: 47.02 | X72: 103.7 | Y72: 94.9 | Z72: 199.9 | AA72: 10864 | AB72: 5636 | AC72: 5228 | AD72: 6451 | AE72: 6 | AF72: 110.2 | AG72: 110.2 | AH72: 0 | AI72: 2.2 | AJ72: 64.7 | AK72: 102.6 | AL72: 127
A73: 282073 | B73: 兵庫県 | C73: 伊丹市 | D73: 1171 | E73: Aa1 | F73: A | G73: a | H73: 1 | I73: 202048 | J73: 12.1 | K73: 49 | L73: 100 | M73: 102.9 | N73: 1695 | O73: 100 | P73: 0 | Q73: 70.4 | R73: 99.6 | S73: 101.75 | T73: 85.2 | U73: 85.2 | V73: 37.6 | W73: 47.59 | X73: 119.4 | Y73: 119.4 | Z73: 270.6 | AA73: 10318 | AB73: 4554 | AC73: 5764 | AD73: 7771 | AE73: 3.8 | AF73: 109.4 | AG73: 109.4 | AH73: 0.1 | AI73: 2.1 | AJ73: 48 | AK73: 104.2 | AL73: 160
A74: 282146 | B74: 兵庫県 | C74: 宝塚市 | D74: 1171 | E74: Aa1 | F74: A | G74: a | H74: 1 | I74: 231408 | J74: 9.7 | K74: 44 | L74: 98.8 | M74: 99.1 | N74: 1814 | O74: 96 | P74: 0 | Q74: 88.3 | R74: 99.3 | S74: 97.79 | T74: 111.77 | U74: 111.77 | V74: 43.85 | W74: 67.92 | X74: 87.5 | Y74: 87.5 | Z74: 223 | AA74: 11276 | AB74: 4424 | AC74: 6852 | AD74: 10061 | AE74: 5.1 | AF74: 113.6 | AG74: 113.6 | AH74: 0 | AI74: 2.2 | AJ74: 69 | AK74: 102.9 | AL74: 102
A75: 282171 | B75: 兵庫県 | C75: 川西市 | D75: 1171 | E75: Aa1 | F75: A | G75: a | H75: 1 | I75: 157793 | J75: 8.6 | K75: 44 | L75: 99.5 | M75: 99.4 | N75: 2106 | O75: 90 | P75: 0 | Q75: 80 | R75: 99.3 | S75: 116.99 | T75: 74.76 | U75: 86.24 | V75: 48.79 | W75: 25.96 | X75: 156.5 | Y75: 135.7 | Z75: 239.8 | AA75: 7148 | AB75: 4665 | AC75: 2482 | AD75: 5635 | AE75: 6.5 | AF75: 124.2 | AG75: 122.2 | AH75: 0 | AI75: 1.9 | AJ75: 66.5 | AK75: 97.1 | AL75: 85
A76: 292010 | B76: 奈良県 | C76: 奈良市 | D76: 1171 | E76: Aa1 | F76: A | G76: a | H76: 1 | I76: 314594 | J76: 7.6 | K76: 55 | L76: 87.8 | M76: 109.7 | N76: 2320 | O76: 67 | P76: 704.6 | Q76: 93.8 | R76: 96.1 | S76: 107.82 | T76: 110.85 | U76: 110.85 | V76: 69.21 | W76: 41.64 | X76: 97.3 | Y76: 97.3 | Z76: 155.8 | AA76: 12554 | AB76: 7838 | AC76: 4716 | AD76: 13678 | AE76: 4.4 | AF76: 94.7 | AG76: 94.8 | AH76: 0 | AI76: 1.5 | AJ76: 60 | AK76: 102.3 | AL76: 116
A77: 462012 | B77: 鹿児島県 | C77: 鹿児島市 | D77: 1171 | E77: Aa1 | F77: A | G77: a | H77: 1 | I77: 472600 | J77: 7.9 | K77: 63 | L77: 78.1 | M77: 95.7 | N77: 1803 | O77: 67 | P77: 75.5 | Q77: 90.9 | R77: 98.1 | S77: 107.33 | T77: 108.29 | U77: 119.61 | V77: 63.27 | W77: 45.02 | X77: 99.1 | Y77: 89.7 | Z77: 169.6 | AA77: 12744 | AB77: 7446 | AC77: 5298 | AD77: 3172 | AE77: 20.9 | AF77: 107.6 | AG77: 107.7 | AH77: 0 | AI77: 2 | AJ77: 67.4 | AK77: 95.7 | AL77: 56
A78: 472018 | B78: 沖縄県 | C78: 那覇市 | D78: 1171 | E78: Aa1 | F78: A | G78: a | H78: 1 | I78: 316024 | J78: 10.2 | K78: 49 | L78: 98.1 | M78: 100.8 | N78: 1468 | O78: 90 | P78: 0 | Q78: 100 | R78: 95.7 | S78: 95.75 | T78: 88.42 | U78: 88.42 | V78: 66.46 | W78: 21.96 | X78: 108.3 | Y78: 108.3 | Z78: 144.1 | AA78: 10020 | AB78: 7532 | AC78: 2489 | AD78: 6584 | AE78: 6 | AF78: 111.8 | AG78: 110.9 | AH78: 0 | AI78: 2.1 | AJ78: 71.5 | AK78: 95.3 | AL78: 45
A79: 112038 | B79: 埼玉県 | C79: 川口市 | D79: 2171 | E79: Aa1 | F79: A | G79: a | H79: 1 | I79: 521717 | J79: 12.3 | K79: 59 | L79: 86.8 | M79: 102.6 | N79: 1678 | O79: 124 | P79: 0 | Q79: 87.8 | R79: 94.5 | S79: 104.73 | T79: 128.74 | U79: 128.74 | V79: 67.29 | W79: 61.46 | X79: 81.3 | Y79: 81.3 | Z79: 155.6 | AA79: 12681 | AB79: 6628 | AC79: 6053 | AD79: 7147 | AE79: 6.3 | AF79: 141.7 | AG79: 84.2 | AH79: 0 | AI79: 0 | AJ79: 0 | AK79: 0 | AL79: 106
A80: 112194 | B80: 埼玉県 | C80: 上尾市 | D80: 2171 | E80: Aa1 | F80: A | G80: a | H80: 1 | I80: 186804 | J80: 7.7 | K80: 43 | L80: 81.8 | M80: 103.5 | N80: 2116 | O80: 81 | P80: 0 | Q80: 90.1 | R80: 96.4 | S80: 130.96 | T80: 140.77 | U80: 140.77 | V80: 69.08 | W80: 71.68 | X80: 93 | Y80: 93 | Z80: 189.6 | AA80: 13267 | AB80: 6511 | AC80: 6756 | AD80: 8122 | AE80: 4.1 | AF80: 159.3 | AG80: 91.6 | AH80: 0 | AI80: 0 | AJ80: 0 | AK80: 0 | AL80: 92
A81: 112216 | B81: 埼玉県 | C81: 草加市 | D81: 2171 | E81: Aa1 | F81: A | G81: a | H81: 1 | I81: 229982 | J81: 10.2 | K81: 35 | L81: 92.6 | M81: 101.9 | N81: 1911 | O81: 96 | P81: 0 | Q81: 87.9 | R81: 97.9 | S81: 107.97 | T81: 150 | U81: 194.94 | V81: 67.57 | W81: 82.43 | X81: 72 | Y81: 55.4 | Z81: 159.8 | AA81: 15837 | AB81: 7134 | AC81: 8703 | AD81: 14374 | AE81: 2.3 | AF81: 166.2 | AG81: 72 | AH81: 0 | AI81: 0 | AJ81: 0 | AK81: 0 | AL81: 161
A82: 112224 | B82: 埼玉県 | C82: 越谷市 | D82: 2171 | E82: Aa1 | F82: A | G82: a | H82: 1 | I82: 284200 | J82: 9.9 | K82: 35 | L82: 83.3 | M82: 99.8 | N82: 2322 | O82: 103 | P82: 0 | Q82: 88 | R82: 95.5 | S82: 125.46 | T82: 139.49 | U82: 139.49 | V82: 72.08 | W82: 67.41 | X82: 89.9 | Y82: 89.9 | Z82: 174.1 | AA82: 13419 | AB82: 6934 | AC82: 6485 | AD82: 11368 | AE82: 3.1 | AF82: 170.1 | AG82: 69.7 | AH82: 0 | AI82: 0 | AJ82: 0 | AK82: 0 | AL82: 121
A83: 112275 | B83: 埼玉県 | C83: 朝霞市 | D83: 2171 | E83: Aa1 | F83: A | G83: a | H83: 1 | I83: 135362 | J83: 12.7 | K83: 36 | L83: 97.6 | M83: 114 | N83: 1134 | O83: 125 | P83: 0 | Q83: 80.7 | R83: 98.6 | S83: 66.47 | T83: 65.7 | U83: 65.7 | V83: 54.26 | W83: 11.45 | X83: 101.2 | Y83: 101.2 | Z83: 122.5 | AA83: 6704 | AB83: 5536 | AC83: 1168 | AD83: 11280 | AE83: 7.1 | AF83: 117 | AG83: 95.6 | AH83: 0 | AI83: 0 | AJ83: 0 | AK83: 0 | AL83: 23
A84: 112305 | B84: 埼玉県 | C84: 新座市 | D84: 2171 | E84: Aa1 | F84: A | G84: a | H84: 1 | I84: 153754 | J84: 11.5 | K84: 36 | L84: 92.9 | M84: 108.6 | N84: 1609 | O84: 112 | P84: 0 | Q84: 97.1 | R84: 98.6 | S84: 96.24 | T84: 121.82 | U84: 121.82 | V84: 46.28 | W84: 75.53 | X84: 79 | Y84: 79 | Z84: 207.9 | AA84: 12459 | AB84: 4734 | AC84: 7726 | AD84: 11827 | AE84: 3 | AF84: 166.2 | AG84: 82.9 | AH84: 0 | AI84: 0 | AJ84: 0 | AK84: 0 | AL84: 92
A85: 112372 | B85: 埼玉県 | C85: 三郷市 | D85: 2171 | E85: Aa1 | F85: A | G85: a | H85: 1 | I85: 111828 | J85: 8.3 | K85: 35 | L85: 79.5 | M85: 91.1 | N85: 1566 | O85: 89 | P85: 0 | Q85: 84 | R85: 89.3 | S85: 92.42 | T85: 150 | U85: 207.11 | V85: 64.54 | W85: 85.46 | X85: 61.6 | Y85: 44.6 | Z85: 143.2 | AA85: 13982 | AB85: 6016 | AC85: 7966 | AD85: 7455 | AE85: 5.4 | AF85: 153.4 | AG85: 64.9 | AH85: 0 | AI85: 0 | AJ85: 0 | AK85: 0 | AL85: 247
A86: 118541 | B86: 埼玉県 | C86: 坂戸、鶴ケ島下水道組合 | D86: 2171 | E86: Aa1 | F86: A | G86: a | H86: 1 | I86: 122398 | J86: 7.7 | K86: 45 | L86: 74.8 | M86: 80.6 | N86: 2300 | O86: 75 | P86: 76.2 | Q86: 76.7 | R86: 95 | S86: 152 | T86: 150 | U86: 198.67 | V86: 101.04 | W86: 48.96 | X86: 101.3 | Y86: 76.5 | Z86: 150.4 | AA86: 15398 | AB86: 10372 | AC86: 5026 | AD86: 3221 | AE86: 11.9 | AF86: 157.6 | AG86: 101 | AH86: 0 | AI86: 0 | AJ86: 0 | AK86: 0 | AL86: 112
A87: 122033 | B87: 千葉県 | C87: 市川市 | D87: 2171 | E87: Aa1 | F87: A | G87: a | H87: 1 | I87: 355200 | J87: 14.7 | K87: 46 | L87: 73.1 | M87: 78.2 | N87: 2516 | O87: 157 | P87: 838.9 | Q87: 84.8 | R87: 94.2 | S87: 138.52 | T87: 105.28 | U87: 105.28 | V87: 27.57 | W87: 77.71 | X87: 131.6 | Y87: 131.6 | Z87: 502.3 | AA87: 9880 | AB87: 2588 | AC87: 7292 | AD87: 5823 | AE87: 6.6 | AF87: 291 | AG87: 145.9 | AH87: 0 | AI87: 0 | AJ87: 0 | AK87: 0 | AL87: 100
A88: 122041 | B88: 千葉県 | C88: 船橋市 | D88: 2171 | E88: Aa1 | F88: A | G88: a | H88: 1 | I88: 494492 | J88: 11.9 | K88: 57 | L88: 77.7 | M88: 88.9 | N88: 1938 | O88: 117 | P88: 87.8 | Q88: 79.8 | R88: 90.5 | S88: 132.79 | T88: 150 | U88: 159.22 | V88: 67.23 | W88: 82.77 | X88: 88.5 | Y88: 83.4 | Z88: 197.5 | AA88: 15296 | AB88: 6856 | AC88: 8440 | AD88: 5375 | AE88: 2.8 | AF88: 180.1 | AG88: 74.7 | AH88: 0 | AI88: 0 | AJ88: 0 | AK88: 0 | AL88: 276
A89: 122076 | B89: 千葉県 | C89: 松戸市 | D89: 2171 | E89: Aa1 | F89: A | G89: a | H89: 1 | I89: 422819 | J89: 10.5 | K89: 58 | L89: 85.5 | M89: 88.6 | N89: 2423 | O89: 109 | P89: 1084.9 | Q89: 81.9 | R89: 95.6 | S89: 137 | T89: 140.46 | U89: 140.46 | V89: 18.94 | W89: 121.52 | X89: 97.5 | Y89: 97.5 | Z89: 723.4 | AA89: 13489 | AB89: 1819 | AC89: 11670 | AD89: 8456 | AE89: 2.6 | AF89: 259.2 | AG89: 91.9 | AH89: 0 | AI89: 0 | AJ89: 0 | AK89: 0 | AL89: 128
A90: 122165 | B90: 千葉県 | C90: 習志野市 | D90: 2171 | E90: Aa1 | F90: A | G90: a | H90: 1 | I90: 163561 | J90: 11 | K90: 51 | L90: 94.8 | M90: 101 | N90: 2072 | O90: 108 | P90: 204.2 | Q90: 73.5 | R90: 97 | S90: 154.89 | T90: 168.55 | U90: 168.55 | V90: 84.41 | W90: 84.14 | X90: 91.9 | Y90: 91.9 | Z90: 183.5 | AA90: 17172 | AB90: 8600 | AC90: 8572 | AD90: 6058 | AE90: 5 | AF90: 140.6 | AG90: 74.9 | AH90: 0 | AI90: 0 | AJ90: 0 | AK90: 0 | AL90: 158
